Workbook

Sheet Chart Index (hidden)
A7: Preview | B7: Sheet (and graph link) | C7: Chart Title | D7: Chart Series
B8: طراحی همه الگوها | C8: رسم دستی چادر2 | D8: انحنا, صاف
B9: طراحی همه الگوها | C9: رسم دستی چادر 3 | D9: انحنا, صاف
B10: طراحی همه الگوها | C10: رسم دستی چادر 5 | D10: انحنا, صاف
B11: طراحی همه الگوها | C11: طراحی چادرها و رسم چادر 4 | D11: شبیه ساز دست خمیده و سر, شبیه ساز دامن, رسم یا طراحی چادر4
B12: طراحی همه الگوها | C12: چادر1 و مقنعه برای پرینت | D12: شبیه ساز دست خمیده و سر, شبیه ساز دامن, چادر 1 با نقطه گذاری
B13: طراحی همه الگوها | C13: شلوار پشت | D13: 1شبیه ساز, 2کمر شلوار, 3وسط شلوار و خط اتو, 4پهلو, 6فاق, 7لبه پایین, 9کمر جدا, اطلاعات اندام در شلوار
B14: طراحی همه الگوها | C14: طراحی پشت یقه | D14: شبیه ساز برش, شبیه ساز انحنا, طراحی یقه گرد
B15: طراحی همه الگوها | C15: طراحی جلو یقه | D15: شبیه ساز اندام, طراحی یقه شکاری
B16: طراحی همه الگوها | C16: شلوار جلو | D16: 1شبیه ساز جلو, 2کمر شلوار, 3وسط شلوار, 4پهلو, 6فاق, 7لبه پایین شلوار, 8زیپ, 9کمر جدا, 10جیب مردانه, 11جیب جین, اطلاعات اندام در شلوار
B17: طراحی همه الگوها | C17: طراحی جلو دامن ترک با کمر پهن | D17: شبیه ساز دامن تنگ, کمر پهن, خط مرکزی جلو کمر, خطوط اصلی دامن ترک, خطوط فرعی دامن ترک, خط اوزمان, پیلی
B18: طراحی همه الگوها | C18: طراحی پشت دامن ترک با کمر پهن | D18: شبیه ساز دامن تنگ, کمر یکسره, خطوط اصلی دامن ترک, خطوط فرعی دامن ترک, پیلی
B19: طراحی همه الگوها | C19: آستین | D19: شبیه ساز آستین, آستین بلند یا کوتاه, مچ آستین بلند یا کوتاه
B20: طراحی همه الگوها | C20: الگو پشت | D20: 0 اطلاعات اندام, 72شبیه ساز بالاتنه بدون ساسون, 2شبیه ساز دامن, 5حلقه آستین بدون ساسون, 6سرشانه بدون ساسون, 10پهلو صاف وپایین لباس, 17یقه گرد , 18خط پشت در پیراهن, 24بدون شیفت ساسون کمر
B21: طراحی همه الگوها | C21: یقه و کلاه | D21: شومیزیه
B22: طراحی همه الگوها | C22: الگو جلو | D22: 0اطلاعات اندام, 1شبیه ساز بالاتنه, 2شبیه ساز دامن, 6حلقه آستین بدون ساسون , 7سرشانه بدون ساسون, 11پهلو صاف , 22یقه گرد چرخیده, 23جادکمه یقه گرد در پیراهن, 29پایین پیراهن بدون ترک, 70ساسون کمر, 76جادکمه متصل به یقه

Sheet محاسبات (hidden)
A1: height_print | B1: 30.28304426
A2: width_print | B2: 30.14230298
A3: charts_resized
A4: print_body_chartS
A5: ActiveWindow.Zoom | B5: 15
A6: per_font_size_chart | B6: 0.8
A7: ChartFieldRange( باید خالی باشد )
A8: show_temp_print_sheet | B8: 0
A9: per_line_size_chart | F9: نقاط ورودی | J9: رسم چادر شماره 1 و مقنعه چانه دار | N9: نقاط ورودی | R9: رسم مقنعه دراپه | V9: رسم دستی چادر 2 (بر حسب سانتیمتر) | Y9: رسم چادر شماره 2 | AG9: نقاط ورودی | AK9: طراحی چادر شماره 2 | AS9: طراحی چادر شماره 3 | AW9: رسم دستی چادر 3 (بر حسب سانتیمتر) | AZ9: رسم چادر شماره 3 | BH9: رسم دستی چادر 4 | BN9: رسم و طراحی چادر شماره 4 | BZ9: رسم چادر شماره 5 | CH9: طراحی چادر شماره 5 | CL9: طراحی چادر شماره 5 | CU9: پروسیجر یافتن راس سوم مثلث با داشتن دو راس و دو ضلع | DA9: پروسیجر چرخش یک نقطه حول نقطه دیگر | DG9: کامل شده
F10: مولفه افقی | G10: مولفه عمودی | H10: اسم نقطه | J10: مولفه افقی | K10: مولفه عمودی | L10: اسم نقطه | N10: مولفه افقی | O10: مولفه عمودی | P10: اسم نقطه | R10: مولفه افقی | S10: مولفه عمودی | T10: اسم نقطه | Z10: صاف | AD10: انحنا | AG10: اسم نقطه | AH10: مولفه افقی | AI10: مولفه عمودی | AK10: =AH21 -> 0 | AL10: 168.505003 | AM10: s6 | AO10: طراحی چادر شماره 3 | AS10: =AP12 -> 0 | AT10: 168.505003 | AU10: s'6 | BA10: صاف | BE10: انحنا | BN10: رسم دستی چادر4 با نقطه گذاری | BS10: خطوط پرینت الگو یا طراحی چادر4 | BV10: رسم دستی چادر 5 (بر حسب سانتیمتر) | CA10: صاف | CE10: انحنا | CH10: اسم نقطه | CI10: مولفه افقی | CJ10: مولفه عمودی | CL10: =CI14 -> 0 | CM10: =CJ14 -> 168.505003 | CN10: s'6 | CW10: اطلاعات ورودی | DA10: رادیان | DB10: =-#REF! ->  | DC10: زاویه چرخش | DD10: چرخش مخالف عقربه های ساعت
F11: =AC406 -> 0 | G11: =AD406 -> 168.001 | H11: شبیه ساز s15 | J11: =F36 -> 79.6 | K11: =G36 -> 172.7 | L11: j5 | N11: =AC404 -> 0 | O11: =AD404 -> 148.14 | P11: شبیه ساز s5 | R11: =N24 -> 0 | S11: =O24 -> 96.5815 | T11: d6 | Y11: =W35+'طراحی همه الگوها'!U190 -> 14.8 | Z11: =Z12 -> 0 | AA11: 5 | AC11: =Y15 -> 14.8 | AD11: =Z15 -> 26.8 | AE11: 11 | AG11: s2 | AH11: =AC401 -> 4.294836 | AI11: =AD401 -> 163.9685625 | AK11: 7.292624159 | AL11: 166.1549079 | AM11: s7 | AO11: اسم نقطه | AP11: مولفه افقی | AQ11: مولفه عمودی | AS11: 6.402079342 | AT11: 165.4555788 | AU11: s'7 | AZ11: =W35 -> 0 | BA11: ='طراحی همه الگوها'!U210+AX33 -> 172.7 | BB11: 1 | BD11: =AZ30 -> 184.7 | BE11: =BA30 -> 172.7 | BF11: 11 | BN11: =BJ29 -> 0 | BO11: =BK30 -> -12 | BP11: 2 | BR11: =BJ30 -> -9.7 | BS11: =BK30 -> -12 | BT11: 3 | BZ11: =BZ15-'طراحی همه الگوها'!U274 -> 68.9 | CA11: =CA15 -> 104 | CB11: خط پهلو | CD11: =BZ30 -> 99.2 | CE11: =CA30 -> 115.1 | CF11: 13 | CH11: s1 | CI11: =AC400 -> 0 | CJ11: =AD400 -> 165.975 | CL11: 7.689704426 | CM11: 165.559877 | CN11: s''7 | CU11: اسم نقطه | CV11: مولفه افقی | CW11: مولفه عمودی | DA11: مولفه افقی | DB11: مولفه عمودی | DC11: اسم نقطه | DE11: نقطه خروجی چرخیده
G12: ='متغیرها '!C52 -> 0 | H12: شیفت عمودی | J12: =F33 -> 0 | K12: =G33 -> 172.7 | L12: j1 | N12: =F34 -> 0 | O12: =G34 -> 105.1 | P12: j2 | R12: =N22 -> 0 | S12: =O22 -> 183.2165 | T12: d3 | Y12: =W35 -> 0 | Z12: =O33 -> 0 | AA12: 2 | AC12: ='طراحی همه الگوها'!U190+'طراحی همه الگوها'!U199 -> 37.1 | AD12: =Z12+'طراحی همه الگوها'!U201 -> 29.8 | AE12: 17 | AG12: s3 | AH12: =AC402 -> 6.13548 | AI12: =AD402 -> 157.94925 | AK12: 24.3087472 | AL12: 148.9208769 | AM12: s8 | AO12: s'6 | AP12: =AH14 -> 0 | AQ12: =1.003*AI14 -> 168.505003 | AS12: 21.34026447 | AT12: 144.1096092 | AU12: s'8 | AZ12: =W35 -> 0 | BA12: =BA11-'طراحی همه الگوها'!U212 -> 100.2 | BB12: 4 | BD12: =BD13+0.7*(BD11-BD13) -> 183.08 | BE12: =BE13+0.4*(BE11-BE13) -> 149.3 | BF12: 13' | BN12: =BJ29 -> 0 | BO12: =BK29 -> 172.7 | BP12: 1 | BR12: =BJ32 -> 6.178209603 | BS12: =BK32 -> -12.8321417 | BT12: 6 | CD12: =CD11+0.45*(CD15-CD11) -> 110.9 | CE12: =CE11+0.25*(CE15-CE11) -> 142.575 | CF12: 13' | CH12: s3 | CI12: =AC402 -> 6.13548 | CJ12: =AD402 -> 157.94925 | CL12: 20.50587847 | CM12: 144.9439952 | CN12: s''8 | CT12: راس پایین | CU12: منهای شیفتa50 | CV12: =BL37 -> 92.59509547 | CW12: =BM37 -> 0 | CX12: ضلع پایین | CY12: =BT25 -> 8 | DA12: =#REF! ->  | DB12: =#REF! ->  | DC12: a40 | DD12: نقطه مرکزی چرخش | DE12: مولفه افقی | DF12: مولفه عمودی | DG12: اسم نقطه
F13: دور سر | G13: ='متغیرها '!U85 -> 57 | H13: w12 | O13: =G19 -> 167 | P13: تمام قد | Y13: =W35 -> 0 | Z13: ='طراحی همه الگوها'!U188+O33 -> 180.7 | AA13: 1 | AC13: =Y19 -> 59.3 | AD13: =Z19 -> 35.5 | AE13: 10 | AG13: خط سینه | AH13: =BC400 -> 0 | AI13: =BD400 -> 120.3 | AK13: 42.5403076 | AL13: 137.1704013 | AM13: s9 | AO13: s'7 | AP13: =AP12+0.12*(AP16-AP12) -> 6.402079342 | AQ13: =AQ16+0.95*(AQ12-AQ16) -> 165.4555788 | AS13: 37.34546283 | AT13: 125.8130639 | AU13: s'9 | AZ13: =W35 -> 0 | BA13: =AX33 -> 0 | BB13: 2 | BD13: =AZ29-'طراحی همه الگوها'!U220 -> 179.3 | BE13: =BA29 -> 133.7 | BF13: 13 | BZ13: 0 | CA13: =BW42 -> 0 | CB13: 1 | CD13: =CD11+0.75*(CD15-CD11) -> 118.7 | CE13: =CE11+0.5*(CE15-CE11) -> 170.05 | CF13: 28 | CH13: s5 | CI13: =AC404 -> 0 | CJ13: =AD404 -> 148.14 | CL13: 35.88528732 | CM13: 126.095189 | CN13: s''9 | CT13: راس بالا | CU13: منهای شیفتe18 | CV13: =BV27-BQ21 -> 0 | CW13: =BW27 -> 0 | CX13: ضلع بالا | CY13: =BT26 -> 0 | DA13: =#REF!-#REF!+#REF! ->  | DB13: =#REF! ->  | DC13: a48-b16+f22 | DD13: نقطه قبل از چرخش | DE13: =IF(DB13>DB12,IF(DA13>DA12,DA12+SQRT(POWER(DA13-DA12,2)+POWER(DB13-DB12,2))*COS(ATAN((DB13-DB12)/(DA13-DA12+0.000123))+DB10),DA12-SQRT(POWER(DA13-DA12,2)+POWER(DB13-DB12,2))*COS(ATAN((DB13-DB12)/(DA12-DA13+0.000123))-DB10)),IF(DA13>DA12,DA12+SQRT(POWER(DA13-DA12,2)+POWER(DB13-DB12,2))*COS(ATAN((DB12-DB13)/(DA13-DA12+0.000123))-DB10),DA12-SQRT(POWER(DA13-DA12,2)+POWER(DB13-DB12,2))*COS(ATAN((DB12-DB13)/(DA12-DA13+0.000123))+DB10))) ->  | DF13: =IF(DB13>DB12,IF(DA13>DA12,DB12+SQRT(POWER(DA13-DA12,2)+POWER(DB13-DB12,2))*SIN(ATAN((DB13-DB12)/(DA13-DA12+0.000123))+DB10),DB12+SQRT(POWER(DA13-DA12,2)+POWER(DB13-DB12,2))*SIN(ATAN((DB13-DB12)/(DA12-DA13+0.000123))-DB10)),IF(DA13>DA12,DB12-SQRT(POWER(DA13-DA12,2)+POWER(DB13-DB12,2))*SIN(ATAN((DB12-DB13)/(DA13-DA12+0.000123))-DB10),DB12-SQRT(POWER(DA13-DA12,2)+POWER(DB13-DB12,2))*SIN(ATAN((DB12-DB13)/(DA12-DA13+0.000123))+DB10))) ->  | DG13: e52
G14: ='متغیرها '!U76 -> 83 | H14: t3 | J14: =F33 -> 0 | K14: =G33 -> 172.7 | L14: j1 | O14: ='متغیرها '!C52 -> 0 | P14: شیفت عمودی | R14: =N22 -> 0 | S14: =O22 -> 183.2165 | T14: d3 | Y14: =W35+'طراحی همه الگوها'!U190 -> 14.8 | Z14: =Z13 -> 180.7 | AA14: 4 | AC14: ='طراحی همه الگوها'!U190+'طراحی همه الگوها'!U192+'طراحی همه الگوها'!U202 -> 70.3 | AD14: =Z12+'طراحی همه الگوها'!U204 -> 33.9 | AE14: 20 | AG14: s15 | AH14: =AC406 -> 0 | AI14: =AD406 -> 168.001 | AK14: 60.77186799 | AL14: 129.3367508 | AM14: s10 | AO14: s'8 | AP14: =AP12+0.4*(AP16-AP12) -> 21.34026447 | AQ14: =AQ16+0.6*(AQ12-AQ16) -> 144.1096092 | AS14: 53.35066118 | AT14: 107.5165186 | AU14: s'10 | AZ14: =W35+'طراحی همه الگوها'!U216 -> 110 | BA14: =BA13 -> 0 | BB14: 8 | BN14: =BJ31 -> 9.1 | BO14: =BK31 -> 0 | BP14: 5 | BR14: =BJ32 -> 6.178209603 | BS14: =BK32 -> -12.8321417 | BT14: 6 | BZ14: =BZ13+'طراحی همه الگوها'!U249 -> 87.3 | CA14: =CA13 -> 0 | CB14: 2 | CD14: =CD11+0.95*(CD15-CD11) -> 123.9 | CE14: =CE11+0.8*(CE15-CE11) -> 203.02 | CF14: 13''' | CH14: s'6 | CI14: =AP12 -> 0 | CJ14: =AQ12 -> 168.505003 | CL14: 51.26469617 | CM14: 109.6024836 | CN14: s''10 | CT14: c19 | CU14: =ATAN((CV13-CV12)/(CW13-CW12)) ->  | CW14: محاسبات
G15: ='متغیرها '!U56 -> 104 | H15: e | J15: =F34 -> 0 | K15: =G34 -> 105.1 | L15: j2 | N15: محاسبات | R15: =N23 -> 73.675 | S15: =O23 -> 109.5415 | T15: d4 | Y15: =W35+'طراحی همه الگوها'!U190 -> 14.8 | Z15: =Z12+'طراحی همه الگوها'!U195 -> 26.8 | AA15: 11 | AC15: =Y23 -> 81.3 | AD15: =Z23 -> 27.714 | AE15: 7 | AG15: زاویه متوسط سرشانه | AH15: ='متغیرها '!B245 -> 0.3079830154 | AI15: α2 | AO15: s'9 | AP15: =AP12+0.7*(AP16-AP12) -> 37.34546283 | AQ15: =AQ16+0.3*(AQ12-AQ16) -> 125.8130639 | AZ15: =AZ14 -> 110 | BA15: =BA14+'طراحی همه الگوها'!U221 -> 5.4 | BB15: 14 | BD15: =AZ13 -> 0 | BE15: =BA13 -> 0 | BF15: 2 | BN15: =BJ29 -> 0 | BO15: =BK31 -> 0 | BP15: 4 | BR15: =BR14+0.3*(BR17-BR14) -> 25.32273106 | BS15: =BS14+0.05*(BS17-BS14) -> -11.75957598 | BT15: 6'' | BZ15: =BZ13+'طراحی همه الگوها'!U249 -> 87.3 | CA15: =CA13+'طراحی همه الگوها'!U251 -> 104 | CB15: 4 | CD15: =BZ34 -> 125.2 | CE15: =CA34 -> 225 | CF15: 15 | CH15: s''7 | CI15: =CI14+0.15*(CI18-CI14) -> 7.689704426 | CJ15: =CJ18+0.95*(CJ14-CJ18) -> 165.559877 | CL15: 59.60855619 | CM15: 101.2586236 | CN15: k4 شبیه ساز | CU15: درجه α | CV15: x | CW15: y | CX15: c21 | CY15: c'17 | DB15: به دست آوردن نقطه تقاطع دو خط | DC15: مولفه افقی | DD15: مولفه عمودی
G16: ='متغیرها '!U58 -> 106.1 | H16: g | N16: (d1 → d2) | O16: =0.45*'متغیرها '!U85 -> 25.65 | Y16: =W35+'طراحی همه الگوها'!U190 -> 14.8 | Z16: =Z12 -> 0 | AA16: 5 | AG16: دست صاف شبیه ساز k4 | AH16: =F406 -> 74.11312503 | AI16: =J406 -> 125.0928304 | AK16: =AH26 -> 55.28508512 | AL16: =AI26 -> 112.0884114 | AM16: s12 | AO16: s'10 | AP16: =AX39-('متغیرها '!C19*'متغیرها '!U83)*COS(AH15+RADIANS(AX38)) -> 53.35066118 | AQ16: =AY39+('متغیرها '!C19*'متغیرها '!U83)*SIN(AH15+RADIANS(AX38)) -> 107.5165186 | AS16: =AP18 -> 42.39050607 | AT16: 96.55636351 | AU16: s'12 | AZ16: =W35+'طراحی همه الگوها'!U216 -> 110 | BA16: =BA13+'طراحی همه الگوها'!U217 -> 74.7 | BB16: 9 | BD16: =BD15+0.3*(BD18-BD15) -> 17.88 | BE16: =BE15+0.15*(BE18-BE15) -> 2.055 | BF16: 16' | BN16: =BJ29 -> 0 | BO16: =BK30 -> -12 | BP16: 2 | BR16: =BR14+0.7*(BR17-BR14) -> 50.84875966 | BS16: =BS14+0.4*(BS17-BS14) -> -4.251615904 | BT16: 6''' | BZ16: =BZ13+'طراحی همه الگوها'!U249-'طراحی همه الگوها'!U255 -> 79.9 | CA16: =CA15 -> 104 | CB16: 8 | CH16: s''8 | CI16: =CI14+0.4*(CI18-CI14) -> 20.50587847 | CJ16: =CJ18+0.6*(CJ14-CJ18) -> 144.9439952 | CU16: 2 | CV16: =CV12+CY12*SIN(RADIANS(CU16)+CU14) ->  | CW16: =CW12+CY12*COS(RADIANS(CU16)+CU14) ->  | CX16: =IF(CV13>CV16,ATAN((CW13-CW16)/(CV13-CV16)),ATAN((CW13-CW16)/(CV16-CV13))) ->  | CY16: =IF(CV13>CV16,(CV13-CV16)/COS(CX16),(CV16-CV13)/COS(CX16)) ->  | DA16: نقطه اول از خط اول | DB16: f5 | DC16: =#REF! ->  | DD16: =#REF! -> 
F17: محاسبات | J17: =F34 -> 0 | K17: =G34 -> 105.1 | L17: j2 | N17: (d1 →d4) | O17: ='طراحی همه الگوها'!U178+'طراحی همه الگوها'!U177 -> 79.6 | R17: =N28 -> 0 | S17: =O28 -> 102.973745 | T17: j'2 | Y17: =Y16+'طراحی همه الگوها'!U192 -> 59.3 | Z17: =Z12 -> 0 | AA17: 8 | AC17: =Y16 -> 14.8 | AD17: =Z16 -> 0 | AE17: 5 | AG17: شبیه ساز 26 | AH17: =BG388 -> 0 | AI17: =BH388 -> 138.1059388 | AK17: =AK16+0.25*(AK19-AK16) -> 59.93881384 | AL17: =AL19+0.5*(AL16-AL19) -> 56.04420568 | AM17: s12' | AO17: s'11 | AP17: =AP27-'طراحی همه الگوها'!U226*SIN(AH15+RADIANS(AX38)) -> 49.49692922 | AQ17: =AQ27-'طراحی همه الگوها'!U226*COS(AH15+RADIANS(AX38)) -> 91.14699663 | AS17: 52.02335425 | AT17: 48.27818175 | AU17: s''13 | AZ17: =AZ24 -> 62.1 | BA17: =BA12+'طراحی همه الگوها'!U215 -> 104.2 | BB17: 7 | BD17: =W35+'طراحی همه الگوها'!U227 -> 35.76 | BE17: =BE15+'طراحی همه الگوها'!U228 -> 6.2 | BF17: 22 | BN17: =BJ30 -> -9.7 | BO17: =BK30 -> -12 | BP17: 3 | BR17: =BJ34 -> 69.99328112 | BS17: =BK34 -> 8.619172796 | BT17: 8 | BZ17: =BZ13 -> 0 | CA17: =CA15 -> 104 | CB17: 3 | CD17: =BZ32 -> 0 | CE17: =CA32 -> 129.7 | CF17: 18 | CH17: s''9 | CI17: =CI14+0.7*(CI18-CI14) -> 35.88528732 | CJ17: =CJ18+0.28*(CJ14-CJ18) -> 126.095189 | CL17: =CI19 -> 59.60855619 | CM17: 101.2586236 | CN17: k4 شبیه ساز | CU17: 4 | CV17: =CV12+CY12*SIN(RADIANS(CU17)+CU14) ->  | CW17: =CW12+CY12*COS(RADIANS(CU17)+CU14) ->  | CX17: =IF(CV13>CV17,ATAN((CW13-CW17)/(CV13-CV17)),ATAN((CW13-CW17)/(CV17-CV13))) ->  | CY17: =IF(CV13>CV17,(CV13-CV17)/COS(CX17),(CV17-CV13)/COS(CX17)) ->  | DA17: نقطه دوم از خط اول | DB17: f6 | DC17: =#REF! ->  | DD17: =#REF! -> 
F18: قد سرشانه تا زمین | G18: =0.5*(G14+G15+G16) -> 146.55 | J18: =F44 -> 12 | K18: =G44 -> 105.1 | L18: j13 | N18: (d5 →d6) | O18: =5+0.1*O17 -> 12.96 | Y18: =Y16+'طراحی همه الگوها'!U192 -> 59.3 | Z18: =Z12+'طراحی همه الگوها'!U193 -> 13.9 | AA18: 9 | AC18: ='طراحی همه الگوها'!U190+'طراحی همه الگوها'!U199 -> 37.1 | AD18: =Z12+'طراحی همه الگوها'!U200 -> 4.9 | AE18: 16 | AK18: =AK16+0.6*(AK19-AK16) -> 66.45403405 | AL18: =AL19+0.2*(AL16-AL19) -> 22.41768227 | AM18: s12'' | AO18: s'12 | AP18: =AP16-'طراحی همه الگوها'!U225*SIN(AH15+RADIANS(AX38)) -> 42.39050607 | AQ18: =AQ16-'طراحی همه الگوها'!U225*COS(AH15+RADIANS(AX38)) -> 96.55636351 | AS18: 60.05072773 | AT18: 24.13909088 | AU18: s'''13 | AZ18: =W35+'طراحی همه الگوها'!U216 -> 110 | BA18: =BA16+'طراحی همه الگوها'!U218 -> 133.7 | BB18: 10 | BD18: =W35+'طراحی همه الگوها'!U222 -> 59.6 | BE18: =BA13+'طراحی همه الگوها'!U223 -> 13.7 | BF18: 16 | BZ18: =BZ13 -> 0 | CA18: =CA17-'طراحی همه الگوها'!U252 -> 89.4 | CB18: 5 | CD18: =CD17+'طراحی همه الگوها'!U268 -> 23.4 | CE18: =CA31+'طراحی همه الگوها'!U269 -> 130.6 | CF18: 24 | CH18: s''10 | CI18: =AX39-0.2*'متغیرها '!U83*COS(AH15+RADIANS(AX38)) -> 51.26469617 | CJ18: =AY39+0.2*'متغیرها '!U83*SIN(AH15+RADIANS(AX38)) -> 109.6024836 | CL18: 48.76340357 | CM18: 75.74988951 | CN18: s''11 | CU18: 6 | CV18: =CV12+CY12*SIN(RADIANS(CU18)+CU14) ->  | CW18: =CW12+CY12*COS(RADIANS(CU18)+CU14) ->  | CX18: =IF(CV13>CV18,ATAN((CW13-CW18)/(CV13-CV18)),ATAN((CW13-CW18)/(CV18-CV13))) ->  | CY18: =IF(CV13>CV18,(CV13-CV18)/COS(CX18),(CV18-CV13)/COS(CX18)) ->  | DA18: نقطه اول از خط دوم | DB18: f7 | DC18: =#REF! ->  | DD18: =#REF! -> 
F19: تمام قد | G19: =ROUND(G18+IF(G13>51.5,0.35,IF(G13>50.5,0.33,0.31))*G13,0) -> 167 | N19: نقاط خروجی در مقنعه دراپه | R19: =N21 -> 0 | S19: =O21 -> 147.05 | T19: d2 | Y19: =Y16+'طراحی همه الگوها'!U192 -> 59.3 | Z19: =Z12+'طراحی همه الگوها'!U194 -> 35.5 | AA19: 10 | AC19: =Y18 -> 59.3 | AD19: =Z18 -> 13.9 | AE19: 9 | AG19: طراحی چادر شماره 2 | AK19: =AH28 -> 73.9 | AL19: =AI28 -> 0 | AM19: s13 | AO19: s''13 | AP19: =AP18+0.3*(AP21-AP18) -> 52.02335425 | AQ19: =AQ21+0.5*(AQ18-AQ21) -> 48.27818175 | AS19: 74.5 | AT19: 0 | AU19: s'13 | AZ19: =W35+'طراحی همه الگوها'!U216 -> 110 | BA19: =BA16 -> 74.7 | BB19: 9 | BD19: =BD18+0.5*(BD20-BD18) -> 84.8 | BE19: =BE20+0.8*(BE18-BE20) -> 12.04 | BF19: 14' | BN19: =BJ29 -> 0 | BO19: =BK35 -> 113.3326586 | BP19: 13 | BR19: =BJ31 -> 9.1 | BS19: =BK31 -> 0 | BT19: 5 | BZ19: =BZ13 -> 0 | CA19: =CA13 -> 0 | CB19: 1 | CD19: =CD17+'طراحی همه الگوها'!U270 -> 46.8 | CE19: =CA31+'طراحی همه الگوها'!U271 -> 134.8 | CF19: 26 | CH19: k4 شبیه ساز | CI19: =K384 -> 59.60855619 | CJ19: =L384 -> 101.2586236 | CL19: 27.07309834 | CM19: 55.34290223 | CN19: s'11 | CU19: 8 | CV19: =CV12+CY12*SIN(RADIANS(CU19)+CU14) ->  | CW19: =CW12+CY12*COS(RADIANS(CU19)+CU14) ->  | CX19: =IF(CV13>CV19,ATAN((CW13-CW19)/(CV13-CV19)),ATAN((CW13-CW19)/(CV19-CV13))) ->  | CY19: =IF(CV13>CV19,(CV13-CV19)/COS(CX19),(CV19-CV13)/COS(CX19)) ->  | DA19: نقطه دوم از خط دوم | DB19: f8 | DC19: =#REF! ->  | DD19: =#REF! -> 
F20: j4 | G20: =IF('متغیرها '!C5<1,'متغیرها '!C5*'متغیرها '!U59,IF('متغیرها '!C5<2,'متغیرها '!U59+('متغیرها '!C5-1)*('متغیرها '!U60-'متغیرها '!U59),IF('متغیرها '!C5<3,'متغیرها '!U60+('متغیرها '!C5-2)*(I105-'متغیرها '!U60),I105+('متغیرها '!C5-3)*(H127-H126)))) -> 105.1 | J20: =F43 -> 12 | K20: =G43 -> 164.1 | L20: j12 | N20: مولفه افقی | O20: مولفه عمودی | P20: اسم نقطه | AC20: ='طراحی همه الگوها'!U190+'طراحی همه الگوها'!U192+'طراحی همه الگوها'!U202 -> 70.3 | AD20: =Z12+'طراحی همه الگوها'!U203 -> 20.1 | AE20: 19 | AG20: اسم نقطه | AH20: مولفه افقی | AI20: مولفه عمودی | AO20: s'''13 | AP20: =AP18+0.55*(AP21-AP18) -> 60.05072773 | AQ20: =AQ21+0.25*(AQ18-AQ21) -> 24.13909088 | BD20: =AZ14 -> 110 | BE20: =BA14+'طراحی همه الگوها'!U221 -> 5.4 | BF20: 14 | BN20: =BJ35 -> 31.88068917 | BO20: =BK35 -> 113.3326586 | BP20: 9 | BR20: =BJ33 -> 21.28328032 | BS20: =BK33 -> 0.6384986662 | BT20: 7 | CD20: =BZ37 -> 58.5 | CE20: =CA37 -> 138.9 | CF20: 17 | CH20: s''11 | CI20: =CI22+0.8*(CI19-CI22) -> 48.76340357 | CJ20: =CJ22+0.5*(CJ19-CJ22) -> 75.74988951 | CL20: 5.382793098 | CM20: 50.24115541 | CN20: s11 | CU20: 10 | CV20: =CV12+CY12*SIN(RADIANS(CU20)+CU14) ->  | CW20: =CW12+CY12*COS(RADIANS(CU20)+CU14) ->  | CX20: =IF(CV13>CV20,ATAN((CW13-CW20)/(CV13-CV20)),ATAN((CW13-CW20)/(CV20-CV13))) ->  | CY20: =IF(CV13>CV20,(CV13-CV20)/COS(CX20),(CV20-CV13)/COS(CX20)) ->  | DA20: نقطه تقاطع | DB20: f10 | DC20: =(DD18-DD16+DC16*((DD17-DD16)/(DC17-DC16+0.0001))-DC18*((DD19-DD18)/(DC19-DC18+0.0001)))/(((DD17-DD16)/(DC17-DC16+0.0001))-((DD19-DD18)/(DC19-DC18+0.0001))) ->  | DD20: =DD16+(DC20-DC16)*((DD17-DD16)/(DC17-DC16+0.0001)) -> 
F21: رسم دستی چادر 1 یا مقنعه چانه دار(بر حسب سانتیمتر) | J21: =F35 -> 12 | K21: =G35 -> 172.7 | L21: j3 | N21: =N11 -> 0 | O21: =O13+0.1*'متغیرها '!U85-O16+O14 -> 147.05 | P21: d2 | T21: انحنا | Y21: =Y16+'طراحی همه الگوها'!U192 -> 59.3 | Z21: =Z12 -> 0 | AA21: 8 | AC21: =Y23 -> 81.3 | AD21: =Z23 -> 27.714 | AE21: 7 | AG21: s6 | AH21: =AH14 -> 0 | AI21: =1.003*AI14 -> 168.505003 | AK21: =AH32 -> 0 | AL21: =AI32 -> 165.875 | AM21: s17 | AO21: s'13 | AP21: =AH17+0.5*('طراحی همه الگوها'!U216+'طراحی همه الگوها'!U210-'طراحی همه الگوها'!U217-'طراحی همه الگوها'!U218) -> 74.5 | AQ21: =AX33+AH42 -> 0 | AS21: =AP25 -> 0 | AT21: =AQ25 -> 165.875 | AU21: s'17 | AZ21: =W35 -> 0 | BA21: =BA12 -> 100.2 | BB21: 4 | BZ21: =BZ13+'طراحی همه الگوها'!U249-'طراحی همه الگوها'!U253 -> 58.5 | CA21: =CA15 -> 104 | CB21: 6 | CH21: s'11 | CI21: =CI22+0.4*(CI19-CI22) -> 27.07309834 | CJ21: =CJ22+0.1*(CJ19-CJ22) -> 55.34290223 | CU21: 12 | CV21: =CV12+CY12*SIN(RADIANS(CU21)+CU14) ->  | CW21: =CW12+CY12*COS(RADIANS(CU21)+CU14) ->  | CX21: =IF(CV13>CV21,ATAN((CW13-CW21)/(CV13-CV21)),ATAN((CW13-CW21)/(CV21-CV13))) ->  | CY21: =IF(CV13>CV21,(CV13-CV21)/COS(CX21),(CV21-CV13)/COS(CX21)) -> 
N22: =N21 -> 0 | O22: =O21+1.41*O16 -> 183.2165 | P22: d3 | R22: =N24 -> 0 | S22: =O24 -> 96.5815 | T22: d6 | Y22: =W35+'طراحی همه الگوها'!U189 -> 81.3 | Z22: =Z12 -> 0 | AA22: 6 | AG22: s7 | AH22: =AH21+0.12*(AH25-AH21) -> 7.292624159 | AI22: =AI25+0.94*(AI21-AI25) -> 166.1549079 | AK22: =AH33 -> 3.06774 | AL22: =AI33 -> 163.497275 | AM22: s18 | AO22: s'14 | AP22: =AH11+AH40*COS(AH38) -> 6.13548 | AQ22: =AI11-AH40*SIN(AH38) -> 157.94925 | AS22: =AP26 -> 3.681288 | AT22: =AQ26 -> 163.497275 | AU22: s'18 | AZ22: =W35+'طراحی همه الگوها'!U213 -> 47.1 | BA22: =BA12 -> 100.2 | BB22: 5 | BD22: =BD18 -> 59.6 | BE22: =BE18 -> 13.7 | BF22: 16 | BN22: =BJ29 -> 0 | BO22: =BK37 -> 94.49399 | BP22: 12 | BR22: =BJ33 -> 21.28328032 | BS22: =BK33 -> 0.6384986662 | BT22: 7 | BZ22: =BZ13+'طراحی همه الگوها'!U249-'طراحی همه الگوها'!U253 -> 58.5 | CA22: =CA15-'طراحی همه الگوها'!U254 -> 80.2 | CB22: 7 | CD22: =BZ18 -> 0 | CE22: =CA18 -> 89.4 | CF22: 5 | CH22: s11 | CI22: =0.7*CI15 -> 5.382793098 | CJ22: =CJ15-'طراحی همه الگوها'!U263+1.2*SQRT(POWER(CI15-CI14,2)+POWER(CJ15-CJ14,2)) -> 50.24115541 | CL22: =CI28 -> 0 | CM22: =CJ28 -> 165.875 | CN22: s''17 | CU22: 14 | CV22: =CV12+CY12*SIN(RADIANS(CU22)+CU14) ->  | CW22: =CW12+CY12*COS(RADIANS(CU22)+CU14) ->  | CX22: =IF(CV13>CV22,ATAN((CW13-CW22)/(CV13-CV22)),ATAN((CW13-CW22)/(CV22-CV13))) ->  | CY22: =IF(CV13>CV22,(CV13-CV22)/COS(CX22),(CV22-CV13)/COS(CX22)) ->  | DD22: قرینه نقطه نسبت به خط با داشتن دو نقطه از یک خط
J23: =F42 -> 22.3 | K23: =G42 -> 172.7 | L23: j11 | N23: =0.7*(O17+O16)+N21 -> 73.675 | O23: =O22-0.7*(O16+O17) -> 109.5415 | P23: d4 | R23: =N25 -> 14.735 | S23: =O25 -> 96.5815 | T23: d7 | Y23: =W35+'طراحی همه الگوها'!U189 -> 81.3 | Z23: =Z12+'طراحی همه الگوها'!U191 -> 27.714 | AA23: 7 | AC23: =Y13 -> 0 | AD23: =Z13 -> 180.7 | AE23: 1 | AG23: s8 | AH23: =AH21+0.4*(AH25-AH21) -> 24.3087472 | AI23: =AI25+0.5*(AI21-AI25) -> 148.9208769 | AK23: =AH29 -> 6.13548 | AL23: =AI29 -> 157.94925 | AM23: s14 | AO23: s'16 | AP23: =AH13 -> 0 | AQ23: =AI13 -> 120.3 | AS23: =AP22 -> 6.13548 | AT23: =AQ22 -> 157.94925 | AU23: s'14 | AZ23: =W35+'طراحی همه الگوها'!U213+'طراحی همه الگوها'!U214 -> 62.1 | BA23: =BA12 -> 100.2 | BB23: 6 | BD23: =BD18 -> 59.6 | BE23: =BA13 -> 0 | BF23: 15 | BN23: =BJ37 -> 56.56854249 | BO23: =BK37 -> 94.49399 | BP23: 11 | BR23: =BR22+0.3*(BR25-BR22) -> 35.89628056 | BS23: =MIN(BS22,BS25)+IF(BS25>BS22,0.15,0.9)*ABS(BS25-BS22) -> 1.835599786 | BT23: 7'' | CD23: =CD22+'طراحی همه الگوها'!U264 -> 23.4 | CE23: =CA17-'طراحی همه الگوها'!U265 -> 88.5 | CF23: 20 | CH23: s12 | CI23: =CI24 -> 20.57 | CJ23: =CJ24+'طراحی همه الگوها'!U257 -> 110.2813315 | CL23: =CI29 -> 3.06774 | CM23: =CJ29 -> 163.497275 | CN23: s''18 | CU23: 16 | CV23: =CV12+CY12*SIN(RADIANS(CU23)+CU14) ->  | CW23: =CW12+CY12*COS(RADIANS(CU23)+CU14) ->  | CX23: =IF(CV13>CV23,ATAN((CW13-CW23)/(CV13-CV23)),ATAN((CW13-CW23)/(CV23-CV13))) ->  | CY23: =IF(CV13>CV23,(CV13-CV23)/COS(CX23),(CV23-CV13)/COS(CX23)) ->  | DA23: مولفه افقی | DB23: مولفه عمودی | DC23: اسم نقطه ورودی
J24: =F43 -> 12 | K24: =G43 -> 164.1 | L24: j12 | N24: =N21 -> 0 | O24: =O23-O18+'متغیرها '!C6*0.1*'متغیرها '!U85*0.7 -> 96.5815 | P24: d6 | R24: =N27 -> 51.5725 | S24: =O27 -> 97.8775 | T24: d9 | Y24: =W35+'طراحی همه الگوها'!U189 -> 81.3 | Z24: =Z13-'طراحی همه الگوها'!U198 -> 162.6 | AA24: 14 | AG24: s9 | AH24: =AH21+0.7*(AH25-AH21) -> 42.5403076 | AI24: =AI25+0.2*(AI21-AI25) -> 137.1704013 | AO24: s'15 | AP24: =AP23+0.7*(AP22-AP23) -> 4.294836 | AQ24: =AQ23+0.5*(AQ22-AQ23) -> 139.124625 | AS24: =AP24 -> 4.294836 | AT24: =AQ24 -> 139.124625 | AU24: s'15 | AZ24: =AZ23 -> 62.1 | BA24: =BA17 -> 104.2 | BB24: 7 | BR24: =BR22+0.7*(BR25-BR22) -> 55.38028088 | BS24: =MIN(BS22,BS25)+0.5*ABS(BS25-BS22) -> 4.628835731 | BT24: 7''' | BZ24: =BZ15 -> 87.3 | CA24: =CA15 -> 104 | CB24: 4 | CD24: =CD22+'طراحی همه الگوها'!U266 -> 46.8 | CE24: =CA17-'طراحی همه الگوها'!U267 -> 84.3 | CF24: 22 | CH24: 41 شبیه ساز | CI24: =BC395 -> 20.57 | CJ24: =BD395 -> 106.1813315 | CL24: =CI12 -> 6.13548 | CM24: =CJ12 -> 157.94925 | CN24: s3 | CU24: 18 | CV24: =CV12+CY12*SIN(RADIANS(CU24)+CU14) ->  | CW24: =CW12+CY12*COS(RADIANS(CU24)+CU14) ->  | CX24: =IF(CV13>CV24,ATAN((CW13-CW24)/(CV13-CV24)),ATAN((CW13-CW24)/(CV24-CV13))) ->  | CY24: =IF(CV13>CV24,(CV13-CV24)/COS(CX24),(CV24-CV13)/COS(CX24)) ->  | DA24: 0 | DB24: 0 | DC24: 1 | DD24: نقطه اول خط تقارن | DE24: نقاط قرینه شده نسبت به خط تقارن
N25: =0.2*(N23-N21)+N21 -> 14.735 | O25: =O24 -> 96.5815 | P25: d7 | R25: =N26 -> 66.3075 | S25: =O26 -> 103.0615 | T25: d8 | Y25: =Y27+'طراحی همه الگوها'!U196 -> 95.3 | Z25: =Z13-'طراحی همه الگوها'!U197 -> 164.5 | AA25: 13 | AD25: صاف | AG25: s10 | AH25: =AH16-('طراحی همه الگوها'!U196-'متغیرها '!C13*'متغیرها '!U83)*COS(AH15) -> 60.77186799 | AI25: =AI16+('طراحی همه الگوها'!U196-'متغیرها '!C13*'متغیرها '!U83)*SIN(AH15) -> 129.3367508 | AK25: =AH29 -> 6.13548 | AL25: =AI29 -> 157.94925 | AM25: s14 | AO25: s'17 | AP25: =AC400 -> 0 | AQ25: =IF('متغیرها '!C22=-1,AL10,IF('متغیرها '!C22=0,AD400-0.1,AD400-0.25*(AD400-AD404))) -> 165.875 | AS25: =AP23 -> 0 | AT25: =AQ23 -> 120.3 | AU25: s'16 | AZ25: =AZ22 -> 47.1 | BA25: =BA22 -> 100.2 | BB25: 5 | BD25: =BD17 -> 35.76 | BE25: =BE15 -> 0 | BF25: 21 | BH25: (3 →6) | BI25: =ROUND(0.2*(BJ34-BJ30),1) -> 15.9 | BN25: =BJ29 -> 0 | BO25: =BK34 -> 8.619172796 | BP25: 14 | BR25: =BJ34 -> 69.99328112 | BS25: =BK34 -> 8.619172796 | BT25: 8 | BZ25: =BZ15 -> 87.3 | CA25: =CA15+'طراحی همه الگوها'!U257 -> 108.1 | CB25: 9 | CD25: =BZ22 -> 58.5 | CE25: =CA22 -> 80.2 | CF25: 7 | CH25: 41' | CI25: =CI24+0.5*(CI27-CI24) -> 32.11 | CJ25: =CJ27+0.7*(CJ24-CJ27) -> 74.32693207 | CU25: 20 | CV25: =CV12+CY12*SIN(RADIANS(CU25)+CU14) ->  | CW25: =CW12+CY12*COS(RADIANS(CU25)+CU14) ->  | CX25: =IF(CV13>CV25,ATAN((CW13-CW25)/(CV13-CV25)),ATAN((CW13-CW25)/(CV25-CV13))) ->  | CY25: =IF(CV13>CV25,(CV13-CV25)/COS(CX25),(CV25-CV13)/COS(CX25)) ->  | DA25: =DE17 -> 0 | DB25: =DF17 -> 0 | DC25: 2 | DD25: نقطه دوم خط تقارن | DE25: مولفه افقی | DF25: مولفه عمودی | DG25: اسم نقطه
J26: =F37 -> 5.7 | K26: =G37 -> 172.7 | L26: j6 | N26: =0.9*(N23-N21)+N21 -> 66.3075 | O26: =O24+0.5*(O23-O24) -> 103.0615 | P26: d8 | R26: =N23 -> 73.675 | S26: =O23 -> 109.5415 | T26: d4 | Y26: =Y27+'طراحی همه الگوها'!U196 -> 95.3 | Z26: =Z13 -> 180.7 | AA26: 12 | AC26: =AC18 -> 37.1 | AD26: =Z12 -> 0 | AE26: 15 | AG26: s12 | AH26: =AH25-'طراحی همه الگوها'!U198*SIN(AH15) -> 55.28508512 | AI26: =AI25-'طراحی همه الگوها'!U198*COS(AH15) -> 112.0884114 | AK26: =AH31 -> 4.294836 | AL26: =AI31 -> 139.124625 | AM26: s15 | AO26: s'18 | AP26: =AP25+0.6*(AP22-AP25) -> 3.681288 | AQ26: =AQ25-0.3*(AQ25-AQ22) -> 163.497275 | BD26: =BD17 -> 35.76 | BE26: =BE17 -> 6.2 | BF26: 22 | BH26: (5 →7) | BI26: =ROUND(0.2*(BJ34-BJ31),1) -> 12.2 | BN26: =BJ34 -> 69.99328112 | BO26: =BK34 -> 8.619172796 | BP26: 8 | BZ26: =BZ13+'طراحی همه الگوها'!U249-'طراحی همه الگوها'!U256 -> -16.9 | CA26: =CA25 -> 108.1 | CB26: 10 | CH26: 41'' | CI26: =CI24+0.88*(CI27-CI24) -> 40.8804 | CJ26: =CJ27+0.3*(CJ24-CJ27) -> 31.85439946 | CL26: =CI12 -> 6.13548 | CM26: =CJ12 -> 157.94925 | CN26: s3 | CU26: 22 | CV26: =CV12+CY12*SIN(RADIANS(CU26)+CU14) ->  | CW26: =CW12+CY12*COS(RADIANS(CU26)+CU14) ->  | CX26: =IF(CV13>CV26,ATAN((CW13-CW26)/(CV13-CV26)),ATAN((CW13-CW26)/(CV26-CV13))) ->  | CY26: =IF(CV13>CV26,(CV13-CV26)/COS(CX26),(CV26-CV13)/COS(CX26)) ->  | DA26: 0 | DB26: 0 | DC26: 3 | DE26: =DA26+2*(SIN(ATAN((DA25-DA24)/(DB25-DB24)))*(DB26-DB24)+COS(ATAN((DA25-DA24)/(DB25-DB24)))*(DA24-DA26))*COS(ATAN((DA25-DA24)/(DB25-DB24))) ->  | DF26: =DB26-2*(SIN(ATAN((DA25-DA24)/(DB25-DB24)))*(DB26-DB24)+COS(ATAN((DA25-DA24)/(DB25-DB24)))*(DA24-DA26))*SIN(ATAN((DA25-DA24)/(DB25-DB24))) ->  | DG26: =DC26 -> 3
J27: =F39 -> 2.1 | K27: =G39 -> 156.7 | L27: j8 | N27: =0.7*(N23-N21)+N21 -> 51.5725 | O27: =O24+0.1*(O23-O24) -> 97.8775 | P27: d9 | Y27: =W35+'طراحی همه الگوها'!U189 -> 81.3 | Z27: =Z13 -> 180.7 | AA27: 3 | AC27: =AC18 -> 37.1 | AD27: =AD18 -> 4.9 | AE27: 16 | AG27: s11 | AH27: =AH34-'طراحی همه الگوها'!U197*SIN(AH15) -> 69.20230279 | AI27: =AI34-'طراحی همه الگوها'!U197*COS(AH15) -> 109.6550901 | AK27: =AH30 -> 0 | AL27: =AI30 -> 120.3 | AM27: s16 | AO27: s'19 | AP27: =AX39+('متغیرها '!C20*'متغیرها '!U83)*COS(AH15+RADIANS(AX38)) -> 59.60855619 | AQ27: =AY39-('متغیرها '!C20*'متغیرها '!U83)*SIN(AH15+RADIANS(AX38)) -> 101.2586236 | AS27: =AP16 -> 53.35066118 | AT27: =AQ16 -> 107.5165186 | AU27: s'10 | AZ27: =W35+'طراحی همه الگوها'!U216 -> 110 | BA27: =BA18 -> 133.7 | BB27: 10 | BI27: نقاط در چادر شماره 4 | BR27: =BJ29 -> 0 | BS27: =BK29 -> 172.7 | BT27: 1 | BZ27: =BZ26 -> -16.9 | CA27: =CA17 -> 104 | CB27: 11 | CD27: =CD23 -> 23.4 | CE27: =CA17 -> 104 | CF27: 19 | CH27: s13 | CI27: =CI30+0.5*'طراحی همه الگوها'!U249 -> 43.65 | CJ27: =CJ30 -> 0 | CL27: =CI33 -> 5.759136549 | CM27: =CJ33 -> 114.8660122 | CN27: s'3 | CU27: 24 | CV27: =CV12+CY12*SIN(RADIANS(CU27)+CU14) ->  | CW27: =CW12+CY12*COS(RADIANS(CU27)+CU14) ->  | CX27: =IF(CV13>CV27,ATAN((CW13-CW27)/(CV13-CV27)),ATAN((CW13-CW27)/(CV27-CV13))) ->  | CY27: =IF(CV13>CV27,(CV13-CV27)/COS(CX27),(CV27-CV13)/COS(CX27)) ->  | DA27: 0 | DB27: 0 | DC27: 4 | DE27: =DA27+2*(SIN(ATAN((DA25-DA24)/(DB25-DB24)))*(DB27-DB24)+COS(ATAN((DA25-DA24)/(DB25-DB24)))*(DA24-DA27))*COS(ATAN((DA25-DA24)/(DB25-DB24))) ->  | DF27: =DB27-2*(SIN(ATAN((DA25-DA24)/(DB25-DB24)))*(DB27-DB24)+COS(ATAN((DA25-DA24)/(DB25-DB24)))*(DA24-DA27))*SIN(ATAN((DA25-DA24)/(DB25-DB24))) ->  | DG27: =DC27 -> 4
N28: =N21 -> 0 | O28: =O12-1-0.013*(O22-O24) -> 102.973745 | P28: j'2 | Y28: =W35+'طراحی همه الگوها'!U189 -> 81.3 | Z28: =Z13-'طراحی همه الگوها'!U198 -> 162.6 | AA28: 14 | AC28: =AC12 -> 37.1 | AD28: =AD12 -> 29.8 | AE28: 17 | AG28: s13 | AH28: =AH17+'طراحی همه الگوها'!U189-0.5*'طراحی همه الگوها'!U190 -> 73.9 | AI28: =AH43+AH42 -> 0 | AO28: 2' | AP28: =AH17 -> 0 | AQ28: =AX33+AH42 -> 0 | AS28: =AP27 -> 59.60855619 | AT28: =AQ27 -> 101.2586236 | AU28: s'19 | AZ28: =BD13 -> 179.3 | BA28: =BE13 -> 133.7 | BB28: 13 | BD28: =W35 -> 0 | BE28: =BA11 -> 172.7 | BF28: 1 | BH28: افقی شبیه ساز | BI28: اسم نقطه | BJ28: مولفه افقی | BK28: مولفه عمودی | BL28: عمودی شبیه ساز | BN28: =BL43 -> 49.2 | BO28: =BL44 -> 77.325 | BP28: 15 | BR28: =BJ36 -> 67.38727625 | BS28: =BK36 -> 105.3127238 | BT28: 10 | BZ28: =BZ16 -> 79.9 | CA28: =CA16 -> 104 | CB28: 8 | CD28: =CD23 -> 23.4 | CE28: =CE23 -> 88.5 | CF28: 20 | CH28: s''17 | CI28: =CI11 -> 0 | CJ28: =IF('متغیرها '!C40=-1,CJ14,IF('متغیرها '!C40=0,CJ11-0.1,CJ11-0.25*(CJ11-CJ13))) -> 165.875 | CL28: =CI22 -> 5.382793098 | CM28: =CJ22 -> 50.24115541 | CN28: s11 | CU28: 26 | CV28: =CV12+CY12*SIN(RADIANS(CU28)+CU14) ->  | CW28: =CW12+CY12*COS(RADIANS(CU28)+CU14) ->  | CX28: =IF(CV13>CV28,ATAN((CW13-CW28)/(CV13-CV28)),ATAN((CW13-CW28)/(CV28-CV13))) ->  | CY28: =IF(CV13>CV28,(CV13-CV28)/COS(CX28),(CV28-CV13)/COS(CX28)) ->  | DA28: =DE18 -> 0 | DB28: =DF18 -> 0 | DC28: 5 | DE28: =DA28+2*(SIN(ATAN((DA25-DA24)/(DB25-DB24)))*(DB28-DB24)+COS(ATAN((DA25-DA24)/(DB25-DB24)))*(DA24-DA28))*COS(ATAN((DA25-DA24)/(DB25-DB24))) ->  | DF28: =DB28-2*(SIN(ATAN((DA25-DA24)/(DB25-DB24)))*(DB28-DB24)+COS(ATAN((DA25-DA24)/(DB25-DB24)))*(DA24-DA28))*SIN(ATAN((DA25-DA24)/(DB25-DB24))) ->  | DG28: =DC28 -> 5
J29: =F39 -> 2.1 | K29: =G39 -> 156.7 | L29: j8 | AG29: s14 | AH29: =AH11+AH40*COS(AH38) -> 6.13548 | AI29: =AI11-AH40*SIN(AH38) -> 157.94925 | AK29: =AK23 -> 6.13548 | AL29: =AL23 -> 157.94925 | AM29: s14 | AZ29: =W35+'طراحی همه الگوها'!U211+'طراحی همه الگوها'!U219 -> 184.7 | BA29: =BA18 -> 133.7 | BB29: 12 | BD29: =W35+'طراحی همه الگوها'!U216 -> 110 | BE29: =BA31 -> 172.7 | BF29: 3 | BI29: 1 | BJ29: =AH17 -> 0 | BK29: ='طراحی همه الگوها'!U233+BL39+AH42 -> 172.7 | BN29: =BN28+'طراحی همه الگوها'!U242 -> 56.4 | BO29: =BO28 -> 77.325 | BP29: 16 | CH29: s''18 | CI29: =CI28+0.5*(CI12-CI28) -> 3.06774 | CJ29: =CJ28-0.3*(CJ28-CJ12) -> 163.497275 | CU29: 28 | CV29: =CV12+CY12*SIN(RADIANS(CU29)+CU14) ->  | CW29: =CW12+CY12*COS(RADIANS(CU29)+CU14) ->  | CX29: =IF(CV13>CV29,ATAN((CW13-CW29)/(CV13-CV29)),ATAN((CW13-CW29)/(CV29-CV13))) ->  | CY29: =IF(CV13>CV29,(CV13-CV29)/COS(CX29),(CV29-CV13)/COS(CX29)) -> 
J30: =F38 -> 0 | K30: =G38 -> 156.7 | L30: j7 | Y30: =Y27 -> 81.3 | Z30: =Z13 -> 180.7 | AA30: 3 | AC30: =AC20 -> 70.3 | AD30: =Z12 -> 0 | AE30: 18 | AG30: s16 | AH30: =AH13 -> 0 | AI30: =AI13 -> 120.3 | AK30: =AK29+0.32*(AK32-AK29) -> 23.18260663 | AL30: =AL32+0.5*(AL29-AL32) -> 141.4988698 | AS30: =AS28 -> 59.60855619 | AT30: =AT28 -> 101.2586236 | AU30: s'19 | AW30: شیفت افقی مچ | AX30: =AZ18+10 -> 120 | AZ30: =AZ29 -> 184.7 | BA30: =BA11 -> 172.7 | BB30: 11 | BI30: 3 | BJ30: =BJ29-'طراحی همه الگوها'!U234 -> -9.7 | BK30: =BK29-'طراحی همه الگوها'!U232 -> -12 | BN30: =BN28+'طراحی همه الگوها'!U242 -> 56.4 | BO30: =BO28-'طراحی همه الگوها'!U245 -> 55.525 | BP30: 19 | BR30: =BJ36 -> 67.38727625 | BS30: =BK36 -> 105.3127238 | BT30: 10 | BZ30: =BZ13+'طراحی همه الگوها'!U260+'طراحی همه الگوها'!U262 -> 99.2 | CA30: =CA25+BW44 -> 115.1 | CB30: 13 | CD30: =CD24 -> 46.8 | CE30: =CA17 -> 104 | CF30: 21 | CH30: 2 | CI30: =CI14 -> 0 | CJ30: =BW42+AH42 -> 0 | CL30: =CI24 -> 20.57 | CM30: 106.1813315 | CN30: 41شبیه ساز | CU30: 30 | CV30: =CV12+CY12*SIN(RADIANS(CU30)+CU14) ->  | CW30: =CW12+CY12*COS(RADIANS(CU30)+CU14) ->  | CX30: =IF(CV13>CV30,ATAN((CW13-CW30)/(CV13-CV30)),ATAN((CW13-CW30)/(CV30-CV13))) ->  | CY30: =IF(CV13>CV30,(CV13-CV30)/COS(CX30),(CV30-CV13)/COS(CX30)) ->  | DD30: یافتن راس سوم مثلث با داشتن دو راس و یک ضلع و یک زاویه
F31: نقاط خروجی | Y31: =Y14 -> 14.8 | Z31: =Z13 -> 180.7 | AA31: 4 | AC31: =AC20 -> 70.3 | AD31: =AD20 -> 20.1 | AE31: 19 | AG31: s15 | AH31: =AH30+0.7*(AH29-AH30) -> 4.294836 | AI31: =AI30+0.5*(AI29-AI30) -> 139.124625 | AK31: =AK29+0.67*(AK32-AK29) -> 41.82790137 | AL31: =AL32+0.2*(AL29-AL32) -> 131.6286417 | AS31: =AP17 -> 49.49692922 | AT31: =AQ17 -> 91.14699663 | AU31: s'11 | AW31: شیفت عمودی مچ | AX31: =BA18-10 -> 123.7 | AZ31: =W35+'طراحی همه الگوها'!U216 -> 110 | BA31: =BA11 -> 172.7 | BB31: 3 | BD31: =AZ19 -> 110 | BE31: =BA19 -> 74.7 | BF31: 9 | BI31: 5 | BJ31: =BJ29+'طراحی همه الگوها'!U235 -> 9.1 | BK31: =BK29-'طراحی همه الگوها'!U233 -> 0 | BR31: =BJ37 -> 56.56854249 | BS31: =BK37 -> 94.49399 | BT31: 11 | BZ31: =BZ13 -> 0 | CA31: =CA30 -> 115.1 | CB31: 12 | CD31: =CD24 -> 46.8 | CE31: =CE24 -> 84.3 | CF31: 22 | CH31: s''12 | CI31: =CI30 -> 0 | CJ31: =CJ24 -> 106.1813315 | CL31: 32.11 | CM31: 74.32693207 | CN31: 41' | CU31: 32 | CV31: =CV12+CY12*SIN(RADIANS(CU31)+CU14) ->  | CW31: =CW12+CY12*COS(RADIANS(CU31)+CU14) ->  | CX31: =IF(CV13>CV31,ATAN((CW13-CW31)/(CV13-CV31)),ATAN((CW13-CW31)/(CV31-CV13))) ->  | CY31: =IF(CV13>CV31,(CV13-CV31)/COS(CX31),(CV31-CV13)/COS(CX31)) ->  | DA31: اطلاعات ورودی
F32: مولفه افقی | G32: مولفه عمودی | H32: اسم نقطه | J32: =F39 -> 2.1 | K32: =G39 -> 156.7 | L32: j8 | AA32: نقاب | AC32: =AC14 -> 70.3 | AD32: =AD14 -> 33.9 | AE32: 20 | AG32: s17 | AH32: =AC400 -> 0 | AI32: =IF('متغیرها '!C14=-1,AL10,IF('متغیرها '!C14=0,AD400-0.1,AD400-0.25*(AD400-AD404))) -> 165.875 | AK32: =AH35 -> 59.40775071 | AL32: =AI35 -> 125.0484896 | AM32: s20 | AW32: زاویه گشادی نسبی جلو به پشت | AX32: 33 | AZ32: =W35+'طراحی همه الگوها'!U216 -> 110 | BA32: =BA18 -> 133.7 | BB32: 10 | BD32: =BD20 -> 110 | BE32: =BE20 -> 5.4 | BF32: 14 | BI32: 6 | BJ32: =BJ30+BI25*COS(RADIANS('متغیرها '!C26)) -> 6.178209603 | BK32: =BK30-BI25*SIN(RADIANS('متغیرها '!C26)) -> -12.8321417 | BN32: =BN28+'طراحی همه الگوها'!U242 -> 56.4 | BO32: =BO28+'طراحی همه الگوها'!U244 -> 99.125 | BP32: 18 | BZ32: =BZ13 -> 0 | CA32: =CA31+'طراحی همه الگوها'!U258 -> 129.7 | CB32: 18 | CH32: s'12 | CI32: =CI30 -> 0 | CJ32: =CJ23 -> 110.2813315 | CL32: 40.8804 | CM32: 31.85439946 | CN32: 41'' | CU32: 34 | CV32: =CV12+CY12*SIN(RADIANS(CU32)+CU14) ->  | CW32: =CW12+CY12*COS(RADIANS(CU32)+CU14) ->  | CX32: =IF(CV13>CV32,ATAN((CW13-CW32)/(CV13-CV32)),ATAN((CW13-CW32)/(CV32-CV13))) ->  | CY32: =IF(CV13>CV32,(CV13-CV32)/COS(CX32),(CV32-CV13)/COS(CX32)) ->  | DA32: مولفه افقی | DB32: مولفه عمودی | DC32: اسم نقطه | DE32: محاسبات
F33: =F11 -> 0 | G33: =G20+'طراحی همه الگوها'!U177+G12 -> 172.7 | H33: j1 | J33: =F41 -> 2.1 | K33: =G41 -> 119.6 | L33: j10 | Y33: =Y13 -> 0 | Z33: =Z13 -> 180.7 | AA33: 1 | AG33: s18 | AH33: =AH32+0.5*(AH29-AH32) -> 3.06774 | AI33: =AI32-0.3*(AI32-AI29) -> 163.497275 | AS33: =AS31 -> 49.49692922 | AT33: =AT31 -> 91.14699663 | AU33: s'11 | AW33: j4 | AX33: =IF('متغیرها '!C17<1,'متغیرها '!C17*'متغیرها '!U59,IF('متغیرها '!C17<2,'متغیرها '!U59+('متغیرها '!C17-1)*('متغیرها '!U60-'متغیرها '!U59),IF('متغیرها '!C17<3,'متغیرها '!U60+('متغیرها '!C17-2)*(I105-'متغیرها '!U60),I105+('متغیرها '!C17-3)*(H127-H126)))) -> 0 | AY33: چادر 3 | BI33: 7 | BJ33: =BJ31+BI26*COS(RADIANS('متغیرها '!C26)) -> 21.28328032 | BK33: =BK31+BI26*SIN(RADIANS('متغیرها '!C26)) -> 0.6384986662 | BN33: =BN28+'طراحی همه الگوها'!U242 -> 56.4 | BO33: =BO28 -> 77.325 | BP33: 16 | BR33: =BJ37 -> 56.56854249 | BS33: =BK37 -> 94.49399 | BT33: 11 | BZ33: =BZ13 -> 0 | CA33: =CA32+'طراحی همه الگوها'!U259 -> 225 | CB33: 14 | CD33: =CD18 -> 23.4 | CE33: =CA31 -> 115.1 | CF33: 23 | CH33: s'3 | CI33: =CI22+0.5*(CI12-CI22) -> 5.759136549 | CJ33: =CJ22+0.6*(CJ12-CJ22) -> 114.8660122 | CL33: 43.65 | CM33: 0 | CN33: s13 | CU33: 36 | CV33: =CV12+CY12*SIN(RADIANS(CU33)+CU14) ->  | CW33: =CW12+CY12*COS(RADIANS(CU33)+CU14) ->  | CX33: =IF(CV13>CV33,ATAN((CW13-CW33)/(CV13-CV33)),ATAN((CW13-CW33)/(CV33-CV13))) ->  | CY33: =IF(CV13>CV33,(CV13-CV33)/COS(CX33),(CV33-CV13)/COS(CX33)) ->  | DA33: 5 | DB33: 50 | DC33: 1 | DD33: راس بالا | DE33: =SQRT(POWER(DA34-DA33,2)+POWER(DB33-DB34,2)) -> 10.19803903 | DF33: m2
F34: =F33 -> 0 | G34: =G33-'طراحی همه الگوها'!U177 -> 105.1 | H34: j2 | V34: محاسبات | Y34: =Y13 -> 0 | Z34: =Z13-'طراحی همه الگوها'!U205 -> 175 | AA34: 21 | AG34: s19 | AH34: =AH16+'متغیرها '!C13*'متغیرها '!U83*COS(AH15) -> 74.11312503 | AI34: =AI16-'متغیرها '!C13*'متغیرها '!U83*SIN(AH15) -> 125.0928304 | AK34: =AH25 -> 60.77186799 | AL34: =AI25 -> 129.3367508 | AM34: s10 | AS34: =AP18 -> 42.39050607 | AT34: =AQ18 -> 96.55636351 | AU34: s'12 | AW34: (1 → 5) | AX34: =W36-'متغیرها '!C19*'متغیرها '!U83 -> 86.4354424 | AZ34: =AX30 -> 120 | BA34: =AX31 -> 123.7 | BB34: 17 | BD34: =AZ18 -> 110 | BE34: =BA18 -> 133.7 | BF34: 10 | BI34: 8 | BJ34: =BJ35+BL41*SIN(RADIANS('متغیرها '!C30)) -> 69.99328112 | BK34: =BK35-BL41*COS(RADIANS('متغیرها '!C30)) -> 8.619172796 | BN34: =BN28+'طراحی همه الگوها'!U242+'طراحی همه الگوها'!U243 -> 63.6 | BO34: =BO28 -> 77.325 | BP34: 17 | BR34: =BJ35 -> 31.88068917 | BS34: =BK35 -> 113.3326586 | BT34: 9 | BZ34: =BZ13+'طراحی همه الگوها'!U263 -> 125.2 | CA34: =CA33 -> 225 | CB34: 15 | CD34: =CD18 -> 23.4 | CE34: =CE18 -> 130.6 | CF34: 24 | CU34: 38 | CV34: =CV12+CY12*SIN(RADIANS(CU34)+CU14) ->  | CW34: =CW12+CY12*COS(RADIANS(CU34)+CU14) ->  | CX34: =IF(CV13>CV34,ATAN((CW13-CW34)/(CV13-CV34)),ATAN((CW13-CW34)/(CV34-CV13))) ->  | CY34: =IF(CV13>CV34,(CV13-CV34)/COS(CX34),(CV34-CV13)/COS(CX34)) ->  | DA34: 7 | DB34: 40 | DC34: 2 | DD34: راس پایین | DE34: =ATAN((DA34-DA33)/(DB33-DB34)) -> 0.1973955598 | DF34: γ18
F35: =F33+'طراحی همه الگوها'!U178 -> 12 | G35: =G33 -> 172.7 | H35: j3 | J35: =F41 -> 2.1 | K35: =G41 -> 119.6 | L35: j10 | V35: مولفه افقی نقطه 1 | W35: =0 -> 0 | Y35: =Y14 -> 14.8 | Z35: =Z14-'طراحی همه الگوها'!U206 -> 176.7 | AA35: 22 | AG35: s20 | AH35: =AH25-0.25*'متغیرها '!U84*SIN(AH15) -> 59.40775071 | AI35: =AI25-0.25*'متغیرها '!U84*COS(AH15) -> 125.0484896 | AK35: =AH34 -> 74.11312503 | AL35: =AI34 -> 125.0928304 | AM35: s19 | AW35: زاویه مچ | AX35: 15 | AZ35: =AX30+'طراحی همه الگوها'!U224 -> 128.9 | BA35: =AX31 -> 123.7 | BB35: 18 | BD35: =BD13 -> 179.3 | BE35: =BE13 -> 133.7 | BF35: 13 | BH35: =BH37-BL45*SIN(BL46-RADIANS(45)+BL42) -> 19.38069852 | BI35: 9 | BJ35: =BJ37-BL40*SIN(BL46-RADIANS(45)+BL42) -> 31.88068917 | BK35: =BK37+BL40*COS(BL46-RADIANS(45)+BL42) -> 113.3326586 | BL35: =BL37+BL45*COS(BL46-RADIANS(45)+BL42) -> 119.5074791 | CL35: =CI18 -> 51.26469617 | CM35: =CJ18 -> 109.6024836 | CN35: s''10 | CU35: 40 | CV35: =CV12+CY12*SIN(RADIANS(CU35)+CU14) ->  | CW35: =CW12+CY12*COS(RADIANS(CU35)+CU14) ->  | CX35: =IF(CV13>CV35,ATAN((CW13-CW35)/(CV13-CV35)),ATAN((CW13-CW35)/(CV35-CV13))) ->  | CY35: =IF(CV13>CV35,(CV13-CV35)/COS(CX35),(CV35-CV13)/COS(CX35)) ->  | DA35: 10 | DB35: m4 | DC35: ضلع بالا | DE35: =RADIANS(90)-RADIANS(DE34)-DA36 -> 1.829150512 | DF35: m5
F36: ='طراحی همه الگوها'!U178+'طراحی همه الگوها'!U177+F33 -> 79.6 | G36: =G33 -> 172.7 | H36: j5 | J36: =F40 -> 0 | K36: =G40 -> 119.6 | L36: j9 | V36: نوک سر تا مچ دست شبیه ساز a3 | W36: =1.03*(SQRT(POWER(0.5*H168,2)+POWER((0.47*'متغیرها '!U85+H167*SIN('متغیرها '!B245)),2)))+'متغیرها '!U83 -> 95.2854424 | AS36: =AS34 -> 42.39050607 | AT36: =AT34 -> 96.55636351 | AU36: s'12 | AW36: شبیه سازαk1 | AX36: =F423 -> 1.396395134 | AZ36: =AX30+'طراحی همه الگوها'!U224 -> 128.9 | BA36: =AX31-'طراحی همه الگوها'!U226 -> 109.4 | BB36: 20 | BH36: =BJ29+W36*COS(RADIANS(45)) -> 67.37698247 | BI36: 10 | BJ36: =BJ29+'طراحی همه الگوها'!U236*COS(RADIANS(45)) -> 67.38727625 | BK36: =BK29-'طراحی همه الگوها'!U236*SIN(RADIANS(45)) -> 105.3127238 | BL36: =BK29-W36*SIN(RADIANS(45)) -> 105.3230175 | BN36: =BJ36 -> 67.38727625 | BO36: =BK36 -> 105.3127238 | BP36: 10 | BR36: =BJ35 -> 31.88068917 | BS36: =BK35 -> 113.3326586 | BT36: 9 | BZ36: =BZ31+'طراحی همه الگوها'!U260 -> 58.5 | CA36: =CA31 -> 115.1 | CB36: 16 | CD36: =CD19 -> 46.8 | CE36: =CA31 -> 115.1 | CF36: 25 | CL36: =CI19 -> 59.60855619 | CM36: =CJ19 -> 101.2586236 | CN36: k4 شبیه ساز | CU36: 42 | CV36: =CV12+CY12*SIN(RADIANS(CU36)+CU14) ->  | CW36: =CW12+CY12*COS(RADIANS(CU36)+CU14) ->  | CX36: =IF(CV13>CV36,ATAN((CW13-CW36)/(CV13-CV36)),ATAN((CW13-CW36)/(CV36-CV13))) ->  | CY36: =IF(CV13>CV36,(CV13-CV36)/COS(CX36),(CV36-CV13)/COS(CX36)) ->  | DA36: =RADIANS(-15) -> -0.2617993878 | DB36: m1 | DC36: زاویه ضلع پایین با افق به رادیان ساعتگرزیر افق عدد مثبت | DE36: =DA35*COS(DE37)-DE33*COS(DE35) -> 4.275403846 | DF36: m7
F37: ='طراحی همه الگوها'!U179+F33 -> 5.7 | G37: =G33 -> 172.7 | H37: j6 | AG37: محاسبات طراحی چادر 2 | AK37: =AK35 -> 74.11312503 | AL37: =AL35 -> 125.0928304 | AM37: s19 | AS37: =AP16 -> 53.35066118 | AT37: =AQ16 -> 107.5165186 | AU37: s'10 | AW37: (k4 →k5)شبیه ساز | AX37: =F425 -> 9.53065549 | AZ37: =AX30 -> 120 | BA37: =AX31-'طراحی همه الگوها'!U225 -> 108.2 | BB37: 19 | BD37: =AZ35 -> 128.9 | BE37: =BA35 -> 123.7 | BF37: 18 | BH37: =BH36-'متغیرها '!U84*COS(RADIANS(45)) -> 54.64906041 | BI37: 11 | BJ37: =BJ36-'طراحی همه الگوها'!U237*COS(RADIANS(45)) -> 56.56854249 | BK37: =BK36-'طراحی همه الگوها'!U237*SIN(RADIANS(45)) -> 94.49399 | BL37: =BL36-'متغیرها '!U84*SIN(RADIANS(45)) -> 92.59509547 | BR37: =BJ34 -> 69.99328112 | BS37: =BK34 -> 8.619172796 | BT37: 8 | BZ37: =BZ36 -> 58.5 | CA37: =CA31+'طراحی همه الگوها'!U261 -> 138.9 | CB37: 17 | CD37: =CD19 -> 46.8 | CE37: =CE19 -> 134.8 | CF37: 26 | CU37: 44 | CV37: =CV12+CY12*SIN(RADIANS(CU37)+CU14) ->  | CW37: =CW12+CY12*COS(RADIANS(CU37)+CU14) ->  | CX37: =IF(CV13>CV37,ATAN((CW13-CW37)/(CV13-CV37)),ATAN((CW13-CW37)/(CV37-CV13))) ->  | CY37: =IF(CV13>CV37,(CV13-CV37)/COS(CX37),(CV37-CV13)/COS(CX37)) ->  | DA37: راس سوم | DE37: =ASIN(DE38/DA35) -> 1.403019319 | DF37: m8
F38: =F33 -> 0 | G38: =G39 -> 156.7 | H38: j7 | J38: =F40 -> 0 | K38: =G40 -> 119.6 | L38: j9 | AG38: αs2 | AH38: =ATAN((AI11-AI12)/(AH12-AH11)) -> 1.274036345 | AK38: =AH27 -> 69.20230279 | AL38: =AI27 -> 109.6550901 | AM38: s11 | AW38: زاویه خم بودن دست | AX38: =K390 -> 27.35387306 | AZ38: =AX30 -> 120 | BA38: =AX31 -> 123.7 | BB38: 17 | CL38: =CI27 -> 43.65 | CM38: =CJ27 -> 0 | CN38: s13 | CU38: 46 | CV38: =CV12+CY12*SIN(RADIANS(CU38)+CU14) ->  | CW38: =CW12+CY12*COS(RADIANS(CU38)+CU14) ->  | CX38: =IF(CV13>CV38,ATAN((CW13-CW38)/(CV13-CV38)),ATAN((CW13-CW38)/(CV38-CV13))) ->  | CY38: =IF(CV13>CV38,(CV13-CV38)/COS(CX38),(CV38-CV13)/COS(CX38)) ->  | DA38: =DA34+DE36*COS(DA36) -> 11.12972299 | DB38: =DB34-DE36*SIN(DA36) -> 41.10655594 | DC38: 3 | DE38: =DE33*SIN(DE35) -> 9.859584224 | DF38: m9
F39: ='طراحی همه الگوها'!U181+F33 -> 2.1 | G39: =G33-'طراحی همه الگوها'!U180 -> 156.7 | H39: j8 | J39: =F38 -> 0 | K39: =G38 -> 156.7 | L39: j7 | AG39: (s2 →s3) | AH39: =SQRT(POWER((AH12-AH11),2)+POWER((AI11-AI12),2)) -> 6.294449405 | AS39: =AP21 -> 74.5 | AT39: =AQ21 -> 0 | AU39: s'13 | AW39: دست خمیده شبیه ساز k4 | AX39: =K384 -> 59.60855619 | AY39: =L384 -> 101.2586236 | BK39: j4 | BL39: =IF('متغیرها '!C25<1,'متغیرها '!C25*'متغیرها '!U59,IF('متغیرها '!C25<2,'متغیرها '!U59+('متغیرها '!C25-1)*('متغیرها '!U60-'متغیرها '!U59),IF('متغیرها '!C25<3,'متغیرها '!U60+('متغیرها '!C25-2)*(I105-'متغیرها '!U60),I105+('متغیرها '!C25-3)*(H127-H126)))) -> 0 | BR39: =BJ29 -> 0 | BS39: =BK29 -> 172.7 | BT39: 1 | BZ39: =BZ13 -> 0 | CA39: =CA33-BW43 -> 213.03 | CB39: 19' | CD39: =CD13 -> 118.7 | CE39: =CA33 -> 225 | CF39: 27 | CL39: =CI30 -> 0 | CM39: =CJ30 -> 0 | CN39: 2 | CU39: 48 | CV39: =CV12+CY12*SIN(RADIANS(CU39)+CU14) ->  | CW39: =CW12+CY12*COS(RADIANS(CU39)+CU14) ->  | CX39: =IF(CV13>CV39,ATAN((CW13-CW39)/(CV13-CV39)),ATAN((CW13-CW39)/(CV39-CV13))) ->  | CY39: =IF(CV13>CV39,(CV13-CV39)/COS(CX39),(CV39-CV13)/COS(CX39)) -> 
F40: =F33 -> 0 | G40: =G41 -> 119.6 | H40: j9 | L40: انحنا | AG40: (s2 →s14) | AH40: =AH39*2*('متغیرها '!C10-0.5) -> 6.294449405 | AK40: =AK38 -> 69.20230279 | AL40: =AL38 -> 109.6550901 | AM40: s11 | AS40: =AP28 -> 0 | AT40: =AQ28 -> 0 | AU40: 2' | BK40: (9→11) | BL40: ='متغیرها '!C29*BL45+'متغیرها '!C27*'متغیرها '!U83 -> 31.0545574 | BR40: =BJ30 -> -9.7 | BS40: =BK30 -> -12 | BT40: 3 | CD40: =CD13 -> 118.7 | CE40: =CE13 -> 170.05 | CF40: 28 | CU40: 50 | CV40: =CV12+CY12*SIN(RADIANS(CU40)+CU14) ->  | CW40: =CW12+CY12*COS(RADIANS(CU40)+CU14) ->  | CX40: =IF(CV13>CV40,ATAN((CW13-CW40)/(CV13-CV40)),ATAN((CW13-CW40)/(CV40-CV13))) ->  | CY40: =IF(CV13>CV40,(CV13-CV40)/COS(CX40),(CV40-CV13)/COS(CX40)) -> 
F41: =F39 -> 2.1 | G41: =G38-'طراحی همه الگوها'!U182 -> 119.6 | H41: j10 | J41: =F36 -> 79.6 | K41: =G36 -> 172.7 | L41: j5 | AG41: شیفت افقی کل | AH41: ='متغیرها '!C51 -> 0 | AK41: =AH26 -> 55.28508512 | AL41: =AI26 -> 112.0884114 | AM41: s12 | BK41: (8→9) | BL41: =BL37+'متغیرها '!C29*BL45*COS(BL46-RADIANS(45)+BL42)-BK31 -> 111.433764 | CL41: =CL39 -> 0 | CM41: =CM39 -> 0 | CN41: 2 | CU41: 52 | CV41: =CV12+CY12*SIN(RADIANS(CU41)+CU14) ->  | CW41: =CW12+CY12*COS(RADIANS(CU41)+CU14) ->  | CX41: =IF(CV13>CV41,ATAN((CW13-CW41)/(CV13-CV41)),ATAN((CW13-CW41)/(CV41-CV13))) ->  | CY41: =IF(CV13>CV41,(CV13-CV41)/COS(CX41),(CV41-CV13)/COS(CX41)) -> 
F42: =F35+'طراحی همه الگوها'!U183 -> 22.3 | G42: =G33 -> 172.7 | H42: j11 | J42: =F45 -> 77.572 | K42: 157.828 | L42: j5' | AG42: شیفت عمودی کل | AH42: ='متغیرها '!C52 -> 0 | AS42: =AS40 -> 0 | AT42: =AT40 -> 0 | AU42: 2' | BK42: α2 | BL42: ='متغیرها '!B245 -> 0.3079830154 | BR42: =BN28 -> 49.2 | BS42: =BO28 -> 77.325 | BT42: 15 | BV42: j4 | BW42: =IF('متغیرها '!C37<1,'متغیرها '!C37*'متغیرها '!U59,IF('متغیرها '!C37<2,'متغیرها '!U59+('متغیرها '!C37-1)*('متغیرها '!U60-'متغیرها '!U59),IF('متغیرها '!C37<3,'متغیرها '!U60+('متغیرها '!C37-2)*(I105-'متغیرها '!U60),I105+('متغیرها '!C37-3)*(H127-H126)))) -> 0 | CL42: =CI31 -> 0 | CM42: =CJ31 -> 106.1813315 | CN42: s''12 | CU42: 54 | CV42: =CV12+CY12*SIN(RADIANS(CU42)+CU14) ->  | CW42: =CW12+CY12*COS(RADIANS(CU42)+CU14) ->  | CX42: =IF(CV13>CV42,ATAN((CW13-CW42)/(CV13-CV42)),ATAN((CW13-CW42)/(CV42-CV13))) ->  | CY42: =IF(CV13>CV42,(CV13-CV42)/COS(CX42),(CV42-CV13)/COS(CX42)) -> 
F43: =F35 -> 12 | G43: =G33-'طراحی همه الگوها'!U184 -> 164.1 | H43: j12 | J43: 69.46 | K43: 138.9 | L43: j5'' | AG43: j4 | AH43: =IF('متغیرها '!C9<1,'متغیرها '!C9*'متغیرها '!U59,IF('متغیرها '!C9<2,'متغیرها '!U59+('متغیرها '!C9-1)*('متغیرها '!U60-'متغیرها '!U59),IF('متغیرها '!C9<3,'متغیرها '!U60+('متغیرها '!C9-2)*(I105-'متغیرها '!U60),I105+('متغیرها '!C9-3)*(H127-H126)))) -> 0 | AI43: چادر 2 | AK43: =AK41 -> 55.28508512 | AL43: =AL41 -> 112.0884114 | AM43: s12 | AS43: =AH13 -> 0 | AT43: =AI13 -> 120.3 | AU43: خط سینه | BK43: شیفت افقی مرغک | BL43: ='متغیرها '!C33*0.5*('متغیرها '!U72-'متغیرها '!U73) -> 49.2 | BR43: =BN32 -> 56.4 | BS43: =BO32 -> 99.125 | BT43: 18 | BV43: (14 →19') | BW43: =AH45+0.1*'متغیرها '!C40 -> 11.97 | BZ43: رسم چادر شماره 5 برای پرینت | CU43: 56 | CV43: =CV12+CY12*SIN(RADIANS(CU43)+CU14) ->  | CW43: =CW12+CY12*COS(RADIANS(CU43)+CU14) ->  | CX43: =IF(CV13>CV43,ATAN((CW13-CW43)/(CV13-CV43)),ATAN((CW13-CW43)/(CV43-CV13))) ->  | CY43: =IF(CV13>CV43,(CV13-CV43)/COS(CX43),(CV43-CV13)/COS(CX43)) -> 
F44: =F35 -> 12 | G44: =G34 -> 105.1 | H44: j13 | J44: 52.56 | K44: 120.648 | L44: j5''' | AG44: (j1 → j2) | AH44: =ROUND(G19+0.1*'متغیرها '!U85-AH43,1) -> 172.7 | AK44: =AH25 -> 60.77186799 | AL44: =AI25 -> 129.3367508 | AM44: s10 | BK44: شیفت عمودی مرغک | BL44: =IF('متغیرها '!C34<1,'متغیرها '!C34*'متغیرها '!U59,IF('متغیرها '!C34<2,'متغیرها '!U59+('متغیرها '!C34-1)*('متغیرها '!U60-'متغیرها '!U59),IF('متغیرها '!C34<3,'متغیرها '!U60+('متغیرها '!C34-2)*(I105-'متغیرها '!U60),I105+('متغیرها '!C34-3)*(H127-H126))))+'طراحی همه الگوها'!U245 -> 77.325 | BV44: شیفت عمودی الگو دسته | BW44: 7 | CA44: صاف | CB44: برای پرینت | CE44: انحنا | CF44: برای پرینت | CL44: =CL42 -> 0 | CM44: =CM42 -> 106.1813315 | CN44: s''12 | CU44: 58 | CV44: =CV12+CY12*SIN(RADIANS(CU44)+CU14) ->  | CW44: =CW12+CY12*COS(RADIANS(CU44)+CU14) ->  | CX44: =IF(CV13>CV44,ATAN((CW13-CW44)/(CV13-CV44)),ATAN((CW13-CW44)/(CV44-CV13))) ->  | CY44: =IF(CV13>CV44,(CV13-CV44)/COS(CX44),(CV44-CV13)/COS(CX44)) -> 
F45: =F44+0.97*(F36-F44) -> 77.572 | G45: =G44+0.78*(G36-G44) -> 157.828 | H45: j5' | J45: 28.9 | K45: 107.804 | L45: j5'''' | AG45: (j1 → j3) | AH45: =0.21*G13 -> 11.97 | AI45: بدون انتخاب | BK45: شبیه ساز آستین(3→19) | BL45: =BL516 -> 44.36365343 | BR45: =BN34 -> 63.6 | BS45: =BO34 -> 77.325 | BT45: 17 | BV45: شیفت عمودی الگو دسته برای پرینت | BW45: =-'متغیرها '!U56 -> -104 | BZ45: =BZ13+'طراحی همه الگوها'!U260+'طراحی همه الگوها'!U262 -> 99.2 | CA45: =CA25+BW45 -> 4.1 | CB45: 13 | CD45: =BZ45 -> 99.2 | CE45: =CA45 -> 4.1 | CF45: 13 | CL45: =CI32 -> 0 | CM45: =CJ32 -> 110.2813315 | CN45: s'12 | CU45: 60 | CV45: =CV12+CY12*SIN(RADIANS(CU45)+CU14) ->  | CW45: =CW12+CY12*COS(RADIANS(CU45)+CU14) ->  | CX45: =IF(CV13>CV45,ATAN((CW13-CW45)/(CV13-CV45)),ATAN((CW13-CW45)/(CV45-CV13))) ->  | CY45: =IF(CV13>CV45,(CV13-CV45)/COS(CX45),(CV45-CV13)/COS(CX45)) -> 
F46: =F44+0.85*(F36-F44) -> 69.46 | G46: =G44+0.5*(G36-G44) -> 138.9 | H46: j5'' | J46: =F44 -> 12 | K46: =G44 -> 105.1 | L46: j13 | AK46: =AH28 -> 73.9 | AL46: =AI28 -> 0 | AM46: s13 | BK46: شبیه سازαk1 | BL46: =F423 -> 1.396395134 | BR46: =BN30 -> 56.4 | BS46: =BO30 -> 55.525 | BT46: 19 | BZ46: =BZ13 -> 0 | CA46: =CA45 -> 4.1 | CB46: 12 | CD46: =CD45+0.45*(CD49-CD45) -> 110.9 | CE46: =CE45+0.25*(CE49-CE45) -> 31.575 | CF46: 13' | CU46: 62 | CV46: =CV12+CY12*SIN(RADIANS(CU46)+CU14) ->  | CW46: =CW12+CY12*COS(RADIANS(CU46)+CU14) ->  | CX46: =IF(CV13>CV46,ATAN((CW13-CW46)/(CV13-CV46)),ATAN((CW13-CW46)/(CV46-CV13))) ->  | CY46: =IF(CV13>CV46,(CV13-CV46)/COS(CX46),(CV46-CV13)/COS(CX46)) -> 
F47: =F44+0.6*(F36-F44) -> 52.56 | G47: =G44+0.23*(G36-G44) -> 120.648 | H47: j5''' | J47: =F34 -> 0 | K47: =G34 -> 105.1 | L47: j2 | AK47: =AH17 -> 0 | AL47: =AI28 -> 0 | AM47: 2 | BZ47: =BZ13 -> 0 | CA47: =CA46+'طراحی همه الگوها'!U258 -> 18.7 | CB47: 18 | CD47: =CD45+0.75*(CD49-CD45) -> 118.7 | CE47: =CE45+0.5*(CE49-CE45) -> 59.05 | CF47: 13'' | CL47: =CL45 -> 0 | CM47: =CM45 -> 110.2813315 | CN47: s'12 | CU47: 64 | CV47: =CV12+CY12*SIN(RADIANS(CU47)+CU14) ->  | CW47: =CW12+CY12*COS(RADIANS(CU47)+CU14) ->  | CX47: =IF(CV13>CV47,ATAN((CW13-CW47)/(CV13-CV47)),ATAN((CW13-CW47)/(CV47-CV13))) ->  | CY47: =IF(CV13>CV47,(CV13-CV47)/COS(CX47),(CV47-CV13)/COS(CX47)) -> 
F48: =F44+0.25*(F36-F44) -> 28.9 | G48: =G44+0.04*(G36-G44) -> 107.804 | H48: j5'''' | BR48: =BN28 -> 49.2 | BS48: =BO28 -> 77.325 | BT48: 15 | BZ48: =BZ13 -> 0 | CA48: =CA47+'طراحی همه الگوها'!U259 -> 114 | CB48: 14 | CD48: =CD45+0.95*(CD49-CD45) -> 123.9 | CE48: =CE45+0.8*(CE49-CE45) -> 92.02 | CF48: 13''' | CL48: =CI23 -> 20.57 | CM48: =CJ23 -> 110.2813315 | CN48: s12 | CU48: بهینه α | CV48: =IF(CY13<CY16,CU16,IF(CY13<CY17,CU17,IF(CY13<CY18,CU18,IF(CY13<CY19,CU19,IF(CY13<CY20,CU20,IF(CY13<CY21,CU21,IF(CY13<CY22,CU22,IF(CY13<CY23,CU23,IF(CY13<CY24,CU24,IF(CY13<CY25,CU25,IF(CY13<CY26,CU26,IF(CY13<CY27,CU27,IF(CY13<CY28,CU28,IF(CY13<CY29,CU29,IF(CY13<CY30,CU30,IF(CY13<CY31,CU31,IF(CY13<CY32,CU32,IF(CY13<CY33,CU33,IF(CY13<CY34,CU34,IF(CY13<CY35,CU35,IF(CY13<CY36,CU36,IF(CY13<CY37,CU37,IF(CY13<CY38,CU38,IF(CY13<CY39,CU39,IF(CY13<CY40,CU40,IF(CY13<CY41,CU41,IF(CY13<CY42,CU42,IF(CY13<CY43,CU43,IF(CY13<CY44,CU44,IF(CY13<CY45,CU45,IF(CY13<CY46,CU46,CU47))))))))))))))))))))))))))))))) ->  | CW48: =RADIANS(CV48) ->  | CX48: c21 | CY48: =IF(CV13>CV50,ATAN((CW13-CW50)/(CV13-CV50)),ATAN((CW13-CW50)/(CV50-CV13))) -> 
AK49: =AK47 -> 0 | AL49: =AL47 -> 0 | AM49: 2 | BR49: =BN30 -> 56.4 | BS49: =BO30 -> 55.525 | BT49: 19 | BZ49: =BZ13+'طراحی همه الگوها'!U263 -> 125.2 | CA49: =CA48 -> 114 | CB49: 15 | CD49: =BZ49 -> 125.2 | CE49: =CA49 -> 114 | CF49: 15 | CV49: مولفه افقی | CW49: مولفه عمودی | DD49: پروسیجرها
AK50: =AH13 -> 0 | AL50: =AI13 -> 120.3 | AM50: خط سینه | CL50: =CL48 -> 20.57 | CM50: =CM48 -> 110.2813315 | CN50: s12 | CU50: e23 | CV50: =CV12+CY12*SIN(CW48+CU14) ->  | CW50: =CW12+CY12*COS(CW48+CU14) ->  | CX50: راس سوم
K51: محاسبات بافت | BR51: =BN34 -> 63.6 | BS51: =BO34 -> 77.325 | BT51: 17 | BZ51: =CD54 -> 58.5 | CA51: =CA46 -> 4.1 | CB51: 16 | CD51: =BZ47 -> 0 | CE51: =CA47 -> 18.7 | CF51: 18 | CL51: =CI24 -> 20.57 | CM51: =CJ24 -> 106.1813315 | CN51: 41 شبیه ساز
BR52: =BN32 -> 56.4 | BS52: =BO32 -> 99.125 | BT52: 18 | CD52: =CD18 -> 23.4 | CE52: =CA46+'طراحی همه الگوها'!U269 -> 19.6 | CF52: 24
E53: متغیرهای ورودی مربوط به ضخامت میل (متناسب با ضخامت نخ) | H53: متغیرهای ورودی یقه ب ب گرد بافت همه از زیر | K53: متغیرهای ورودی یقه شکاری کشباف | N53: متغیر محاسبه ای یقه انگلیسی | Q53: متغیرهای ورودی یقه شومیزیه بافت همه از زیر | CD53: =CD19 -> 46.8 | CE53: =CA46+'طراحی همه الگوها'!U271 -> 23.8 | CF53: 26 | CL53: =CL51 -> 20.57 | CM53: =CM51 -> 106.1813315 | CN53: 41 شبیه ساز
E54: (بدون احتساب بافت انتخابی) a'0 ضریب تعداد رج | F54: =IF(F56=2,N68,IF(F56=3,O68,P68)) -> 2.8 | H54: =ROUND(I60*G167,1) -> 11 | I54: پهنا (cm)= | K54: =ROUND(L59*(0.4*G166+0.037*H131),1) -> 6 | L54: پهنا (cm)= | N54: d'3 | O54: ='متغیرها '!C167*H124 -> 4.25 | Q54: =ROUND(R61*R57,1) -> 4.5 | R54: پهنا (cm)= | BR54: =BJ29 -> 0 | BS54: =BK29 -> 172.7 | BT54: 1 | CD54: =BZ46+'طراحی همه الگوها'!U260 -> 58.5 | CE54: =CA46+'طراحی همه الگوها'!U261 -> 27.9 | CF54: 17 | CL54: =CI31 -> 0 | CM54: =CJ31 -> 106.1813315 | CN54: s''12
E55: (بدون احتساب بافت انتخابی) b'0 ضریب تعداد دانه | F55: =IF(F56=2,N69,IF(F56=3,O69,P69)) -> 1.8 | H55: متغیر محاسبه ای یقه ب ب گرد | K55: متغیر محاسبه ای یقه شکاری | N55: d11 | O55: =(0.95+1.45*'متغیرها '!C164)*(0.4*G166+0.037*H131) -> 7.169071303 | Q55: =ROUND(R62*R57,1) -> 6.3 | R55: پهنا (cm)= | BR55: =BJ31 -> 9.1 | BS55: =BK31 -> 0 | BT55: 5
E56: انتخاب ضخامت میل بافتنی f1 | F56: ='متغیرها '!C43 -> 3 | H56: c6 | I56: =ROUNDUP(1.3*F54*I57,0) -> 41 | K56: a7 | L56: =F54*L59*(0.4*G166+0.037*H131) -> 16.72783304 | N56: d'12 | O56: =G275-G270 -> 27.23178163 | Q56: متغیر محاسبه ای شومیزیه
E57: جمع شوندگی عمودی بافت f2 | F57: ='متغیرها '!C44 -> 0 | H57: c'6 | I57: =I60*G167 -> 11.03781644 | N57: d12 | O57: =ROUND(F54*O56,0) -> 76 | Q57: e'1 | R57: =(0.4*G166+0.037*H131) -> 2.987113043
E58: جمع شوندگی افقی بافت f3 | F58: ='متغیرها '!C45 -> 0 | K58: متغیرهای ورودی یقه شکاری کشباف | N58: d''12 | O58: =G276+AX147 -> 6.13548 | Q58: e''1 | R58: =R62*R57 -> 6.27293739
E59: از آستین رگلان γ9 | F59: =DE542 -> 0.6259306222 | H59: متغیرهای ورودی یقه ب ب گرد بافت همه از زیر | K59: ضریب پهنای یقه (1.5 الی 3) | L59: ='متغیرها '!C731 -> 2
E60: γ10 از آستین رگلان | F60: =DE543 -> 0.5687972186 | H60: ضریب پهنای یقه (0.6 الی 1.2) | I60: =1.9*'متغیرها '!C751 -> 0.95 | K60: یقه شکاری کشباف | N60: یقه انگلیسی بافت جودانه | Q60: متغیرهای ورودی یقه شومیزیه بافت همه از زیر
H61: یقه ب ب گرد | Q61: ضریب پهنای پایه یقه (1 الی 2) | R61: ='متغیرها '!C738 -> 1.5
E62: گشادی بالای مچ آستین (cm) b'11 | F62: =ROUND(DY522-DY523,0) -> 31 | N62: b'1 نوار باز شده گردن - دور تا دور گردن | O62: =CP680+CP681 -> 18.85416143 | Q62: ضریب پهنای برگرد یقه (1.5 الی 3) | R62: ='متغیرها '!C742 -> 2.1
E63: تعداد دانه ها در بالای مچ آستین b'12 | F63: =ROUND(O65*F62,0) -> 56 | N63: محاسبه شده (با احتساب بافت انتخابی) | Q63: یقه شومیزیه
E64: تعداد دانه های اضافه شده زیر بغل b8 | F64: =ROUNDUP(O65*(AX119+AX114+BI116),0) -> 10 | H64: b22 | I64: =SQRT(POWER(F84,2)-POWER(F67,2)) -> 38.27205247 | N64: a0 تعداد رج در یک سانت | O64: =F54+0.3*F57*F54 -> 2.8
E65: تعداد دانه های سرتاسر آستین در قسمت زیر بغل b20 | F65: =ROUNDUP(F64+O64*F80*COS(0.4*(F59+F60))+J86+0.5*F78,0) -> 83 | H65: b'22 | I65: =I64*O64 -> 107.1617469 | N65: تعداد دانه در یک سانتb0 | O65: =F55+0.68*F58*F55 -> 1.8
E66: تعداد دانه های اضافه شده در کنار آستین در هر طرف b21 | F66: =0.5*(F65-F63) -> 13.5 | H66: b12 | I66: =ROUND(F63/((F62-F88)*O65),0) -> 3
E67: طول اضافه شده در کنار آستین در هر طرف b'21 | F67: =F66/O65 -> 7.5 | N67: میل 2 و 2.5 | O67: میل 3 و 3.5 | P67: میل 4 و 4.5
E68: هر b11 رج در بافت آستین یکدانه از ابتدا و یکدانه از انتها کم شود | F68: =ROUND(I65/F66,0) -> 8 | N68: 3.5 | O68: 2.8 | P68: 2.6 | Q68: a''0
N69: 2.3 | O69: 1.8 | P69: 1.7 | Q69: b''0
J73: محاسبات بافت
E74: محاسبات در بافت بالاتنه و آستین (بافت انتخابی)
E75: تعداد دانه ها دور گردن + دو تا نیمه جادکمه که از خط مرکزی اضافه شده | F75: =F77+2*F76 -> 72 | H75: یقه ب ب گرد | K75: یقه شکاری | N75: یقه شومیزیه | Q75: یقه انگلیسی
E76: b2 تعداد دانه های اضافه شده از خط مرکزی تا خط جادکمه = نیمه جادکمه | F76: =ROUNDUP(F55*'متغیرها '!C66*(2*H129+H130),0) -> 3 | H76: بافت همه از زیر | K76: بافت کشباف | N76: بافت همه از زیر | Q76: بافت جودانه
E77: (بدون اعمال بافت اننتخابی) b1 تعداد دانه ها دور تا دور گردن | F77: =I87+2*I86+2*I85+I84 -> 66 | H77: c1 | I77: =F77+2*(I80+1)+1*(I79+1)-3 -> 103 | K77: a1 | L77: =2*F77 -> 132 | N77: e1 | O77: =F77-I84+O82+2*O78+15 -> 93 | Q77: d1 | R77: =I87+2*I86+2*ROUND(F55*O250,0)-2*R79 -> 64
E78: تعداد رج دوبل برای ایجاد گودی گردن جلو b13 | F78: =ROUNDDOWN(0.25*O64*((AX129-BI128)),0) -> 4 | H78: c2 | I78: =ROUND(0.25*1.3*F54*I57,0)-1 -> 9 | K78: a2 | L78: =IF((ROUND(0.6*L56,0)-6)<0," خطا - قد پشت یقه زیاد شود ",(ROUND(0.6*L56,0)-6)) -> 4 | N78: e2 | O78: =ROUNDDOWN(0.5*(1.3*F54*R58-9),0) -> 6 | Q78: d2 | R78: =ROUND(F54*O54,0) -> 12
E79: تعداد رج سوبل برای ایجاد گودی گردن جلو b'''13 | F79: =ROUND((1/8)*O64*((AX129-BI128)),0) -> 2 | H79: c3 | I79: =ROUND(0.45*1.3*F54*I57,0)-1 -> 17 | K79: a3 | L79: =ROUND(0.33*L81,0) -> 15 | N79: e3 | O79: =ROUND(0.15*(F77-I84+O82+13),0) -> 12 | Q79: d3 | R79: =ROUND(F55*O54,0) -> 8
E80: فاصله گردن تا محل جدا شدن آستین در قسمت جلو (cm) b7 | F80: =ROUNDUP(SQRT(POWER(CI103-CI121,2)+POWER(CJ103-CJ121,2)),0) -> 24 | H80: c4 | I80: =I56-I78-I79-5 -> 10 | K80: a4 | L80: =ROUND(0.66*L81,0) -> 30 | N80: e4 | O80: =ROUND(0.24*(F77-I84+O82+9),0) -> 18 | Q80: d4 | R80: =IF((ROUND(F54*O55,0)-R78-4)<0,"خطا - بزرگی پشت یقه زیاد شود",(ROUND(F54*O55,0)-R78-4)) -> 4
E81: تعداد دانه های اضافه شده زیر بغل b8 | F81: =F64 -> 10 | K81: a5 | L81: =ROUND(0.35*L77,0) -> 46 | N81: e5 | O81: =ROUND(0.35*(F77-I84+O82+3),0) -> 24 | Q81: d5 | R81: =R77+2*R79 -> 80
E82: تعداد دانه های سرتاسر آستین در قسمت زیر بغل b20 | F82: =F65 -> 83 | K82: a6 | L82: =ROUND(0.4*L56,0) -> 7 | N82: e6 | O82: =O78 -> 6 | Q82: d6 | R82: =I87 -> 18
E83: فاصله زیر بغل تا پایین لباس (cm) b9 | F83: =ROUND(AX113,0) -> 48 | H83: تقسیم بندی بالاتنه | I83: تعداد دانه ها (بافت جودانه یا ساده) | J83: تعداد دانه ها (بافت انتخابی) | N83: e7 | O83: =F76 -> 3 | Q83: d7 | R83: =I86 -> 11
E84: فاصله زیر بغل تا بالای مچ آستین (cm) b10 | F84: =ROUNDUP(SQRT(POWER(DY513-DY520,2)+POWER(DZ513-DZ520,2)),0) -> 39 | H84: b6 جادکمه | I84: =2*F76 -> 6 | N84: e8 | O84: =2*(F76-2) -> 2 | Q84: d8 | R84: =ROUND(F55*O250,0) -> 20
E85: گشادی لبه پایین آستین (cm) b'11 | F85: =F62 -> 31 | H85: b3 جلو بدون جادکمه | I85: =ROUNDUP(F55*(SQRT(POWER(AX129-AX131,2)+POWER(AX130,2))+SQRT(POWER(AX131-AX133,2)+POWER(AX132-AX130,2))),0)-F76 -> 10 | J85: =ROUNDUP(O65*(SQRT(POWER(AX129-AX131,2)+POWER(AX130,2))+SQRT(POWER(AX131-AX133,2)+POWER(AX132-AX130,2))),0)-F76 -> 10 | N85: e9 | O85: =ROUNDUP(R61*1.3*F54*R57,0)-O83-O84-3 -> 9 | Q85: d9 | R85: =ROUND((F54*O56)/(F55*O58),0) -> 7
E86: تعداد دانه ها در بالای مچ آستین b'12 | F86: =F63 -> 56 | H86: b4 آستین | I86: =ROUNDDOWN(F55*(DE534+DE535),0) -> 11 | J86: =ROUNDDOWN(O65*(DE534+DE535),0) -> 11 | Q86: d10 | R86: =IF(ROUND((F54*(G271-G270))/(F55*G272),0)>40,"----",ROUND((F54*(G271-G270))/(F55*G272),0)) -> 11
E87: پهنای مچ آستین (cm) b14 | F87: =ROUNDUP(CA513-CA511,0) -> 7 | H87: b5 پشت | I87: =ROUNDDOWN(F55*2*(SQRT(POWER(BI128-BI130,2)+POWER(BI129,2))+SQRT(POWER(BI130-BI132,2)+POWER(BI131-BI129,2))),0) -> 18 | J87: =ROUNDDOWN(O65*2*(SQRT(POWER(BI128-BI130,2)+POWER(BI129,2))+SQRT(POWER(BI130-BI132,2)+POWER(BI131-BI129,2))),0) -> 18 | Q87: d12 | R87: =O57 -> 76 | AF87: شبیه ساز بالاتنه پشت
E88: گشادی مچ جدار در پایین آستین (cm) b15 | F88: =ROUND(BZ520-BZ519,0) -> 22 | AF88: انحنا | AJ88: خطوط برش
E89: در بالای مچ هر b12 دانه یکی کم شود | F89: =I66 -> 3 | AF89: =Y146 -> 6.8172 | AG89: =Y114 -> 40.5 | AH89: 27 | AJ89: =Y146 -> 6.8172 | AK89: =Y114 -> 40.5 | AL89: 27
E90: هر b11 رج در بافت آستین یکدانه از ابتدا و یکدانه از انتها کم شود | F90: =F68 -> 8 | AF90: =Y150 -> 5.1129 | AG90: =Y114-Y151 -> 39.29383044 | AH90: 32 | AJ90: =Y146+Y153 -> 12.46023108 | AK90: =Y114-Y154 -> 39.11976008 | AL90: 34
AF91: =Y148 -> 2.72688 | AG91: =Y114-Y149 -> 38.69074565 | AH91: 30
AF92: 0 | AG92: =Y114-Y147 -> 38.48971739 | AH92: 28 | AJ92: =Y115-Y135+Y141-Y156 -> 14.09626485 | AK92: =Y130+Y136+Y142+Y157 -> 38.82027104 | AL92: 36
AJ93: =Y115-Y135+Y141 -> 19.236 | AK93: =Y130+Y136+Y142 -> 36.11250728 | AL93: 24 | AZ93: انحنای حلقه آستین جلو
AF94: =Y115-Y135+Y141 -> 19.236 | AG94: =Y130+Y136+Y142 -> 36.11250728 | AH94: 24 | AZ94: =AZ125+'متغیرها '!C55 -> 23.704 | BA94: =BA125 -> 140.9146565 | BB94: شیفت22
AF95: =Y115-Y135+Y143 -> 17.9508 | AG95: =Y130+Y136+Y144 -> 31.47195651 | AH95: 26 | AJ95: =Y115 -> 23.0711745 | AK95: =Y130 -> 18.15017223 | AL95: 14 | AZ95: =AZ128+'متغیرها '!C55 -> 20.7052 | BA95: =BA128 -> 135.6300097 | BB95: شیفت24 | BF95: جادکمه در پیراهن
L96: به دست آوردن نقطه تقاطع دو خط (نمونه کپی) | M96: مولفه افقی | N96: مولفه عمودی | Q96: شبیه ساز بالاتنه جلو | AF96: =Y115-Y135 -> 17.4 | AG96: =Y130+Y136 -> 25.80017223 | AH96: 18 | AJ96: =Y115 -> 23.0711745 | AK96: =Y130-Y132 -> 18.15017223 | AL96: 16 | AZ96: =AZ115+'متغیرها '!C55 -> 19.42 | BA96: =BA115 -> 130.345363 | BB96: شیفت16 | BD96: =AZ106 -> 0 | BE96: =BA106 -> 74.575 | BF96: 1
K97: نقطه اول از خط اول | L97: اسم نقطه | M97: 1 | N97: 1 | Q97: انحنا | U97: خطوط برش | AF97: =Y115-Y139 -> 19.10135235 | AG97: =Y130+Y140 -> 21.21017223 | AH97: 22 | AJ97: =Y121+Y123+Y124+Y127 -> 21.37499173 | AK97: =Y128 -> 0.1061407579 | AL97: 13 | AZ97: =AZ121+'متغیرها '!C55 -> 20.42445716 | BA97: =BA121 -> 125.755363 | BB97: شیفت20 | BD97: =AX147+AX99 -> -1.503 | BE97: =0+AX98 -> 74.575 | BF97: 1' | BH97: شیفت عمودی پشت پیراهن | BI97: =BG148+'متغیرها '!U59-BI148+'متغیرها '!C54 -> 74.575
K98: نقطه دوم از خط اول | L98: اسم نقطه | M98: 2 | N98: 2 | Q98: =L143 -> 6.8172 | R98: =L114 -> 42.5 | S98: 25 | U98: 0 | V98: =L114-L144 -> 34.10593876 | W98: 26 | AF98: =Y115-Y137 -> 21.9369396 | AG98: =Y130+Y138 -> 18.91517223 | AH98: 20 | AJ98: =Y121+Y123+Y124 -> 11.65 | AK98: 0 | AL98: 11 | AW98: شیفت عمودی جلو پیراهن | AX98: =H114+'متغیرها '!C52+(I104-H104) -> 74.575 | AZ98: =AZ118+'متغیرها '!C55 -> 21.9311429 | BA98: =BA118 -> 123.842863 | BB98: شیفت18 | BD98: =AX148+AX99 -> -1.503 | BE98: =AX103-AX129+AX98 -> 138.1059388 | BF98: 26' | BH98: شیفت افقی پشت پیراهن | BI98: ='متغیرها '!C53 -> 20
E99: اندازه ها در دامن و شلوار | H99: اندازه محاسبه | I99: شبیه ساز | K99: نقطه اول از خط دوم | L99: اسم نقطه | M99: 3 | N99: 2 | Q99: =L147 -> 5.45376 | R99: =L114-L148 -> 38.30296938 | S99: 30 | U99: 0 | V99: 0 | W99: 1 | AF99: =Y115 -> 23.0711745 | AG99: =Y130 -> 18.15017223 | AH99: 14 | AW99: شیفت افقی جلو پیراهن | AX99: ='متغیرها '!C51 -> 0 | AZ99: =AZ113+'متغیرها '!C55 -> 24.4422858 | BA99: =BA113 -> 122.695363 | BB99: شیفت12 | BD99: =AZ102 -> 0 | BE99: =BA102 -> 138.1059388 | BF99: 26 | BG99: =BG149+BG150+BG151+1*(IF('متغیرها '!U55>'متغیرها '!U53,0.5*'متغیرها '!U55,0.5*'متغیرها '!U53)-BG149-BG151+BG163)-1*BG142-IF('متغیرها '!C125=1,2*BG143,BG150) -> 26.80625 | BH99: (1 → 41) با شرط x5=1 | BI99: =BI149+BI150+BI151+1*(IF(H103>H101,0.5*H103,0.5*H101)+'متغیرها '!C62*H120-BI149-BI151+BI163)-1*BI142-IF('متغیرها '!C125=1,2*BI143,BI150) -> 26.80625
E100: دور کمر | F100: a | H100: ='متغیرها '!U52+0.3*'متغیرها '!C60*('متغیرها '!U52+'متغیرها '!U54+'متغیرها '!U72) -> 72 | I100: ='متغیرها '!U52 -> 72 | K100: نقطه دوم از خط دوم | L100: اسم نقطه | M100: 4 | N100: 4 | Q100: =L145 -> 2.72688 | R100: =L114-L146 -> 34.94534488 | S100: 28 | U100: =L120 -> 8.20376 | V100: 0 | W100: 8 | AJ100: =Y121+Y123 -> 9.75 | AK100: 0 | AL100: 10 | AV100: =AV156+AV157+AV158+1*(IF(('متغیرها '!U54-'متغیرها '!U55)>('متغیرها '!U52-'متغیرها '!U53),0.5*('متغیرها '!U54-'متغیرها '!U55),0.5*('متغیرها '!U52-'متغیرها '!U53))-AV156-AV158)-IF('متغیرها '!C125=1,2*AV150,AV157) -> 22.55 | AW100: (1 → 44) با شرط x5=1 | AX100: =AX156+AX157+AX158+1*(IF((H102-H103)>(H100-H101),0.5*(H102-H103),0.5*(H100-H101))+'متغیرها '!C62*H120-AX156-AX158)-IF('متغیرها '!C125=1,2*AX150,AX157) -> 22.55 | AZ100: =BD156 -> 25.9722858 | BA100: =BE156 -> 122.695363 | BB100: شیفت13 | BD100: =AZ106 -> 0 | BE100: =BA106 -> 74.575 | BF100: 1 | BH100: زاویه خط پهلو پشت | BI100: =ATAN((BI106-BI108)/(BI110-BI112-BI107)) -> 0.0275088561 | BO100: انحنای حلقه آستین پشت | BS100: انتقال قسمتی از ساسون سرشانه به خط مرکزی جلو و حلقه آستین با ساسون زیر بغل و خط رگلان | CA100: انتقال قسمتی از ساسون سرشانه به خط مرکزی پشت و حلقه آستین با ساسون زیر بغل | CI100: حلقه آستین و سرشانه و رگلان بدون ساسون | CQ100: حلقه آستین و سرشانه و رگلان بدون ساسون | CY100: جیب با ساسون | DG100: تکه پهلو جدا | DT100: کنترل گودی حلقه آستین | EF100: حلقه آستین با ساسون متغیر | EJ100: انگلیسی و آرشال چرخیده | EN100: پهلو ترک | ER100: پهلو برای جیب با ساسون | EV100: اطلاعات اندام | EZ100: پهلو جدا در پیراهن | FD100: رسم انحنا جلو آستر کت | FH100: حلقه آستین با ساسون متغیر | FL100: یقه گرد | FP100: پهلو جدا و ترک وسط و نیمی از حلقه آستین عصایی | FT100: پهلو جدا و ترک وسط و حلقه آستین عصایی در آستر کت | GA100: رسم قرینه جلو پیراهن
E101: نوار کمر از پشت بین دو خط پهلو | F101: b | H101: ='متغیرها '!U53+0.3*'متغیرها '!C60*('متغیرها '!U53+'متغیرها '!U55+'متغیرها '!U73) -> 35.2 | I101: ='متغیرها '!U53 -> 35.2 | K101: نقطه تقاطع | L101: اسم نقطه | M101: =(N99-N97+M97*((N98-N97)/(M98-M97))-M99*((N100-N99)/(M100-M99)))/(((N98-N97)/(M98-M97))-((N100-N99)/(M100-M99))) -> 4 | N101: =N97+(M101-M97)*((N98-N97)/(M98-M97)) -> 4 | Q101: =0 -> 0 | R101: =L114-L144 -> 34.10593876 | S101: 26 | AJ101: =Y121 -> 1.9 | AK101: 0 | AL101: 9 | AW101: زاویه خط پهلو جلو در پیراهن راسته با ساسون | AX101: =ATAN((AX110-AX104)/(AX113-AX115-AX111)) -> 0.0275088561 | AZ101: رسم جلو پیراهن | BD101: انحنای حلقه یقه جلو | BH101: زاویه متوسط سرشانه پشت و جلو مانتو راسته | BI101: =0.5*(P139+0.3*(P140-P139)+AE139+0.3*(AE140-AE139)) -> 0.3079830154 | BK101: =BI126+BI98 -> 32.01871396 | BL101: =BI125+BI97 -> 138.2799026 | BM101: 22 | BO101: =BK140 -> 39.37898265 | BP101: =BL140 -> 142.2125073 | BQ101: شیفت18 | BS101: نقاط ورودی | BW101: انتخاب c1 >1 | BX101: ='متغیرها '!C108 -> 0 | CA101: نقاط ورودی | CI101: نقاط ورودی | CO101: حلقه بدون ساسون | CQ101: نقاط ورودی | CV101: انحنا | CY101: نقاط ورودی | DC101: نقاط خروجی | DG101: نقاط ورودی | DK101: نقاط ورودی | DO101: نقاط خروجی | DT101: نقاط ورودی | DX101: نقاط ورودی | ED101: =BW139+BT130 -> 24.86187387 | EE101: =BX139 -> 126.5622982 | EF101: شیفت b14 | EL101: =BS140+BT130 -> 24.4422858 | EM101: =BT140 -> 118.717363 | EN101: شیفت 14 | EP101: مولفه افقی | EQ101: مولفه عمودی | ER101: اسم نقطه | EV101: کمر | EX101: =DG103 -> 21.9311429 | EY101: =DH103 -> 123.842863 | EZ101: =DI103 -> 18شیفت | FB101: =BW114 -> 5.720046094 | FC101: =BX114 -> 141.8977855 | FD101: e5 | FF101: =CE122+CB112 -> 44.60170474 | FG101: =CF122+CB113 -> 122.72161 | FH101: شیفت b14 | FJ101: =CE105 -> 26.8172 | FK101: 146.6 | FL101: 23 | FN101: =DL167 -> 37.54298265 | FO101: =DM167 -> 131.9001722 | FP101: شیفت12p یا 12 | FR101: =DK103 -> 37.54298265 | FS101: 131.9001722 | FT101: شیفت12p | FX101: مولفه افقی | FY101: مولفه عمودی | FZ101: اسم نقطه | GC101: =AZ106 -> 0 | GD101: مرجع | GH101: 12' | GK101: =-2*'متغیرها '!C51 -> 0 | GL101: شیفت افقی | GO101: ='متغیرها '!C52 -> 0 | GP101: شیفت عمودی | GT101: 14' | GX101: 19' | HB101: 48' | HF101: 63' | HJ101: 64' | HN101: 77'
E102: دور باسن | F102: c | H102: ='متغیرها '!U54+0.3*'متغیرها '!C60*('متغیرها '!U52+'متغیرها '!U54+'متغیرها '!U72) -> 97 | I102: ='متغیرها '!U54 -> 97 | U102: =L120+L121 -> 12.54376 | V102: 0 | W102: 9 | AJ102: 0 | AK102: =Y117 -> 30.375 | AL102: 5 | AV102: شبیه ساز | AW102: متغیرهای خروجی جلو پیراهن با ساسون کمر | AZ102: =AX99 -> 0 | BA102: =AX103-AX129+AX98 -> 138.1059388 | BB102: 26 | BD102: =AZ140 -> 6.8172 | BE102: =BA140 -> 146.5 | BF102: 25 | BG102: شبیه ساز | BH102: متغیرهای خروجی پشت پیراهن با ساسون کمر (رسم کاربر) | BK102: =0+BI98 -> 20 | BL102: =BI125+BI97 -> 138.2799026 | BM102: 21 | BO102: =BK110 -> 38.09378265 | BP102: =BL110 -> 137.5719565 | BQ102: شیفت20 | BS102: مولفه افقی | BT102: مولفه عمودی | BU102: اسم نقطه | BW102: انتخاب عصایی | BX102: ='متغیرها '!C101 -> 0 | CA102: مولفه افقی | CB102: مولفه عمودی | CC102: اسم نقطه | CI102: مولفه افقی | CJ102: مولفه عمودی | CK102: اسم نقطه | CM102: =CI117+CJ105 -> 17.8892561 | CN102: =CJ117 -> 142.9779237 | CO102: شیفت 22f | CQ102: مولفه افقی | CR102: مولفه عمودی | CS102: اسم نقطه | CU102: =CQ120+CR105 -> 37.8892561 | CV102: =CR120+CR106 -> 143.0779237 | CW102: شیفت 18f | CY102: مولفه افقی | CZ102: مولفه عمودی | DA102: اسم نقطه | DC102: مولفه افقی | DD102: مولفه عمودی | DE102: اسم نقطه | DG102: مولفه افقی | DH102: مولفه عمودی | DI102: اسم نقطه | DK102: مولفه افقی | DL102: مولفه عمودی | DM102: اسم نقطه | DO102: =DK106+DH109 -> 45.5823174 | DP102: =DL106+DH110 -> 123.8676722 | DQ102: شیفت8m | DR102: پیراهن | DT102: مولفه افقی | DU102: مولفه عمودی | DV102: اسم نقطه | DX102: مولفه افقی | DY102: مولفه عمودی | DZ102: اسم نقطه | ED102: =BW140+BT130 -> 24.38530055 | EE102: =BX140 -> 122.3269397 | EF102: شیفت b2 | EH102: =BW105 -> 6.8172 | EI102: =BX105 -> 146.5 | EJ102: چرخیده 25 | EL102: =AZ168+BT130 -> 20.57 | EM102: =BA168 -> 106.1813315 | EN102: شیفت 41 | EP102: =CY109 -> 8.17221716 | EQ102: =CZ109 -> 74.575 | ER102: 52 | ET102: =AZ165 -> 0 | EU102: =BA165 -> 104 | EV102: 38 | EX102: =DG121 -> 21.9311429 | EY102: 118.717363 | EZ102: =DI121 -> 14شیفتm | FB102: =DP169 -> 7.245104402 | FC102: =DQ169 -> 130.4966336 | FD102: a4 | FF102: =CE116+CB112 -> 41.96597144 | FG102: =CF116+CB113 -> 123.6393374 | FH102: شیفت b8 | FJ102: 25.1129 | FK102: 145.3938304 | FL102: 28 | FN102: =DL168 -> 39.2014402 | FO102: =DM168 -> 126.3921722 | FP102: شیفت16p یا 16 | FR102: 39.2014402 | FS102: 126.3921722 | FT102: شیفت16p | FZ102: 6' | GB102: مولفه افقی | GC102: مولفه عمودی | GD102: اسم نقطه | GF102: =-EX101-GK101 -> -21.9311429 | GG102: =EY101 -> 123.842863 | GH102: شیفت 18 | GL102: 3' | GP102: 10' | GR102: =-EP102-GK101 -> -8.17221716 | GS102: =EQ102 -> 74.575 | GT102: 52 | GV102: =-CR154-GK101 -> -10.34221716 | GW102: =CS154 -> 117.04 | GX102: 43 | GZ102: =-DY255-GK101 -> 1.503 | HA102: =DZ255 -> 127.6885633 | HB102: p10 | HD102: =-U384-GK101 -> -6.8172 | HE102: =V384 -> 146.5 | HF102: 25 | HH102: =-CP238-GK101 -> -4.74 | HI102: =CQ238 -> 75.76352346 | HJ102: m2 | HL102: =-DN238-GK101 -> -24.4422858 | HM102: =DO238 -> 118.717363 | HN102: 14
E103: نوار باسن از پشت بین دو خط پهلو | F103: d | H103: ='متغیرها '!U55+0.3*'متغیرها '!C60*('متغیرها '!U53+'متغیرها '!U55+'متغیرها '!U73) -> 51.9 | I103: ='متغیرها '!U55 -> 51.9 | K103: به دست آوردن مختصات قرینه یک نقطه نسبت به خط تقارن با داشتن دونقطه از خط تقارن (نمونه کپی) | Q103: =L115-L132+L138 -> 23.704 | R103: =L127+L133+L139 -> 36.91465646 | S103: 22 | U103: =L120+L121+L124 -> 22.74 | V103: =L125 -> 2.181331536 | W103: 11 | AJ103: 0 | AK103: =Y114-Y147 -> 38.48971739 | AL103: 28 | AV103: =L114+'متغیرها '!U56-H114 -> 71.925 | AW103: (1 → 2) | AX103: =K114+H104-H114 -> 71.925 | AZ103: =AX99 -> 0 | BA103: =AX105+AX98 -> 120.3 | BB103: 4 | BD103: =AZ148 -> 5.45376 | BE103: =BA148 -> 142.3029694 | BF103: 30 | BG103: ='متغیرها '!U58-'متغیرها '!U59+Y114 -> 100.6 | BH103: (1 → 2) | BI103: =H106-H114+AA114 -> 72.025 | BK103: =0+BI98 -> 20 | BL103: =BI103+BI97 -> 146.6 | BM103: 2 | BO103: =BK112 -> 37.54298265 | BP103: =BL112 -> 131.9001722 | BQ103: شیفت12 | BT103: =('متغیرها '!C107/('متغیرها '!C106+0.001))*(BU143-BU142) -> 0 | BU103: زاویه چرخش به خط مرکزی جلو | BW103: نقاط خروجی چرخیده | CB103: =('متغیرها '!C112/('متغیرها '!C111+0.001))*(CC126-CC125) -> 0 | CC103: زاویه چرخش به خط مرکزی پشت | CE103: نقاط خروجی چرخیده | CI103: =BW106 -> 5.45376 | CJ103: =BX106 -> 142.3029694 | CK103: 30 | CM103: =CI118+CJ105 -> 16.98053641 | CN103: =CJ118 -> 137.644524 | CO103: شیفت 24f | CQ103: =BK135 -> 25.1129 | CR103: =BL135 -> 145.3938304 | CS103: 28 | CU103: =CQ121+CR105 -> 37.49785122 | CV103: =CR121+CR106 -> 136.3598657 | CW103: شیفت 20f | CY103: =AZ161 -> 10.34221716 | CZ103: =BA161 -> 117.04 | DA103: 43 | DC103: =CY110-(CY106-CY109) -> 6.935 | DD103: =CZ110 -> 74.575 | DE103: 50s | DG103: =AZ98 -> 21.9311429 | DH103: =BA98 -> 123.842863 | DI103: 18شیفت | DJ103: پیراهن | DK103: =DL167 -> 37.54298265 | DL103: =DM167 -> 131.9001722 | DM103: شیفت12p | DN103: پیراهن | DO103: =DK107+DH109 -> 45.5823174 | DP103: =DL107 -> 118.7421722 | DQ103: شیفت10m | DT103: =DT151 -> 18.20483682 | DU103: =DU151 -> 144.2264259 | DV103: 22b | DW103: راس حلقه آستین | DX103: =DY152 -> 39.6355435 | DY103: =DZ152 -> 142.7119379 | DZ103: 18b | EA103: راس حلقه آستین | EH103: =BW113 -> 6.13548 | EI103: =BX113 -> 143.9817816 | EJ103: e7 | EP103: =DC103 -> 6.935 | EQ103: 74.575 | ER103: 50s | ET103: =AZ166 -> 9.25721716 | EU103: =BA166 -> 104 | EV103: 39 | EX103: 18.0588571 | EY103: 106.1813315 | EZ103: =DI122 -> 41شیفتm | FB103: =DP168 -> 11.82027933 | FC103: =DQ168 -> 124.7960577 | FD103: a3 | FF103: =IF('متغیرها '!C119=1,DX123,CE117)+CB112 -> 39.20159069 | FG103: =IF('متغیرها '!C119=1,DY123,CF117)+CB113 -> 126.3930515 | FH103: شیفت b10 یا b'10p | FJ103: 22.72688 | FK103: 144.7907457 | FL103: 26 | FN103: =DO109 -> 40.74933392 | FO103: =DP109 -> 124.3783097 | FP103: =DQ109 -> شیفت8''m | FR103: =DO109 -> 40.74933392 | FS103: =DP109 -> 124.3783097 | FT103: =DQ109 -> شیفت8''m | FX103: =-CM102-GK101 -> -17.8892561 | FY103: =CN102 -> 142.9779237 | FZ103: شیفت 22f | GD103: 7' | GF103: =-EX102-GK101 -> -21.9311429 | GG103: =EY102 -> 118.717363 | GH103: شیفت 14m | GJ103: =-ED101-GK101 -> -24.86187387 | GK103: =EE101 -> 126.5622982 | GL103: شیفت b14 | GN103: =-EL101-GK101 -> -24.4422858 | GO103: =EM101 -> 118.717363 | GP103: شیفت 14 | GR103: =-EP103-GK101 -> -6.935 | GS103: 74.575 | GT103: 50s | GV103: =-CR155-GK101 -> -9.25721716 | GW103: =CS155 -> 104 | GX103: 39 یا d5 | GZ103: =-DY256-GK101 -> 1.503 | HA103: =DZ256 -> 74.575 | HB103: 1' | HD103: =-U385-GK101 -> -17.8892561 | HE103: =V385 -> 142.9779237 | HF103: 22f | HH103: =-CP239-GK101 -> -5.953172 | HI103: =CQ239 -> 80.07429025 | HJ103: m10 | HL103: =-DN239-GK101 -> -20.57 | HM103: =DO239 -> 106.1813315 | HN103: 41
E104: فاصله نوار کمر تا زمین، از قسمت جلو | F104: e | H104: ='متغیرها '!U56+'متغیرها '!C63*'متغیرها '!U56 -> 104 | I104: ='متغیرها '!U56 -> 104 | K104: مولفه افقی | L104: مولفه عمودی | M104: اسم نقطه | Q104: =L115-L132+L140 -> 20.7052 | R104: =L127+L133+L141 -> 31.63000973 | S104: 24 | U104: =L115 -> 24.6 | V104: =L127-L129 -> 20.225363 | W104: 14 | AV104: =L115 -> 24.6 | AW104: (1 → 3) | AX104: =K115 -> 24.4422858 | AZ104: =AX106+AX99 -> 10.34221716 | BA104: =AX105+AX98 -> 120.3 | BB104: 5 | BD104: =AZ145 -> 2.72688 | BE104: =BA145 -> 138.9453449 | BF104: 28 | BH104: (1 → 3) | BI104: =BI106+(BI107-BI105)*TAN(BI100) -> 24.25465732 | BK104: =BI127+BI98 -> 26.8172 | BL104: =BI103+BI97 -> 146.6 | BM104: 23 | BO104: =BK117 -> 39.2014402 | BP104: =BL117 -> 126.3921722 | BQ104: شیفت16 | BS104: =AZ165+AN119 -> 10.34221716 | BT104: =BA165+AO119 -> 120.3 | BU104: 5 بالاتنه | BV104: نقطه مرکزی چرخش | BW104: مولفه افقی | BX104: مولفه عمودی | BY104: اسم نقطه | CA104: =BO164 -> 30.7 | CB104: =BP164 -> 127.8476283 | CC104: 40 | CD104: نقطه مرکزی چرخش | CE104: مولفه افقی | CF104: مولفه عمودی | CG104: اسم نقطه | CI104: =AZ104 -> 10.34221716 | CJ104: =BA104 -> 120.3 | CK104: 5پیراهن | CM104: =CI119+CJ105 -> 16.59108511 | CN104: =CJ119 -> 132.3111244 | CO104: شیفت 16f | CQ104: =BK154 -> 30.7 | CR104: =BL154 -> 127.8476283 | CS104: 40 | CU104: =CQ122+CR105 -> 37.4 | CV104: =CR122+CR106 -> 131.8811604 | CW104: شیفت 12f | CY104: =BD168-CZ122 -> 11.42721716 | CZ104: =BE168 -> 104 | DA104: 40 | DC104: =CY111-(CY106-CY109) -> 10.3175 | DD104: 74.80126631 | DE104: 50's | DG104: =BD177 -> 24.4422858 | DH104: 118.717363 | DI104: 14شیفت | DK104: =DL168 -> 39.2014402 | DL104: =DM168 -> 126.3921722 | DM104: شیفت16p | DO104: =DK108+DH109 -> 45.0486429 | DP104: =DL108 -> 106.2061408 | DQ104: شیفت36m | DT104: =BW105 -> 6.8172 | DU104: =BX105 -> 146.5 | DV104: 25 | DW104: راس یقه | DX104: =CE105 -> 26.8172 | DY104: =CF105 -> 146.6 | DZ104: 23 | EA104: راس یقه | ED104: =BW139+BT130 -> 24.86187387 | EE104: =BX139 -> 126.5622982 | EF104: شیفتb14 | EH104: =BW114 -> 5.720046094 | EI104: =BX114 -> 141.8977855 | EJ104: e5 | EL104: =AZ168+BT130 -> 20.57 | EM104: =BA168 -> 106.1813315 | EN104: شیفت 41 | EP104: 10.3175 | EQ104: 74.80126631 | ER104: 50's | EX104: 20.0388571 | EY104: 85.18133154 | EZ104: =DI123 -> 45شیفتm | FB104: =DP166 -> 20.97062918 | FC104: =DQ166 -> 122.8958657 | FD104: a1 | FF104: =IF('متغیرها '!C119=1,DX122,CE118)+CB112 -> 37.54256347 | FG104: =IF('متغیرها '!C119=1,DY122,CF118)+CB113 -> 131.9008799 | FH104: شیفت b6 یا b'6p | FJ104: 20 | FK104: 144.5897174 | FL104: 24 | FN104: =DO107 -> 43.0711745 | FO104: =DP107 -> 123.2939222 | FP104: =DQ107 -> شیفت8'm | FR104: =DO107 -> 43.0711745 | FS104: =DP107 -> 123.2939222 | FT104: =DQ107 -> شیفت8'm | FX104: =-CM103-GK101 -> -16.98053641 | FY104: 137.644524 | FZ104: شیفت 24f | GB104: =-CM113-GK101 -> -17.8892561 | GC104: =CN113 -> 142.9779237 | GD104: شیفت22f | GF104: =-EX103-GK101 -> -18.0588571 | GG104: =EY103 -> 106.1813315 | GH104: شیفت 41m | GJ104: =-ED102-GK101 -> -24.38530055 | GK104: =EE102 -> 122.3269397 | GL104: شیفت b2 | GN104: =-EL104-GK101 -> -20.57 | GO104: =EM104 -> 106.1813315 | GP104: شیفت 41 | GR104: =-EP104-GK101 -> -10.3175 | GS104: 74.80126631 | GT104: 50's | HD104: =-U386-GK101 -> -70.00347515 | HE104: =V386 -> 115.6798237 | HF104: k4 | HH104: =-CP240-GK101 -> -9.592688 | HI104: =CQ240 -> 85.00088087 | HJ104: m8 | HL104: =-DN240-GK101 -> -22.55 | HM104: =DO240 -> 85.18133154 | HN104: 45
E105: فاصله نوار کمر تا زمین، از قسمت پهلو | F105: f | H105: =ROUND(0.5*('متغیرها '!U56+'متغیرها '!U58),1)+'متغیرها '!C63*ROUND(0.5*('متغیرها '!U56+'متغیرها '!U58),1) -> 105.1 | I105: =ROUND(0.5*('متغیرها '!U56+'متغیرها '!U58),1) -> 105.1 | K105: 1 | L105: 1 | M105: e1 | N105: نقطه اول خط تقارن | Q105: =L115-L132 -> 19.42 | R105: =L127+L133 -> 26.345363 | S105: 16 | U105: =L115 -> 24.6 | V105: =L127 -> 20.225363 | W105: 12 | AJ105: انحنای حلقه آستین و ساسون سرشانه پشت | AW105: (1→ 4) | AX105: =H104-H114+V142 -> 45.725 | AZ105: =AZ103 -> 0 | BA105: =BA103 -> 120.3 | BB105: 4 | BD105: =AZ102 -> 0 | BE105: =BA102 -> 138.1059388 | BF105: 26 | BH105: (3→ 4) | BI105: =BI159 -> 1.156140758 | BK105: =BI127+BI134+BI98 -> 32.46026339 | BL105: =BI103+BI97 -> 146.6 | BM105: 29 | BO105: =BK120 -> 41.96553613 | BP105: =BL120 -> 123.6381722 | BQ105: شیفت14 | BS105: =BD102 -> 6.8172 | BT105: 146.5 | BU105: 25 | BV105: نقطه یقه | BW105: =BS104+SQRT(POWER(BS105-BS104,2)+POWER(BT105-BT104,2))*SIN(BT103-ATAN((BS104-BS105)/(BT105-BT104))) -> 6.8172 | BX105: =BT104+SQRT(POWER(BS105-BS104,2)+POWER(BT105-BT104,2))*COS(BT103-ATAN((BS104-BS105)/(BT105-BT104))) -> 146.5 | BY105: =BU105 -> 25 | CA105: =BK104 -> 26.8172 | CB105: =BL104 -> 146.6 | CC105: 23 | CD105: نقطه یقه | CE105: =CA104+SQRT(POWER(CA105-CA104,2)+POWER(CB105-CB104,2))*SIN(CB103-ATAN((CA104-CA105)/(CB105-CB104))) -> 26.8172 | CF105: =CB104+SQRT(POWER(CA105-CA104,2)+POWER(CB105-CB104,2))*COS(CB103-ATAN((CA104-CA105)/(CB105-CB104))) -> 146.6 | CG105: =CC105 -> 23 | CJ105: ='متغیرها '!C55 -> 0 | CK105: شیفت افقی تکه پهلو | CM105: =CI120+CJ105 -> 17.76876522 | CN105: =CJ120 -> 127.5032437 | CO105: شیفت 20f | CR105: ='متغیرها '!C56 -> 0 | CS105: شیفت افقی تکه پهلو | CU105: =CQ123+CR105 -> 38.12011745 | CV105: =CR123+CR106 -> 127.8096101 | CW105: شیفت 16f | CY105: =AZ180-CZ122 -> 12.51221716 | CZ105: =BA180 -> 86.09 | DA105: 47'' | DC105: =CY112-(CY106-CY109) -> 13.13625 | DD105: 75.19723234 | DE105: 50''s | DG105: 20.57 | DH105: 106.1813315 | DI105: 41شیفت | DK105: =BO126 -> 30.7 | DL105: =BP126 -> 127.8476283 | DM105: شیفت40 | DO105: =DK109+DH109 -> 49.3173929 | DP105: =DL109 -> 85.20614076 | DQ105: شیفت42m | DT105: =BW136 -> 16.50103137 | DU105: =BX136 -> 137.7490578 | DV105: b12 | DW105: نقطه حلقه آستین | DX105: =CE119 -> 38.09277685 | DY105: =CF119 -> 137.5727212 | DZ105: b12 | EA105: نقطه حلقه آستین | ED105: =BW132+BT130 -> 23.38139636 | EE105: =BX132 -> 126.1761812 | EF105: شیفتb4 | EL105: =AZ172 -> 22.55 | EM105: =BA172 -> 85.18133154 | EN105: شیفت 45 | EP105: 13.13625 | EQ105: 75.19723234 | ER105: 50''s | ET105: =AZ179 -> 11.42721716 | EU105: =BA179 -> 104 | EV105: شیفت 40 | EX105: 20.0388571 | EY105: 75.14066577 | EZ105: =DI124 -> 49'شیفتm | FF105: =IF('متغیرها '!C119=1,DX121,CE119)+CB112 -> 38.09277685 | FG105: =IF('متغیرها '!C119=1,DY121,CF119)+CB113 -> 137.5727212 | FH105: شیفت b12 یا b'12p | FN105: =DO102 -> 45.5823174 | FO105: =DP102 -> 123.8676722 | FP105: =DQ102 -> شیفت8m | FR105: =DO102 -> 45.5823174 | FS105: =DP102 -> 123.8676722 | FT105: =DQ102 -> شیفت8m | FX105: =-CM104-GK101 -> -16.59108511 | FY105: 132.3111244 | FZ105: شیفت 16f | GB105: =-CM114-GK101 -> -12.35322805 | GC105: =CN114 -> 144.7389618 | GD105: شیفت وسط 22f | GF105: =-EX104-GK101 -> -20.0388571 | GG105: =EY104 -> 85.18133154 | GH105: شیفت 45m | GR105: =-EP105-GK101 -> -13.13625 | GS105: 75.19723234 | GT105: 50''s | GV105: =-CR155-GK101 -> -9.25721716 | GW105: =CS155 -> 104 | GX105: 39 یا d5 | GZ105: =-DY258-GK101 -> 1.503 | HA105: =DZ258 -> 74.575 | HB105: 1' | HH105: =-CP241-GK101 -> -16.00516857 | HI105: =CQ241 -> 87.83367047 | HJ105: m6 | HL105: =-DN241-GK101 -> -21.99414572 | HM105: =DO241 -> 74.7148 | HN105: p7
E106: فاصله نوار کمر تا زمین، از قسمت پشت | F106: g | H106: ='متغیرها '!U58+'متغیرها '!C63*'متغیرها '!U58 -> 106.1 | I106: ='متغیرها '!U58 -> 106.1 | K106: 2 | L106: 2 | M106: e10 | N106: نقطه دوم خط تقارن | Q106: =L115-L136 -> 20.456 | R106: =L127+L137 -> 22.673363 | S106: 20 | AF106: انحنا ساسون کمر | AJ106: =AR152 -> 14.0962035 | AK106: 38.82042752 | AL106: 36 | AW106: (4 → 5) | AX106: =U142 -> 10.34221716 | AZ106: =AX99 -> 0 | BA106: =0+AX98 -> 74.575 | BB106: 1 | BG106: =BG108+0.5*(AV100-AV104+BG99-BG108) -> 23.91371225 | BH106: (1 → 5) | BI106: =BI108+0.5*(AX100-AX104+BI99-BI108) -> 23.99256935 | BK106: =BI127+BI134+BI98 -> 32.46026339 | BL106: =BI103-BI135+BI97 -> 145.2198922 | BM106: 30 | BO106: =BK114 -> 44.6011745 | BP106: =BL114 -> 122.7201722 | BQ106: شیفت9 | BS106: 5.45376 | BT106: 142.3029694 | BU106: 30 | BV106: نقطه یقه | BW106: =BS104+SQRT(POWER(BS106-BS104,2)+POWER(BT106-BT104,2))*SIN(BT103-ATAN((BS104-BS106)/(BT106-BT104))) -> 5.45376 | BX106: =BT104+SQRT(POWER(BS106-BS104,2)+POWER(BT106-BT104,2))*COS(BT103-ATAN((BS104-BS106)/(BT106-BT104))) -> 142.3029694 | BY106: 30 | CA106: =BK135 -> 25.1129 | CB106: =BL135 -> 145.3938304 | CC106: 28 | CD106: نقطه یقه | CE106: =CA104+SQRT(POWER(CA106-CA104,2)+POWER(CB106-CB104,2))*SIN(CB103-ATAN((CA104-CA106)/(CB106-CB104))) -> 25.1129 | CF106: =CB104+SQRT(POWER(CA106-CA104,2)+POWER(CB106-CB104,2))*COS(CB103-ATAN((CA104-CA106)/(CB106-CB104))) -> 145.3938304 | CG106: 28 | CI106: نقاط ورودی | CM106: =CI121+CJ105 -> 20.51668546 | CN106: =CJ121 -> 124.1377272 | CO106: شیفت 18f | CR106: ='متغیرها '!C57 -> 0 | CS106: شیفت عمودی تکه پهلو | CU106: =CQ124+CR105 -> 40.64052852 | CV106: =CR124+CR106 -> 124.5523699 | CW106: شیفت 14f | CY106: =AZ181-CZ122 -> 12.51221716 | CZ106: =BA181 -> 74.575 | DA106: 53 | DC106: =CY113-(CY106-CY109) -> 15.955 | DD106: 75.59319838 | DE106: 50'''s | DG106: 22.55 | DH106: 85.18133154 | DI106: 45شیفت | DK106: =BK122 -> 43.0711745 | DL106: =BL122 -> 122.7201722 | DM106: شیفت8 | DO106: =DK110+DH109 -> 49.3173929 | DP106: =DL110-0.5*(CZ114-CZ106) -> 75.16547499 | DQ106: شیفت43''m | DT106: =BW135 -> 16.59108511 | DU106: =BX135 -> 132.3111244 | DV106: b6 | DW106: نقطه حلقه آستین | DX106: =CE118 -> 37.54256347 | DY106: =CF118 -> 131.9008799 | DZ106: b6 | EA106: نقطه حلقه آستین | ED106: =BW133+BT130 -> 20.66194548 | EE106: =BX133 -> 126.6528171 | EF106: شیفتb8 | EH106: =BW114 -> 5.720046094 | EI106: =BX114 -> 141.8977855 | EJ106: e5 | EP106: 15.955 | EQ106: 75.59319838 | ER106: 50'''s | ET106: =BD178 -> 20.57 | EU106: =BE178 -> 106.1813315 | EV106: شیفت 41 | FB106: =DP167 -> 21.12119275 | FC106: =DQ167 -> 117.3152035 | FD106: a2 | FF106: =DY152+CB112 -> 39.6355435 | FG106: =DZ152+CB113 -> 142.7119379 | FH106: شیفت 18b | FL106: پهلو ترک | FX106: =-CM105-GK101 -> -17.76876522 | FY106: 127.5032437 | FZ106: شیفت 20f | GF106: =-EX105-GK101 -> -20.0388571 | GG106: =EY105 -> 75.14066577 | GH106: شیفت 49'm | GJ106: =-ED104-GK101 -> -24.86187387 | GK106: =EE104 -> 126.5622982 | GL106: شیفتb14 | GN106: =-EL104-GK101 -> -20.57 | GO106: =EM104 -> 106.1813315 | GP106: شیفت 41 | GR106: =-EP106-GK101 -> -15.955 | GS106: 75.59319838 | GT106: 50'''s | GV106: =-CR158-GK101 -> -8.747854792 | GW106: =CS158 -> 95.592 | GX106: d5 | GZ106: =-DY259-GK101 -> -8.17221716 | HA106: =DZ259 -> 74.575 | HB106: 52 | HD106: =-U388-GK101 -> -70.00347515 | HE106: =V388 -> 115.6798237 | HF106: k4 | HH106: =-CP242-GK101 -> -22.07102857 | HI106: =CQ242 -> 88.08 | HJ106: m4
E107: فاصله نوار زانو تا زمین | F107: h | H107: ='متغیرها '!U59+'متغیرها '!C63*'متغیرها '!U59 -> 46 | I107: ='متغیرها '!U59 -> 46 | K107: 1 | L107: 2 | M107: e3 | N107: نقطه قرینه خواسته | Q107: =L115-L134 -> 22.01 | R107: =L127+L135 -> 21.143363 | S107: 18 | U107: =L143 -> 6.8172 | V107: =L114 -> 42.5 | W107: 25 | AF107: =AR130 -> 22.92819185 | AG107: =AS130 -> 12.64244517 | AH107: 16 | AJ107: 13.26520768 | AK107: 36.4962438 | AL107: 36- | AW107: (1 → 6) | AX107: =AX110+(AX111-AX108)*TAN(AX101) -> 25.62576862 | AZ107: =AX107+AX99 -> 25.62576862 | BA107: =0+AX98 -> 74.575 | BB107: 6 | BD107: =J248 -> -1.503 | BE107: =K248 -> 116.75 | BF107: e1 | BH107: (5 → 6) | BI107: =H108-H114+Y128+0.5*(H106-H104) -> 10.68114076 | BS107: 2.72688 | BT107: 138.9453449 | BU107: 28 | BV107: نقطه یقه | BW107: =BS104+SQRT(POWER(BS107-BS104,2)+POWER(BT107-BT104,2))*SIN(BT103-ATAN((BS104-BS107)/(BT107-BT104))) -> 2.72688 | BX107: =BT104+SQRT(POWER(BS107-BS104,2)+POWER(BT107-BT104,2))*COS(BT103-ATAN((BS104-BS107)/(BT107-BT104))) -> 138.9453449 | BY107: 28 | CA107: =BK132 -> 22.72688 | CB107: =BL132 -> 144.7907457 | CC107: 26 | CD107: نقطه یقه | CE107: =CA104+SQRT(POWER(CA107-CA104,2)+POWER(CB107-CB104,2))*SIN(CB103-ATAN((CA104-CA107)/(CB107-CB104))) -> 22.72688 | CF107: =CB104+SQRT(POWER(CA107-CA104,2)+POWER(CB107-CB104,2))*COS(CB103-ATAN((CA104-CA107)/(CB107-CB104))) -> 144.7907457 | CG107: 26 | CI107: مولفه افقی | CJ107: مولفه عمودی | CK107: اسم نقطه | CM107: =CI110+CJ105 -> 24.4422858 | CN107: =CJ110 -> 122.695363 | CO107: شیفت 12 | CR107: ='متغیرها '!C71 -> 0 | CS107: x6 | CU107: =CQ113+CR105 -> 44.6011745 | CV107: =CR113+CR106 -> 122.7201722 | CW107: شیفت 9 | CY107: =AZ166 -> 9.25721716 | CZ107: =BA166 -> 104 | DA107: 39 | DC107: =CY114-(CY106-CY109) -> 18.21 | DD107: 75.70633154 | DE107: 49's | DG107: 22.55 | DH107: 75.70633154 | DI107: 49'شیفت | DK107: =BO170 -> 43.0711745 | DL107: =BP170 -> 118.7421722 | DM107: شیفت10 | DO107: =DK106 -> 43.0711745 | DP107: =DL106+0.5*(DP102-DL106) -> 123.2939222 | DQ107: شیفت8'm | DT107: =BW134 -> 18.72138136 | DU107: =BX134 -> 128.1231807 | DV107: b10 | DW107: نقطه حلقه آستین | DX107: =CE117 -> 39.20159069 | DY107: =CF117 -> 126.3930515 | DZ107: b10 | EA107: نقطه حلقه آستین | ED107: =IF('متغیرها '!C119=1,DT123,BW134)+BT130 -> 18.72138136 | EE107: =IF('متغیرها '!C119=1,DU123,BX134) -> 128.1231807 | EF107: شیفت b10 یا b'10g | EH107: =BW117 -> -0.5195870278 | EI107: =BX117 -> 139.5837457 | EJ107: e9 | EL107: =AZ172 -> 22.55 | EM107: =BA172 -> 85.18133154 | EN107: شیفت 45 | EP107: 18.21 | EQ107: 75.70633154 | ER107: 49's | EV107: باسن | EX107: =DG124 -> 20.0388571 | EY107: =DH124 -> 75.14066577 | EZ107: =DI124 -> 49'شیفتm | FB107: =DP171 -> 12.15155619 | FC107: =DQ171 -> 113.0411831 | FD107: a6 | FJ107: =BO170 -> 43.0711745 | FK107: =BP170 -> 118.7421722 | FL107: شیفت 10 | FN107: =DO102 -> 45.5823174 | FO107: 123.8676722 | FP107: =DQ102 -> شیفت8m | FR107: =DO102 -> 45.5823174 | FS107: 123.8676722 | FT107: شیفت8m | FX107: =-CM106-GK101 -> -20.51668546 | FY107: 124.1377272 | FZ107: شیفت 18f | GB107: =-CM116-GK101 -> -12.35322805 | GC107: =CN116 -> 144.7389618 | GD107: شیفت وسط 22f | GJ107: =-ED105-GK101 -> -23.38139636 | GK107: 126.1761812 | GL107: شیفتb4 | GN107: =-EL107-GK101 -> -22.55 | GO107: =EM107 -> 85.18133154 | GP107: شیفت 45 | GR107: =-EP107-GK101 -> -18.21 | GS107: 75.70633154 | GT107: 49's | HD107: =-U389-GK101 -> -61.28256458 | HE107: =V389 -> 99.03091979 | HF107: k5 | HL107: =-DN243-GK101 -> -21.99414572 | HM107: =DO243 -> 74.7148 | HN107: p7
E108: فاصله نوار باسن تا زمین | F108: j | H108: ='متغیرها '!U60+'متغیرها '!C63*'متغیرها '!U60 -> 84.1 | I108: ='متغیرها '!U60 -> 84.1 | K108: =K107+2*(SIN(ATAN((K106-K105)/(L106-L105)))*(L107-L105)+COS(ATAN((K106-K105)/(L106-L105)))*(K105-K107))*COS(ATAN((K106-K105)/(L106-L105))) -> 2 | L108: =L107-2*(SIN(ATAN((K106-K105)/(L106-L105)))*(L107-L105)+COS(ATAN((K106-K105)/(L106-L105)))*(K105-K107))*SIN(ATAN((K106-K105)/(L106-L105))) -> 1 | M108: e11 | N108: نقطه قرینه شده نسبت به خط تقارن | Q108: =L115 -> 24.6 | R108: =L127 -> 20.225363 | S108: 12 | U108: =L143+L150 -> 12.49374069 | V108: =L114-L151 -> 41.26478836 | W108: 32 | AF108: =AR126+0.5*(AR130-AR126) -> 22.16409593 | AG108: =IF(G151>0,AS126+0.65*(AS130-AS126),AS126) -> 8.217589362 | AJ108: 12.64196082 | AK108: 34.50408633 | AL108: 36-- | AW108: (6 → 7) | AX108: =AX166 -> 1.131331536 | AZ108: =AX107+AX99 -> 25.62576862 | BA108: =AX108+AX98 -> 75.70633154 | BB108: 7 | BD108: =J244 -> 6.13548 | BE108: =K244 -> 143.9817816 | BF108: e7 | BG108: =0.5*'متغیرها '!U73+AE127 -> 23.0711745 | BH108: (1 → 7) | BI108: =0.5*H121+'متغیرها '!C61*H120+AD127 -> 23.0711745 | BO108: =BK150 -> 20 | BP108: =BL150 -> 120.3 | BQ108: سینه | BS108: =BD105 -> 0 | BT108: =BE105 -> 138.1059388 | BU108: 26 | BV108: نقطه یقه | BW108: =BS104+SQRT(POWER(BS108-BS104,2)+POWER(BT108-BT104,2))*SIN(BT103-ATAN((BS104-BS108)/(BT108-BT104))) -> 0 | BX108: =BT104+SQRT(POWER(BS108-BS104,2)+POWER(BT108-BT104,2))*COS(BT103-ATAN((BS104-BS108)/(BT108-BT104))) -> 138.1059388 | BY108: 26 | CA108: =BK138 -> 20 | CB108: =BL138 -> 144.5897174 | CC108: 24 | CD108: نقطه یقه | CE108: =CA104+SQRT(POWER(CA108-CA104,2)+POWER(CB108-CB104,2))*SIN(CB103-ATAN((CA104-CA108)/(CB108-CB104))) -> 20 | CF108: =CB104+SQRT(POWER(CA108-CA104,2)+POWER(CB108-CB104,2))*COS(CB103-ATAN((CA104-CA108)/(CB108-CB104))) -> 144.5897174 | CG108: 24 | CI108: =BW163 -> 16.59108511 | CJ108: =BX163 -> 132.3111244 | CK108: b6 | CL108: با چرخش کامل | CM108: =CI111+CJ105 -> 25.9722858 | CN108: =CJ111 -> 122.695363 | CO108: شیفت 13 | CR108: ='متغیرها '!C76 -> 0 | CS108: x8 | CY108: =AZ176 -> 8.17221716 | CZ108: =BA176 -> 86.09 | DA108: 47' | DC108: =CY115-(CY106-CY109) -> 18.21 | DD108: 85.18133154 | DE108: 45s | DG108: =AZ181 -> 12.51221716 | DH108: =BA181 -> 74.575 | DI108: 53شیفت | DK108: =BK162 -> 42.5375 | DL108: =BL162 -> 106.2061408 | DM108: شیفت36 | DO108: =DK103+0.35*(DK104-DK103) -> 38.12344279 | DP108: =DL104+0.45*(DL103-DL104) -> 128.8707722 | DQ108: شیفت12m | DT108: =BW133 -> 20.66194548 | DU108: =BX133 -> 126.6528171 | DV108: b8 | DW108: نقطه حلقه آستین | DX108: =CE116 -> 41.96597144 | DY108: =CF116 -> 123.6393374 | DZ108: b8 | EA108: نقطه حلقه آستین | ED108: =IF('متغیرها '!C119=1,DT122,BW135)+BT130 -> 16.59108511 | EE108: =IF('متغیرها '!C119=1,DU122,BX135) -> 132.3111244 | EF108: شیفت b6 یا b'6g | EL108: =BD180 -> 22.55 | EM108: =BE180 -> 75.70633154 | EN108: شیفت49' … | ET108: =ET102 -> 0 | EU108: =EU102-(H104-H108) -> 84.1 | EV108: g46 | EX108: =EX110+0.8*(EX107-EX110) -> 18.53352911 | EY108: =EY110+0.8*(EY107-EY110) -> 75.02753261 | FB108: =DP172 -> 7.538600243 | FC108: =DQ172 -> 100.2191221 | FD108: a7 | FF108: =CE122+CB112 -> 44.60170474 | FG108: =CF122+CB113 -> 122.72161 | FH108: شیفت b14 | FJ108: =BK162 -> 42.5375 | FK108: =BL162 -> 106.2061408 | FL108: شیفت 36 | FN108: 45.5823174 | FO108: 118.7421722 | FP108: =DQ103 -> شیفت10m | FR108: 45.5823174 | FS108: 118.7421722 | FT108: شیفت10m | FX108: =-CM107-GK101 -> -24.4422858 | FY108: 122.695363 | FZ108: شیفت 12 | GB108: =-CM117-GK101 -> -10.34221716 | GC108: =CN117 -> 120.3 | GD108: شیفت5 پیراهن | GF108: =-EX107-GK101 -> -20.0388571 | GG108: =EY107 -> 75.14066577 | GH108: شیفت 49'm | GJ108: =-ED106-GK101 -> -20.66194548 | GK108: 126.6528171 | GL108: شیفتb8 | GV108: =-CR158-GK101 -> -8.747854792 | GW108: =CS158 -> 95.592 | GX108: d5 | GZ108: =-DY261-GK101 -> 0 | HA108: =DZ261 -> 127.6885633 | HB108: p26 | HH108: =-CP244-GK101 -> 0 | HI108: =CQ244 -> 75.76352346 | HJ108: m1 | HL108: =-DN244-GK101 -> -21.99414572 | HM108: =DO244 -> 74.575 | HN108: p8
E109: دور زانو | F109: L | H109: ='متغیرها '!U61 -> 39.8 | I109: ='متغیرها '!U61 -> 39.8 | AF109: =AR126+0.15*(AR130-AR126) -> 21.62922878 | AG109: =IF(G151>0,AS126+0.3*(AS130-AS126),AS126) -> 3.792733552 | AJ109: =AR156 -> 12.01871396 | AK109: =AS156 -> 32.17990261 | AL109: 38 | AW109: (3 → 7) | AX109: هلال وصل | BH109: (4 → 7) | BI109: هلال وصل | BK109: =BI108-BI114+BI122+BI98+'متغیرها '!C56 -> 38.09378265 | BL109: =BI110+BI115+BI97+'متغیرها '!C57 -> 131.9001722 | BM109: شیفت19 | BO109: =BK151 -> 25.35 | BP109: =BL151 -> 120.3 | BS109: =AZ138 -> 12.44673904 | BT109: =BA138 -> 145.0657224 | BU109: 32 | BV109: نقطه ساسون سرشانه | BW109: =BS104+SQRT(POWER(BS109-BS104,2)+POWER(BT109-BT104,2))*SIN(BT103-ATAN((BS104-BS109)/(BT109-BT104))) -> 12.44673904 | BX109: =BT104+SQRT(POWER(BS109-BS104,2)+POWER(BT109-BT104,2))*COS(BT103-ATAN((BS104-BS109)/(BT109-BT104))) -> 145.0657224 | BY109: 32 | CA109: =BK106 -> 32.46026339 | CB109: =BL106 -> 145.2198922 | CC109: 30 | CD109: نقطه ساسون سرشانه | CE109: =CA104+SQRT(POWER(CA109-CA104,2)+POWER(CB109-CB104,2))*SIN(CB103-ATAN((CA104-CA109)/(CB109-CB104))) -> 32.46026339 | CF109: =CB104+SQRT(POWER(CA109-CA104,2)+POWER(CB109-CB104,2))*COS(CB103-ATAN((CA104-CA109)/(CB109-CB104))) -> 145.2198922 | CG109: 30 | CI109: =BW105 -> 6.8172 | CJ109: =BX105 -> 146.5 | CK109: 25 | CL109: نقطه اتصال سرشانه به گردن | CR109: ='متغیرها '!C78 -> 0 | CS109: x10 | CU109: =CQ113+CR105 -> 44.6011745 | CV109: =CR113+CR106 -> 122.7201722 | CW109: شیفت 9 | CY109: =AZ177 -> 8.17221716 | CZ109: =BA177 -> 74.575 | DA109: 52 | DC109: =CY118+CZ122 -> 20.66194548 | DD109: =CZ118 -> 126.6528171 | DE109: b8s | DH109: =AX119 -> 2.5111429 | DI109: (12 →17) | DK109: =BK165 -> 46.80625 | DL109: =BL165 -> 85.20614076 | DM109: شیفت42 | DO109: =DK104+0.4*(DO107-DK104) -> 40.74933392 | DP109: =DP107+0.35*(DL104-DP107) -> 124.3783097 | DQ109: شیفت8''m | DU109: ='متغیرها '!C120*F137 -> 0.145 | DV109: g0 | ED109: =IF('متغیرها '!C119=1,DT121,BW136)+BT130 -> 16.50103137 | EE109: =IF('متغیرها '!C119=1,DU121,BX136) -> 137.7490578 | EF109: شیفت b12 یا b'12g | EH109: =BW117 -> -0.5195870278 | EI109: =BX117 -> 139.5837457 | EJ109: e9 | EN109: چیب | EP109: =DC107 -> 18.21 | EQ109: =DD107 -> 75.70633154 | ER109: 49's | ET109: =AZ176 -> 8.17221716 | EU109: =EU108 -> 84.1 | EV109: g47' | EX109: =EX110+0.5*(EX107-EX110) -> 16.27553713 | EY109: =EY110+0.2*(EY107-EY110) -> 74.68813315 | FB109: =DP170 -> 8.307426234 | FC109: =DQ170 -> 74.575 | FD109: a5 | FF109: =CE123+CB112 -> 43.07211618 | FG109: =CF123+CB113 -> 118.7434518 | FH109: شیفت b2 | FN109: 45.0486429 | FO109: 106.2061408 | FP109: =DQ104 -> شیفت36m | FR109: =DO105 -> 49.3173929 | FS109: 85.20614076 | FT109: شیفت42m | FX109: =-CM108-GK101 -> -25.9722858 | FY109: 122.695363 | FZ109: شیفت 13 | GF109: =-EX108-GK101 -> -18.53352911 | GG109: =EY108 -> 75.02753261 | GJ109: =-ED107-GK101 -> -18.72138136 | GK109: 128.1231807 | GL109: شیفت b10 یا b'10g | GN109: =-EL107-GK101 -> -22.55 | GO109: =EM107 -> 85.18133154 | GP109: شیفت 45 | GR109: =-EP109-GK101 -> -18.21 | GS109: =EQ109 -> 75.70633154 | GT109: 49's | GV109: =-CR161-GK101 -> -5.255 | GW109: =CS161 -> 98.745 | GX109: _u5 | GZ109: =-DY262-GK101 -> 0 | HA109: =DZ262 -> 74.575 | HB109: 1 | HD109: =-U391-GK101 -> -61.28256458 | HE109: =V391 -> 99.03091979 | HF109: k5 | HH109: =-CP245-GK101 -> -4.74 | HI109: =CQ245 -> 75.76352346 | HJ109: m2
E110: بلندی فاق | F110: m | H110: =1.06*'متغیرها '!U62+0.03*'متغیرها '!U56*'متغیرها '!U66*IF('متغیرها '!U66=1,0.2,0.6)+'متغیرها '!C63*'متغیرها '!U62 -> 28.726 | I110: =1.06*'متغیرها '!U62+0.03*'متغیرها '!U56*'متغیرها '!U66*IF('متغیرها '!U66=1,0.2,0.6) -> 28.726 | U110: =L115-L132+L138-L153 -> 18.6301483 | V110: =L127+L133+L139+L154 -> 39.74394805 | W110: 34 | AF110: =AR126 -> 21.4 | AG110: =AS126 -> 0 | AH110: 12 | AJ110: =AR150 -> 12.28364362 | AK110: =AS150 -> 35.64989741 | AL110: 34-- | AV110: =AV104+0.5*(AV100-AV104+BG99-BG108) -> 25.44253775 | AW110: (1 → 8) | AX110: =AX104+0.5*(AX100-AX104+BI99-BI108) -> 25.36368065 | AZ110: =0+AX99 -> 0 | BA110: =H104-H114+AX98 -> 104 | BB110: کمر | BD110: =AZ131 -> 20.17334287 | BE110: =BA131 -> 94.6 | BF110: 35شیفت | BG110: ='متغیرها '!U58-'متغیرها '!U59+H153*(I127-I126)+Y128 -> 78.25017223 | BH110: (7→ 8) | BI110: =H106-H114+G153*(H127-H126)-AX118*'متغیرها '!C77/(1+'متغیرها '!C77)+Y128 -> 48.14517223 | BK110: =BI108-BI114+BI122+BI98+'متغیرها '!C56 -> 38.09378265 | BL110: =BI110+BI115+BI123+BI97+'متغیرها '!C57 -> 137.5719565 | BM110: شیفت20 | BO110: انحنای حلقه یقه پشت | BS110: =BD98 -> -1.503 | BT110: =BE98 -> 138.1059388 | BU110: 26' | BV110: نقطه جادکمه | BW110: =BS104+SQRT(POWER(BS110-BS104,2)+POWER(BT110-BT104,2))*SIN(BT103-ATAN((BS104-BS110)/(BT110-BT104))) -> -1.503 | BX110: =BT104+SQRT(POWER(BS110-BS104,2)+POWER(BT110-BT104,2))*COS(BT103-ATAN((BS104-BS110)/(BT110-BT104))) -> 138.1059388 | BY110: 26' | CA110: =BK153 -> 20 | CB110: =BL153 -> 127.8476283 | CC110: 39 | CD110: امتداد نقطه مرکزی چرخش | CE110: =CA104+SQRT(POWER(CA110-CA104,2)+POWER(CB110-CB104,2))*SIN(CB103-ATAN((CA104-CA110)/(CB110-CB104+0.001))) -> 20.00000005 | CF110: =CB104+SQRT(POWER(CA110-CA104,2)+POWER(CB110-CB104,2))*COS(CB103-ATAN((CA104-CA110)/(CB110-CB104+0.001))) -> 127.8486283 | CG110: 39 | CI110: =AZ113 -> 24.4422858 | CJ110: =BA113 -> 122.695363 | CK110: 12 | CM110: =CM108 -> 25.9722858 | CN110: =CN108 -> 122.695363 | CO110: شیفت13 | CQ110: =BK103 -> 20 | CR110: =BL103 -> 146.6 | CS110: 2 | CU110: =CQ115 -> 43.0711745 | CV110: =CR115 -> 118.7421722 | CW110: شیفت 10 | CY110: =BD186-CZ122 -> 11.275 | CZ110: =BE186 -> 74.575 | DA110: 50 | DC110: =CY119+CZ122 -> 23.38139636 | DD110: =CZ119 -> 126.1761812 | DE110: b4s | DH110: =AX120 -> 1.1475 | DI110: (17 →18) | DK110: =BK172 -> 46.80625 | DL110: =BL172 -> 75.73114076 | DM110: شیفت43'' | DO110: =CE108 -> 20 | DP110: =CF108 -> 144.5897174 | DQ110: 24m | DU110: ='متغیرها '!C121 -> 2 | DV110: g1 | ED110: =DT151+BT130 -> 18.20483682 | EE110: =DU151 -> 144.2264259 | EF110: شیفت22b | EH110: =BW127 -> -4.708499181 | EI110: =BX127 -> 139.5583118 | EJ110: e10 | EL110: =EP178 -> 17.55586271 | EM110: =EQ178 -> 101.7914676 | EN110: 37شیفت | EP110: =IF(DD108>DD120,DC120,DC108) -> 19.208517 | EQ110: =IF(DD108>DD120,DD120,DD108) -> 74.59259515 | ER110: 45s یا s2 | EX110: =DG108 -> 12.51221716 | EY110: =DH108 -> 74.575 | EZ110: =DI108 -> 53شیفت | FJ110: =BK162 -> 42.5375 | FK110: =BL162 -> 106.2061408 | FL110: شیفت 36 | FN110: 49.3173929 | FO110: 85.20614076 | FP110: =DQ105 -> شیفت42m | FR110: 49.3173929 | FS110: 75.16547499 | FT110: شیفت43''m | GB110: =-CM119-GK101 -> -10.34221716 | GC110: =CN119 -> 120.3 | GD110: شیفت 5 پیراهن | GF110: =-EX109-GK101 -> -16.27553713 | GG110: =EY109 -> 74.68813315 | GJ110: =-ED108-GK101 -> -16.59108511 | GK110: 132.3111244 | GL110: شیفت b6 یا b'6g | GN110: =-EL108-GK101 -> -22.55 | GO110: =EM108 -> 75.70633154 | GP110: شیفت49' … | GR110: =-EP110-GK101 -> -19.208517 | GS110: =EQ110 -> 74.59259515 | GT110: 45s یا s2 | HD110: =-U392-GK101 -> -26.92153065 | HE110: =V392 -> 116.5726624 | HF110: k6 | HL110: =-DN246-GK101 -> -21.99414572 | HM110: =DO246 -> 74.575 | HN110: p8
E111: آنفورشور | F111: q | H111: =1*'متغیرها '!U63+0.6*'متغیرها '!C63*'متغیرها '!U63+0.3*'متغیرها '!C60*'متغیرها '!U63 -> 71.1 | I111: =1*'متغیرها '!U63 -> 71.1 | J111: s3 | K111: =((I124-I123-I127+I126)-0.5*(1-H154)*('متغیرها '!U70-'متغیرها '!U71)*TAN(0.5*IF(L121=0,0,H162))+(0.5-G148)*'متغیرها '!U71*TAN(0.5*H157)) -> 1.843838745 | L111: =(I124-I123-I127+I126-0.5*(1-H154)*('متغیرها '!U70-'متغیرها '!U71)*TAN(0.5*IF(L121=0,0,H162))+(0.5-G148)*'متغیرها '!U71*TAN(0.5*H157)) -> 1.843838745 | U111: =L115-L132+L138 -> 23.704 | V111: =L127+L133+L139 -> 36.91465646 | W111: 22 | AJ111: =AR149 -> 12.37195351 | AK111: =AS149 -> 37.03789533 | AL111: 34- | AO111: شیفت عمودی جلو بالاتنه به سانتیمتر | AP111: =0 -> 0 | AS111: شیفت عمودی پشت بالاتنه به سانتیمتر | AT111: =0 -> 0 | AW111: (8 → 9) | AX111: =H108-H114+L125-0.5*(H106-H104) -> 10.65633154 | BD111: =AZ155 -> 17.55586271 | BE111: =BA155 -> 101.7914676 | BF111: 37شیفت | BH111: (8 →9) | BI111: =AA131 -> 1.53 | BO111: =BK104 -> 26.8172 | BP111: =BL104 -> 146.6 | BQ111: 23 | BS111: =AZ103 -> 0 | BT111: =BT104 -> 120.3 | BU111: 4 | BV111: امتداد نقطه مرکزی چرخش | BW111: =BS104+SQRT(POWER(BS111-BS104,2)+POWER(BT111-BT104,2))*SIN(BT103-ATAN((BS104-BS111)/(BT111-BT104+0.001))) -> 4.834553202e-08 | BX111: =BT104+SQRT(POWER(BS111-BS104,2)+POWER(BT111-BT104,2))*COS(BT103-ATAN((BS104-BS111)/(BT111-BT104+0.001))) -> 120.301 | BY111: 4 | CA111: انتقال قسمتی از ساسون سرشانه به ساسون زیر بغل به روش چرخش | CI111: =BD156-CJ105 -> 25.9722858 | CJ111: =BE156 -> 122.695363 | CK111: 13 | CL111: نقطه انتهایی زیر حلقه | CM111: =CI112 -> 24.4422858 | CN111: =CJ112 -> 118.717363 | CO111: شیفت14 | CQ111: کارور پشت | CR111: =H129 -> 34.8 | CS111: v3 | CY111: =BD185-CZ122 -> 14.6575 | CZ111: =BE185 -> 74.80126631 | DA111: 50' | DC111: =CY120+CZ122 -> 24.86187387 | DD111: =CZ120 -> 126.5622982 | DE111: b14s | DG111: =O168 -> 0 | DH111: =P168 -> 0 | DI111: 25 | DK111: =BK177 -> 29.5625 | DL111: =BL177 -> 74.575 | DM111: شیفت50 | DO111: =CE105 -> 26.8172 | DP111: =CF105 -> 146.6 | DQ111: 23m | DT111: =BS135 -> 19.42 | DU111: =BT135 -> 130.345363 | DV111: 16 | DW111: نقطه حلقه آستین بدون چرخش | DX111: =CA118 -> 37.54298265 | DY111: =CB118 -> 131.9001722 | DZ111: 12 | EA111: نقطه حلقه آستین بدون چرخش | EL111: =EP179 -> 22.79082303 | EM111: =EQ179 -> 87.40853237 | EN111: شیفت37' | ET111: =AZ180 -> 12.51221716 | EU111: =EU109 -> 84.1 | EV111: g47'' | EZ111: کمر | FB111: =DC126-DT171 -> 20.87025346 | FC111: =DD126 -> 126.6163072 | FD111: بدون شیفتb'8s | FF111: =CE123+CB112 -> 43.07211618 | FG111: =CF123+CB113 -> 118.7434518 | FH111: شیفت b2 | FJ111: =BK165 -> 46.80625 | FK111: =BL165 -> 85.20614076 | FL111: شیفت 42 | FN111: 49.3173929 | FO111: 75.16547499 | FP111: =DQ106 -> شیفت43''m | FX111: =-CM110-GK101 -> -25.9722858 | FY111: =CN110 -> 122.695363 | FZ111: شیفت13 | GB111: =-CM120-GK101 -> -10.34221716 | GC111: =CN120 -> 120.3 | GD111: شیفت 5 بالاتنه | GF111: =-EX110-GK101 -> -12.51221716 | GG111: =EY110 -> 74.575 | GH111: شیفت 53 | GJ111: =-ED109-GK101 -> -16.50103137 | GK111: 137.7490578 | GL111: شیفت b12 یا b'12g | GP111: چیب | GV111: =-CR161-GK101 -> -5.255 | GW111: =CS161 -> 98.745 | GX111: _u5 | HB111: 49' | HD111: =-U393-GK101 -> -20.57 | HE111: =V393 -> 106.1813315 | HF111: 41 | HH111: =-CP247-GK101 -> -4.74 | HI111: =CQ247 -> 75.76352346 | HJ111: m2 | HL111: =-DN247-GK101 -> -0.04293424259 | HM111: =DO247 -> 74.575 | HN111: p6
E112: دور مچ پا | F112: r | H112: ='متغیرها '!U64 -> 24.5 | I112: =0.8*'متغیرها '!U61 -> 31.84 | J112: فاصله لبه دامن یا پیراهن تا زمین (به سانتیمتر) k | K112: =IF('متغیرها '!C67<1,'متغیرها '!C67*'متغیرها '!U59,IF('متغیرها '!C67<2,'متغیرها '!U59+('متغیرها '!C67-1)*('متغیرها '!U60-'متغیرها '!U59),IF('متغیرها '!C67<3,'متغیرها '!U60+('متغیرها '!C67-2)*(I105-'متغیرها '!U60),I105+('متغیرها '!C67-3)*(H127-H126)))) -> 74.575 | AJ112: =AR148 -> 12.46026339 | AK112: =AS148 -> 39.11989221 | AL112: 34 | AW112: (1 → 10) | AX112: =AX104-0.85*AX117 -> 20.17334287 | AZ112: =AX104+AX99 -> 24.4422858 | BA112: =0+AX98 -> 74.575 | BB112: 3 | BH112: (8 → 10) | BI112: =AA132 -> 3.978 | BK112: =BI108-BI114+BI98+'متغیرها '!C56 -> 37.54298265 | BL112: =BI110+BI115+BI97+'متغیرها '!C57 -> 131.9001722 | BM112: شیفت12 | BO112: =BK135 -> 25.1129 | BP112: =BL135 -> 145.3938304 | BQ112: 28 | BS112: =BD98 -> -1.503 | BT112: =BT104 -> 120.3 | BU112: 4' | BW112: =BS104+SQRT(POWER(BS112-BS104,2)+POWER(BT112-BT104,2))*SIN(BT103-ATAN((BS104-BS112)/(BT112-BT104+0.001))) -> -1.502999958 | BX112: =BT104+SQRT(POWER(BS112-BS104,2)+POWER(BT112-BT104,2))*COS(BT103-ATAN((BS104-BS112)/(BT112-BT104+0.001))) -> 120.301 | BY112: 4' | CB112: ='متغیرها '!C56 -> 0 | CC112: شیفت افقی | CI112: =BD155 -> 24.4422858 | CJ112: =BE155 -> 118.717363 | CK112: شیفت14 | CO112: سرشانه بدون ساسون | CQ112: =BK104 -> 26.8172 | CR112: =BL104 -> 146.6 | CS112: 23 | CT112: نقطه اتصال سرشانه به گردن | CU112: =CU102 -> 37.8892561 | CV112: =CV102 -> 143.0779237 | CW112: شیفت 18f | CY112: =BD184-CZ122 -> 17.47625 | CZ112: =BE184 -> 75.19723234 | DA112: 50'' | DC112: =CY121+CZ122 -> 24.38530055 | DD112: =CZ121 -> 122.3269397 | DE112: b2s | DG112: =BW144 -> 18.06911245 | DH112: =BX144 -> 143.6194423 | DI112: b16 | DK112: =BK161 -> 32.21875 | DL112: =BL161 -> 106.1 | DM112: شیفت35 | DO112: =CE107 -> 22.72688 | DP112: =CF107 -> 144.7907457 | DQ112: 26m | DT112: =BS134 -> 20.42445716 | DU112: =BT134 -> 125.755363 | DV112: 20 | DW112: نقطه حلقه آستین بدون چرخش | DX112: =CA117 -> 39.2014402 | DY112: =CB117 -> 126.3921722 | DZ112: 16 | EA112: نقطه حلقه آستین بدون چرخش | EF112: سرشانه با ساسون متغیر | EH112: =BW118 -> 10.65515157 | EI112: =BX118 -> 152.6900097 | EJ112: a2 | EP112: =EP110 -> 19.208517 | EQ112: =EQ110 -> 74.59259515 | ER112: =ER110 -> 45s یا s2 | ET112: =AZ172 -> 22.55 | EU112: =BE178-(H105-H108) -> 85.18133154 | EV112: g45 | EX112: =DG122 -> 18.0588571 | EY112: =DH122 -> 106.1813315 | EZ112: =DI122 -> 41شیفتm | FB112: =DP173 -> 21.4788571 | FC112: =DQ173 -> 75.14066577 | FD112: a8 | FF112: =CE125+CB112 -> 31.93711745 | FG112: =CF125+CB113 -> 126.9371813 | FH112: شیفت b | FR112: =DO106 -> 49.3173929 | FS112: =DP106 -> 75.16547499 | FT112: =DQ106 -> شیفت43''m | FX112: =-CM111-GK101 -> -24.4422858 | FY112: =CN111 -> 118.717363 | FZ112: شیفت14 | GH112: کمر | GJ112: =-ED110-GK101 -> -18.20483682 | GK112: 144.2264259 | GL112: شیفت22b | GN112: =-EP178-GK101 -> -17.55586271 | GO112: =EQ178 -> 101.7914676 | GP112: 37شیفت | GR112: =-EP112-GK101 -> -19.208517 | GS112: =EQ112 -> 74.59259515 | GT112: =GT110 -> 45s یا s2 | GV112: =-CR164-GK101 -> 0 | GW112: =CS164 -> 98.745 | GX112: d4 | GZ112: =-DY265-GK101 -> 1.503 | HA112: =DZ265 -> 127.6885633 | HB112: p10 | HF112: رسم آستین کیمونو تا خط اوزمان | HH112: =-CP248-GK101 -> -4.74 | HI112: =CQ248 -> 73.76352346 | HJ112: m12
J113: متغیرهای خروجی جلو (رسم کاربر) | L113: شبیه ساز | Q113: =AN120 -> 10.34221716 | R113: =AO120 -> 16.3 | S113: 6 | Y113: شبیه ساز | Z113: متغیرهای خروجی پشت بالاتنه (رسم کاربر) | AF113: =AR121 -> 10.7 | AG113: =AS121 -> 24.16403147 | AH113: 7 | AN113: نقاط جلو بالاتنه | AR113: نقاط پشت بالاتنه | AV113: ='متغیرها '!U56-H114+H153*(I127-I126)+L125 -> 49.650363 | AW113: (3 → 12) | AX113: =H104-H114+G153*(H127-H126)-AX118*'متغیرها '!C77/(1+'متغیرها '!C77)+L125 -> 48.120363 | AZ113: =AX104+AX99 -> 24.4422858 | BA113: =AX113+AX98 -> 122.695363 | BB113: 12 | BD113: =AZ131 -> 20.17334287 | BE113: =BA131 -> 94.6 | BF113: 35شیفت | BH113: (9 → 10→ 6→ 4) | BI113: وصل | BK113: =BI108-BI114+BI98+'متغیرها '!C56 -> 37.54298265 | BL113: =BI110+BI97+'متغیرها '!C57 -> 122.7201722 | BM113: شیفت11 | BO113: =BK132 -> 22.72688 | BP113: =BL132 -> 144.7907457 | BQ113: 26 | BS113: =J244 -> 6.13548 | BT113: =K244 -> 143.9817816 | BU113: e7 | BW113: =BS104+SQRT(POWER(BS113-BS104,2)+POWER(BT113-BT104,2))*SIN(BT103-ATAN((BS104-BS113)/(BT113-BT104))) -> 6.13548 | BX113: =BT104+SQRT(POWER(BS113-BS104,2)+POWER(BT113-BT104,2))*COS(BT103-ATAN((BS104-BS113)/(BT113-BT104))) -> 143.9817816 | BY113: e7 | CB113: ='متغیرها '!C57 -> 0 | CC113: شیفت عمودی | CI113: α2 | CJ113: =0.5*(P139+0.3*(P140-P139)+AE139+0.3*(AE140-AE139)) -> 0.3079830154 | CK113: زاویه سرشانه با افق | CM113: =CM102 -> 17.8892561 | CN113: =CN102 -> 142.9779237 | CO113: شیفت22f | CQ113: =BK114-CR105 -> 44.6011745 | CR113: =BL114-CR106 -> 122.7201722 | CS113: 9 | CT113: نقطه انتهایی زیر حلقه | CU113: =CU119+CR105 -> 32.35322805 | CV113: =CV119+CR106 -> 144.8389618 | CW113: شیفت وسط 18f | CY113: =BD183-CZ122 -> 20.295 | CZ113: =BE183 -> 75.59319838 | DA113: 50''' | DC113: =CY103+CZ122 -> 10.34221716 | DD113: =CZ103 -> 117.04 | DE113: 43s | DG113: =DD572 -> 22.19192267 | DH113: 85.30039159 | DI113: 10r | DJ113: شلوار | DK113: =BO191 -> 29.5625 | DL113: =BP191 -> 86.3 | DM113: شیفت38'' | DO113: =CE106 -> 25.1129 | DP113: =CF106 -> 145.3938304 | DQ113: 28m | DV113: محاسبات | DZ113: محاسبات | ED113: =DT150+BT130 -> 12.5077006 | EE113: =DU150 -> 145.3628681 | EF113: شیفت 34b | EH113: =BW119 -> 8.352380629 | EI113: =BX119 -> 149.5950048 | EJ113: a13 | EN113: ترک وسط با ساسون | EP113: =DC120 -> 19.208517 | EQ113: =DD120 -> 74.59259515 | ER113: s2 | EV113: زانو | EX113: =AZ167+BT130 -> 11.42721716 | EY113: =BA167 -> 104 | EZ113: شیفت 40 | FJ113: =BK165 -> 46.80625 | FK113: =BL165 -> 85.20614076 | FL113: شیفت 42 | FN113: =DO106 -> 49.3173929 | FO113: =DP106 -> 75.16547499 | FP113: =DQ106 -> شیفت43''m | FR113: =FR115+0.6*(FR112-FR115) -> 41.41543574 | FS113: =FS115+0.8*(FS112-FS115) -> 75.04737999 | GB113: =-CM122-GK101 -> -10.34221716 | GC113: =CN122 -> 120.3 | GD113: شیفت 5 بالاتنه | GF113: =-EX112-GK101 -> -18.0588571 | GG113: =EY112 -> 106.1813315 | GH113: شیفت 41m | GN113: =-EP179-GK101 -> -22.79082303 | GO113: =EQ179 -> 87.40853237 | GP113: شیفت37' | GR113: =-EP113-GK101 -> -19.208517 | GS113: =EQ113 -> 74.59259515 | GT113: s2 | GZ113: =-DY266-GK101 -> 1.503 | HA113: =DZ266 -> 98.745 | HB113: 26'' | HD113: =-U395-GK101 -> -61.28256458 | HE113: =V395 -> 99.03091979 | HF113: k5 | HL113: =-DN249-GK101 -> -0.04293424259 | HM113: =DO249 -> 74.575 | HN113: p6
E114: شلوار زنانه و بچگانه = 0 مردانه=1 بچه با پوشک=2 | H114: =K112 -> 74.575 | I114: K | J114: (1 → 2) | K114: =H124-('متغیرها '!C71)*0.5*G167*SIN(O139) -> 42.5 | L114: =I124 -> 42.5 | Q114: =AN121 -> 10.34221716 | R114: =AO121 -> 13.04 | S114: 7 | U114: انحنای حلقه آستین جلو | Y114: =I127 -> 40.5 | Z114: (1 → 2) | AA114: =H127-('متغیرها '!C71)*0.5*G167*SIN(AD139) -> 40.5 | AF114: =AR122 -> 10.7 | AG114: =AS122 -> 21.74762832 | AH114: 8 | AN114: مولفه افقی | AO114: مولفه عمودی | AP114: اسم نقطه | AR114: مولفه افقی | AS114: مولفه عمودی | AT114: اسم نقطه | AW114: (12 → 13) | AX114: =K128 -> 1.53 | AZ114: =AX104-AX117+AX99 -> 19.42 | BA114: =AX113+AX98 -> 122.695363 | BB114: 15 | BD114: =AX112+AX144+AX99+'متغیرها '!C55 -> 22.79082303 | BE114: =AX143-AX145+AX98 -> 87.40853237 | BF114: شیفت 37' | BG114: =Y135 -> 5.671174499 | BH114: (8 → 11) | BI114: =AA135 -> 5.528191854 | BK114: =BI108+BI111+BI98+'متغیرها '!C56 -> 44.6011745 | BL114: =BI110+BI97+'متغیرها '!C57 -> 122.7201722 | BM114: شیفت9 | BO114: =BK138 -> 20 | BP114: =BL138 -> 144.5897174 | BQ114: 24 | BS114: =J245 -> 5.720046094 | BT114: =K245 -> 141.8977855 | BU114: e5 | BW114: =BS104+SQRT(POWER(BS114-BS104,2)+POWER(BT114-BT104,2))*SIN(BT103-ATAN((BS104-BS114)/(BT114-BT104))) -> 5.720046094 | BX114: =BT104+SQRT(POWER(BS114-BS104,2)+POWER(BT114-BT104,2))*COS(BT103-ATAN((BS104-BS114)/(BT114-BT104))) -> 141.8977855 | BY114: e5 | CB114: =(CC126-CC125) -> 0.0001034262956 | CC114: زاویه چرخش به ساسون زیر بغل | CI114: =H167 -> 11.61875414 | CJ114: =G167 -> 11.61875414 | CK114: W | CM114: =CM132+CJ105 -> 12.35322805 | CN114: =CN132 -> 144.7389618 | CO114: شیفت وسط 22f | CQ114: =BK122-CR105 -> 43.0711745 | CR114: =BL122-CR106 -> 122.7201722 | CS114: 8 | CY114: =BD180-CZ122 -> 22.55 | CZ114: =BE180 -> 75.70633154 | DA114: 49' | DC114: =CY117+CZ122 -> 24.4422858 | DD114: =CZ117 -> 118.717363 | DE114: 14s | DG114: 18.41614994 | DH114: 46 | DI114: 7r | DK114: =BO114 -> 20 | DL114: =BP114 -> 144.5897174 | DM114: 24 | DO114: =DX103 -> 39.6355435 | DP114: =DY103 -> 142.7119379 | DQ114: 18m | DT114: (b12→22g) | DU114: =SQRT(POWER(DT105-DT103,2)+POWER(DU105-DU103,2)) -> 6.697704858 | DX114: (b12→18p) | DY114: =SQRT(POWER(DX105-DX103,2)+POWER(DY105-DY103,2)) -> 5.365787677 | ED114: =DT151+BT130 -> 18.20483682 | EE114: =DU151 -> 144.2264259 | EF114: شیفت22b | EH114: =BW105 -> 6.8172 | EI114: =BX105 -> 146.5 | EJ114: چرخیده 25 | EL114: =AZ181 -> 12.51221716 | EM114: =BA181 -> 74.575 | EN114: شیفت 53 | ET114: =ET108 -> 0 | EU114: =BA165-(H104-H107) -> 46 | EV114: g1 | EZ114: چیب | FB114: =DP173 -> 21.4788571 | FC114: =DQ173 -> 75.14066577 | FD114: a8 | FF114: =CE125+CB112 -> 31.93711745 | FG114: =CF125+CB113 -> 126.9371813 | FH114: شیفت b | FJ114: =BK172 -> 46.80625 | FK114: =BL172 -> 75.73114076 | FL114: شیفت 43'' | FN114: =FN116+0.6*(FN113-FN116) -> 41.41543574 | FO114: =FO116+0.8*(FO113-FO116) -> 75.04737999 | FR114: =FR115+0.3*(FR112-FR115) -> 35.48896787 | FS114: =FS115+0.2*(FS112-FS115) -> 74.693095 | FZ114: 8' | GB114: =-CM123-GK101 -> -10.34221716 | GC114: =CN123 -> 117.04 | GD114: شیفت 43 | GF114: =-EX113-GK101 -> -11.42721716 | GG114: =EY113 -> 104 | GH114: شیفت 40 | GL114: 5' | GV114: =-CR166-GK101 -> -10.34221716 | GW114: =CS166 -> 117.04 | GX114: شیفت 43 | HD114: =-U396-GK101 -> -31.30103703 | HE114: =V396 -> 109.3489799 | HF114: k6 | HH114: =-CP250-GK101 -> -4.74 | HI114: =CQ250 -> 73.76352346 | HJ114: m12 | HL114: =-DN250-GK101 -> -0.04293424259 | HM114: =DO250 -> 74.7148 | HN114: p5
J115: (1 → 3) | K115: =0.5*(H120-H121)+'متغیرها '!C61*H120-'متغیرها '!C77*O128*H130*((L115-L120-L121-L124)/(L127-L125)) -> 24.4422858 | L115: =0.5*('متغیرها '!U72-'متغیرها '!U73) -> 24.6 | Q115: =AN119 -> 10.34221716 | R115: =AO119 -> 16.3 | S115: 5 | U115: =AN136 -> 23.704 | V115: =AO136 -> 36.91465646 | W115: 22 | Y115: =0.5*'متغیرها '!U73+AE127 -> 23.0711745 | Z115: (1 → 3) | AA115: =0.5*H121+'متغیرها '!C61*H120+AD127-'متغیرها '!C77*O128*H130*((Y115-Y121-Y123-Y124-Y127)/(Y130)) -> 22.92819185 | AF115: =AR120 -> 10.7 | AG115: =AS120 -> 14.2 | AH115: 6 | AJ115: =AR138 -> 19.236 | AK115: =AS138 -> 36.11278023 | AL115: 24 | AN115: 0 | AO115: =0+AP111 -> 0 | AP115: 1 | AR115: 0 | AS115: =AT111 -> 0 | AT115: 1 | AV115: =L129 -> 0 | AW115: (12 → 14) | AX115: =K129 -> 3.978 | AZ115: =AX104-AX117+AX99 -> 19.42 | BA115: =AX113+AX118+AX98 -> 130.345363 | BB115: 16 | BG115: 7.65 | BH115: (11 →12) | BI115: 9.18 | BS115: =J262 -> -4.504381459 | BT115: =K262 -> 138.1059388 | BU115: e3 | BW115: =BS104+SQRT(POWER(BS115-BS104,2)+POWER(BT115-BT104,2))*SIN(BT103-ATAN((BS104-BS115)/(BT115-BT104))) -> -4.504381459 | BX115: =BT104+SQRT(POWER(BS115-BS104,2)+POWER(BT115-BT104,2))*COS(BT103-ATAN((BS104-BS115)/(BT115-BT104))) -> 138.1059388 | BY115: e3 | CA115: =BK122-CB112 -> 43.0711745 | CB115: =BL122-CB113 -> 122.7201722 | CC115: 8 | CD115: نقطه حلقه آستین | CE115: =CA104+SQRT(POWER(CA115-CA104,2)+POWER(CB115-CB104,2))*SIN(IF(CB115=CB104,RADIANS(90)-CB114,ATAN((CA115-CA104)/ABS(CB115-CB104))+IF(CB115>CB104,-1,1)*CB114)) -> 43.07170475 | CF115: =CB104+IF(CB115<CB104,-1,1)*SQRT(POWER(CA115-CA104,2)+POWER(CB115-CB104,2))*COS(IF(CB115=CB104,RADIANS(90)-CB114,ATAN((CA115-CA104)/ABS(CB115-CB104))+IF(CB115>CB104,-1,1)*CB114)) -> 122.7214518 | CG115: b4 | CI115: نقاط حلقه آستین جلو بدون ساسون سرشانه | CQ115: =BO170 -> 43.0711745 | CR115: =BP170 -> 118.7421722 | CS115: شیفت10 | CU115: =CU113 -> 32.35322805 | CV115: =CV113 -> 144.8389618 | CW115: شیفت وسط 18f | CY115: =AZ172-CZ122 -> 22.55 | CZ115: =BA172 -> 85.18133154 | DA115: 45 | DC115: =DC113+CZ127*SIN(CZ123+CZ131) -> 14.68292548 | DD115: =DD113-CZ127*COS(CZ123+CZ131) -> 104.695889 | DE115: 40s | DG115: 16.17842267 | DH115: 4.6 | DI115: 5r | DK115: =BO113 -> 22.72688 | DL115: =BP113 -> 144.7907457 | DM115: 26 | DO115: =DX121 -> 38.44255258 | DP115: =DY121 -> 137.4804515 | DQ115: 20m | DT115: α22g1 | DU115: =ATAN((DU104-DU103)/(DT103-DT104)) -> 0.1970617337 | DX115: α18p1 | DY115: =ATAN((DY104-DY103)/(DX103-DX104)) -> 0.2945000308 | EL115: =AZ180 -> 12.51221716 | EM115: =BA180 -> 86.09 | EN115: شیفت 47'' | EP115: =DC120 -> 19.208517 | EQ115: =DD120 -> 74.59259515 | ER115: s2 | ET115: =ET109 -> 8.17221716 | EU115: =EU114 -> 46 | EV115: g52 | EX115: =EP178 -> 17.55586271 | EY115: =EQ178 -> 101.7914676 | EZ115: 37شیفت | FB115: =EX105-'متغیرها '!C55 -> 20.0388571 | FC115: =EY105 -> 75.14066577 | FD115: 49'm | FF115: =BO170 -> 43.0711745 | FG115: =BP170 -> 118.7421722 | FH115: شیفت 10 | FL115: پایین لباس پهلو | FN115: =FN116+0.3*(FN113-FN116) -> 35.48896787 | FO115: =FO116+0.2*(FO113-FO116) -> 74.693095 | FR115: =DK111 -> 29.5625 | FS115: =DL111 -> 74.575 | FT115: =DM111 -> شیفت50 | FX115: =-DD153-GK101 -> -18.20483682 | FY115: =DE153 -> 144.2264259 | FZ115: 39 | GH115: چیب | GJ115: =-ED113-GK101 -> -12.5077006 | GK115: =EE113 -> 145.3628681 | GL115: شیفت 34b | GP115: 17' | GR115: =-EP115-GK101 -> -19.208517 | GS115: =EQ115 -> 74.59259515 | GT115: s2 | GV115: =-CR167-GK101 -> -11.42721716 | GW115: =CS167 -> 104 | GX115: شیفت40 یا dd5 | GZ115: =-DY268-GK101 -> 1.503 | HA115: =DZ268 -> 98.745 | HB115: 26'' | HD115: =-U397-GK101 -> -22.55 | HE115: =V397 -> 85.18133154 | HF115: 45 | HH115: =-CP251-GK101 -> 0 | HI115: =CQ251 -> 73.76352346 | HJ115: m11
J116: (1→ 4) | K116: =H124-H123 -> 16.3 | L116: =I124-I123 -> 16.3 | Q116: =AN118 -> 0 | R116: =AO118 -> 16.3 | S116: 4 | U116: =AN138 -> 20.7052 | V116: =AO138 -> 31.63000973 | W116: 24 | Y116: =I127-I126 -> 14.2 | Z116: (1→ 4) | AA116: =H127-H126 -> 14.2 | AF116: =AR118 -> 0 | AG116: =AS118 -> 14.2 | AH116: 4 | AJ116: =AR140 -> 17.9508 | AK116: =AS140 -> 31.47222945 | AL116: 26 | AN116: 0 | AO116: =K114+AP111 -> 42.5 | AP116: 2 | AR116: 0 | AS116: =AA114+AT111 -> 40.5 | AT116: 2 | AW116: (13 → 14→ 9→ 7) | AX116: وصل | BD116: =BD155 -> 24.4422858 | BE116: =BE155 -> 118.717363 | BF116: 14شیفت | BG116: 1.1342349 | BH116: (8 → 13) | BI116: 1.105638371 | BK116: =BI108-BI118+BI98+'متغیرها '!C56 -> 39.2014402 | BL116: =BI110+BI97+'متغیرها '!C57 -> 122.7201722 | BM116: شیفت15 | BO116: =BK101 -> 32.01871396 | BP116: =BL101 -> 138.2799026 | BQ116: 22 | BS116: =J248 -> -1.503 | BT116: =K248 -> 116.75 | BU116: e1 | CA116: =BO105-CB112 -> 41.96553613 | CB116: =BP105-CB113 -> 123.6381722 | CC116: 14 | CD116: نقطه حلقه آستین | CE116: =CA104+SQRT(POWER(CA116-CA104,2)+POWER(CB116-CB104,2))*SIN(IF(CB116=CB104,RADIANS(90)-CB114,ATAN((CA116-CA104)/ABS(CB116-CB104))+IF(CB116>CB104,-1,1)*CB114)) -> 41.96597144 | CF116: =CB104+IF(CB116<CB104,-1,1)*SQRT(POWER(CA116-CA104,2)+POWER(CB116-CB104,2))*COS(IF(CB116=CB104,RADIANS(90)-CB114,ATAN((CA116-CA104)/ABS(CB116-CB104))+IF(CB116>CB104,-1,1)*CB114)) -> 123.6393374 | CG116: b8 | CI116: مولفه افقی | CJ116: مولفه عمودی | CK116: اسم نقطه | CM116: =CM114 -> 12.35322805 | CN116: =CN114 -> 144.7389618 | CO116: شیفت وسط 22f | CQ116: α4 | CR116: =0.5*(P139+0.3*(P140-P139)+AE139+0.3*(AE140-AE139)) -> 0.3079830154 | CS116: زاویه سرشانه با افق | CU116: =CQ104+CR105 -> 30.7 | CV116: =CR104+CR106 -> 127.8476283 | CW116: شیفت40 | CY116: =AZ168 -> 20.57 | CZ116: =BA168 -> 106.1813315 | DA116: 41 | DC116: =DC115+CZ128*SIN(CZ123-CZ132) -> 20.25264673 | DD116: =DD115-CZ128*COS(CZ123-CZ132) -> 87.63940841 | DE116: 47''s | DG116: 16.17842267 | DH116: 0 | DI116: 1r | DK116: =BO112 -> 25.1129 | DL116: =BP112 -> 145.3938304 | DM116: 28 | DO116: =DK122 -> 20 | DP116: =DL122+0.5*DL121 -> 139.056053 | DQ116: 21m | DT116: α22g2 | DU116: =ATAN((DU103-DU105)/(DT103-DT105)) -> 1.313583084 | DX116: α18p2 | DY116: =ATAN((DY103-DY105)/(DX103-DX105)) -> 1.279160735 | ED116: =DT150+BT130 -> 12.5077006 | EE116: =DU150 -> 145.3628681 | EF116: شیفت 34b | EH116: =BW118 -> 10.65515157 | EI116: =BX118 -> 152.6900097 | EJ116: a2 | EP116: =CY108 -> 8.17221716 | EQ116: =CZ108 -> 86.09 | ER116: 47' | EX116: =EP179 -> 22.79082303 | EY116: =EQ179 -> 87.40853237 | EZ116: شیفت37' | FJ116: =BK172 -> 46.80625 | FK116: 75.73114076 | FL116: شیفت43'' | FN116: =DK111 -> 29.5625 | FO116: =DL111 -> 74.575 | FP116: =DM111 -> شیفت50 | FX116: =-DD154-GK101 -> -16.50103137 | FY116: =DE154 -> 137.7490578 | FZ116: 37 | GB116: =-CM125-GK101 -> -10.34221716 | GC116: =CN125 -> 117.04 | GD116: 43 | GF116: =-EX115-GK101 -> -17.55586271 | GG116: =EY115 -> 101.7914676 | GH116: 37شیفت | GJ116: =-ED114-GK101 -> -18.20483682 | GK116: =EE114 -> 144.2264259 | GL116: شیفت22b | GN116: =-EL114-GK101 -> -12.51221716 | GO116: =EM114 -> 74.575 | GP116: شیفت 53 | GR116: =-EP116-GK101 -> -8.17221716 | GS116: =EQ116 -> 86.09 | GT116: 47' | GZ116: =-DY269-GK101 -> 0 | HA116: =DZ269 -> 98.745 | HB116: d4 | HF116: رسم آستین کیمونو تا پایین لباس | HL116: =-DN252-GK101 -> -0.04293424259 | HM116: =DO252 -> 74.7148 | HN116: p5
E117: اندازه ها در بالاتنه | H117: اندازه محاسبه | J117: (4 → 5) | K117: =0.5*G154*(H120-H121) -> 10.34221716 | L117: =0.5*H154*('متغیرها '!U72-'متغیرها '!U73) -> 10.37376 | Q117: =AN115 -> 0 | R117: =AO115 -> 0 | S117: 1 | U117: =AN130 -> 19.42 | V117: =AO130 -> 26.345363 | W117: 16 | Y117: =0.75*I127 -> 30.375 | Z117: (1 → 5) | AA117: ='متغیرها '!C83*H127 -> 30.375 | AF117: =AR115 -> 0 | AG117: =AS115 -> 0 | AH117: 1 | AJ117: =AR132 -> 17.4 | AK117: =AS132 -> 25.80044517 | AL117: 18 | AN117: =K115 -> 24.4422858 | AO117: =0+AP111 -> 0 | AP117: 3 | AR117: =AA115 -> 22.92819185 | AS117: =AT111 -> 0 | AT117: 3 | AV117: =L132 -> 5.18 | AW117: (12 → 15) | AX117: =K132 -> 5.022285799 | AZ117: =AX104-AX119+AX99 -> 21.9311429 | BA117: =AX113+AX98 -> 122.695363 | BB117: 17 | BD117: =BW148+'متغیرها '!C55 -> 11.75222402 | BE117: =BX148 -> 120.3222601 | BF117: شیفت b | BG117: 0.765 | BH117: (13 → 14) | BI117: 0.918 | BK117: =BI108-BI118+BI98+'متغیرها '!C56 -> 39.2014402 | BL117: =BI110+BI119+BI97+'متغیرها '!C57 -> 126.3921722 | BM117: شیفت16 | BO117: =BK154 -> 30.7 | BP117: =BL154 -> 127.8476283 | BQ117: 40 | BS117: =J246 -> -0.5195870278 | BT117: =K246 -> 139.5837457 | BU117: e9 | BW117: =BS104+SQRT(POWER(BS117-BS104,2)+POWER(BT117-BT104,2))*SIN(BT103-ATAN((BS104-BS117)/(BT117-BT104))) -> -0.5195870278 | BX117: =BT104+SQRT(POWER(BS117-BS104,2)+POWER(BT117-BT104,2))*COS(BT103-ATAN((BS104-BS117)/(BT117-BT104))) -> 139.5837457 | BY117: =BU117 -> e9 | CA117: =BO104-CB112 -> 39.2014402 | CB117: =BP104-CB113 -> 126.3921722 | CC117: 16 | CD117: نقطه حلقه آستین | CE117: =CA104+SQRT(POWER(CA117-CA104,2)+POWER(CB117-CB104,2))*SIN(IF(CB117=CB104,RADIANS(90)-CB114,ATAN((CA117-CA104)/ABS(CB117-CB104))+IF(CB117>CB104,-1,1)*CB114)) -> 39.20159069 | CF117: =CB104+IF(CB117<CB104,-1,1)*SQRT(POWER(CA117-CA104,2)+POWER(CB117-CB104,2))*COS(IF(CB117=CB104,RADIANS(90)-CB114,ATAN((CA117-CA104)/ABS(CB117-CB104))+IF(CB117>CB104,-1,1)*CB114)) -> 126.3930515 | CG117: b10 | CI117: =CI109+CJ114*(1-0.5*'متغیرها '!C76+0.5*'متغیرها '!C78-0.5*'متغیرها '!C71)*COS(CJ113) -> 17.8892561 | CJ117: =CJ109-CJ114*(1-0.5*'متغیرها '!C76+0.5*'متغیرها '!C78-0.5*'متغیرها '!C71)*SIN(CJ113) -> 142.9779237 | CK117: 22f | CM117: =CI104+CJ105 -> 10.34221716 | CN117: =CJ104 -> 120.3 | CO117: شیفت5 پیراهن | CR117: =G167 -> 11.61875414 | CS117: w | CY117: =BD177-CZ122 -> 24.4422858 | CZ117: =BE177 -> 118.717363 | DA117: 14 | DC117: =DC112+CZ129*SIN(CZ123-CZ134) -> 23.80199517 | DD117: =DD112-CZ129*COS(CZ123-CZ134) -> 109.2194442 | DE117: 41s | DG117: =DD569 -> 12.51221716 | DH117: =DE569 -> 0 | DI117: 53r | DK117: =BO111 -> 26.8172 | DL117: =BP111 -> 146.6 | DM117: 23 | DO117: =DO118-CZ146*COS(CZ140) -> 47.25754376 | DP117: =DP118+CZ146*SIN(CZ140) -> 83.45962076 | DQ117: s''2m | DR117: امتداد جیب | DT117: α22g | DU117: =DU115+DU116 -> 1.510644818 | DX117: α18p | DY117: =DY115+DY116 -> 1.573660766 | ED117: =BS128+BT130 -> 10.34221716 | EE117: =BT128 -> 120.3 | EF117: شیفت 5 پیراهن | EH117: =BW120 -> 5.747574177 | EI117: =BX120 -> 157.916028 | EJ117: a4 | EL117: =AZ180 -> 12.51221716 | EM117: =BA180 -> 86.09 | EN117: شیفت 47'' | ET117: =ET111 -> 12.51221716 | EU117: =EU114 -> 46 | EV117: g53 | FB117: =FB109 -> 8.307426234 | FC117: =FC109 -> 74.575 | FD117: a5 | FH117: سرشانه با ساسون | FJ117: 44.125625 | FK117: 75.61552668 | FL117: 41'''' | FX117: =-DD155-GK101 -> -16.59108511 | FY117: =DE155 -> 132.3111244 | FZ117: 35 | GB117: =-CM126-GK101 -> -10.34221716 | GC117: =CN126 -> 120.3 | GD117: 5 بالاتنه | GF117: =-EX116-GK101 -> -22.79082303 | GG117: =EY116 -> 87.40853237 | GH117: شیفت37' | GN117: =-EL115-GK101 -> -12.51221716 | GO117: =EM115 -> 86.09 | GP117: شیفت 47'' | GV117: =-CR167-GK101 -> -11.42721716 | GW117: =CS167 -> 104 | GX117: شیفت40 یا dd5 | HD117: =-U399-GK101 -> -61.28256458 | HE117: =V399 -> 99.03091979 | HF117: k5 | HH117: =-CP253-GK101 -> 0 | HI117: =CQ253 -> 73.76352346 | HJ117: m11 | HL117: =-DN253-GK101 -> -1.8 | HM117: =DO253 -> 74.374 | HN117: p4
E118: دور کمر | F118: a | H118: ='متغیرها '!U70+0.3*'متغیرها '!C60*('متغیرها '!U52+'متغیرها '!U54+'متغیرها '!U72) -> 72 | J118: (5 → 6) | K118: ='متغیرها '!C90*(H124-H123) -> 0 | L118: =0.2*(H124-H123) -> 3.26 | Q118: =AN122 -> 8.17221716 | R118: 0 | S118: 8 | U118: =AN134 -> 20.42445716 | V118: =AO134 -> 21.755363 | W118: 20 | Y118: =H148*'متغیرها '!U73 -> 10.7 | Z118: (4 → 6) | AA118: =G148*H121 -> 10.7 | AF118: =AR123 -> 1.9 | AG118: 0 | AH118: 9 | AJ118: =AR136 -> 19.05845756 | AK118: =AS136 -> 20.29244517 | AL118: 22 | AN118: 0 | AO118: =K116+AP111 -> 16.3 | AP118: 4 | AR118: 0 | AS118: =AA116+AT111 -> 14.2 | AT118: 4 | AV118: 6.12 | AW118: (15 → 16) | AX118: 7.65 | AZ118: =AX104-AX119+AX99 -> 21.9311429 | BA118: =AX113+AX120+AX98 -> 123.842863 | BB118: 18 | BF118: کش سویشرت | BG118: 3.96982215 | BH118: (8 → 15) | BI118: 3.869734298 | BS118: =J251 -> 10.65515157 | BT118: =K251 -> 152.6900097 | BU118: a2 | BW118: =BS104+SQRT(POWER(BS118-BS104,2)+POWER(BT118-BT104,2))*SIN(BT103-ATAN((BS104-BS118)/(BT118-BT104))) -> 10.65515157 | BX118: =BT104+SQRT(POWER(BS118-BS104,2)+POWER(BT118-BT104,2))*COS(BT103-ATAN((BS104-BS118)/(BT118-BT104))) -> 152.6900097 | BY118: a2 | CA118: =BO103-CB112 -> 37.54298265 | CB118: =BP103-CB113 -> 131.9001722 | CC118: 12 | CD118: نقطه حلقه آستین | CE118: =CA104+SQRT(POWER(CA118-CA104,2)+POWER(CB118-CB104,2))*SIN(ATAN((CA118-CA104)/(CB118-CB104))-CB114) -> 37.54256347 | CF118: =CB104+SQRT(POWER(CA118-CA104,2)+POWER(CB118-CB104,2))*COS(ATAN((CA118-CA104)/(CB118-CB104))-CB114) -> 131.9008799 | CG118: b6 | CI118: =CI119+IF(CI117>CI119,0.3,0.7)*(CI117-CI119) -> 16.98053641 | CJ118: =CJ119+0.5*(CJ117-CJ119) -> 137.644524 | CK118: 24f | CQ118: نقاط حلقه آستین پشت بدون ساسون سرشانه | CU118: =CQ104 -> 30.7 | CV118: =CR104 -> 127.8476283 | CW118: 40 | CY118: =BW133 -> 20.66194548 | CZ118: =BX133 -> 126.6528171 | DA118: b8 | DC118: =CY105+(CY115-CY105+3)*COS(CZ136-RADIANS('متغیرها '!C187)) -> 21.54073006 | DD118: =CZ105-(CY115-CY105+3)*SIN(CZ136-RADIANS('متغیرها '!C187)) -> 76.68416478 | DE118: s''2 | DH118: ='متغیرها '!C55 -> 0 | DI118: شیفت افقی | DK118: =BO101-DL120 -> 39.37898265 | DL118: =BP101 -> 142.2125073 | DM118: 18 | DO118: =DO104+CZ148*SIN(CZ143) -> 49.25039505 | DP118: =DP104-CZ148*COS(CZ143) -> 85.53573489 | DQ118: s'2m | DT118: αb12g | DU118: =DU110*DY118 -> 0.1348580463 | DX118: αb12p | DY118: =(RADIANS(180)-DU117-DY117+DU109)*(1/(1+DU110)) -> 0.06742902316 | EL118: =AZ167+BT130 -> 11.42721716 | EM118: =BA167 -> 104 | EN118: شیفت 40 | EP118: =DC112 -> 24.38530055 | EQ118: =DD112 -> 122.3269397 | ER118: b2s | ET118: =ET112 -> 22.55 | EU118: =BE178-(H105-H107) -> 47.08133154 | EV118: g49 | EZ118: پهلو جدا روی جیب با ساسون | FB118: =FB115 -> 20.0388571 | FC118: =FC115 -> 75.14066577 | FD118: 49'm | FF118: =CE105 -> 26.8172 | FG118: =CF105 -> 146.6 | FH118: 23 | FJ118: 40.77484375 | FK118: 75.21087742 | FL118: 41''' | FN118: =DK105 -> 30.7 | FO118: =DL105 -> 127.8476283 | FP118: =DM105 -> شیفت40 | FR118: =DK103 -> 37.54298265 | FS118: =DL103 -> 131.9001722 | FT118: =DM103 -> شیفت12p | GJ118: =-ED116-GK101 -> -12.5077006 | GK118: =EE116 -> 145.3628681 | GL118: شیفت 34b | GR118: =-EP118-GK101 -> -24.38530055 | GS118: =EQ118 -> 122.3269397 | GT118: b2s | GV118: =-CR170-GK101 -> -11.93657953 | GW118: =CS170 -> 95.592 | GX118: dd5 | GZ118: =-DY271-GK101 -> 0 | HA118: =DZ271 -> 127.6885633 | HB118: p26 | HD118: =-U400-GK101 -> -33.11809862 | HE118: =V400 -> 106.0218713 | HF118: k6 | HH118: =-CP254-GK101 -> 0 | HI118: =CQ254 -> 80.07429025 | HJ118: m9 | HL118: =-DN254-GK101 -> 0 | HM118: =DO254 -> 75.274 | HN118: p3
E119: نوار کمر از پشت بین دو خط پهلو | F119: b | H119: ='متغیرها '!U71+0.3*'متغیرها '!C60*('متغیرها '!U53+'متغیرها '!U55+'متغیرها '!U73) -> 35.2 | J119: (5 → 7) | K119: ='متغیرها '!C88*(H124-H123) -> 3.26 | L119: =0*(I124-I123) -> 0 | Q119: 12.51221716 | R119: 0 | S119: 9 | U119: =AN132 -> 21.9311429 | V119: =AO132 -> 19.842863 | W119: 18 | Y119: =(H153-1)*(I127-I126)+0.2*'متغیرها '!U82 -> 9.964031469 | Z119: (6 → 7) | AA119: =(G153-1)*(H127-H126)+0.2*H130 -> 9.964031469 | AF119: 9.75 | AG119: 0 | AH119: 10 | AJ119: =AR134 -> 21.82255348 | AK119: =AS134 -> 17.53844517 | AL119: 20 | AN119: =K117 -> 10.34221716 | AO119: =K116+AP111 -> 16.3 | AP119: 5 | AR119: 0 | AS119: =AA117+AT111 -> 30.375 | AT119: 5 | AV119: 2.59 | AW119: (12 → 17) | AX119: 2.5111429 | BD119: =AZ106 -> 0 | BE119: =BA151+'متغیرها '!C278*('متغیرها '!U60-'متغیرها '!U59) -> 73.80133154 | BG119: 3.06 | BH119: (15 →16) | BI119: 3.672 | BK119: =BI108-BI116+BI98+'متغیرها '!C56 -> 41.96553613 | BL119: =BI110+BI97+'متغیرها '!C57 -> 122.7201722 | BM119: شیفت13 | BO119: =BK155 -> 30.7 | BP119: =BL155 -> 86.3 | BQ119: 38 | BS119: =J257 -> 8.352380629 | BT119: =K257 -> 149.5950048 | BU119: a13 | BW119: =BS104+SQRT(POWER(BS119-BS104,2)+POWER(BT119-BT104,2))*SIN(BT103-ATAN((BS104-BS119)/(BT119-BT104))) -> 8.352380629 | BX119: =BT104+SQRT(POWER(BS119-BS104,2)+POWER(BT119-BT104,2))*COS(BT103-ATAN((BS104-BS119)/(BT119-BT104))) -> 149.5950048 | BY119: a13 | CA119: =BO102-CB112 -> 38.09378265 | CB119: =BP102-CB113 -> 137.5719565 | CC119: 20 | CD119: نقطه حلقه آستین | CE119: =CA104+SQRT(POWER(CA119-CA104,2)+POWER(CB119-CB104,2))*SIN(ATAN((CA119-CA104)/(CB119-CB104))-CB114) -> 38.09277685 | CF119: =CB104+SQRT(POWER(CA119-CA104,2)+POWER(CB119-CB104,2))*COS(ATAN((CA119-CA104)/(CB119-CB104))-CB114) -> 137.5727212 | CG119: b12 | CI119: =CI108 -> 16.59108511 | CJ119: =CJ108 -> 132.3111244 | CK119: 16f | CM119: =BS128+BT130 -> 10.34221716 | CN119: =BT128 -> 120.3 | CO119: شیفت 5 پیراهن | CQ119: مولفه افقی | CR119: مولفه عمودی | CS119: اسم نقطه | CU119: =CU122+0.5*(CQ120-CU122) -> 32.35322805 | CV119: =CR120+0.5*(CV122-CR120) -> 144.8389618 | CW119: وسط 18f | CY119: =BW132 -> 23.38139636 | CZ119: =BX132 -> 126.1761812 | DA119: b4 | DC119: =DD134 -> 23.548517 | DD119: =DE134 -> 74.59259515 | DE119: s'2 | DG119: نقاط خروجی | DK119: =BO102-DL120 -> 38.09378265 | DL119: =BP102 -> 137.5719565 | DM119: 20 | DO119: =CE109 -> 32.46026339 | DP119: =CF109 -> 145.2198922 | DQ119: 30m | DT119: نقاط خروجی | DX119: نقاط خروجی | ED119: =BS104+BT130 -> 10.34221716 | EE119: =BT104 -> 120.3 | EF119: شیفت 5 بالاتنه | EH119: =BW120 -> 5.747574177 | EI119: 157.916028 | EJ119: a4 | EP119: =DC117 -> 23.80199517 | EQ119: =DD117 -> 109.2194442 | ER119: 41s | EV119: سینه | EX119: =DC126 -> 20.87025346 | EY119: =DD126 -> 126.6163072 | EZ119: b'8s | FD119: انگلیسی | FF119: =DY150 -> 32.52475903 | FG119: =DZ150 -> 145.5171187 | FH119: 30b | FJ119: 37.4240625 | FK119: 74.80622815 | FL119: 41'' | FN119: =DK112 -> 32.21875 | FO119: 106.1 | FP119: شیفت35 | FR119: =EE337 -> 25.5625 | FS119: =EF337-0.3*DZ168 -> 63.85 | FT119: e215 | FX119: =-DD157-GK101 -> -16.59108511 | FY119: =DE157 -> 132.3111244 | FZ119: 35 | GB119: =-CM128-GK101 -> -10.34221716 | GC119: =CN128 -> 120.3 | GD119: 5 بالاتنه | GH119: 13' | GJ119: =-ED117-GK101 -> -10.34221716 | GK119: =EE117 -> 120.3 | GL119: شیفت 5 پیراهن | GN119: =-EL115-GK101 -> -12.51221716 | GO119: =EM115 -> 86.09 | GP119: شیفت 47'' | GR119: =-EP119-GK101 -> -23.80199517 | GS119: =EQ119 -> 109.2194442 | GT119: 41s | GZ119: =-DY272-GK101 -> 0 | HA119: =DZ272 -> 98.745 | HB119: d4 | HD119: =-U401-GK101 -> -22.55 | HE119: =V401 -> 75.70633154 | HF119: 49'
E120: دور سینه : از برجسته ترین قسمت سینه | F120: s1 | H120: ='متغیرها '!U72+0.3*'متغیرها '!C60*('متغیرها '!U52+'متغیرها '!U54+'متغیرها '!U72) -> 92 | J120: (1 → 8) | K120: =0.5*G154*(H120-H121)-IF(G152>0,G152,0) -> 8.17221716 | L120: =0.5*H154*('متغیرها '!U72-'متغیرها '!U73)-IF(H152>0,H152,0) -> 8.20376 | Q120: 22.74 | R120: 0 | S120: 10 | U120: =AN126 -> 24.4422858 | V120: =AO126 -> 18.695363 | W120: 12 | Y120: =(H153*(I127-I126)+0.2*'متغیرها '!U82)*0.9-(I127-I126) -> 7.547628322 | Z120: (6 → 8) | AA120: =(G153*(H127-H126)+0.2*H130)*'متغیرها '!C85-(H127-H126) -> 7.547628322 | AF120: 11.65 | AG120: 0 | AH120: 11 | AJ120: =AR129 -> 24.45819185 | AK120: =AS129 -> 16.62044517 | AL120: 15 | AN120: =K117 -> 10.34221716 | AO120: =K116+K118+AP111 -> 16.3 | AP120: 6 | AR120: =AA118 -> 10.7 | AS120: =AA116+AT111 -> 14.2 | AT120: 6 | AV120: 0.918 | AW120: (17 → 18) | AX120: 1.1475 | AZ120: =AX104-AX121+AX99 -> 20.42445716 | BA120: =AX113+AX98 -> 122.695363 | BB120: 19 | BD120: =BD154 -> 25.36368065 | BE120: =BE119 -> 73.80133154 | BG120: 1.836 | BH120: (12 → 17) | BI120: 1.836 | BK120: =BI108-BI116+BI98+'متغیرها '!C56 -> 41.96553613 | BL120: =BI110+BI117+BI97+'متغیرها '!C57 -> 123.6381722 | BM120: شیفت14 | BO120: =BO119 -> 30.7 | BP120: =BL168 -> 74.575 | BQ120: 38''' | BS120: =J252 -> 5.747574177 | BT120: =K252 -> 157.916028 | BU120: a4 | BW120: =BS104+SQRT(POWER(BS120-BS104,2)+POWER(BT120-BT104,2))*SIN(BT103-ATAN((BS104-BS120)/(BT120-BT104))) -> 5.747574177 | BX120: =BT104+SQRT(POWER(BS120-BS104,2)+POWER(BT120-BT104,2))*COS(BT103-ATAN((BS104-BS120)/(BT120-BT104))) -> 157.916028 | BY120: a4 | CA120: =BO101-CB112 -> 39.37898265 | CB120: =BP101-CB113 -> 142.2125073 | CC120: 18 | CD120: نقطه حلقه آستین | CE120: =CA104+SQRT(POWER(CA120-CA104,2)+POWER(CB120-CB104,2))*SIN(ATAN((CA120-CA104)/(CB120-CB104))-CB114) -> 39.37749689 | CF120: =CB104+SQRT(POWER(CA120-CA104,2)+POWER(CB120-CB104,2))*COS(ATAN((CA120-CA104)/(CB120-CB104))-CB114) -> 142.2134048 | CG120: b16 | CI120: =CI110-0.85*(CI110-CI119)+CJ114*0.07*'متغیرها '!C76 -> 17.76876522 | CJ120: =CJ110+0.5*(CJ119-CJ110) -> 127.5032437 | CK120: 20f | CM120: =BS104+BT130 -> 10.34221716 | CN120: =BT104 -> 120.3 | CO120: شیفت 5 بالاتنه | CQ120: =CQ112+CR117*(1-0.5*CR108+0.5*CR109-0.5*CR107)*COS(CR116) -> 37.8892561 | CR120: =CR112-CR117*(1-0.5*CR108+0.5*CR109-0.5*CR107)*SIN(CR116) -> 143.0779237 | CS120: 18f | CY120: =BW139 -> 24.86187387 | CZ120: =BX139 -> 126.5622982 | DA120: b14 | DC120: =DC119-CY106+CY109 -> 19.208517 | DD120: =DD119 -> 74.59259515 | DE120: s2 | DG120: مولفه افقی | DH120: مولفه عمودی | DI120: اسم نقطه | DL120: ='متغیرها '!C56 -> 0 | DM120: شیفت افقی | DO120: =CE121 -> 34.23742037 | DP120: =CF121 -> 144.9205205 | DQ120: 32m | DT120: مولفه افقی | DU120: مولفه عمودی | DV120: اسم نقطه | DX120: مولفه افقی | DY120: مولفه عمودی | DZ120: اسم نقطه | ED120: =BS128+BT130 -> 10.34221716 | EE120: =BT128 -> 120.3 | EF120: شیفت 5 پیراهن | EH120: 1.863951486 | EI120: 153.572415 | EJ120: a6 | EL120: =AZ167+BT130 -> 11.42721716 | EM120: =BA167 -> 104 | EN120: شیفت 40 | ET120: =ET108 -> 0 | EU120: =BA165+(H124-H123) -> 120.3 | EV120: g4 | EX120: =DC124 -> 21.37213204 | EY120: =DD124 -> 108.0140998 | EZ120: 41m | FB120: =DU176 -> -1.503 | FC120: 108.545 | FD120: e''1 | FJ120: 33.403125 | FK120: 74.575 | FL120: شیفت41' | FN120: 29.5625 | FO120: 86.3 | FP120: شیفت38'' | FX120: =-DD158-GK101 -> -13.77909453 | FY120: =DE158 -> 128.4933433 | FZ120: 33 | GB120: =-CM129-GK101 -> -10.34221716 | GC120: =CN129 -> 120.3 | GD120: 5 پیراهن | GF120: =-EX119-GK101 -> -20.87025346 | GG120: =EY119 -> 126.6163072 | GH120: b'8s | GN120: =-EL118-GK101 -> -11.42721716 | GO120: =EM118 -> 104 | GP120: شیفت 40 | GV120: =-CR170-GK101 -> -11.93657953 | GW120: =CS170 -> 95.592 | GX120: dd5 | HF120: رسم آستین سرخود | HH120: =-CP256-GK101 -> 0 | HI120: =CQ256 -> 73.76352346 | HJ120: m11 | HL120: =-DN256-GK101 -> 0 | HM120: =DO256 -> 75.274 | HN120: p3
E121: پشت نوار سینه، بین دو خط پهلو | F121: s2 | H121: ='متغیرها '!U73+0.3*'متغیرها '!C60*('متغیرها '!U53+'متغیرها '!U55+'متغیرها '!U73) -> 42.8 | J121: (8 → 9) | K121: =IF(G152>0,2*G152,0) -> 4.34 | L121: =2*IF(H152>0,H152,0) -> 4.34 | Q121: 22.74 | R121: 2.265717992 | S121: 11 | U121: =AN127 -> 25.9722858 | V121: =AO127 -> 18.695363 | W121: 13 | Y121: =H147 -> 1.9 | Z121: (1→ 9) | AA121: =G147 -> 1.9 | AF121: 21.4 | AG121: 0 | AH121: 12 | AN121: =K117 -> 10.34221716 | AO121: =K116-K119+AP111 -> 13.04 | AP121: 7 | AR121: =AA118 -> 10.7 | AS121: =AA116+AA119+AT111 -> 24.16403147 | AT121: 7 | AV121: 4.144 | AW121: (12 → 19) | AX121: 4.017828639 | AZ121: =AX104-AX121+AX99 -> 20.42445716 | BA121: =AX113+AX122+AX98 -> 125.755363 | BB121: 20 | BG121: 10.31233505 | BH121: (17 → 18) | BI121: 10.31233505 | BS121: =J253 -> 1.863951486 | BT121: =K253 -> 153.572415 | BU121: a6 | BW121: =BS104+SQRT(POWER(BS121-BS104,2)+POWER(BT121-BT104,2))*SIN(BT103-ATAN((BS104-BS121)/(BT121-BT104))) -> 1.863951486 | BX121: =BT104+SQRT(POWER(BS121-BS104,2)+POWER(BT121-BT104,2))*COS(BT103-ATAN((BS104-BS121)/(BT121-BT104))) -> 153.572415 | BY121: a6 | CA121: =BK146-CB112 -> 34.23918614 | CB121: =BL146-CB113 -> 144.9201546 | CC121: 32 | CD121: نقطه ساسون سرشانه | CE121: =CA104+SQRT(POWER(CA121-CA104,2)+POWER(CB121-CB104,2))*SIN(ATAN((CA121-CA104)/(CB121-CB104))-CB114) -> 34.23742037 | CF121: =CB104+SQRT(POWER(CA121-CA104,2)+POWER(CB121-CB104,2))*COS(ATAN((CA121-CA104)/(CB121-CB104))-CB114) -> 144.9205205 | CG121: 32 | CI121: =CI110-0.5*(CI110-CI119)+CJ114*0.07*'متغیرها '!C76 -> 20.51668546 | CJ121: =CJ110+0.15*(CJ119-CJ110) -> 124.1377272 | CK121: 18f | CQ121: =CQ122+0.2*(CQ120-CQ122)-CR117*0.05*CR108 -> 37.49785122 | CR121: =CR122+0.4*(CR120-CR122) -> 136.3598657 | CS121: 20f | CU121: =CU119 -> 32.35322805 | CV121: =CV119 -> 144.8389618 | CW121: وسط 18f | CY121: =BW140 -> 24.38530055 | CZ121: =BX140 -> 122.3269397 | DA121: b2 | DC121: =DC117+CZ130*SIN(CZ123+CZ133) -> 31.01755229 | DD121: =DD117-CZ130*COS(CZ123+CZ133) -> 89.39884543 | DE121: 45ss | DG121: =DG104-DH109 -> 21.9311429 | DH121: =DH104 -> 118.717363 | DI121: 14شیفتm | DL121: =H170 -> 1.552300704 | DM121: m' | DO121: =DX122 -> 37.96229434 | DP121: =DY122 -> 131.9008799 | DQ121: =DZ122 -> b'6p | DR121: چرخیده | DT121: =DT103-DU114*COS(DU116+DU118) -> 17.38738106 | DU121: =DU103-DU114*SIN(DU116+DU118) -> 137.5787935 | DV121: b'12g | DX121: =DX103-DY114*COS(DY116+DY118) -> 38.44255258 | DY121: =DY103-DY114*SIN(DY116+DY118) -> 137.4804515 | DZ121: b'12p | EH121: -2.593881575 | EI121: 145.8391769 | EJ121: a8 | EL121: =AZ161+BT130 -> 10.34221716 | EM121: =BA161 -> 117.04 | EN121: شیفت 43 | EP121: =DC117 -> 23.80199517 | EQ121: =DD117 -> 109.2194442 | ER121: 41s | ET121: =AZ104 -> 10.34221716 | EU121: =EU120 -> 120.3 | EV121: g5 | FB121: -1.903 | FC121: 116.75 | FD121: e'1 | FF121: =DY150 -> 32.52475903 | FG121: =DZ150 -> 145.5171187 | FH121: 30b | FJ121: 29.5625 | FK121: 74.575 | FL121: شیفت50 | FN121: =DK111 -> 29.5625 | FO121: =DL111 -> 74.575 | FP121: =DM111 -> شیفت50 | FR121: =EE337 -> 25.5625 | FS121: =EF337-0.3*DZ168 -> 63.85 | FT121: e215 | FX121: =-DD159-GK101 -> -11.40452471 | FY121: =DE159 -> 123.1484497 | FZ121: 23 | GF121: =-EX120-GK101 -> -21.37213204 | GG121: =EY120 -> 108.0140998 | GH121: 41m | GJ121: =-ED119-GK101 -> -10.34221716 | GK121: =EE119 -> 120.3 | GL121: شیفت 5 بالاتنه | GR121: =-EP121-GK101 -> -23.80199517 | GS121: =EQ121 -> 109.2194442 | GT121: 41s | GV121: =-CR173-GK101 -> -20.96637714 | GW121: =CS173 -> 101.9773315 | GX121: d3 | HB121: 52' | HD121: =-U403-GK101 -> -6.8172 | HE121: =V403 -> 146.5 | HF121: 25 | HH121: =-CP257-GK101 -> 1.503 | HI121: =CQ257 -> 73.76352346 | HJ121: m'11 | HL121: =-DN257-GK101 -> 1.503 | HM121: =DO257 -> 75.274 | HN121: p'3
E122: فاصله عمودی از خط سینه جلو تا خط سینه پشت که از کنار حلقه آستین بگذرد | F122: t1 | H122: =('متغیرها '!U74-'متغیرها '!U77)-0.5*'متغیرها '!C60*('متغیرها '!U74-'متغیرها '!U77)+'متغیرها '!C63*('متغیرها '!U75-'متغیرها '!U78) -> 21.9 | I122: =('متغیرها '!U74-'متغیرها '!U77) -> 21.9 | J122: (7 → 8) | K122: وصل | Q122: =AN124 -> 22.74 | R122: =AO124 -> 0 | S122: 10 | Z122: (9 →5) | AA122: وصل | AF122: 21.4 | AG122: 0.1064137038 | AH122: 13 | AN122: =K120 -> 8.17221716 | AO122: =0+AP111 -> 0 | AP122: 8 | AR122: =AA118 -> 10.7 | AS122: =AA116+AA120+AT111 -> 21.74762832 | AT122: 8 | AV122: 2.448 | AW122: (19 → 20) | AX122: 3.06 | BD122: =AZ162 -> 10.34221716 | BE122: =BE119 -> 73.80133154 | BG122: 0.5508 | BH122: (12 → 19) | BI122: 0.5508 | BK122: =BI108+BI98+'متغیرها '!C56 -> 43.0711745 | BL122: =BI110+BI97+'متغیرها '!C57 -> 122.7201722 | BM122: شیفت8 | BO122: =BO153 -> 43.0711745 | BP122: =BP153 -> 118.7421722 | BQ122: 10 شیفت | BS122: =J261 -> -2.593881575 | BT122: =K261 -> 145.8391769 | BU122: a8 | BW122: =BS104+SQRT(POWER(BS122-BS104,2)+POWER(BT122-BT104,2))*SIN(BT103-ATAN((BS104-BS122)/(BT122-BT104))) -> -2.593881575 | BX122: =BT104+SQRT(POWER(BS122-BS104,2)+POWER(BT122-BT104,2))*COS(BT103-ATAN((BS104-BS122)/(BT122-BT104))) -> 145.8391769 | BY122: a8 | CA122: =BO106-CB112 -> 44.6011745 | CB122: =BP106-CB113 -> 122.7201722 | CC122: 9 | CD122: نقطه حلقه آستین | CE122: =CA104+SQRT(POWER(CA122-CA104,2)+POWER(CB122-CB104,2))*SIN(IF(CB122=CB104,RADIANS(90)-CB114,ATAN((CA122-CA104)/ABS(CB122-CB104))+IF(CB122>CB104,-1,1)*CB114)) -> 44.60170474 | CF122: =CB104+IF(CB122<CB104,-1,1)*SQRT(POWER(CA122-CA104,2)+POWER(CB122-CB104,2))*COS(IF(CB122=CB104,RADIANS(90)-CB114,ATAN((CA122-CA104)/ABS(CB122-CB104))+IF(CB122>CB104,-1,1)*CB114)) -> 122.72161 | CG122: b14 | CM122: =BS104+BT130 -> 10.34221716 | CN122: =BT104 -> 120.3 | CO122: شیفت 5 بالاتنه | CQ122: =CQ110+0.5*CR111+CR117*(0.2*CR109-0.3*CR108) -> 37.4 | CR122: =CR113+0.45*(CR120-CR113) -> 131.8811604 | CS122: 12f | CU122: =CQ112 -> 26.8172 | CV122: =CR112 -> 146.6 | CW122: 23 | CZ122: ='متغیرها '!C55 -> 0 | DA122: شیفت افقی | DC122: =DC121-CZ135*SIN(CZ123+CZ133) -> 34.65582532 | DD122: =DD121+CZ135*COS(CZ123+CZ133) -> 79.40478001 | DE122: ss2 | DG122: =DG105-DH109 -> 18.0588571 | DH122: =DH105 -> 106.1813315 | DI122: 41شیفتm | DK122: =BK102 -> 20 | DL122: =BL102 -> 138.2799026 | DM122: 21 | DO122: =DK129+DH109 -> 47.39147719 | DP122: =DL129 -> 85.07762964 | DQ122: p10rm | DR122: شلوار | DT122: =DT106+1.2*(DT121-DT105) -> 17.65470473 | DU122: =DU106 -> 132.3111244 | DV122: b'6g | DX122: =DX106+1.2*(DX121-DX105) -> 37.96229434 | DY122: =DY106 -> 131.9008799 | DZ122: b'6p | ED122: =BS104+BT130 -> 10.34221716 | EE122: =BT104 -> 120.3 | EF122: شیفت 5 بالاتنه | EH122: =BW115 -> -4.504381459 | EI122: =BX115 -> 138.1059388 | EJ122: e3 | EP122: =DC122 -> 34.65582532 | EQ122: =DD122 -> 79.40478001 | ER122: ss2 | EX122: =DC124 -> 21.37213204 | EY122: =DD124 -> 108.0140998 | EZ122: 41m | FB122: -3.064649754 | FC122: 123.5924935 | FD122: e''10 | FF122: =BK101 -> 32.01871396 | FG122: =BL101 -> 138.2799026 | FH122: 22 | FJ122: =BO176 -> 20.85625 | FK122: =BP176 -> 74.575 | FL122: 47 | FR122: =EE341 -> 25.5625 | FS122: =EF341 -> 74.575 | FT122: e216 | FX122: =-DD160-GK101 -> -10.34221716 | FY122: =DE160 -> 117.04 | FZ122: 43 | GB122: =-CM131-GK101 -> -10.34221716 | GC122: =CN131 -> 120.3 | GD122: 5پیراهن | GJ122: =-ED120-GK101 -> -10.34221716 | GK122: =EE120 -> 120.3 | GL122: شیفت 5 پیراهن | GN122: =-EL118-GK101 -> -11.42721716 | GO122: =EM118 -> 104 | GP122: شیفت 40 | GR122: =-EP122-GK101 -> -34.65582532 | GS122: =EQ122 -> 79.40478001 | GT122: ss2 | GZ122: =-AW268-GK101 -> -6.8172 | HA122: =AX268 -> 146.5 | HB122: 25 | HD122: =-U404-GK101 -> -17.8892561 | HE122: =V404 -> 142.9779237 | HF122: 22f
E123: فاصله عمودی از خط سینه جلو تا خط سینه پشت که از کنارگردن بگذرد | F123: t2 | H123: ='متغیرها '!U75-'متغیرها '!U78+'متغیرها '!C63*('متغیرها '!U75-'متغیرها '!U78) -> 26.2 | I123: ='متغیرها '!U75-'متغیرها '!U78 -> 26.2 | J123: (7 → 9) | K123: وصل | Q123: =AN117 -> 24.4422858 | R123: =AO117 -> 0 | S123: 3 | Y123: =Y118-H151-H147 -> 7.85 | Z123: (9 → 10) | AA123: =AA118-AA121-G151 -> 7.85 | AF123: =AR126 -> 21.4 | AG123: =AS126 -> 0 | AH123: 12 | AN123: =K120+K121 -> 12.51221716 | AO123: =0+AP111 -> 0 | AP123: 9 | AR123: =AA121 -> 1.9 | AS123: =AT111 -> 0 | AT123: 9 | AV123: 4.284 | AW123: (16 → 21) | AX123: 4.284 | AZ123: =AZ115 -> 19.42 | BA123: =BA115 -> 130.345363 | BB123: 16 | BD123: =BD122 -> 10.34221716 | BE123: =BA106 -> 74.575 | BG123: 5.671784279 | BH123: (19 → 20) | BI123: 5.671784279 | BK123: =BI108+BI98+'متغیرها '!C56 -> 43.0711745 | BL123: =0+BI97+'متغیرها '!C57 -> 74.575 | BM123: شیفت7 | BO123: =#REF!+'متغیرها '!C56 ->  | BP123: =#REF!+'متغیرها '!C57 ->  | BQ123: b شیفت | BS123: =J263 -> -3.603967021 | BT123: =K263 -> 127.4279694 | BU123: a11 | BW123: =IF(BS116>BW115,BS116-0.7*(BS116-BW115),BW115-0.7*(BW115-BS116)) -> -3.603967021 | BX123: =BT123 -> 127.4279694 | BY123: a11 | CA123: =BO122-CB112 -> 43.0711745 | CB123: =BP122-CB113 -> 118.7421722 | CC123: 10 | CD123: نقطه زیر حلقه آستین | CE123: =CA104+SQRT(POWER(CA123-CA104,2)+POWER(CB123-CB104,2))*SIN(IF(CB123=CB104,RADIANS(90)-CB114,ATAN((CA123-CA104)/ABS(CB123-CB104))+IF(CB123>CB104,-1,1)*CB114)) -> 43.07211618 | CF123: =CB104+IF(CB123<CB104,-1,1)*SQRT(POWER(CA123-CA104,2)+POWER(CB123-CB104,2))*COS(IF(CB123=CB104,RADIANS(90)-CB114,ATAN((CA123-CA104)/ABS(CB123-CB104))+IF(CB123>CB104,-1,1)*CB114)) -> 118.7434518 | CG123: b2 | CJ123: به دست آوردن نقطه تقاطع دو خط (وسط 20f) | CK123: مولفه افقی | CL123: مولفه عمودی | CM123: =AZ161+BT130 -> 10.34221716 | CN123: =BA161 -> 117.04 | CO123: شیفت 43 | CQ123: =CQ113-0.9*(CQ113-CQ122)+CR117*0.07*CR108 -> 38.12011745 | CR123: =CR113+0.25*(CR120-CR113) -> 127.8096101 | CS123: 16f | CW123: رگلان | CZ123: =BU143-BU142 -> 0.2551226078 | DA123: ζ'2-ζ'1 | DC123: =DC112-CZ125*COS(CZ123) -> 21.95543742 | DD123: =DD112-CZ125*COS(CZ123)*TAN(CZ138) -> 121.4121448 | DE123: b2m | DG123: =DG106-DH109 -> 20.0388571 | DH123: =DH106 -> 85.18133154 | DI123: 45شیفتm | DK123: =BK159 -> 29.18125 | DL123: =BL159 -> 106.1 | DM123: 34 | DO123: =DK130+DH109 -> 43.59490645 | DP123: =DL130 -> 47.58102114 | DQ123: p7rm | DT123: =DT107+0.5*(DT121-DT105) -> 19.1645562 | DU123: =DU107 -> 128.1231807 | DV123: b'10g | DX123: =DX107+0.5*(DX121-DX105) -> 39.37647855 | DY123: =DY107 -> 126.3930515 | DZ123: b'10p | ED123: =AZ161+BT130 -> 10.34221716 | EE123: =BA161 -> 117.04 | EF123: شیفت 43 | EH123: =BW123 -> -3.603967021 | EI123: =BX123 -> 127.4279694 | EJ123: a11 | EL123: =AZ161 -> 10.34221716 | EM123: =BA161 -> 117.04 | EN123: 43 | ET123: =BD166 -> 10.34221716 | EU123: =EU120 -> 120.3 | EV123: g'5 | EX123: =DC125 -> 32.22596219 | EY123: =DD125 -> 80.79398863 | EZ123: ss2m | FB123: -3.926299508 | FC123: 130.4349871 | FD123: e'10 | FL123: ترک وسط | FN123: =DK105-DL120 -> 30.7 | FO123: =DL105-DL128 -> 127.8476283 | FP123: بدون شیفت40 | GB123: =-CM132-GK101 -> -12.35322805 | GC123: =CN132 -> 144.7389618 | GD123: وسط 22f | GF123: =-EX122-GK101 -> -21.37213204 | GG123: =EY122 -> 108.0140998 | GH123: 41m | GN123: =-EL121-GK101 -> -10.34221716 | GO123: =EM121 -> 117.04 | GP123: شیفت 43 | GV123: =-CR173-GK101 -> -20.96637714 | GW123: =CS173 -> 101.9773315 | GX123: d3 | GZ123: =-AW269-GK101 -> -6.8172 | HA123: =AX269 -> 153.7832748 | HB123: 1n | HD123: =-U405-GK101 -> -37.20602613 | HE123: =V405 -> 132.8595505 | HF123: k13 | HH123: =-CP259-GK101 -> 1.503 | HI123: =CQ259 -> 73.76352346 | HJ123: m'11 | HL123: =-DN259-GK101 -> 1.503 | HM123: =DO259 -> 75.274 | HN123: p'3
E124: فاصله عمودی از خط کمر جلو تا خط کمر پشت که از کنار گردن بگذرد | F124: t3 | H124: ='متغیرها '!U76-'متغیرها '!U79+'متغیرها '!C63*('متغیرها '!U76-'متغیرها '!U79) -> 42.5 | I124: ='متغیرها '!U76-'متغیرها '!U79 -> 42.5 | J124: (9 → 10) | K124: =K115-K120-2*G152-0.5*(H120-H121-H118+H119)*(1-2*'متغیرها '!C87)+'متغیرها '!C77*O128*H130*((L115-L120-L121-L124)/(L127-L125)) -> 10.22778284 | L124: =L115-L120-2*H152-0.5*('متغیرها '!U72-'متغیرها '!U73-'متغیرها '!U70+'متغیرها '!U71)*(1-2*'متغیرها '!C87) -> 10.19624 | N124: متغیرهای محاسبه ای بالاتنه جلو | P124: شبیه ساز | Q124: =AN126 -> 24.4422858 | R124: =AO126 -> 18.695363 | S124: 12 | W124: انحنای حلقه یقه جلو | Y124: =2*H151 -> 1.9 | Z124: (10 → 11) | AA124: =2*G151 -> 1.9 | AF124: =AR117 -> 22.92819185 | AG124: =AS117 -> 0 | AH124: 3 | AL124: انحنای حلقه یقه پشت | AN124: =K120+K121+K124 -> 22.74 | AO124: =0+AP111 -> 0 | AP124: 10 | AR124: =AA121+AA123 -> 9.75 | AS124: =AT111 -> 0 | AT124: 10 | AV124: 10.56929346 | AW124: (21 → 22) | AX124: 10.56929346 | AZ124: =AX104-AX117+AX123+AX99 -> 23.704 | BA124: =AX113+AX118+AX98 -> 130.345363 | BB124: 21 | BH124: (18 → 20→ 12→ 16→ 14→ 8→ 9) | BI124: هلال وصل | BS124: =N267 -> 9.510050181 | BT124: =O267 -> 153.9094139 | BU124: a14 | BW124: =BS104+SQRT(POWER(BS124-BS104,2)+POWER(BT124-BT104,2))*SIN(BT103-ATAN((BS104-BS124)/(BT124-BT104))) -> 9.510050181 | BX124: =BT104+SQRT(POWER(BS124-BS104,2)+POWER(BT124-BT104,2))*COS(BT103-ATAN((BS104-BS124)/(BT124-BT104))) -> 153.9094139 | BY124: a14 | CB124: متغیرهای محاسبه ای ساسون زیر بغل | CI124: نقطه اول از خط اول | CJ124: 30 | CK124: =CM137 -> 5.45376 | CL124: =CN137 -> 142.3029694 | CQ124: =CQ113-0.55*(CQ113-CQ122)+CR117*0.07*CR108 -> 40.64052852 | CR124: =CR113+0.09*(CR120-CR113) -> 124.5523699 | CS124: 14f | CU124: =CQ103 -> 25.1129 | CV124: =CR103 -> 145.3938304 | CW124: 28 | CY124: =BD160 -> 10.34221716 | CZ124: =BE160 -> 120.3 | DA124: شیفت 5 | DC124: =DC117-CZ125*COS(CZ123) -> 21.37213204 | DD124: =DD117-CZ125*COS(CZ123)*TAN(CZ137) -> 108.0140998 | DE124: 41m | DG124: =DG107-DH109 -> 20.0388571 | DH124: =CZ114-0.5*(CZ114-CZ106) -> 75.14066577 | DI124: 49'شیفتm | DJ124: پیراهن | DK124: =BO187 -> 31.8375 | DL124: =BP187 -> 86.3 | DM124: 38' | DO124: =DK131+DH109 -> 45.26094906 | DP124: =DL131 -> 6.181021143 | DQ124: p5rm | DT124: =DT111+DT122-DT106 -> 20.48361962 | DU124: =DU111 -> 130.345363 | DV124: 16g | DW124: در مدل عصایی | DX124: =DX111+DX122-DX106 -> 37.96271352 | DY124: =DY111 -> 131.9001722 | DZ124: 12p | EA124: در مدل عصایی | EH124: =BS116 -> -1.503 | EI124: =BT116 -> 116.75 | EJ124: e1 | EL124: =AZ166 -> 9.25721716 | EM124: =BA166 -> 104 | EN124: 39 | EP124: =DC122 -> 34.65582532 | EQ124: =DD122 -> 79.40478001 | ER124: ss2 | ET124: =CM105 -> 17.76876522 | EU124: =EU120 -> 120.3 | EV124: g''5 | FB124: =DP178 -> -4.708499181 | FC124: =DQ178 -> 139.5583118 | FD124: e10 | FF124: =BK101 -> 32.01871396 | FG124: =BL101 -> 138.2799026 | FH124: 22 | FJ124: =BK179 -> 30.7 | FK124: =BL179 -> 127.8476283 | FL124: شیفت 40 | FN124: =DK123 -> 29.18125 | FO124: 106.1 | FP124: 34 | FR124: =DO121 -> 37.96229434 | FS124: =DP121 -> 131.9008799 | FT124: =DQ121 -> b'6p | FX124: =-DD162-GK101 -> -10.34221716 | FY124: =DE162 -> 117.04 | FZ124: 43 | GF124: =-EX123-GK101 -> -32.22596219 | GG124: =EY123 -> 80.79398863 | GH124: ss2m | GJ124: =-ED122-GK101 -> -10.34221716 | GK124: =EE122 -> 120.3 | GL124: شیفت 5 پیراهن | GR124: =-EP124-GK101 -> -34.65582532 | GS124: =EQ124 -> 79.40478001 | GT124: ss2 | GV124: =-CR176-GK101 -> -20.57 | GW124: =CS176 -> 106.1813315 | GX124: شیفت41 یا d3 | HH124: =-CP260-GK101 -> 1.503 | HI124: =CQ260 -> 99.025 | HJ124: s'1 | HL124: =-DN260-GK101 -> 1.503 | HM124: =DO260 -> 99.025 | HN124: s'1
E125: فاصله عمودی بین خط سینه پشت و سرشانه، نزدیک دست | F125: t4 | H125: ='متغیرها '!U77-0.5*'متغیرها '!C60*'متغیرها '!U77+'متغیرها '!C63*('متغیرها '!U78) -> 22.5 | I125: ='متغیرها '!U77 -> 22.5 | J125: (10 → 11) | K125: =K124*TAN(0.5*IF(K121=0,0,G162))+K111 -> 2.265717992 | L125: =L124*TAN(0.5*IF(L121=0,0,H162))+L111 -> 2.181331536 | N125: γ5 | O125: 1.3 | Q125: =AN129 -> 19.42 | R125: =AO129 -> 18.695363 | S125: 15 | U125: =AN139 -> 6.8172 | V125: =AO139 -> 42.5 | W125: 25 | Z125: (10 → 8) | AA125: وصل | AF125: =AR128 -> 22.92819185 | AG125: =AS128 -> 16.62044517 | AH125: 14 | AJ125: =AR141 -> 6.8172 | AK125: =AS141 -> 40.5 | AL125: 27 | AN125: =K120+K121+K124 -> 22.74 | AO125: =K125+AP111 -> 2.265717992 | AP125: 11 | AR125: =AA121+AA123+AA124 -> 11.65 | AS125: =AT111 -> 0 | AT125: 11 | AV125: 1.2852 | AW125: (16 → 23) | AX125: 1.2852 | AZ125: =AX104-AX117+AX123+AX99 -> 23.704 | BA125: =AX113+AX118+AX124+AX98 -> 140.9146565 | BB125: 22 | BD125: =AZ106 -> 0 | BE125: =BA106-2 -> 72.575 | BH125: (1 → 21) | BI125: =H106-H114+AG147 -> 63.70490261 | BK125: =BI106+BI98+'متغیرها '!C56 -> 43.99256935 | BL125: =0+BI97+'متغیرها '!C57 -> 74.575 | BM125: شیفت5 | BO125: =BO123 ->  | BP125: =BP123 ->  | BQ125: b شیفت | BS125: =N269 -> 6.975116919 | BT125: =O269 -> 150.2366397 | BU125: a16 | BW125: =BS104+SQRT(POWER(BS125-BS104,2)+POWER(BT125-BT104,2))*SIN(BT103-ATAN((BS104-BS125)/(BT125-BT104))) -> 6.975116919 | BX125: =BT104+SQRT(POWER(BS125-BS104,2)+POWER(BT125-BT104,2))*COS(BT103-ATAN((BS104-BS125)/(BT125-BT104))) -> 150.2366397 | BY125: a16 | CB125: ζ'1 | CC125: =('متغیرها '!C111+0.001)*ATAN((CA109-CA104)/(CB109-CB104)) -> 0.0001009814295 | CE125: =CA104+(1-'متغیرها '!C116)*(CA123-CA104) -> 31.93711745 | CF125: =CB104+(1-'متغیرها '!C116)*(CA123-CA104)*TAN(0.5*CB114-CC127) -> 126.9371813 | CG125: b | CI125: نقطه دوم از خط اول | CJ125: 20f | CK125: =CI120 -> 17.76876522 | CL125: =CJ120 -> 127.5032437 | CM125: =AZ161 -> 10.34221716 | CN125: =BA161 -> 117.04 | CO125: 43 | CR125: به دست آوردن نقطه تقاطع دو خط (وسط 16f) | CS125: مولفه افقی | CT125: مولفه عمودی | CU125: =CS130 -> 31.55928529 | CV125: =CT130 -> 136.6790796 | CW125: وسط 16f | CZ125: =AX119 -> 2.5111429 | DA125: (12→17) | DC125: =DC122-CZ125*COS(CZ123) -> 32.22596219 | DD125: =DD122-CZ125*COS(CZ123)*TAN(CZ139) -> 80.79398863 | DE125: ss2m | DG125: =DG113-DH109 -> 19.68077977 | DH125: =DH113 -> 85.30039159 | DI125: 10rm | DJ125: شلوار | DK125: =BO188 -> 31.8375 | DL125: =BP188 -> 74.575 | DM125: 49 | DO125: =DK132+DH109 -> 45.74442855 | DP125: =DL132 -> 1.581021143 | DQ125: p1rm | DT125: =DT112+DT123-DT107 -> 20.867632 | DU125: =DU112 -> 125.755363 | DV125: 20g | DW125: در مدل عصایی | DX125: =DX112+DX123-DX107 -> 39.37632807 | DY125: =DY112 -> 126.3921722 | DZ125: 16p | EA125: در مدل عصایی | ED125: =AZ161 -> 10.34221716 | EE125: =BA161 -> 117.04 | EF125: 43 | EP125: =DC116 -> 20.25264673 | EQ125: =DD116 -> 87.63940841 | ER125: 47''s | EV125: باسن | EX125: =DC127 -> 16.77865386 | EY125: =DD127 -> 77.12397982 | EZ125: s2m | FF125: =BK154 -> 30.7 | FG125: =BL154 -> 127.8476283 | FH125: 40 | FJ125: =BK180 -> 32.21875 | FK125: =BL180 -> 106.1 | FL125: شیفت 35 | FN125: 31.8375 | FO125: 86.3 | FP125: 38' | FR125: =CE163 -> 27.8375 | FS125: =CF163-0.3*DZ168 -> 63.85 | FT125: e'215 | FX125: =-DD163-GK101 -> -11.88544024 | FY125: =DE163 -> 122.3621452 | FZ125: 21 | GB125: =-CM134-GK101 -> -12.35322805 | GC125: =CN134 -> 144.7389618 | GD125: وسط 22f | GJ125: =-ED123-GK101 -> -10.34221716 | GK125: =EE123 -> 117.04 | GL125: شیفت 43 | GN125: =-EL123-GK101 -> -10.34221716 | GO125: =EM123 -> 117.04 | GP125: 43 | GR125: =-EP125-GK101 -> -20.25264673 | GS125: =EQ125 -> 87.63940841 | GT125: 47''s | GZ125: =-AW269-GK101 -> -6.8172 | HA125: =AX269 -> 153.7832748 | HB125: 1n | HD125: =-U407-GK101 -> -37.20602613 | HE125: =V407 -> 132.8595505 | HF125: k13 | HJ125: خط مرغک در جلو
E126: فاصله عمودی بین خط سینه پشت و سرشانه، نزدیک گردن | F126: t5 | H126: ='متغیرها '!U78+'متغیرها '!C63*'متغیرها '!U78 -> 26.3 | I126: ='متغیرها '!U78 -> 26.3 | J126: (9 → 11) | K126: وصل | N126: γ4 | O126: 0.3 | Q126: =AN130 -> 19.42 | R126: =AO130 -> 26.345363 | S126: 16 | U126: =AN144 -> 5.45376 | V126: =AO144 -> 38.30296938 | W126: 30 | Z126: (11 → 8) | AA126: وصل | AC126: متغیرهای محاسبه ای بالاتنه پشت | AE126: شبیه ساز | AF126: =AR131 -> 17.4 | AG126: =AS131 -> 16.62044517 | AH126: 17 | AJ126: =AR146 -> 5.1129 | AK126: =AS146 -> 39.29383044 | AL126: 32 | AN126: =K115 -> 24.4422858 | AO126: =K127+AP111 -> 18.695363 | AP126: 12 | AR126: =AA121+AA123+AA124+AA127 -> 21.4 | AS126: =AT111 -> 0 | AT126: 12 | AV126: 5.28464673 | AW126: (23 → 24) | AX126: 5.28464673 | BD126: =BD125+'متغیرها '!C279*(AZ151-BD125) -> 16.48639242 | BE126: =BE125 -> 72.575 | BH126: (21 → 22) | BI126: =AF147 -> 12.01871396 | BK126: =BI106+BI98+'متغیرها '!C56 -> 43.99256935 | BL126: =BI107+BI97+'متغیرها '!C57 -> 85.25614076 | BM126: شیفت6 | BO126: =BK154+'متغیرها '!C56 -> 30.7 | BP126: =BL179 -> 127.8476283 | BQ126: 40 شیفت | BS126: =N268 -> 6.130139165 | BT126: =O268 -> 147.2316426 | BU126: a15 | BW126: =BS104+SQRT(POWER(BS126-BS104,2)+POWER(BT126-BT104,2))*SIN(BT103-ATAN((BS104-BS126)/(BT126-BT104))) -> 6.130139165 | BX126: =BT104+SQRT(POWER(BS126-BS104,2)+POWER(BT126-BT104,2))*COS(BT103-ATAN((BS104-BS126)/(BT126-BT104))) -> 147.2316426 | BY126: a15 | CB126: ζ'2 | CC126: =('متغیرها '!C111+0.001)*ATAN((CA121-CA104)/(CB121-CB104)) -> 0.0002044077251 | CI126: نقطه اول از خط دوم | CJ126: 5 | CK126: =CM131 -> 10.34221716 | CL126: =CN131 -> 120.3 | CM126: =BS104 -> 10.34221716 | CN126: =BT104 -> 120.3 | CO126: 5 بالاتنه | CQ126: نقطه اول از خط اول | CR126: 28 | CS126: =CU124 -> 25.1129 | CT126: =CV124 -> 145.3938304 | CY126: محاسبات | DC126: =DC110-CZ125 -> 20.87025346 | DD126: =DD110+CZ125*TAN(CZ141) -> 126.6163072 | DE126: b'8s | DG126: =DG114-DH109 -> 15.90500704 | DH126: =DH114 -> 46 | DI126: 7rm | DK126: =BK101 -> 32.01871396 | DL126: =BL101 -> 138.2799026 | DM126: 22 | ED126: =BS104 -> 10.34221716 | EE126: =BT104 -> 120.3 | EF126: 5 بالاتنه | EH126: =BW124 -> 9.510050181 | EI126: 153.9094139 | EJ126: a14 | EL126: =AZ166 -> 9.25721716 | EM126: =BA166 -> 104 | EN126: 39 | ET126: =ET108 -> 0 | EU126: =EU108 -> 84.1 | EV126: g46 | EX126: =CY108 -> 8.17221716 | EY126: =CZ108 -> 86.09 | EZ126: 47' | FB126: =EH102 -> 6.8172 | FC126: 146.5 | FD126: چرخیده 25 | FN126: =BO188 -> 31.8375 | FO126: =BP188 -> 74.575 | FP126: =DM125 -> 49 | FX126: =-DD164-GK101 -> -15.33499772 | FY126: =DE164 -> 127.0190223 | FZ126: 31 | GB126: =-CM135-GK101 -> -6.8172 | GC126: =CN135 -> 146.5 | GD126: 25 | GF126: =-EX125-GK101 -> -16.77865386 | GG126: =EY125 -> 77.12397982 | GH126: s2m | GN126: =-EL124-GK101 -> -9.25721716 | GO126: =EM124 -> 104 | GP126: 39 | GV126: =-CR176-GK101 -> -20.57 | GW126: =CS176 -> 106.1813315 | GX126: شیفت41 یا d3 | GZ126: =-AW272-GK101 -> -17.8892561 | HA126: =AX272 -> 153.7832748 | HB126: 2n | HD126: =-U408-GK101 -> -30.00888586 | HE126: =V408 -> 119.1196438 | HF126: k11 | HH126: =-CP280-GK101 -> -5.953172 | HI126: =CQ280 -> 80.07429025 | HJ126: m10 | HL126: =-DN262-GK101 -> 0 | HM126: =DO262 -> 99.025 | HN126: s1
E127: فاصله عمودی بین خط کمر پشت و سرشانه، نزدیک گردن | F127: t6 | H127: ='متغیرها '!U79+'متغیرها '!C63*'متغیرها '!U79 -> 40.5 | I127: ='متغیرها '!U79 -> 40.5 | J127: (3 → 12) | K127: =L125+G153*(H127-H126)-('متغیرها '!C77/(1+'متغیرها '!C77))*K133 -> 18.695363 | L127: =L125+H153*(I127-I126) -> 20.225363 | N127: γ3 | O127: =0.5*O125*H130-0.89*O128*H130+0.11*AD128*H130+0.5*(H122-H125)-0.39*O126*H130 -> 11.4045 | P127: =0.5*O125*'متغیرها '!U82-0.89*O128*'متغیرها '!U82+0.11*AD128*'متغیرها '!U82+0.5*(I122-I125)-0.39*O126*'متغیرها '!U82 -> 11.4045 | U127: =AN142 -> 2.72688 | V127: =AO142 -> 34.94534488 | W127: 28 | Y127: =Y115-Y121-Y123-Y124-(0.5*('متغیرها '!U73-'متغیرها '!U71)-2*H151-H147)+(0-0.5*H151)*H151/(H153*(I127-I126)-Y132)-AE127 -> 9.724991731 | Z127: (11 → 12) | AA127: =AA115-AA121-AA123-AA124-0.5*(H121-H119)*(1-'متغیرها '!C82-'متغیرها '!C84)-AD127+'متغیرها '!C77*O128*H130*((Y115-Y121-Y123-Y124-Y127)/(Y130)) -> 9.75 | AC127: ساسون پشت روی خط سینه | AD127: =IF(((AA117-AA116)*AA121/AA117)>0,(AA117-AA116)*AA121/AA117,0)+IF(AA120>0,2*AA120*TAN(2*G157),0) -> 1.671174499 | AE127: =IF(((Y117-Y116)*Y121/Y117)>0,(Y117-Y116)*Y121/Y117,0)+IF(Y120>0,2*Y120*TAN(2*H157),0) -> 1.671174499 | AF127: =AR132 -> 17.4 | AG127: =AS132 -> 25.80044517 | AH127: 18 | AJ127: =AR144 -> 2.72688 | AK127: =AS144 -> 38.69074565 | AL127: 30 | AN127: =K115+K128 -> 25.9722858 | AO127: =K127+AP111 -> 18.695363 | AP127: 13 | AR127: =AA121+AA123+AA124+AA127 -> 21.4 | AS127: =AA128+AT111 -> 0.1064137038 | AT127: 13 | AW127: (22→24→16→20→18→12→13) | AX127: هلال وصل | AZ127: =AX104-AX117+AX125+AX99 -> 20.7052 | BA127: =AX113+AX118+AX98 -> 130.345363 | BB127: 23 | BG127: =Y146 -> 6.8172 | BH127: (2 → 23) | BI127: =AA146 -> 6.8172 | BS127: =J247 -> -4.708499181 | BT127: =K247 -> 139.5583118 | BU127: e10 | BW127: =BS104+SQRT(POWER(BS127-BS104,2)+POWER(BT127-BT104,2))*SIN(BT103-ATAN((BS104-BS127)/(BT127-BT104))) -> -4.708499181 | BX127: =BT104+SQRT(POWER(BS127-BS104,2)+POWER(BT127-BT104,2))*COS(BT103-ATAN((BS104-BS127)/(BT127-BT104))) -> 139.5583118 | BY127: e10 | CB127: ζ1 | CC127: =ATAN((CB104-CB123)/(CA123-CA104)) -> 0.6344949784 | CI127: نقطه دوم از خط دوم | CJ127: وسط 22f | CK127: =CM132 -> 12.35322805 | CL127: =CN132 -> 144.7389618 | CQ127: نقطه دوم از خط اول | CR127: 16f | CS127: =CQ123 -> 38.12011745 | CT127: =CR123 -> 127.8096101 | CU127: =CU125+CR105 -> 31.55928529 | CV127: =CV125+CR106 -> 136.6790796 | CW127: شیفت وسط 16f | CY127: (43→40) | CZ127: =SQRT(POWER((CY103-CY104),2)+POWER((CZ103-CZ104),2)) -> 13.08506114 | DC127: =DC120-CZ125*COS(CZ123) -> 16.77865386 | DD127: =DD120-CZ125*COS(CZ123)*TAN(CZ140) -> 77.12397982 | DE127: s2m | DG127: =DG115-DH109 -> 13.66727977 | DH127: =DH115 -> 4.6 | DI127: 5rm | DK127: =BK167 -> 20 | DL127: =BL167 -> 136.475 | DM127: 45 | DQ127: پهلو جدا در شلوار و نیمی از حلقه عصایی | DT127: اپل جلو روی سرشانه با ساسون | DY127: اپل پشت روی سرشانه با ساسون | EH127: 6.975116919 | EI127: 150.2366397 | EJ127: a16 | EL127: =AZ176 -> 8.17221716 | EM127: =BA176 -> 86.09 | EN127: 47' | ER127: کمر | FB127: 6.13548 | FC127: 143.9817816 | FD127: e7 | FF127: =DY152+CB112 -> 39.6355435 | FG127: =DZ152+CB113 -> 142.7119379 | FH127: شیفت 18b | FJ127: =BK180 -> 32.21875 | FK127: =BL180 -> 106.1 | FL127: شیفت 35 | FR127: =CE163 -> 27.8375 | FS127: =CF163-0.3*DZ168 -> 63.85 | FT127: e'215 | FX127: =-DD165-GK101 -> -19.42 | FY127: =DE165 -> 130.345363 | FZ127: 16g | GF127: =-EX126-GK101 -> -8.17221716 | GG127: =EY126 -> 86.09 | GH127: 47' | GJ127: =-ED125-GK101 -> -10.34221716 | GK127: =EE125 -> 117.04 | GL127: 43 | GT127: کمر | GV127: =-CR179-GK101 -> -24.4422858 | GW127: =CS179 -> 118.717363 | GX127: شیفت 14 | HH127: =-CP281-GK101 -> 2.3812688 | HI127: =CQ281 -> 80.07429025 | HJ127: m9' | HL127: =-DN263-GK101 -> 0 | HM127: =DO263 -> 75.274 | HN127: p3
E128: دور گردن (متر به طور عمودی دور گردن قرار می گیرد و از روی استخوان ترقوه می گذرد) | F128: v | H128: =1*'متغیرها '!U80 -> 39 | J128: (12 → 13) | K128: ='متغیرها '!C79*0.05*H130 -> 1.53 | N128: γ1 | O128: =(1-'متغیرها '!C101)*0.2+'متغیرها '!C101*'متغیرها '!C102 -> 0.2 | Q128: =AN131 -> 21.9311429 | R128: =AO131 -> 18.695363 | S128: 17 | U128: =AN140 -> 0 | V128: =AO140 -> 34.10593876 | W128: 26 | Y128: =Y127*TAN(0.5*H157) -> 0.1061407579 | Z128: (12 → 13) | AA128: =AA127*TAN(0.5*G157) -> 0.1064137038 | AC128: γ2 | AD128: =(1-'متغیرها '!C101)*0.25+'متغیرها '!C101*'متغیرها '!C103 -> 0.25 | AJ128: =AR142 -> 0 | AK128: =AS142 -> 38.48971739 | AL128: 28 | AN128: =Q124 -> 24.4422858 | AO128: =K127-K129+AP111 -> 14.717363 | AP128: 14 | AR128: =AA115 -> 22.92819185 | AS128: =AA130+AT111 -> 16.62044517 | AT128: 14 | AV128: =L143 -> 6.8172 | AW128: (2 → 25) | AX128: =K143 -> 6.8172 | AZ128: =AX104-AX117+AX125+AX99 -> 20.7052 | BA128: =AX113+AX118+AX126+AX98 -> 135.6300097 | BB128: 24 | BD128: =BD126 -> 16.48639242 | BE128: =BE126 -> 72.575 | BG128: 2.010282607 | BH128: (2 → 24) | BI128: 2.010282607 | BK128: =BI104+BI98+'متغیرها '!C56 -> 44.25465732 | BL128: =0+BI97+'متغیرها '!C57 -> 74.575 | BM128: شیفت3 | BO128: =BO158 -> 32.01871396 | BP128: =BP158 -> 138.2799026 | BQ128: 22شیفت | BS128: =AZ104 -> 10.34221716 | BT128: =BA104 -> 120.3 | BU128: 5 پیراهن | CI128: نقطه تقاطع | CJ128: g1 | CK128: =(CL126-CL124+CK124*((CL125-CL124)/(CK125-CK124))-CK126*((CL127-CL126)/(CK127-CK126)))/(((CL125-CL124)/(CK125-CK124))-((CL127-CL126)/(CK127-CK126))) -> 11.54992942 | CL128: =CL124+(CK128-CK124)*((CL125-CL124)/(CK125-CK124)) -> 134.9768145 | CM128: =BS104 -> 10.34221716 | CN128: =BT104 -> 120.3 | CO128: 5 بالاتنه | CQ128: نقطه اول از خط دوم | CR128: 40 | CS128: =CU118 -> 30.7 | CT128: =CV118 -> 127.8476283 | CU128: =CU105 -> 38.12011745 | CV128: =CV105 -> 127.8096101 | CW128: شیفت 16f | CY128: (40→47'') | CZ128: =SQRT(POWER((CY104-CY105),2)+POWER((CZ104-CZ105),2)) -> 17.94283492 | DC128: =DC108-CZ125 -> 15.6988571 | DD128: =DD108 -> 85.18133154 | DE128: 45m | DG128: =DG116-DH109 -> 13.66727977 | DH128: =DH116 -> 0 | DI128: 1rm | DL128: ='متغیرها '!C57 -> 0 | DM128: شیفت عمودی | DO128: =DO102 -> 45.5823174 | DP128: 123.8676722 | DQ128: شیفت 8m | DT128: نقاط ورودی | DY128: نقاط ورودی | ED128: =BS128 -> 10.34221716 | EE128: =BT128 -> 120.3 | EF128: 5 پیراهن | EH128: 6.130139165 | EI128: 147.2316426 | EJ128: a15 | EP128: =DC115 -> 14.68292548 | EQ128: =DD115 -> 104.695889 | ER128: 40s | ET128: =ET111 -> 12.51221716 | EU128: =EU111 -> 84.1 | EV128: g47'' | EX128: =DC127 -> 16.77865386 | EY128: =DD127 -> 77.12397982 | EZ128: s2m | FB128: 5.720046094 | FC128: 141.8977855 | FD128: e5 | FF128: =DY151+CB112 -> 34.36083179 | FG128: =DZ151+CB113 -> 145.1463327 | FH128: شیفت 32b | FJ128: =BO191 -> 29.5625 | FK128: =BP191 -> 86.3 | FL128: شیفت 38'' | FN128: =BO188 -> 31.8375 | FO128: =BP188 -> 74.575 | FP128: 49 | FR128: =CE169 -> 27.8375 | FS128: =CF169 -> 74.575 | FT128: e'216 | GD128: 33' | GJ128: =-ED126-GK101 -> -10.34221716 | GK128: =EE126 -> 120.3 | GL128: 5 بالاتنه | GN128: =-EL124-GK101 -> -9.25721716 | GO128: =EM124 -> 104 | GP128: 39 | GR128: =-EP128-GK101 -> -14.68292548 | GS128: =EQ128 -> 104.695889 | GT128: 40s | GZ128: =-AW272-GK101 -> -17.8892561 | HA128: =AX272 -> 153.7832748 | HB128: 2n | HD128: =-U410-GK101 -> -30.00888586 | HE128: =V410 -> 119.1196438 | HF128: k11
E129: کارور پشت (بین دو خط امتداد زیر بغل) | F129: v3 | H129: ='متغیرها '!U81+1*'متغیرها '!C60*'متغیرها '!U81 -> 34.8 | I129: ='متغیرها '!U81 -> 34.8 | J129: (12 → 14) | K129: ='متغیرها '!C79*0.13*H130 -> 3.978 | L129: =0 -> 0 | N129: فاصله افقی بین 36 و 32' | O129: =O152-0.5*G169*COS(G160) -> 1.990498095 | P129: =P152-0.5*H169*COS(H160) -> 1.958955255 | Q129: =AN132 -> 21.9311429 | R129: =AO132 -> 19.842863 | S129: 18 | Z129: (11 → 13) | AA129: وصل | AC129: فاصله افقی بین 38 و 34' | AD129: =AD152-0.5*G170*COS(G158) -> 0.2761027395 | AE129: =AE152-0.5*H170*COS(H158) -> 0.2761334344 | AF129: =AR133 -> 21.82255348 | AG129: =AS133 -> 16.62044517 | AH129: 19 | AN129: =K115-K132 -> 19.42 | AO129: =K127+AP111 -> 18.695363 | AP129: 15 | AR129: =AA115+AA131 -> 24.45819185 | AS129: =AA130+AT111 -> 16.62044517 | AT129: 15 | AV129: 8.394061244 | AW129: (2 → 26) | AX129: 8.394061244 | BD129: =BD126 -> 16.48639242 | BE129: =BE126-BE122+BE123 -> 73.34866846 | BG129: 2.72688 | BH129: (2 → 25) | BI129: 2.72688 | BK129: =BI104+BI98+'متغیرها '!C56 -> 44.25465732 | BL129: =BI105+BI97+'متغیرها '!C57 -> 75.73114076 | BM129: شیفت4 | BO129: =BK154+'متغیرها '!C56 -> 30.7 | BP129: =BL179 -> 127.8476283 | BQ129: 40شیفت | BS129: انتقال قسمتی از ساسون سرشانه به ساسون زیر بغل به روش چرخش | CA129: حلقه آستین با ساسون زیر بغل | CM129: =BS128 -> 10.34221716 | CN129: =BT128 -> 120.3 | CO129: 5 پیراهن | CQ129: نقطه دوم از خط دوم | CR129: وسط 18f | CS129: =CU119 -> 32.35322805 | CT129: =CV119 -> 144.8389618 | CW129: رگلان با درز | CY129: (14→41) | CZ129: =SQRT(POWER((CY117-CY116),2)+POWER((CZ117-CZ116),2)) -> 13.12046807 | DC129: به دست آوردن نقطه تقاطع دو خط | DD129: مولفه افقی | DE129: مولفه عمودی | DG129: =DC103 -> 6.935 | DH129: =DD103 -> 74.575 | DI129: 50sm | DK129: =DH608 -> 44.88033429 | DL129: 85.07762964 | DM129: p10r | DN129: شلوار | DO129: 45.5823174 | DP129: 118.7421722 | DQ129: شیفت 10m | DT129: مولفه افقی | DU129: مولفه عمودی | DV129: اسم نقطه | DY129: مولفه افقی | DZ129: مولفه عمودی | EA129: اسم نقطه | ED129: =BS104 -> 10.34221716 | EE129: =BT104 -> 120.3 | EF129: 5 بالاتنه | EH129: =BW113 -> 6.13548 | EI129: =BX113 -> 143.9817816 | EJ129: e7 | EL129: =AZ176 -> 8.17221716 | EM129: =BA176 -> 86.09 | EN129: 47' | EP129: =DC117 -> 23.80199517 | EQ129: =DD117 -> 109.2194442 | ER129: 41s | EV129: زمین | EX129: =IF(DD128>DD127,DC127,DC128) -> 16.77865386 | EY129: =IF(DD128>DD127,DD127,DD128) -> 77.12397982 | EZ129: s2m یا 45m | FN129: =BO176 -> 20.85625 | FO129: =BP176 -> 74.575 | FP129: 47 | FX129: =-DD167-GK101 -> -25.9722858 | FY129: =DE167 -> 122.695363 | FZ129: 13 | GB129: =-CM137-GK101 -> -5.45376 | GC129: =CN137 -> 142.3029694 | GD129: 30 | GF129: =-EX128-GK101 -> -16.77865386 | GG129: =EY128 -> 77.12397982 | GH129: s2m | GN129: =-EL127-GK101 -> -8.17221716 | GO129: =EM127 -> 86.09 | GP129: 47' | GR129: =-EP129-GK101 -> -23.80199517 | GS129: =EQ129 -> 109.2194442 | GT129: 41s | GX129: 26' | GZ129: =-AW275-GK101 -> -17.8892561 | HA129: =AX275 -> 142.9779237 | HB129: 22f | HD129: =-U411-GK101 -> -23.73019709 | HE129: =V411 -> 114.9568536 | HF129: K15 | HH129: =-CP283-GK101 -> 2.3812688 | HI129: =CQ283 -> 80.07429025 | HJ129: m9' | HN129: 72'
E130: دور بازو از ناحیه زیر بغل | F130: w2 | H130: ='متغیرها '!U82+0.7*'متغیرها '!C60*'متغیرها '!U82 -> 30.6 | J130: (13 →14) | K130: وصل | N130: فاصله عمودی بین 36 و 32' | O130: =O151+0.5*G169*SIN(G160) -> 24.37573208 | P130: =P151+0.5*H169*SIN(H160) -> 21.11573208 | W130: خطوط برش | Y130: =H153*(I127-I126)+Y128 -> 18.15017223 | Z130: (3 →14) | AA130: =G153*(H127-H126)+AA128-K133*'متغیرها '!C77/(1+'متغیرها '!C77) -> 16.62044517 | AC130: فاصله عمودی بین 38 و 34' | AD130: =AD151+0.5*G170*SIN(G158) -> 6.385006374 | AE130: =AE151+0.5*H170*SIN(H158) -> 6.385393115 | AF130: =AR134 -> 21.82255348 | AG130: =AS134 -> 17.53844517 | AH130: 20 | AJ130: خطوط برش | AN130: =K115-K132 -> 19.42 | AO130: =K127+K133+AP111 -> 26.345363 | AP130: 16 | AR130: =AA115 -> 22.92819185 | AS130: =AA130-AA132+AT111 -> 12.64244517 | AT130: 16 | AV130: 2.72688 | AW130: (2 → 27) | AX130: 2.72688 | AZ130: =AX112+AX99+'متغیرها '!C55 -> 20.17334287 | BA130: =0+AX98 -> 74.575 | BB130: 10شیفت | BG130: 1.809254346 | BH130: (25 → 26) | BI130: 1.809254346 | BQ130: کش سویشرت | BT130: ='متغیرها '!C55 -> 0 | BU130: شیفت افقی | BW130: نقاط خروجی چرخیده | CB130: =(CC142-CC141) -> 0.1035297219 | CC130: زاویه چرخش کامل به ساسون زیر بغل | CJ130: به دست آوردن نقطه تقاطع دو خط (وسط 16f) | CK130: مولفه افقی | CL130: مولفه عمودی | CQ130: نقطه تقاطع | CR130: g1 | CS130: =(CT128-CT126+CS126*((CT127-CT126)/(CS127-CS126))-CS128*((CT129-CT128)/(CS129-CS128)))/(((CT127-CT126)/(CS127-CS126))-((CT129-CT128)/(CS129-CS128))) -> 31.55928529 | CT130: =CT126+(CS130-CS126)*((CT127-CT126)/(CS127-CS126)) -> 136.6790796 | CU130: =CQ103 -> 25.1129 | CV130: =CR103 -> 145.3938304 | CW130: 28 | CY130: (41→45) | CZ130: =SQRT(POWER((CY116-CY115),2)+POWER((CZ116-CZ115),2)) -> 21.09313632 | DB130: نقطه اول از خط اول | DC130: 41 | DD130: =CY116 -> 20.57 | DE130: =CZ116 -> 106.1813315 | DG130: =DC104 -> 10.3175 | DH130: =DD104 -> 74.80126631 | DI130: 50'sm | DK130: 41.08376355 | DL130: 47.58102114 | DM130: p7r | DO130: 45.0486429 | DP130: 106.2061408 | DQ130: =DQ104 -> شیفت36m | DT130: =BW137 -> 18.06911245 | DU130: =BX137 -> 143.6194423 | DV130: 22 | DW130: راس حلقه آستین | DY130: =CE120 -> 39.37749689 | DZ130: =CF120 -> 142.2134048 | EA130: 18 | EB130: راس حلقه آستین | EL130: =AZ177 -> 8.17221716 | EM130: =BA177 -> 74.575 | EN130: 52 | ET130: ='متغیرها '!C51 -> 0 | EU130: ='متغیرها '!C52 -> 0 | FB130: =EH106 -> 5.720046094 | FC130: =EI106 -> 141.8977855 | FD130: e5 | FF130: =DY151+CB112 -> 34.36083179 | FG130: =DZ151+CB113 -> 145.1463327 | FH130: شیفت 32b | FJ130: =BO191 -> 29.5625 | FK130: =BP191 -> 86.3 | FL130: شیفت 38'' | FR130: =DK111 -> 29.5625 | FS130: =DL111 -> 74.575 | FT130: شیفت 50 | FX130: =-DD168-GK101 -> -24.4422858 | FY130: =DE168 -> 122.695363 | FZ130: 12 | GB130: =-CM138-GK101 -> -11.54992942 | GC130: =CN138 -> 134.9768145 | GD130: وسط 20f | GF130: =-EX129-GK101 -> -16.77865386 | GG130: =EY129 -> 77.12397982 | GH130: s2m یا 45m | GJ130: =-ED128-GK101 -> -10.34221716 | GK130: =EE128 -> 120.3 | GL130: 5 پیراهن | GV130: =-CR182-GK101 -> 0 | GW130: =CS182 -> 98.745 | GX130: d4 | HD130: =-U412-GK101 -> -20.57 | HE130: =V412 -> 106.1813315 | HF130: 41 | HH130: =-CP284-GK101 -> 2.02407848 | HI130: =CQ284 -> 85.75950317 | HJ130: m9'' | HL130: =-DP460-GK101 -> -17.89788286 | HM130: =DQ460 -> 100.851775 | HN130: β13
E131: قد آستین (دست به طور خمیده، قد از سرشانه تا مچ) | F131: w10 | H131: ='متغیرها '!U83+'متغیرها '!C63*'متغیرها '!U83+'متغیرها '!U83*'متغیرها '!C517 -> 59 | J131: (14 → 11) | K131: وصل | N131: فاصله افقی بین 36 و 34' | O131: =O152+0.5*G169*COS(G160) -> 7.846267585 | P131: =P152+0.5*H169*COS(H160) -> 7.814724745 | Q131: =AN133 -> 20.42445716 | R131: =AO133 -> 18.695363 | S131: 19 | U131: =AN140 -> 0 | V131: =AO140 -> 34.10593876 | W131: 26 | Y131: 0 | Z131: (14 → 15) | AA131: =K128 -> 1.53 | AC131: فاصله افقی بین 38 و 36' | AD131: =AD152+0.5*G170*COS(G158) -> 1.739669337 | AE131: =AE152+0.5*H170*COS(H158) -> 1.739775656 | AJ131: =AR142 -> 0 | AK131: =AS142 -> 38.48971739 | AL131: 28 | AN131: =K115-K134 -> 21.9311429 | AO131: =K127+AP111 -> 18.695363 | AP131: 17 | AR131: =AA115-AA135 -> 17.4 | AS131: =AA130+AT111 -> 16.62044517 | AT131: 17 | AV131: 7.554655119 | AW131: (27 → 28) | AX131: 7.554655119 | AZ131: =AX112+AX99+'متغیرها '!C55 -> 20.17334287 | BA131: =AX143+AX98 -> 94.6 | BB131: 35شیفت | BD131: =BD129 -> 16.48639242 | BE131: =BE129 -> 73.34866846 | BG131: 5.1129 | BH131: (2→27) | BI131: 5.1129 | BK131: =BI129+BI98 -> 22.72688 | BL131: =BI103+BI97 -> 146.6 | BM131: 25 | BO131: =BK169 -> 20.85625 | BP131: =BL126+'متغیرها '!C278*('متغیرها '!U60-'متغیرها '!U59) -> 73.82614076 | BT131: =(BU143-BU142) -> 0.2551226078 | BU131: زاویه چرخش به ساسون زیر بغل | BW131: مولفه افقی | BX131: مولفه عمودی | BY131: اسم نقطه | CA131: =BK122-CB112 -> 43.0711745 | CB131: =BL122-CB113 -> 122.7201722 | CC131: 8 | CD131: نقطه حلقه آستین | CE131: =CA104+SQRT(POWER(CA131-CA104,2)+POWER(CB131-CB104,2))*SIN(IF(CB131=CB104,RADIANS(90)-CB130,ATAN((CA131-CA104)/ABS(CB131-CB104))+IF(CB131>CB104,-1,1)*CB130)) -> 43.53483039 | CF131: =CB104+IF(CB131<CB104,-1,1)*SQRT(POWER(CA131-CA104,2)+POWER(CB131-CB104,2))*COS(IF(CB131=CB104,RADIANS(90)-CB130,ATAN((CA131-CA104)/ABS(CB131-CB104))+IF(CB131>CB104,-1,1)*CB130)) -> 124.0261243 | CG131: b4 | CI131: نقطه اول از خط اول | CJ131: 30 | CK131: =CM137 -> 5.45376 | CL131: =CN137 -> 142.3029694 | CM131: =CI104 -> 10.34221716 | CN131: =CJ104 -> 120.3 | CO131: 5پیراهن | CU131: =CS137 -> 31.70214501 | CV131: =CT137 -> 138.1473448 | CW131: وسط 12f | CY131: α43 | CZ131: =ATAN((CY104-CY103)/(CZ103-CZ104)) -> 0.08301430015 | DB131: نقطه دوم از خط اول | DC131: 45 | DD131: =CY115 -> 22.55 | DE131: =CZ115 -> 85.18133154 | DG131: =DC105 -> 13.13625 | DH131: =DD105-0.15*(CZ114-CZ106) -> 75.02753261 | DI131: 50''sm | DK131: 42.74980617 | DL131: 6.181021143 | DM131: p5r | DO131: =DO122 -> 47.39147719 | DP131: 85.07762964 | DQ131: =DQ122 -> p10rm | DT131: =BW138 -> 12.43926074 | DU131: =BX138 -> 145.0524921 | DV131: 34 | DW131: نقطه ساسون سرشانه | DY131: =CE121 -> 34.23742037 | DZ131: =CF121 -> 144.9205205 | EA131: 32 | EB131: نقطه ساسون سرشانه | ED131: =BS128 -> 10.34221716 | EE131: =BT128 -> 120.3 | EF131: 5 پیراهن | EH131: =BW127 -> -4.708499181 | EI131: =BX127 -> 139.5583118 | EJ131: e10 | ER131: ترک وسط برای جیب با ساسون | ET131: ='متغیرها '!C51+10 -> 10 | EU131: ='متغیرها '!C52 -> 0 | EX131: =EX129 -> 16.77865386 | EY131: =EY129 -> 77.12397982 | EZ131: =EZ129 -> s2m یا 45m | FB131: =EH107 -> -0.5195870278 | FC131: =EI107 -> 139.5837457 | FD131: e9 | FF131: =BO158 -> 32.01871396 | FG131: =BP158 -> 138.2799026 | FH131: شیفت 22 | FJ131: =BO192 -> 29.5625 | FK131: =BP192 -> 74.575 | FL131: شیفت 50 | FN131: =DO118 -> 49.25039505 | FO131: =DP118 -> 85.53573489 | FP131: =DQ118 -> s'2m | FR131: =EE341 -> 25.5625 | FS131: =EF341 -> 74.575 | FT131: e216 | FX131: =-DD169-GK101 -> -21.9311429 | FY131: =DE169 -> 123.842863 | FZ131: 18 | GJ131: =-ED129-GK101 -> -10.34221716 | GK131: =EE129 -> 120.3 | GL131: 5 بالاتنه | GN131: =-EL127-GK101 -> -8.17221716 | GO131: =EM127 -> 86.09 | GP131: 47' | GT131: 62' | GV131: =-CR183-GK101 -> 1.503 | GW131: =CS183 -> 98.745 | GX131: 26'' | GZ131: =-AW277-GK101 -> 0 | HA131: =AX277 -> 88.91441091 | HB131: 3n | HF131: رسم انحنا پایین پانچو | HH131: =-CP285-GK101 -> 1.07157096 | HI131: =CQ285 -> 93.33978707 | HJ131: m9''' | HL131: =-DP461-GK101 -> -22.44880288 | HM131: =DQ461 -> 88.34822499 | HN131: β7
E132: دور مچ دست | F132: w11 | H132: ='متغیرها '!U84+0.9*'متغیرها '!C60*'متغیرها '!U84 -> 18 | J132: (12 → 15) | K132: =G156+0.25*G167*'متغیرها '!C76*COS(O140)+'متغیرها '!C61*H120-1.2*0.5*G167*'متغیرها '!C78*COS(O140)-'متغیرها '!C77*O128*H130*((L115-L120-L121-L124)/(L127-L125)) -> 5.022285799 | L132: =H156 -> 5.18 | N132: فاصله عمودی بین 36 و 34' | O132: =O151-0.5*G169*SIN(G160) -> 22.43892438 | P132: =P151-0.5*H169*SIN(H160) -> 19.17892438 | Q132: =AN134 -> 20.42445716 | R132: =AO134 -> 21.755363 | S132: 20 | U132: =AN115 -> 0 | V132: =AO115 -> 0 | W132: 1 | Y132: =L129 -> 0 | Z132: (14 → 16) | AA132: =K129 -> 3.978 | AC132: فاصله عمودی بین 38 و 36' | AD132: =AD151-0.5*G170*SIN(G158) -> 5.867968632 | AE132: =AE151-0.5*H170*SIN(H158) -> 5.868296488 | AF132: =AR135 -> 19.05845756 | AG132: =AS135 -> 16.62044517 | AH132: 21 | AJ132: =AR119 -> 0 | AK132: =AS119 -> 30.375 | AL132: 5 | AN132: =K115-K134-0.6*P123 -> 21.9311429 | AO132: =K127+K135+AP111 -> 19.842863 | AP132: 18 | AR132: =AA115-AA135 -> 17.4 | AS132: =AA130+AA136+AT111 -> 25.80044517 | AT132: 18 | AV132: 5.45376 | AW132: (2 → 29) | AX132: 5.45376 | BD132: =BD125 -> 0 | BE132: =BE129 -> 73.34866846 | BG132: 1.206169564 | BH132: (27 → 28) | BI132: 1.206169564 | BK132: =BI129+BI98 -> 22.72688 | BL132: =BI103-BI130+BI97 -> 144.7907457 | BM132: 26 | BO132: =BK126 -> 43.99256935 | BP132: =BP131 -> 73.82614076 | BS132: =AZ99-BT130 -> 24.4422858 | BT132: =BA99 -> 122.695363 | BU132: 12 | BV132: نقطه حلقه آستین | BW132: =BS104+SQRT(POWER(BS132-BS104,2)+POWER(BT132-BT104,2))*SIN(IF(BT132=BT104,RADIANS(90)-BT131,ATAN((BS132-BS104)/ABS(BT132-BT104))+IF(BT132>BT104,-1,1)*IF(AND(BX101=1,BX102=0),(ATAN((BS138-BS104)/(BT138-BT104))-ATAN((BS109-BS104)/(BT109-BT104))),BT131))) -> 23.38139636 | BX132: =BT104+IF(BT132<BT104,-1,1)*SQRT(POWER(BS132-BS104,2)+POWER(BT132-BT104,2))*COS(IF(BT132=BT104,RADIANS(90)-BT131,ATAN((BS132-BS104)/ABS(BT132-BT104))+IF(BT132>BT104,-1,1)*IF(AND(BX101=1,BX102=0),(ATAN((BS138-BS104)/(BT138-BT104))-ATAN((BS109-BS104)/(BT109-BT104))),BT131))) -> 126.1761812 | BY132: b4 | CA132: =BO105-CB112 -> 41.96553613 | CB132: =BP105-CB113 -> 123.6381722 | CC132: 14 | CD132: نقطه حلقه آستین | CE132: =CA104+SQRT(POWER(CA132-CA104,2)+POWER(CB132-CB104,2))*SIN(IF(CB132=CB104,RADIANS(90)-CB130,ATAN((CA132-CA104)/ABS(CB132-CB104))+IF(CB132>CB104,-1,1)*CB130)) -> 42.34024147 | CF132: =CB104+IF(CB132<CB104,-1,1)*SQRT(POWER(CA132-CA104,2)+POWER(CB132-CB104,2))*COS(IF(CB132=CB104,RADIANS(90)-CB130,ATAN((CA132-CA104)/ABS(CB132-CB104))+IF(CB132>CB104,-1,1)*CB130)) -> 124.8249468 | CG132: b8 | CI132: نقطه دوم از خط اول | CJ132: 16f | CK132: =CI119 -> 16.59108511 | CL132: =CJ119 -> 132.3111244 | CM132: =CM135+0.5*(CI117-CM135) -> 12.35322805 | CN132: =CJ117+0.5*(CN135-CJ117) -> 144.7389618 | CO132: وسط 22f | CR132: به دست آوردن نقطه تقاطع دو خط (وسط 12f) | CS132: مولفه افقی | CT132: مولفه عمودی | CY132: α40 | CZ132: =ATAN((CY104-CY105)/(CZ104-CZ105)) -> -0.0605067332 | DB132: نقطه اول از خط دوم | DC132: 47'' | DD132: =CY105 -> 12.51221716 | DE132: =CZ105 -> 86.09 | DK132: 43.23328565 | DL132: 1.581021143 | DM132: p1 r | DO132: 43.59490645 | DP132: 47.58102114 | DQ132: =DQ123 -> p7rm | DT132: =BS128 -> 10.34221716 | DU132: =BT128 -> 120.3 | DV132: 5 | DW132: نقطه مرکزساسون | DY132: =BK101 -> 32.01871396 | DZ132: =BL101 -> 138.2799026 | EA132: 22 | EB132: نقطه مرکزساسون | ED132: =DT149 -> 12.51408824 | EE132: =DU149 -> 145.3623154 | EF132: چرخیده32b | EH132: =BS116 -> -1.503 | EI132: =BT116 -> 116.75 | EJ132: e1 | EN132: جادکمه یقه گرد در پیراهن | EP132: =CY108 -> 8.17221716 | EQ132: =CZ108 -> 86.09 | ER132: 47' | EX132: =DG124-DH118 -> 20.0388571 | EY132: =DH124 -> 75.14066577 | EZ132: 49'm | FN132: =DO117 -> 47.25754376 | FO132: =DP117 -> 83.45962076 | FP132: =DQ117 -> s''2m | FX132: =-DD170-GK101 -> -20.42445716 | FY132: =DE170 -> 125.755363 | FZ132: 20g | GB132: =-CM140-GK101 -> -11.54992942 | GC132: =CN140 -> 134.9768145 | GD132: شیفت وسط 20f | GF132: =-EX131-GK101 -> -16.77865386 | GG132: =EY131 -> 77.12397982 | GH132: =GH130 -> s2m یا 45m | GN132: =-EL130-GK101 -> -8.17221716 | GO132: =EM130 -> 74.575 | GP132: 52 | GR132: =-ET134-GK101 -> -8.17221716 | GS132: =EU134 -> 74.575 | GT132: 52 | GZ132: =-AW278-GK101 -> -20.47880111 | HA132: =AX278 -> 88.91441091 | HB132: 4n | HD132: =-U414-GK101 -> -61.28256458 | HE132: =V414 -> 99.03091979 | HF132: k5 | HH132: =-CP286-GK101 -> 0 | HI132: =CQ286 -> 99.025 | HJ132: s1
E133: دور سر | F133: w12 | H133: ='متغیرها '!U85 -> 57 | J133: (15 → 16) | K133: =(1+'متغیرها '!C77)*O128*H130 -> 7.65 | L133: =O128*'متغیرها '!U82 -> 6.12 | N133: β1 | O133: =ATAN(O129/O130) -> 0.08147822449 | P133: =ATAN(P129/P130) -> 0.0925075221 | U133: =AN122 -> 8.17221716 | V133: =AO122 -> 0 | W133: 8 | Z133: (15 → 16) | AA133: وصل | AC133: β5 | AD133: =ATAN(AD129/AD130) -> 0.04321543648 | AE133: =ATAN(AE129/AE130) -> 0.04321762039 | AF133: =AR136 -> 19.05845756 | AG133: =AS136 -> 20.29244517 | AH133: 22 | AJ133: =AR123 -> 1.9 | AK133: =AS123 -> 0 | AL133: 9 | AN133: =K115-K136 -> 20.42445716 | AO133: =K127+AP111 -> 18.695363 | AP133: 19 | AR133: =AA115-AA137 -> 21.82255348 | AS133: =AA130+AT111 -> 16.62044517 | AT133: 19 | AV133: 4.197030622 | AW133: (29 → 30) | AX133: 4.197030622 | BH133: (24 → 26→ 28→ 23) | BI133: هلال وصل | BS133: =AZ98-BT130 -> 21.9311429 | BT133: =BA98 -> 123.842863 | BU133: 18 | BV133: نقطه حلقه آستین | BW133: =BS104+SQRT(POWER(BS133-BS104,2)+POWER(BT133-BT104,2))*SIN(IF(BT133=BT104,RADIANS(90)-BT131,ATAN((BS133-BS104)/ABS(BT133-BT104))+IF(BT133>BT104,-1,1)*IF(AND(BX101=1,BX102=0),(ATAN((BS138-BS104)/(BT138-BT104))-ATAN((BS109-BS104)/(BT109-BT104))),BT131))) -> 20.66194548 | BX133: =BT104+IF(BT133<BT104,-1,1)*SQRT(POWER(BS133-BS104,2)+POWER(BT133-BT104,2))*COS(IF(BT133=BT104,RADIANS(90)-BT131,ATAN((BS133-BS104)/ABS(BT133-BT104))+IF(BT133>BT104,-1,1)*IF(AND(BX101=1,BX102=0),(ATAN((BS138-BS104)/(BT138-BT104))-ATAN((BS109-BS104)/(BT109-BT104))),BT131))) -> 126.6528171 | BY133: b8 | CA133: =BO104-CB112 -> 39.2014402 | CB133: =BP104-CB113 -> 126.3921722 | CC133: 16 | CD133: نقطه حلقه آستین | CE133: =CA104+SQRT(POWER(CA133-CA104,2)+POWER(CB133-CB104,2))*SIN(IF(CB133=CB104,RADIANS(90)-CB130,ATAN((CA133-CA104)/ABS(CB133-CB104))+IF(CB133>CB104,-1,1)*CB130)) -> 39.30633388 | CF133: =CB104+IF(CB133<CB104,-1,1)*SQRT(POWER(CA133-CA104,2)+POWER(CB133-CB104,2))*COS(IF(CB133=CB104,RADIANS(90)-CB130,ATAN((CA133-CA104)/ABS(CB133-CB104))+IF(CB133>CB104,-1,1)*CB130)) -> 127.2785456 | CG133: b10 | CI133: نقطه اول از خط دوم | CJ133: 5 | CK133: =CM131 -> 10.34221716 | CL133: =CN131 -> 120.3 | CQ133: نقطه اول از خط اول | CR133: 28 | CS133: =CU124 -> 25.1129 | CT133: =CV124 -> 145.3938304 | CU133: =CS137+CR105 -> 31.70214501 | CV133: =CT137+CR106 -> 138.1473448 | CW133: شیفت وسط 12f | CY133: α41 | CZ133: =ATAN((CY115-CY116)/(CZ116-CZ115)) -> 0.09400780155 | DB133: نقطه دوم از خط دوم | DC133: s''2 | DD133: =DC118 -> 21.54073006 | DE133: =DD118 -> 76.68416478 | DI133: پهلو جدا در شلوار | DO133: 45.26094906 | DP133: 6.181021143 | DQ133: =DQ124 -> p5rm | DT133: =BW109 -> 12.44673904 | DU133: =BX109 -> 145.0657224 | DV133: 32 | DW133: نقطه ساسون سرشانه | DY133: =CE109 -> 32.46026339 | DZ133: =CF109 -> 145.2198922 | EA133: 30 | EB133: نقطه ساسون سرشانه | EJ133: رسم انحنا پایه | EL133: =CY109 -> 8.17221716 | EM133: =CZ109 -> 74.575 | EN133: 52 | EP133: =CY107 -> 9.25721716 | EQ133: =CZ107 -> 104 | ER133: 39 | EV133: جادکمه یقه پشت گردنی یا آرشال در پیراهن | FB133: =EH109 -> -0.5195870278 | FC133: =EI109 -> 139.5837457 | FD133: e9 | FF133: =BO158 -> 32.01871396 | FG133: =BP158 -> 138.2799026 | FH133: شیفت 22 | FJ133: =BK154 -> 30.7 | FK133: =BL154 -> 127.8476283 | FL133: 40 | FP133: کمر | FR133: =BO176 -> 20.85625 | FS133: =BP176 -> 74.575 | FT133: 47 | FX133: =-DD171-GK101 -> -19.42 | FY133: =DE171 -> 130.345363 | FZ133: 16g | GB133: =-CM141-GK101 -> -17.76876522 | GC133: =CN141 -> 127.5032437 | GD133: 20f | GF133: =-EX132-GK101 -> -20.0388571 | GG133: =EY132 -> 75.14066577 | GH133: 49'm | GJ133: =-ED131-GK101 -> -10.34221716 | GK133: =EE131 -> 120.3 | GL133: 5 پیراهن | GR133: =-ET135-GK101 -> 1.503 | GS133: =EU135 -> 74.575 | GT133: 1' | GV133: =-CR183-GK101 -> 1.503 | GW133: =CS183 -> 98.745 | GX133: 26'' | HD133: =-U415-GK101 -> -51.52849509 | HE133: =V415 -> 89.24855188 | HF133: k14 | HL133: =-DP463-GK101 -> -18.49555533 | HM133: =DQ463 -> 102.1334878 | HN133: β11
F134: رادیان | G134: درجه | J134: (12 → 17) | K134: =0.5*K132 -> 2.5111429 | L134: =0.5*L132 -> 2.59 | N134: β2 | O134: =ATAN(O131/O132) -> 0.3363827442 | P134: =ATAN(P131/P132) -> 0.3869244098 | Q134: =AN130 -> 19.42 | R134: =AO130 -> 26.345363 | S134: 16 | U134: =AN121 -> 10.34221716 | V134: =AO121 -> 13.04 | W134: 7 | Z134: (16 → 13) | AA134: وصل | AC134: β6 | AD134: =ATAN(AD131/AD132) -> 0.288213977 | AE134: =ATAN(AE131/AE132) -> 0.2882154056 | AJ134: =AR124 -> 9.75 | AK134: =AS124 -> 0 | AL134: 10 | AN134: =K115-K136-0.4*P123 -> 20.42445716 | AO134: =K127+K137+AP111 -> 21.755363 | AP134: 20 | AR134: =AA115-AA137 -> 21.82255348 | AS134: =AA130+AA138+AT111 -> 17.53844517 | AT134: 20 | AW134: (25→30→28→26) | AX134: هلال وصل | AZ134: =AZ125 -> 23.704 | BA134: =BA125 -> 140.9146565 | BB134: 22 | BD134: =BD132 -> 0 | BE134: =BE132 -> 73.34866846 | BG134: =Y153 -> 5.643031075 | BH134: (23→29) | BI134: =AA153 -> 5.643063394 | BK134: =BI131+BI98 -> 25.1129 | BL134: =BI103+BI97 -> 146.6 | BM134: 27 | BO134: =BK168 -> 20 | BP134: =BL168-2 -> 72.575 | BS134: =AZ97-BT130 -> 20.42445716 | BT134: =BA97 -> 125.755363 | BU134: 20 | BV134: نقطه حلقه آستین | BW134: =BS104+SQRT(POWER(BS134-BS104,2)+POWER(BT134-BT104,2))*SIN(IF(BT134=BT104,RADIANS(90)-BT131,ATAN((BS134-BS104)/ABS(BT134-BT104))+IF(BT134>BT104,-1,1)*IF(AND(BX101=1,BX102=0),(ATAN((BS138-BS104)/(BT138-BT104))-ATAN((BS109-BS104)/(BT109-BT104))),BT131))) -> 18.72138136 | BX134: =BT104+IF(BT134<BT104,-1,1)*SQRT(POWER(BS134-BS104,2)+POWER(BT134-BT104,2))*COS(IF(BT134=BT104,RADIANS(90)-BT131,ATAN((BS134-BS104)/ABS(BT134-BT104))+IF(BT134>BT104,-1,1)*IF(AND(BX101=1,BX102=0),(ATAN((BS138-BS104)/(BT138-BT104))-ATAN((BS109-BS104)/(BT109-BT104))),BT131))) -> 128.1231807 | BY134: b10 | CA134: =BO103-CB112 -> 37.54298265 | CB134: =BP103-CB113 -> 131.9001722 | CC134: 12 | CD134: نقطه حلقه آستین | CE134: =CA104+SQRT(POWER(CA134-CA104,2)+POWER(CB134-CB104,2))*SIN(ATAN((CA134-CA104)/(CB134-CB104))-CB130) -> 37.08753282 | CF134: =CB104+SQRT(POWER(CA134-CA104,2)+POWER(CB134-CB104,2))*COS(ATAN((CA134-CA104)/(CB134-CB104))-CB130) -> 132.5856604 | CG134: b6 | CI134: نقطه دوم از خط دوم | CJ134: وسط 22f | CK134: =CM132 -> 12.35322805 | CL134: =CN132 -> 144.7389618 | CM134: =CM132 -> 12.35322805 | CN134: =CN132 -> 144.7389618 | CO134: وسط 22f | CQ134: نقطه دوم از خط اول | CR134: 12f | CS134: =CQ122 -> 37.4 | CT134: =CR122 -> 131.8811604 | CU134: =CQ122-0.05*(CQ122-CQ103)+CR105 -> 36.785645 | CV134: =CR122-0.15*(CR122-CR123)+CR106 -> 131.2704278 | CW134: 12fشیفت | CY134: α14 | CZ134: =ATAN((CY117-CY116)/(CZ117-CZ116)) -> 0.2995949314 | DB134: نقطه تقاطع | DC134: s'2 | DD134: =(DE132-DE130+DD130*((DE131-DE130)/(DD131-DD130+0.0001))-DD132*((DE133-DE132)/(DD133-DD132+0.0001)))/(((DE131-DE130)/(DD131-DD130+0.0001))-((DE133-DE132)/(DD133-DD132+0.0001))) -> 23.548517 | DE134: =DE130+(DD134-DD130)*((DE131-DE130)/(DD131-DD130+0.0001)) -> 74.59259515 | DG134: =DG103 -> 21.9311429 | DH134: =DH103 -> 123.842863 | DI134: شیفت 18 | DM134: محاسبات | DO134: 45.74442855 | DP134: 1.581021143 | DQ134: =DQ125 -> p1rm | DT134: =BW105 -> 6.8172 | DU134: =BX105 -> 146.5 | DV134: 25 | DW134: نقطه یقه | DY134: =CE105 -> 26.8172 | DZ134: =CF105 -> 146.6 | EA134: 23 | EB134: نقطه یقه | ED134: =DT149 -> 12.51408824 | EE134: =DU149 -> 145.3623154 | EF134: چرخیده32b | EH134: =J272 -> 0 | EI134: 159.5888113 | EJ134: p3 | EL134: =BD150 -> 0 | EM134: =BE150 -> 74.575 | EN134: 1 | ET134: =CY109 -> 8.17221716 | EU134: =CZ109 -> 74.575 | EV134: 52 | EX134: =DC126 -> 20.87025346 | EY134: =DD126 -> 126.6163072 | EZ134: =DE126 -> b'8s | FB134: =EH110 -> -4.708499181 | FC134: =EI110 -> 139.5583118 | FD134: e10 | FF134: =BK179 -> 30.7 | FG134: =BL179 -> 127.8476283 | FH134: شیفت 40 | FJ134: =BK159 -> 29.18125 | FK134: =BL159 -> 106.1 | FL134: 34 | FN134: =BO178 -> 21.9 | FO134: =BP178 -> 106.1 | FP134: 44 | FR134: =CE169 -> 27.8375 | FS134: =CF169 -> 74.575 | FT134: e'216 | GD134: رگلان با درز | GJ134: =-ED132-GK101 -> -12.51408824 | GK134: =EE132 -> 145.3623154 | GL134: چرخیده32b | GP134: 23' | GV134: =-CR186-GK101 -> 1.503 | GW134: =CS186 -> 120.3 | GX134: 4' | GZ134: =-AW278-GK101 -> -20.47880111 | HA134: =AX278 -> 88.91441091 | HB134: 4n | HD134: =-U416-GK101 -> -32.02035613 | HE134: =V416 -> 77.75426957 | HF134: k15 | HJ134: 65' | HL134: =-DP464-GK101 -> -23.73051565 | HM134: =DQ464 -> 87.75055252 | HN134: β5
E135: زاویه خام سرشانه پشت | F135: =ATAN((I126-I125)/(0.52*H168-H163)) -> 0.3102751798 | G135: =ROUND(DEGREES(F135),0) -> 18 | J135: (17 → 18) | K135: =0.15*K133 -> 1.1475 | L135: =0.15*L133 -> 0.918 | N135: (36 → 32') | O135: =O130/COS(O133) -> 24.4568681 | P135: =P130/COS(P133) -> 21.2064058 | Q135: =AN135 -> 23.704 | R135: =AO135 -> 26.345363 | S135: 21 | U135: =AN123 -> 12.51221716 | V135: =AO123 -> 0 | W135: 9 | Y135: =H155+AE127 -> 5.671174499 | Z135: (14 → 17) | AA135: =G155+0.25*'متغیرها '!C76*G167*COS(AD140)+'متغیرها '!C61*H120-1.2*0.5*'متغیرها '!C78*G167*COS(AD140)+AD127-'متغیرها '!C77*O128*H130*((Y115-Y121-Y123-Y124-Y127)/(Y130)) -> 5.528191854 | AC135: (38 → 34') | AD135: =AD130/COS(AD133) -> 6.390973253 | AE135: =AE130/COS(AE133) -> 6.391360959 | AF135: =AR132 -> 17.4 | AG135: =AS132 -> 25.80044517 | AH135: 18 | AJ135: =AR122 -> 10.7 | AK135: =AS122 -> 21.74762832 | AL135: 8 | AN135: =K115-K132+K138 -> 23.704 | AO135: =K127+K133+AP111 -> 26.345363 | AP135: 21 | AR135: =AA115-AA139 -> 19.05845756 | AS135: =AA130+AT111 -> 16.62044517 | AT135: 21 | AV135: =L150 -> 5.676540688 | AW135: (25 → 31) | AX135: =K150 -> 5.629539043 | AZ135: =AX104-AX117+AX123-AX138+AX99 -> 18.61802355 | BA135: =AX113+AX118+AX124+AX98 -> 140.9146565 | BB135: 33 | BD135: =BD125 -> 0 | BE135: =BE125 -> 72.575 | BG135: =Y154 -> 1.380239925 | BH135: (29 → 30) | BI135: =AA154 -> 1.380107786 | BK135: =BI131+BI98 -> 25.1129 | BL135: =BI103-BI132+BI97 -> 145.3938304 | BM135: 28 | BO135: =BO134+'متغیرها '!C279*(BK126-BO126+BO117-BO134) -> 35.59517008 | BP135: =BP134 -> 72.575 | BS135: =AZ96-BT130 -> 19.42 | BT135: =BA96 -> 130.345363 | BU135: 16 | BV135: نقطه حلقه آستین | BW135: =BS104+SQRT(POWER(BS135-BS104,2)+POWER(BT135-BT104,2))*SIN(ATAN((BS135-BS104)/(BT135-BT104))-IF(AND(BX101=1,BX102=0),(ATAN((BS138-BS104)/(BT138-BT104))-ATAN((BS109-BS104)/(BT109-BT104))),BT131)) -> 16.59108511 | BX135: =BT104+SQRT(POWER(BS135-BS104,2)+POWER(BT135-BT104,2))*COS(ATAN((BS135-BS104)/(BT135-BT104))-IF(AND(BX101=1,BX102=0),(ATAN((BS138-BS104)/(BT138-BT104))-ATAN((BS109-BS104)/(BT109-BT104))),BT131)) -> 132.3111244 | BY135: b6 | CA135: =BO102-CB112 -> 38.09378265 | CB135: =BP102-CB113 -> 137.5719565 | CC135: 20 | CD135: نقطه حلقه آستین | CE135: =CA104+SQRT(POWER(CA135-CA104,2)+POWER(CB135-CB104,2))*SIN(ATAN((CA135-CA104)/(CB135-CB104))-CB130) -> 37.04923377 | CF135: =CB104+SQRT(POWER(CA135-CA104,2)+POWER(CB135-CB104,2))*COS(ATAN((CA135-CA104)/(CB135-CB104))-CB130) -> 138.2839979 | CG135: b12 | CI135: نقطه تقاطع | CJ135: g1 | CK135: =(CL133-CL131+CK131*((CL132-CL131)/(CK132-CK131))-CK133*((CL134-CL133)/(CK134-CK133)))/(((CL132-CL131)/(CK132-CK131))-((CL134-CL133)/(CK134-CK133))) -> 11.69222973 | CL135: =CL131+(CK135-CK131)*((CL132-CL131)/(CK132-CK131)) -> 136.7061297 | CM135: =CI109 -> 6.8172 | CN135: =CJ109 -> 146.5 | CO135: 25 | CQ135: نقطه اول از خط دوم | CR135: 40 | CS135: =CU118 -> 30.7 | CT135: =CV118 -> 127.8476283 | CU135: =CU105 -> 38.12011745 | CV135: =CV105 -> 127.8096101 | CW135: 16fشیفت | CY135: (45→s'2) | CZ135: =SQRT(POWER((CY115-DC119),2)+POWER((CZ115-DD119),2))*IF('متغیرها '!C187>0,1,-1) -> -10.63571222 | DG135: =DG121 -> 21.9311429 | DH135: =DH121 -> 118.717363 | DI135: شیفت 14m | DL135: =SQRT(POWER(DG112-DG111,2)+POWER(DH112-DH111,2)) -> 144.7516392 | DM135: m'' | DT135: =BW136 -> 16.50103137 | DU135: =BX136 -> 137.7490578 | DV135: 24 | DW135: نقطه حلقه آستین | DY135: =CE119 -> 38.09277685 | DZ135: =CF119 -> 137.5727212 | EA135: 20 | EB135: نقطه حلقه آستین | ED135: =BW105 -> 6.8172 | EE135: =BX105 -> 146.5 | EF135: چرخیده25 | EH135: 4.946068884 | EI135: 159.5888113 | EJ135: p6 | EP135: =CY107 -> 9.25721716 | EQ135: =CZ107 -> 104 | ER135: 39 | ET135: =BD97 -> -1.503 | EU135: =BE97 -> 74.575 | EV135: 1' | EX135: =DC109 -> 20.66194548 | EY135: =DD109 -> 126.6528171 | EZ135: =DE109 -> b8s | FN135: =BK159 -> 29.18125 | FO135: =BL159 -> 106.1 | FP135: 34 | FX135: =FX129 -> -25.9722858 | FY135: =DE173 -> 122.695363 | FZ135: 13 | GB135: =-CM143-GK101 -> -5.45376 | GC135: =CN143 -> 142.3029694 | GD135: 30 | GF135: =-EX134-GK101 -> -20.87025346 | GG135: =EY134 -> 126.6163072 | GH135: b'8s | GN135: =GN132 -> -8.17221716 | GO135: =GO132 -> 74.575 | GP135: 52 | GR135: =-ET135-GK101 -> 1.503 | GS135: =EU135 -> 74.575 | GT135: 1' | GZ135: =-AW281-GK101 -> 0 | HA135: =AX281 -> 74.575 | HB135: 1 | HD135: =-U417-GK101 -> -12.51221716 | HE135: =V417 -> 74.575 | HF135: 53 | HH135: =-CT275-GK101 -> 0 | HI135: =CU275 -> 99.025 | HJ135: s1
E136: زاویه خام سرشانه جلو | F136: =ATAN((I123-I122-0.3*(0.5*('متغیرها '!U72-2*'متغیرها '!U73)))/(0.52*H168-H163)) -> 0.2746934847 | G136: =ROUND(DEGREES(F136),0) -> 16 | H136: =ROUND((محاسبات!H111-2*محاسبات!H110-0.03*محاسبات!H102)/محاسبات!H102,2) -> 0.11 | J136: (12 → 19) | K136: =0.8*K132 -> 4.017828639 | L136: =0.8*L132 -> 4.144 | N136: (36 → 34') | O136: =O132/COS(O134) -> 23.77118513 | P136: =P132/COS(P134) -> 20.70992669 | Q136: =AN136 -> 23.704 | R136: =AO136 -> 36.91465646 | S136: 22 | U136: =AN125 -> 22.74 | V136: =AO125 -> 2.265717992 | W136: 11 | Y136: =(AD128)*'متغیرها '!U82 -> 7.65 | Z136: (17 → 18) | AA136: =(AD128+O128*'متغیرها '!C77)*H130 -> 9.18 | AC136: (38 → 36') | AD136: =AD132/COS(AD134) -> 6.120417082 | AE136: =AE132/COS(AE134) -> 6.120761636 | AF136: =AR137 -> 19.236 | AG136: =AS137 -> 25.80044517 | AH136: 23 | AJ136: =AR125 -> 11.65 | AK136: =AS125 -> 0 | AL136: 11 | AN136: =K115-K132+K138 -> 23.704 | AO136: =K127+K133+K139+AP111 -> 36.91465646 | AP136: 22 | AR136: =AA115-AA139 -> 19.05845756 | AS136: =AA130+AA140+AT111 -> 20.29244517 | AT136: 22 | AV136: =L151 -> 1.235211636 | AW136: (31 → 32) | AX136: =K151 -> 1.434277564 | AZ136: =AX104-AX117+AX123-AX138+AX99 -> 18.61802355 | BA136: =AX113+AX118+AX124+AX139+AX98 -> 143.722094 | BB136: 34 | BG136: =Y156 -> 5.139735146 | BH136: (18 → 31) | BI136: =AA156 -> 5.139796505 | BS136: =AZ95-BT130 -> 20.7052 | BT136: =BA95 -> 135.6300097 | BU136: 24 | BV136: نقطه حلقه آستین | BW136: =BS104+SQRT(POWER(BS136-BS104,2)+POWER(BT136-BT104,2))*SIN(ATAN((BS136-BS104)/(BT136-BT104))-IF(BX101=1,(ATAN((BS138-BS104)/(BT138-BT104))-ATAN((BS109-BS104)/(BT109-BT104))),BT131)) -> 16.50103137 | BX136: =BT104+SQRT(POWER(BS136-BS104,2)+POWER(BT136-BT104,2))*COS(ATAN((BS136-BS104)/(BT136-BT104))-IF(BX101=1,(ATAN((BS138-BS104)/(BT138-BT104))-ATAN((BS109-BS104)/(BT109-BT104))),BT131)) -> 137.7490578 | BY136: b12 | CA136: =BO101-CB112 -> 39.37898265 | CB136: =BP101-CB113 -> 142.2125073 | CC136: 18 | CD136: نقطه حلقه آستین | CE136: =CA104+SQRT(POWER(CA136-CA104,2)+POWER(CB136-CB104,2))*SIN(ATAN((CA136-CA104)/(CB136-CB104))-CB130) -> 37.84797513 | CF136: =CB104+SQRT(POWER(CA136-CA104,2)+POWER(CB136-CB104,2))*COS(ATAN((CA136-CA104)/(CB136-CB104))-CB130) -> 143.0325201 | CG136: b16 | CO136: رگلان | CQ136: نقطه دوم از خط دوم | CR136: وسط 18f | CS136: =CU119 -> 32.35322805 | CT136: =CV119 -> 144.8389618 | CY136: α45 | CZ136: =ATAN((CZ105-CZ115)/(CY115-CY105)) -> 0.09027875085 | DG136: =DG122 -> 18.0588571 | DH136: =DH122 -> 106.1813315 | DI136: شیفت 41m | DL136: =ATAN((DP111-DL118)/(DK118-DO111)) -> 0.336027097 | DM136: αm | DO136: =DO125 -> 45.74442855 | DP136: =DP125 -> 1.581021143 | DQ136: p1 rm | DT136: =BW135 -> 16.59108511 | DU136: =BX135 -> 132.3111244 | DV136: 16 | DW136: نقطه حلقه آستین | DY136: =CE118 -> 37.54256347 | DZ136: =CF118 -> 131.9008799 | EA136: 12 | EB136: نقطه حلقه آستین | EH136: 8.408317104 | EI136: 159.0033371 | EJ136: p7 | EL136: =BD150 -> 0 | EM136: =BE150 -> 74.575 | EN136: 1 | EP136: =CY103 -> 10.34221716 | EQ136: =CZ103 -> 117.04 | ER136: 43 | FD136: آرشال | FH136: رگلان با درز | FJ136: =BK159 -> 29.18125 | FK136: =BL159 -> 106.1 | FL136: 34 | FR136: =DO114 -> 39.6355435 | FS136: =DP114 -> 142.7119379 | FT136: 18m | FX136: =-DD174-GK101 -> -24.4422858 | FY136: =DE174 -> 118.717363 | FZ136: 14 | GB136: =-CM144-GK101 -> -11.69222973 | GC136: =CN144 -> 136.7061297 | GD136: وسط 16f | GF136: =-EX135-GK101 -> -20.66194548 | GG136: =EY135 -> 126.6528171 | GH136: b8s | GJ136: =-ED134-GK101 -> -12.51408824 | GK136: =EE134 -> 145.3623154 | GL136: چرخیده32b | GN136: =-EL134-GK101 -> 0 | GO136: =EM134 -> 74.575 | GP136: 1 | GR136: =-ET138-GK101 -> 1.503 | GS136: =EU138 -> 116.75 | GT136: e1 | GV136: =-CR186-GK101 -> 1.503 | GW136: =CS186 -> 120.3 | GX136: 4' | HF136: پهلو و پایین لباس | HH136: =-CT276-GK101 -> -21.03907143 | HI136: =CU276 -> 99.025 | HJ136: s2 | HL136: =-DP466-GK101 -> -23.73051565 | HM136: =DQ466 -> 87.75055252 | HN136: β5
E137: زاویه خام سرشانه متوسط | F137: =ROUND(0.5*(F135+F136),2) -> 0.29 | G137: =ROUND(0.5*(G135+G136),1) -> 17 | J137: (19 → 20) | K137: =0.4*K133 -> 3.06 | L137: =0.4*L133 -> 2.448 | N137: فاصله افقی بین 22 و 25 بعد از بسته شدن ساسون | O137: =0.5*G167*COS(G160)+0.5*G167*COS(O134-O133-G160) -> 11.31280439 | P137: =0.5*H167*COS(H160)+0.5*H167*COS(P134-P133-H160) -> 11.32307573 | U137: =AN128 -> 24.4422858 | V137: =AO128 -> 14.717363 | W137: 14 | Y137: =0.2*Y135 -> 1.1342349 | Z137: (14 → 19) | AA137: =0.2*AA135 -> 1.105638371 | AC137: فاصله افقی بین 24 و 27 بعد از بسته شدن ساسون | AD137: =0.5*G167*COS(G158)+0.5*G167*COS(AD134-AD133-G158) -> 11.26102488 | AE137: =0.5*H167*COS(H158)+0.5*H167*COS(AE134-AE133-H158) -> 11.26097593 | AF137: =AR138 -> 19.236 | AG137: =AS138 -> 36.11278023 | AH137: 24 | AJ137: =AR127 -> 21.4 | AK137: =AS127 -> 0.1064137038 | AL137: 13 | AN137: =K115-K132+K140 -> 20.7052 | AO137: =K127+K133+AP111 -> 26.345363 | AP137: 23 | AR137: =AA115-AA135+AA141 -> 19.236 | AS137: =AA130+AA136+AT111 -> 25.80044517 | AT137: 23 | AW137: (25 → 32) | AX137: وصل | BF137: یقه هفت | BG137: =Y157 -> 2.707763763 | BH137: (31 → 32) | BI137: =AA157 -> 2.707647292 | BK137: =0+BI98 -> 20 | BL137: =BI125+BI97 -> 138.2799026 | BM137: 21 | BO137: =BO135 -> 35.59517008 | BP137: =BP135 -> 72.575 | BS137: =AZ94-BT130 -> 23.704 | BT137: =BA94 -> 140.9146565 | BU137: 22 | BV137: نقطه حلقه آستین | BW137: =BS104+SQRT(POWER(BS137-BS104,2)+POWER(BT137-BT104,2))*SIN(ATAN((BS137-BS104)/(BT137-BT104))-IF(BX101=1,(ATAN((BS138-BS104)/(BT138-BT104))-ATAN((BS109-BS104)/(BT109-BT104))),BT131)) -> 18.06911245 | BX137: =BT104+SQRT(POWER(BS137-BS104,2)+POWER(BT137-BT104,2))*COS(ATAN((BS137-BS104)/(BT137-BT104))-IF(BX101=1,(ATAN((BS138-BS104)/(BT138-BT104))-ATAN((BS109-BS104)/(BT109-BT104))),BT131)) -> 143.6194423 | BY137: b16 | CA137: =BK146-CB112 -> 34.23918614 | CB137: =BL146-CB113 -> 144.9201546 | CC137: 32 | CD137: نقطه ساسون سرشانه | CE137: =CA104+SQRT(POWER(CA137-CA104,2)+POWER(CB137-CB104,2))*SIN(ATAN((CA137-CA104)/(CB137-CB104))-CB130) -> 32.45587776 | CF137: =CB104+SQRT(POWER(CA137-CA104,2)+POWER(CB137-CB104,2))*COS(ATAN((CA137-CA104)/(CB137-CB104))-CB130) -> 145.1944979 | CG137: 32 | CM137: =CI103 -> 5.45376 | CN137: =CJ103 -> 142.3029694 | CO137: 30 | CQ137: نقطه تقاطع | CR137: g1 | CS137: =(CT135-CT133+CS133*((CT134-CT133)/(CS134-CS133))-CS135*((CT136-CT135)/(CS136-CS135)))/(((CT134-CT133)/(CS134-CS133))-((CT136-CT135)/(CS136-CS135))) -> 31.70214501 | CT137: =CT133+(CS137-CS133)*((CT134-CT133)/(CS134-CS133)) -> 138.1473448 | CY137: α41m | CZ137: =ATAN((DD117-DD115)/(DC117-DC115)) -> 0.4604861982 | DG137: =DG125 -> 19.68077977 | DH137: 85.30039159 | DI137: =DI125 -> 10rm | DO137: =DH607 -> 29.5625 | DP137: =DI607 -> 0.268256841 | DQ137: 50r | DU137: ='متغیرها '!C122 -> 3 | DV137: b | DW137: زاویه اپل | DZ137: ='متغیرها '!C122 -> 3 | EA137: b | EB137: زاویه اپل | EF137: رگلان با درز | EH137: 9.892137769 | EI137: 157.916028 | EJ137: p2 | EL137: =BS111 -> 0 | EM137: =BT111 -> 120.3 | EN137: 4 | ET137: =BD97 -> -1.503 | EU137: =BE97 -> 74.575 | EV137: 1' | EX137: =DC125 -> 32.22596219 | EY137: =DD125 -> 80.79398863 | EZ137: =DE125 -> ss2m | FB137: =DU176 -> -1.503 | FC137: =DV176 -> 108.545 | FD137: e''1 | FF137: =CC150+CB112 -> 31.9761819 | FG137: =CD150+CB113 -> 137.9434338 | FH137: شیفت b'6 | FJ137: =BO187 -> 31.8375 | FK137: =BP187 -> 86.3 | FL137: 38' | FN137: =DO104 -> 45.0486429 | FO137: =DP104 -> 106.2061408 | FP137: =DQ104 -> شیفت36m | FR137: =DO115 -> 38.44255258 | FS137: =DP115 -> 137.4804515 | FT137: 20m | GJ137: =-ED135-GK101 -> -6.8172 | GK137: =EE135 -> 146.5 | GL137: چرخیده25 | GV137: =-CR189-GK101 -> -10.34221716 | GW137: =CS189 -> 120.3 | GX137: بالاتنه 5 | GZ137: =GZ122 -> -6.8172 | HA137: =HA122 -> 146.5 | HB137: =HB122 -> 25 | HD137: =-U419-GK101 -> -20.57 | HE137: =V419 -> 106.1813315 | HF137: 41 | HL137: =-DP467-GK101 -> -22.44880288 | HM137: =DQ467 -> 88.34822499 | HN137: β7
J138: (16 → 21) | K138: =G174-0.25*G167*'متغیرها '!C76*COS(O140)+(1-1.2)*0.5*G167*'متغیرها '!C78*COS(O140) -> 4.284 | L138: =H174 -> 4.284 | N138: فاصله عمودی بین 22 و 25 بعد از بسته شدن ساسون | O138: =0.5*G167*SIN(G160)+(O135-O136)*COS(O133)-0.5*G167*SIN(O134-O133-G160) -> 2.882243359 | P138: =0.5*H167*SIN(H160)+(P135-P136)*COS(P133)-0.5*H167*SIN(P134-P133-H160) -> 2.463894063 | Q138: =AN137 -> 20.7052 | R138: =AO137 -> 26.345363 | S138: 23 | U138: =AN127 -> 25.9722858 | V138: =AO127 -> 18.695363 | W138: 13 | Y138: =0.1*Y136 -> 0.765 | Z138: (19 → 20) | AA138: =0.1*AA136 -> 0.918 | AC138: فاصله عمودی بین 24 و 27 بعد از بسته شدن ساسون | AD138: =0.5*G167*SIN(G158)+(AD135-AD136)*COS(AD133)-0.5*G167*SIN(AD134-AD133-G158) -> 2.754076471 | AE138: =0.5*H167*SIN(H158)+(AE135-AE136)*COS(AE133)-0.5*H167*SIN(AE134-AE133-H158) -> 2.754343963 | AJ138: =AR130 -> 22.92819185 | AK138: =AS130 -> 12.64244517 | AL138: 16 | AN138: =K115-K132+K140 -> 20.7052 | AO138: =K127+K133+K141+AP111 -> 31.63000973 | AP138: 24 | AR138: =AA115-AA135+AA141 -> 19.236 | AS138: =AA130+AA136+AA142+AT111 -> 36.11278023 | AT138: 24 | AV138: =L153 -> 5.073851702 | AW138: (22 → 33) | AX138: =K153 -> 5.085976452 | AZ138: =AX128+AX135+AX99 -> 12.44673904 | BA138: =AX103-AX136+AX98 -> 145.0657224 | BB138: 32 | BD138: =AZ140 -> 6.8172 | BE138: =BA140 -> 146.5 | BF138: 25 | BH138: (23 →30→22→32→18) | BI138: وصل | BK138: =0+BI98 -> 20 | BL138: =BI103-BI128+BI97 -> 144.5897174 | BM138: 24 | BO138: =BO137 -> 35.59517008 | BP138: =BP137-BE122+BE123 -> 73.34866846 | BS138: =BD159-BT130 -> 18.61802355 | BT138: =BE159 -> 143.722094 | BU138: 34 | BV138: نقطه ساسون سرشانه | BW138: =BS104+SQRT(POWER(BS138-BS104,2)+POWER(BT138-BT104,2))*SIN(ATAN((BS138-BS104)/(BT138-BT104))-BT131) -> 12.43926074 | BX138: =BT104+SQRT(POWER(BS138-BS104,2)+POWER(BT138-BT104,2))*COS(ATAN((BS138-BS104)/(BT138-BT104))-BT131) -> 145.0524921 | BY138: 34 | CA138: =BO106-CB112 -> 44.6011745 | CB138: =BP106-CB113 -> 122.7201722 | CC138: 9 | CD138: نقطه حلقه آستین | CE138: =CA104+SQRT(POWER(CA138-CA104,2)+POWER(CB138-CB104,2))*SIN(IF(CB138=CB104,RADIANS(90)-CB130,ATAN((CA138-CA104)/ABS(CB138-CB104))+IF(CB138>CB104,-1,1)*CB130)) -> 45.05663813 | CF138: =CB104+IF(CB138<CB104,-1,1)*SQRT(POWER(CA138-CA104,2)+POWER(CB138-CB104,2))*COS(IF(CB138=CB104,RADIANS(90)-CB130,ATAN((CA138-CA104)/ABS(CB138-CB104))+IF(CB138>CB104,-1,1)*CB130)) -> 124.1842419 | CG138: b14 | CM138: =CK128 -> 11.54992942 | CN138: =CL128 -> 134.9768145 | CO138: وسط 20f | CY138: αb2m | CZ138: =ATAN((DD112-DD113)/(DC112-DC113)) -> 0.3600675488 | DG138: 15.90500704 | DH138: 46 | DI138: =DI126 -> 7rm | DU138: ='متغیرها '!C55 -> 0 | DV138: شیفت افقی | DZ138: ='متغیرها '!C56 -> 0 | EA138: شیفت افقی | ED138: =BW175+BT130 -> 11.72906581 | EE138: =BX175 -> 136.6696933 | EF138: شیفت34'' | EJ138: برش پایه | EP138: =CY108 -> 8.17221716 | EQ138: =CZ108 -> 86.09 | ER138: 47' | ET138: =BS116 -> -1.503 | EU138: =BT116 -> 116.75 | EV138: e1 | EX138: =DC116 -> 20.25264673 | EY138: =DD116 -> 87.63940841 | EZ138: =DE116 -> 47''s | FB138: =DU177 -> -1.903 | FC138: =DV177 -> 116.75 | FD138: e'1 | FF138: =CC151+CB112 -> 37.26424439 | FG138: =CD151+CB113 -> 130.7993143 | FH138: شیفتb''6 | FN138: =DK112 -> 32.21875 | FO138: =DL112 -> 106.1 | FP138: =DM112 -> شیفت35 | FR138: =DO121 -> 37.96229434 | FS138: =DP121 -> 131.9008799 | FT138: =DQ121 -> b'6p | FZ138: 9' | GB138: =-CM146-GK101 -> -11.69222973 | GC138: =CN146 -> 136.7061297 | GD138: شیفت وسط 16f | GF138: =-EX137-GK101 -> -32.22596219 | GG138: =EY137 -> 80.79398863 | GH138: ss2m | GN138: =-EL134-GK101 -> 0 | GO138: =EM134 -> 74.575 | GP138: 1 | GR138: =-ET138-GK101 -> 1.503 | GS138: =EU138 -> 116.75 | GT138: e1 | GZ138: =GZ129 -> -17.8892561 | HA138: =HA129 -> 142.9779237 | HB138: =HB129 -> 22f | HD138: =-U420-GK101 -> -22.55 | HE138: =V420 -> 85.18133154 | HF138: 45 | HH138: =-CT278-GK101 -> -21.03907143 | HI138: =CU278 -> 99.025 | HJ138: s2
J139: (21 → 22) | K139: =SQRT(POWER(O127,2)-G174*G174)+0.5*G167*'متغیرها '!C76*SIN(O140)-0.5*G167*'متغیرها '!C78*SIN(O140) -> 10.56929346 | L139: =SQRT(POWER(P127,2)-H174*H174) -> 10.56929346 | N139: β3 | O139: =ATAN(O138/O137) -> 0.2494696676 | P139: =ATAN(P138/P137) -> 0.2142593445 | Q139: =AN138 -> 20.7052 | R139: =AO138 -> 31.63000973 | S139: 24 | Y139: =0.7*Y135 -> 3.96982215 | Z139: (14 → 21) | AA139: =0.7*AA135 -> 3.869734298 | AC139: β7 | AD139: =ATAN(AD138/AD137) -> 0.2398588682 | AE139: =ATAN(AE138/AE137) -> 0.2398822844 | AF139: =AR139 -> 17.9508 | AG139: =AS139 -> 25.80044517 | AH139: 25 | AJ139: =AR129 -> 24.45819185 | AK139: =AS129 -> 16.62044517 | AL139: 15 | AN139: =K143 -> 6.8172 | AO139: =K114+AP111 -> 42.5 | AP139: 25 | AR139: =AA115-AA135+AA143 -> 17.9508 | AS139: =AA130+AA136+AT111 -> 25.80044517 | AT139: 25 | AV139: =L154 -> 2.829291584 | AW139: (33 → 34) | AX139: =K154 -> 2.807437533 | AZ139: =AX128+AX135+AX99 -> 12.44673904 | BA139: =AX103+AX98 -> 146.5 | BB139: 31 | BD139: =AE708+'متغیرها '!C51 -> 0 | BE139: =AF708+'متغیرها '!C52 -> 138.1059388 | BF139: m9 | BS139: =AZ100-BT130 -> 25.9722858 | BT139: =BA100 -> 122.695363 | BU139: 13 | BV139: نقطه حلقه آستین | BW139: =BS104+SQRT(POWER(BS139-BS104,2)+POWER(BT139-BT104,2))*SIN(IF(BT139=BT104,RADIANS(90)-BT131,ATAN((BS139-BS104)/ABS(BT139-BT104))+IF(BT139>BT104,-1,1)*IF(AND(BX101=1,BX102=0),(ATAN((BS138-BS104)/(BT138-BT104))-ATAN((BS109-BS104)/(BT109-BT104))),BT131))) -> 24.86187387 | BX139: =BT104+IF(BT139<BT104,-1,1)*SQRT(POWER(BS139-BS104,2)+POWER(BT139-BT104,2))*COS(IF(BT139=BT104,RADIANS(90)-BT131,ATAN((BS139-BS104)/ABS(BT139-BT104))+IF(BT139>BT104,-1,1)*IF(AND(BX101=1,BX102=0),(ATAN((BS138-BS104)/(BT138-BT104))-ATAN((BS109-BS104)/(BT109-BT104))),BT131))) -> 126.5622982 | BY139: b14 | CA139: =BO122-CB112 -> 43.0711745 | CB139: =BP122-CB113 -> 118.7421722 | CC139: 10 | CD139: نقطه زیر حلقه آستین | CE139: =CA104+SQRT(POWER(CA139-CA104,2)+POWER(CB139-CB104,2))*SIN(IF(CB139=CB104,RADIANS(90)-CB130,ATAN((CA139-CA104)/ABS(CB139-CB104))+IF(CB139>CB104,-1,1)*CB130)) -> 43.9459363 | CF139: =CB104+IF(CB139<CB104,-1,1)*SQRT(POWER(CA139-CA104,2)+POWER(CB139-CB104,2))*COS(IF(CB139=CB104,RADIANS(90)-CB130,ATAN((CA139-CA104)/ABS(CB139-CB104))+IF(CB139>CB104,-1,1)*CB130)) -> 120.0694241 | CG139: b2 | CY139: αss2m | CZ139: =ATAN((DD122-DD116)/(DC122-DC116)) -> -0.5193680361 | DG139: 13.66727977 | DH139: 4.6 | DI139: =DI127 -> 5rm | DO139: =DK112 -> 32.21875 | DP139: =DL112 -> 106.1 | DQ139: =DM112 -> شیفت35 | DV139: محاسبات | DZ139: ='متغیرها '!C57 -> 0 | EA139: شیفت عمودی | ED139: =BS178+BT130 -> 16.49384473 | EE139: =BT178 -> 131.4735356 | EF139: شیفتb'6 | EH139: =J277 -> 0 | EI139: =K277 -> 157.916028 | EJ139: p1 | EL139: =BS111 -> 0 | EM139: =BT111 -> 120.3 | EN139: 4 | EP139: =CY109 -> 8.17221716 | EQ139: =CZ109 -> 74.575 | ER139: 52 | FB139: =DU180 -> -4.103967021 | FC139: 127.4279694 | FD139: a'11 | FF139: =CE117+CB112 -> 39.20159069 | FG139: =CF117+CB113 -> 126.3930515 | FH139: شیفتb10 | FJ139: =BO187 -> 31.8375 | FK139: =BP187 -> 86.3 | FL139: 38' | FX139: =-DD177-GK101 -> -18.20483682 | FY139: =DE177 -> 144.2264259 | FZ139: 39 | GB139: =-CM147-GK101 -> -16.03421886 | GC139: =CN147 -> 131.5899423 | GD139: شیفت 16f | GF139: =-EX138-GK101 -> -20.25264673 | GG139: =EY138 -> 87.63940841 | GH139: 47''s | GL139: 32' | GN139: =-EL137-GK101 -> 0 | GO139: =EM137 -> 120.3 | GP139: 4 | GR139: =-ET141-GK101 -> 0 | GS139: =EU141 -> 116.75 | GT139: e'1 | GV139: =-CR189-GK101 -> -10.34221716 | GW139: =CS189 -> 120.3 | GX139: بالاتنه 5 | HH139: =-CT279-GK101 -> -22.07102857 | HI139: =CU279 -> 88.08 | HJ139: m4 | HL139: =-DP469-GK101 -> -22.44880288 | HM139: =DQ469 -> 88.34822499 | HN139: β7
J140: (16 → 23) | K140: =0.3*K138 -> 1.2852 | L140: =0.3*L138 -> 1.2852 | N140: β4 | O140: =O139-O133+O134 -> 0.5043741873 | P140: =P139-P133+P134 -> 0.5086762321 | U140: =AN136 -> 23.704 | V140: =AO136 -> 36.91465646 | W140: 22 | Y140: =0.4*Y136 -> 3.06 | Z140: (21 → 22) | AA140: =0.4*AA136 -> 3.672 | AC140: β8 | AD140: =AD139-AD133+AD134 -> 0.4848574088 | AE140: =AE139-AE133+AE134 -> 0.4848800696 | AF140: =AR140 -> 17.9508 | AG140: =AS140 -> 31.47222945 | AH140: 26 | AN140: 0 | AO140: =K114-K144+AP111 -> 34.10593876 | AP140: 26 | AR140: =AA115-AA135+AA143 -> 17.9508 | AS140: =AA130+AA136+AA144+AT111 -> 31.47222945 | AT140: 26 | AW140: (22 → 34) | AX140: وصل | AZ140: =AX128+AX99 -> 6.8172 | BA140: =AX103+AX98 -> 146.5 | BB140: 25 | BH140: متغیرهای محاسبه ای ساسون کمر در پیراهن راسته پشت | BK140: =BI108-BI114+BI120+BI98+'متغیرها '!C56 -> 39.37898265 | BL140: =BI110+BI115+BI121+BI97+'متغیرها '!C57 -> 142.2125073 | BM140: شیفت18 | BO140: =BO138 -> 35.59517008 | BP140: =BP138 -> 73.34866846 | BS140: =BD155-BT130 -> 24.4422858 | BT140: =BE155 -> 118.717363 | BU140: 14 | BV140: نقطه زیر حلقه آستین | BW140: =BS104+SQRT(POWER(BS140-BS104,2)+POWER(BT140-BT104,2))*SIN(IF(BT140=BT104,RADIANS(90)-BT131,ATAN((BS140-BS104)/ABS(BT140-BT104))+IF(BT140>BT104,-1,1)*BT131)) -> 24.38530055 | BX140: =BT104+IF(BT140<BT104,-1,1)*SQRT(POWER(BS140-BS104,2)+POWER(BT140-BT104,2))*COS(IF(BT140=BT104,RADIANS(90)-BT131,ATAN((BS140-BS104)/ABS(BT140-BT104))+IF(BT140>BT104,-1,1)*BT131)) -> 122.3269397 | BY140: b2 | CB140: متغیرهای محاسبه ای ساسون زیر بغل با چرخش کامل | CM140: =CM138+CJ105 -> 11.54992942 | CN140: =CN138 -> 134.9768145 | CO140: شیفت وسط 20f | CY140: αs2m | CZ140: =ATAN((DD120-CZ108)/(DC120-CY108)) -> -0.8058582108 | DG140: 13.66727977 | DH140: 0 | DI140: =DI128 -> 1rm | DO140: =DO104 -> 45.0486429 | DP140: =DP104 -> 106.2061408 | DQ140: =DQ104 -> شیفت36m | DT140: (25→32) | DU140: =SQRT(POWER(DT134-DT133,2)+POWER(DU134-DU133,2)) -> 5.809377072 | EA140: محاسبات | ED140: =BW134+BT130 -> 18.72138136 | EE140: =BX134 -> 128.1231807 | EF140: شیفتb10 | EH140: =J278 -> 9.892137769 | EI140: =K278 -> 157.916028 | EJ140: p2 | EL140: =BS112 -> -1.503 | EM140: =BT112 -> 120.3 | EN140: 4' | ET140: =BS116 -> -1.503 | EU140: =BT116 -> 116.75 | EV140: e1 | EX140: =CY109 -> 8.17221716 | EY140: =CZ109 -> 74.575 | EZ140: 52 | FB140: -5.054381459 | FC140: 138.1059388 | FD140: e'3 | FJ140: =BO188 -> 31.8375 | FK140: =BP188 -> 74.575 | FL140: 49 | FP140: لبه برگرد پایین کت در پهلو جدا | FT140: اطلاعات اندام | FX140: =-DD178-GK101 -> -6.8172 | FY140: =DE178 -> 146.5 | FZ140: 25 | GB140: =-CM148-GK101 -> -17.76876522 | GC140: =CN148 -> 127.5032437 | GD140: شیفت 20f | GJ140: =-ED138-GK101 -> -11.72906581 | GK140: =EE138 -> 136.6696933 | GL140: شیفت34'' | GV140: =-CR192-GK101 -> 1.502999958 | GW140: =CS192 -> 120.301 | GX140: 4' | HB140: 51' | HD140: =-U422-GK101 -> -22.55 | HE140: =V422 -> 85.18133154 | HF140: 45 | HL140: =-DP470-GK101 -> -21.85113041 | HM140: =DQ470 -> 87.06651223 | HN140: β3
J141: (23 → 24) | K141: =0.5*K139 -> 5.28464673 | L141: =0.5*L139 -> 5.28464673 | N141: β9 | O141: =ATAN(K138/K139) -> 0.3850885403 | P141: =ATAN(L138/L139) -> 0.3850885403 | Q141: =AN136 -> 23.704 | R141: =AO136 -> 36.91465646 | S141: 22 | U141: =AN148 -> 18.61802355 | V141: =AO148 -> 39.722094 | W141: 34 | Y141: =H173 -> 1.836 | Z141: (18 → 23) | AA141: =G173-0.25*'متغیرها '!C76*G167*COS(AD140)+(1-1.2)*0.5*'متغیرها '!C78*G167*COS(AD140) -> 1.836 | AC141: β10 | AD141: =ATAN(AA141/AA142) -> 0.1761930381 | AE141: =ATAN(Y141/Y142) -> 0.1761930381 | AJ141: =AR138 -> 19.236 | AK141: =AS138 -> 36.11278023 | AL141: 24 | AN141: =K145 -> 2.72688 | AO141: =K114+AP111 -> 42.5 | AP141: 27 | AR141: =AA146 -> 6.8172 | AS141: =AA114+AT111 -> 40.5 | AT141: 27 | AW141: (32 → 5) | AX141: وصل | AZ141: =0+AX99 -> 0 | BA141: =AX103+AX98 -> 146.5 | BB141: 2 | BD141: =AE708+'متغیرها '!C51 -> 0 | BE141: =AF708+'متغیرها '!C52 -> 138.1059388 | BF141: m9 | BG141: =IF('متغیرها '!C125=1,H147,IF(H147>0,H147,0)) -> 1.9 | BH141: x''11 | BI141: =IF('متغیرها '!C125=1,G147,IF(G147>0,G147,0)) -> 1.9 | BK141: =BI108-BI114+BI120+BI98+'متغیرها '!C56 -> 39.37898265 | BL141: =BI110+BI115+BI97+'متغیرها '!C57 -> 131.9001722 | BM141: شیفت17 | BO141: =BO134 -> 20 | BP141: =BP140 -> 73.34866846 | BT141: متغیرهای محاسبه ای کمی چرخش به ساسون زیر بغل | CB141: ζ'1 | CC141: =(1+0.001)*ATAN((CA109-CA104)/(CB109-CB104)) -> 0.1010824109 | CE141: =CA104+(1-'متغیرها '!C116)*(CA139-CA104) -> 31.93711745 | CF141: =CB104+(1-'متغیرها '!C116)*(CA139-CA104)*TAN(0.5*CB130-CC143) -> 127.0322721 | CG141: b | CM141: =CM105 -> 17.76876522 | CN141: =CN105 -> 127.5032437 | CO141: 20f | CY141: αb4s | CZ141: =ATAN((DD109-DD110)/(DC110-DC109)) -> 0.1735068418 | DT141: (34→22) | DU141: =SQRT(POWER(DT131-DT130,2)+POWER(DU131-DU130,2)) -> 5.809377072 | DY141: (23→30) | DZ141: =SQRT(POWER(DY134-DY133,2)+POWER(DZ134-DZ133,2)) -> 5.809377072 | EP141: =DC116 -> 20.25264673 | EQ141: =DD116 -> 87.63940841 | ER141: 47''s | ET141: =BD150 -> 0 | EU141: =BT116 -> 116.75 | EV141: e'1 | EX141: =DC103 -> 6.935 | EY141: 74.575 | EZ141: 50s | FB141: -3.143881575 | FC141: 145.8391769 | FD141: a'8 | FF141: =CE106 -> 25.1129 | FG141: =CF106 -> 145.3938304 | FH141: 28 | FN141: =DY178 -> 35.8375 | FO141: =DZ178 -> 78.575 | FP141: a'23 | FT141: کمر | GF141: =-EX140-GK101 -> -8.17221716 | GG141: =EY140 -> 74.575 | GH141: 52 | GJ141: =-ED139-GK101 -> -16.49384473 | GK141: =EE139 -> 131.4735356 | GL141: شیفتb'6 | GN141: =-EL137-GK101 -> 0 | GO141: =EM137 -> 120.3 | GP141: 4 | GR141: =-ET141-GK101 -> 0 | GS141: =EU141 -> 116.75 | GT141: e'1 | GZ141: =-AW287-GK101 -> -24.4422858 | HA141: =AX287 -> 118.717363 | HB141: 14 | HD141: =-U423-GK101 -> -22.55 | HE141: =V423 -> 75.70633154 | HF141: 49' … | HJ141: 66'
J142: (22→24→16→20→18→12→13) | K142: هلال وصل | N142: (16 → 6) | O142: =SQRT((Q126-Q113)*(Q126-Q113)+(R126-R113)*(R126-R113)) -> 13.53940394 | P142: =SQRT((N161-N162)*(N161-N162)+(O161-O162)*(O161-O162)) -> 11.30820982 | Q142: =AN147 -> 18.61802355 | R142: =AO147 -> 36.91465646 | S142: 33 | U142: =AN150 -> 10.34221716 | V142: =AO150 -> 16.3 | W142: 36 | Y142: =SQRT(POWER(I125-I122+(O128-AD128)*'متغیرها '!U82+P127,2)-H173*H173) -> 10.31233505 | Z142: (23→24) | AA142: =SQRT(POWER(H125-H122+(O128-AD128)*H130+O127,2)-G173*G173)+'متغیرها '!C76*0.5*G167*SIN(AD140)-'متغیرها '!C78*0.5*G167*SIN(AD140) -> 10.31233505 | AC142: (18 → 7) | AD142: =SQRT((AG135-AG113)*(AG135-AG113)+(AF135-AF113)*(AF135-AF113)) -> 6.896944962 | AE142: =SQRT((AD159-AD160)*(AD159-AD160)+(AC159-AC160)*(AC159-AC160)) -> 6.896880206 | AF142: =AR138 -> 19.236 | AG142: =AS138 -> 36.11278023 | AH142: 24 | AJ142: =AR152 -> 14.0962035 | AK142: =AS152 -> 38.82042752 | AL142: 36 | AN142: =K145 -> 2.72688 | AO142: =K114-K146+AP111 -> 34.94534488 | AP142: 28 | AR142: 0 | AS142: =AA114-AA147+AT111 -> 38.48971739 | AT142: 28 | AW142: (34 → 5) | AX142: وصل | AZ142: =AZ102 -> 0 | BA142: =BA102 -> 138.1059388 | BB142: 26 | BD142: =BD98 -> -1.503 | BE142: =BE98 -> 138.1059388 | BF142: 26' | BG142: =IF('متغیرها '!C125=1,H146,IF(H146>0,H146,0)) -> 1.04375 | BH142: x11 | BI142: =IF('متغیرها '!C125=1,G146,IF(G146>0,G146,0)) -> 1.04375 | BK142: =BI108-BI114+BI98+'متغیرها '!C56 -> 37.54298265 | BL142: =BI110+BI115+BI97+'متغیرها '!C57 -> 131.9001722 | BM142: شیفت12 | BT142: ζ'1 | BU142: =('متغیرها '!C106+0.001)*ATAN((BS109-BS104)/(BT109-BT104)) -> 0.08485831697 | BW142: =BS104+(1-'متغیرها '!C115)*(BS140-BS104) -> 11.75222402 | BX142: =BT104+(1-'متغیرها '!C115)*(BS140-BS104)*TAN(0.5*BT131-BU144) -> 120.3222601 | BY142: b | CB142: ζ'2 | CC142: =(1+0.001)*ATAN((CA137-CA104)/(CB137-CB104)) -> 0.2046121328 | CO142: رگلان با درز | CZ142: امتداد جیب روی تکه پهلو جدا | DG142: =DG128 -> 13.66727977 | DH142: =DH128 -> 0 | DI142: =DI128 -> 1rm | DO142: =DO102 -> 45.5823174 | DP142: =DP102 -> 123.8676722 | DQ142: شیفت 8m | DT142: (32b→5) | DU142: =SQRT(POWER(DT149-DT132,2)+POWER(DU149-DU132,2)) -> 25.15624527 | DY142: (32→18) | DZ142: =SQRT(POWER(DY131-DY130,2)+POWER(DZ131-DZ130,2)) -> 5.809377072 | ED142: =BW106 -> 5.45376 | EE142: =BX106 -> 142.3029694 | EF142: 30 | EH142: =J280 -> 0 | EI142: =K280 -> 157.916028 | EJ142: p1 | EL142: =BS112 -> -1.503 | EM142: =BT112 -> 120.3 | EN142: 4' | EP142: =DC115 -> 14.68292548 | EQ142: =DD115 -> 104.695889 | ER142: 40s | EX142: 10.3175 | EY142: 74.80126631 | EZ142: 50's | FB142: 1.263951486 | FC142: 153.572415 | FD142: a'6 | FF142: =CC150 -> 31.9761819 | FG142: =CD150 -> 137.9434338 | FH142: b'6 | FJ142: =BO188 -> 31.8375 | FK142: =BP188 -> 74.575 | FL142: 49 | FN142: =DY180 -> 27.8375 | FO142: =DZ180 -> 70.575 | FP142: a''23 | FR142: =BK180 -> 32.21875 | FS142: =BL180 -> 106.1 | FT142: شیفت 35 | FZ142: 47' | GD142: 59' | GF142: =-EX141-GK101 -> -6.935 | GG142: =EY141 -> 74.575 | GH142: 50s | GJ142: =-ED140-GK101 -> -18.72138136 | GK142: =EE140 -> 128.1231807 | GL142: شیفتb10 | GN142: =-EL140-GK101 -> 1.503 | GO142: =EM140 -> 120.3 | GP142: 4' | GR142: =-ET144-GK101 -> 0 | GS142: =EU144 -> 74.575 | GT142: 1 | GV142: =-CR192-GK101 -> 1.502999958 | GW142: =CS192 -> 120.301 | GX142: 4' | GZ142: =-AW288-GK101 -> -25.17105318 | HA142: 92.2319452 | HB142: 8n | HH142: =-CL281-GK101 -> -24.4422858 | HI142: =CM281 -> 118.717363 | HJ142: شیفت 14 | HL142: =-DP472-GK101 -> -21.85113041 | HM142: =DQ472 -> 87.06651223 | HN142: β3
J143: (2 → 25) | K143: =G163+'متغیرها '!C71*0.5*G167*COS(O139) -> 6.8172 | L143: =H163 -> 6.8172 | N143: β'1 | O143: =ATAN((Q149-Q147)/(R149-R147)) -> 0.08477354342 | P143: =ATAN((N163-N162)/(O163-O162)) -> 0.09736457113 | Q143: =AN148 -> 18.61802355 | R143: =AO148 -> 39.722094 | S143: 34 | U143: =AN146 -> 12.44673904 | V143: =AO146 -> 41.06572244 | W143: 32 | Y143: =0.3*Y141 -> 0.5508 | Z143: (18 → 25) | AA143: =0.3*AA141 -> 0.5508 | AC143: β11 | AD143: =ATAN((AG127-AG113)/(AF127-AF113)) -> 0.2395509861 | AE143: =ATAN((AD159-AD160)/(AC159-AC160)) -> 0.2395125409 | AF143: =AR151 -> 14.0962035 | AG143: =AS151 -> 36.11278023 | AH143: 35 | AN143: =K147 -> 5.45376 | AO143: =K114+AP111 -> 42.5 | AP143: 29 | AR143: =AA148 -> 2.72688 | AS143: =AA114+AT111 -> 40.5 | AT143: 29 | AW143: (10 → 35) | AX143: =H108-H114+0.5*(H105-H108) -> 20.025 | BG143: =IF('متغیرها '!C125=1,H149,IF(H149>0,H149,0)) -> 2.0875 | BH143: x | BI143: =IF('متغیرها '!C125=1,G149,IF(G149>0,G149,0)) -> 2.0875 | BO143: =BO141 -> 20 | BP143: =BP141 -> 73.34866846 | BT143: ζ'2 | BU143: =('متغیرها '!C106+0.001)*ATAN((BS138-BS104)/(BT138-BT104)) -> 0.3399809248 | CB143: ζ1 | CC143: =ATAN((CB104-CB139)/(CA139-CA104)) -> 0.6344949784 | CM143: =CI103 -> 5.45376 | CN143: =CJ103 -> 142.3029694 | CO143: 30 | CY143: α36m | CZ143: =ATAN((DO105-DO104)/(DP104-DP105)) -> 0.2005414626 | DG143: =DG117 -> 12.51221716 | DH143: =DH117 -> 0 | DI143: =DI117 -> 53r | DO143: =DO107 -> 43.0711745 | DP143: =DP107 -> 123.2939222 | DQ143: شیفت 8'm | DT143: b1 | DU143: =ATAN((DT131-DT132)/(DU131-DU132))-ATAN((DT133-DT132)/(DU133-DU132)) -> -0.0002548677401 | DY143: (30b→22) | DZ143: =SQRT(POWER(DY150-DY132,2)+POWER(DZ150-DZ132,2)) -> 7.254886538 | ED143: =BS175 -> 11.73323787 | EE143: =BT175 -> 136.6693393 | EF143: 34' | EH143: =J281 -> 0 | EI143: =K281 -> 159.5888113 | EJ143: p3 | EL143: =BD97 -> -1.503 | EM143: =BE97 -> 74.575 | EN143: 1' | ET143: =BD150 -> 0 | EU143: =BT116 -> 116.75 | EV143: e'1 | EX143: 13.13625 | EY143: 75.19723234 | EZ143: 50''s | FB143: 5.336845045 | FC143: 158.3534083 | FD143: a'4 | FH143: رگلان بدون درز | FJ143: =BO176 -> 20.85625 | FK143: =BP176 -> 74.575 | FL143: 47 | FR143: =BK162 -> 42.5375 | FS143: =BL162 -> 106.2061408 | FT143: شیفت 36 | FX143: =-(0+AX99)+2*GC101 -> 0 | FY143: =DS238-DS239+AX98 -> 127.6885633 | FZ143: p26 | GB143: =-(AL281)+2*GC101 -> -6.8172 | GC143: =AM281 -> 146.5 | GD143: =AN281 -> 25 | GF143: =-EX142-GK101 -> -10.3175 | GG143: =EY142 -> 74.80126631 | GH143: 50's | GV143: =-CR195-GK101 -> 1.503 | GW143: =CS195 -> 138.1059388 | GX143: 26' | GZ143: =-AW289-GK101 -> -24.33059865 | HA143: 83.62418442 | HB143: 7n | HD143: =-U425-GK101 -> -8.17221716 | HE143: =V425 -> 74.575 | HF143: 52 | HH143: =-CL282-GK101 -> -20.57 | HI143: =CM282 -> 106.1813315 | HJ143: شیفت 41 | HL143: =-DP473-GK101 -> -23.73051565 | HM143: =DQ473 -> 87.75055252 | HN143: β5
J144: (2 → 26) | K144: =G165+'متغیرها '!C72*0.5*G167-('متغیرها '!C71)*0.5*G167*SIN(O139) -> 8.394061244 | L144: =H165 -> 8.394061244 | N144: β'2 | O144: =ATAN((Q143-Q147)/(R143-R147)) -> 0.3396412835 | P144: =ATAN((N164-N162)/(O164-O162)) -> 0.3882897999 | U144: =AN139 -> 6.8172 | V144: =AO139 -> 42.5 | W144: 25 | Y144: =0.55*Y142 -> 5.671784279 | Z144: (25 → 26) | AA144: =0.55*AA142 -> 5.671784279 | AC144: (18' → 18'') | AD144: =AD142*SIN(AD147-AD146+AD143) -> 2.365566841 | AE144: =AE142*SIN(AE147-AE146+AE143) -> 2.365343676 | AF144: =AR152 -> 14.0962035 | AG144: =AS152 -> 38.82042752 | AH144: 36 | AJ144: =AR148 -> 12.46026339 | AK144: =AS148 -> 39.11989221 | AL144: 34 | AN144: =K147 -> 5.45376 | AO144: =K114-K148+AP111 -> 38.30296938 | AP144: 30 | AR144: =AA148 -> 2.72688 | AS144: =AA114-AA149+AT111 -> 38.69074565 | AT144: 30 | AW144: (35 → 36) | AX144: =0.5*SIN(RADIANS('متغیرها '!C198))*(0.5*'متغیرها '!U84+0.06*H105) -> 2.617480157 | AZ144: =AX130+AX99 -> 2.72688 | BA144: =AX103+AX98 -> 146.5 | BB144: 27 | BD144: =BD98 -> -1.503 | BE144: =BE98 -> 138.1059388 | BF144: 26' | BG144: =IF('متغیرها '!C125=1,H151,IF(H151>0,H151,0)) -> 0.95 | BH144: x'' | BI144: =IF('متغیرها '!C125=1,G151,IF(G151>0,G151,0)) -> 0.95 | BK144: =BK140 -> 39.37898265 | BL144: =BL140 -> 142.2125073 | BM144: 18 | BO144: =BO134 -> 20 | BP144: =BP134 -> 72.575 | BT144: ζ1 | BU144: =ATAN((BT104-BT140)/(BS140-BS104)) -> 0.1117753767 | BW144: =BW137 -> 18.06911245 | BX144: =BX137 -> 143.6194423 | BY144: b16 | CM144: =CK135 -> 11.69222973 | CN144: =CL135 -> 136.7061297 | CO144: وسط 16f | CY144: (s2m→45m) | CZ144: =SQRT(POWER((EX129-DC127),2)+POWER((EY129-DD127),2)) -> 0 | DO144: =DO109 -> 40.74933392 | DP144: =DP109 -> 124.3783097 | DQ144: شیفت 8''m | DT144: α25 | DU144: =ATAN((DU134-DU133)/(DT133-DT134)) -> 0.2494696676 | DY144: b1 | DZ144: =ATAN((DY131-DY132)/(DZ131-DZ132))-ATAN((DY133-DY132)/(DZ133-DZ132)) -> 0.2589123958 | EF144: رگلان بدون درز | EP144: =DC115 -> 14.68292548 | EQ144: =DD115 -> 104.695889 | ER144: 40s | ET144: =BD150 -> 0 | EU144: =BE150 -> 74.575 | EV144: 1 | EX144: =EX132 -> 20.0388571 | EY144: =EY132 -> 75.14066577 | EZ144: 49'm | FF144: =CC157+CB112 -> 31.7811626 | FG144: =CD157+CB113 -> 136.4006467 | FH144: شیفتb'10 | FN144: =DY180 -> 27.8375 | FO144: =DZ180 -> 70.575 | FP144: a''23 | FX144: =-(DU241)+2*GC101 -> -3.817632 | FY144: =DV241 -> 128.1922069 | FZ144: p28 | GB144: =-(AL283)+2*GC101 -> -5.032987204 | GC144: =AM283 -> 138.1059388 | GD144: sq2 | GF144: =-EX143-GK101 -> -13.13625 | GG144: =EY143 -> 75.19723234 | GH144: 50''s | GJ144: =-ED142-GK101 -> -5.45376 | GK144: =EE142 -> 142.3029694 | GL144: 30 | GN144: =-EL140-GK101 -> 1.503 | GO144: =EM140 -> 120.3 | GP144: 4' | GT144: 0' | GZ144: =-AW290-GK101 -> -21.49406459 | HA144: 78.45952794 | HB144: 6n | HD144: =-U426-GK101 -> -11.275 | HE144: =V426 -> 74.575 | HF144: 50 | HH144: =-CL283-GK101 -> -22.07102857 | HI144: =CM283 -> 88.08 | HJ144: m4
F145: متغیرهای محاسبه شده پیراهن اندامی | H145: شبیه ساز | J145: (2 → 27) | K145: =0.4*K143 -> 2.72688 | L145: =0.4*L143 -> 2.72688 | N145: β12 | O145: =ATAN((R134-R147)/(Q134-Q147)) -> 0.8359523839 | P145: =ATAN((O161-O162)/(N161-N162)) -> 0.643549428 | Q145: =AN149 -> 15.2606 | R145: =AO149 -> 39.70732823 | S145: 35 | Z145: (15→14→20→22→18→26→24) | AA145: هلال وصل | AC145: (18''→ 7) | AD145: =AD142*COS(AD147-AD146+AD143) -> 6.478575718 | AE145: =AE142*COS(AE147-AE146+AE143) -> 6.478588262 | AJ145: =AR141 -> 6.8172 | AK145: =AS141 -> 40.5 | AL145: 27 | AN145: =K143+K150 -> 12.44673904 | AO145: =K114+AP111 -> 42.5 | AP145: 31 | AR145: =AA150 -> 5.1129 | AS145: =AA114+AT111 -> 40.5 | AT145: 31 | AW145: (36 → 37) | AX145: =0.5*COS(RADIANS('متغیرها '!C198))*(0.5*'متغیرها '!U84+0.06*H105) -> 7.191467627 | AZ145: =AX130+AX99 -> 2.72688 | BA145: =AX103-AX131+AX98 -> 138.9453449 | BB145: 28 | BD145: =BD97 -> -1.503 | BE145: =BE97 -> 74.575 | BF145: 1' | BG145: =MIN(BG144,BG143)+0.5*ABS((BG144-BG143)) -> 1.51875 | BH145: * | BI145: =MIN(BI144,BI143)+0.5*ABS((BI144-BI143)) -> 1.51875 | BK145: =BI108-BI114+BI120-BI136+BI98+'متغیرها '!C56 -> 34.23918614 | BL145: =BI110+BI115+BI121+BI97+'متغیرها '!C57 -> 142.2125073 | BM145: شیفت31 | BT145: به دست آوردن نقطه تقاطع دو خط (رگلان با درز) | BU145: مولفه افقی | BV145: مولفه عمودی | CB145: به دست آوردن نقطه تقاطع دو خط (رگلان با درز) | CC145: مولفه افقی | CD145: مولفه عمودی | CY145: (47'→s2m) | CZ145: =SQRT(POWER((DC127-CY108),2)+POWER((DD127-CZ108),2)) -> 12.42820464 | DO145: =DK104 -> 39.2014402 | DP145: =DL104 -> 126.3921722 | DQ145: شیفت 16p | DT145: α32b | DU145: =ATAN((DT149-DT132)/(DU149-DU132)) -> 0.08644287962 | DY145: α23 | DZ145: =ATAN((DZ134-DZ133)/(DY133-DY134)) -> 0.2398588682 | ED145: =BW106 -> 5.45376 | EE145: =BX106 -> 142.3029694 | EF145: 30 | EJ145: خط متصل به یقه ملوانی | EL145: =BD97 -> -1.503 | EM145: =BE97 -> 74.575 | EN145: 1' | EP145: =DC113 -> 10.34221716 | EQ145: =DD113 -> 117.04 | ER145: 43s | EZ145: کمر | FB145: =DU184 -> 5.336845045 | FC145: =DV184 -> 158.3534083 | FD145: a'4 | FF145: =CE117+CB112 -> 39.20159069 | FG145: =CF117+CB113 -> 126.3930515 | FH145: شیفتb10 | FL145: پهلو صاف و پایین لباس | FN145: =DY179 -> 20.85625 | FO145: =DZ179 -> 70.575 | FP145: a'6 | FR145: =BO178 -> 21.9 | FS145: =BP178 -> 106.1 | FT145: 44 | FX145: =-(DU243)+2*GC101 -> -7.635264 | FY145: =DV243 -> 130.2067816 | FZ145: p30 | GF145: =-EX144-GK101 -> -20.0388571 | GG145: =EY144 -> 75.14066577 | GH145: 49'm | GJ145: =-ED143-GK101 -> -11.73323787 | GK145: =EE143 -> 136.6693393 | GL145: 34' | GN145: =-EL143-GK101 -> 1.503 | GO145: =EM143 -> 74.575 | GP145: 1' | GT145: کمر | GV145: =-CR195-GK101 -> 1.503 | GW145: =CS195 -> 138.1059388 | GX145: 26' | GZ145: =-AW291-GK101 -> -14.66537148 | HA145: 75.01642363 | HB145: 5n | HF145: چیب | HL145: =-DP475-GK101 -> -21.85113041 | HM145: =DQ475 -> 87.06651223 | HN145: β3
E146: نصف پهنای ساسون روی خط مرکزی پشت دامن | F146: x11 | G146: ='متغیرها '!C93*0.25*(H103-H101) -> 1.04375 | H146: ='متغیرها '!C93*0.25*('متغیرها '!U55-'متغیرها '!U53) -> 1.04375 | J146: (27 → 28) | K146: =0.9*K144 -> 7.554655119 | L146: =0.9*L144 -> 7.554655119 | N146: (16' →16'') | O146: =O142*SIN(O144-O143+O145) -> 12.00953134 | P146: =P142*SIN(P144-P143+P145) -> 9.095046245 | Q146: =AN150 -> 10.34221716 | R146: =AO150 -> 16.3 | S146: 36 | U146: =AN115 -> 0 | V146: =AO115 -> 0 | W146: 1 | Y146: =H163 -> 6.8172 | Z146: (2 → 27) | AA146: =G163+'متغیرها '!C71*0.5*G167*COS(AD139) -> 6.8172 | AC146: β'5 | AD146: =ATAN((AF150-AF113)/(AG150-AG113)) -> 0.1171582313 | AE146: =ATAN((AC161-AC160)/(AD161-AD160)) -> 0.1171571256 | AF146: =AR155 -> 13.0266 | AG146: =AS155 -> 38.30639011 | AH146: 37 | AN146: =K143+K150 -> 12.44673904 | AO146: =K114-K151+AP111 -> 41.06572244 | AP146: 32 | AR146: =AA150 -> 5.1129 | AS146: =AA114-AA151+AT111 -> 39.29383044 | AT146: 32 | AW146: (37' → 37) | AX146: =(0.5*'متغیرها '!U84+0.06*H105) -> 15.306 | BK146: =BI108-BI114+BI120-BI136+BI98+'متغیرها '!C56 -> 34.23918614 | BL146: =BI110+BI115+BI121+BI137+BI97+'متغیرها '!C57 -> 144.9201546 | BM146: شیفت32 | BQ146: خطوط برش | BS146: نقطه اول از خط اول | BT146: 30 | BU146: =BW106 -> 5.45376 | BV146: =BX106 -> 142.3029694 | BW146: =BW139 -> 24.86187387 | BX146: =BX139 -> 126.5622982 | BY146: b14 | CA146: نقطه اول از خط اول | CB146: 28 | CC146: =CE106 -> 25.1129 | CD146: =CF106 -> 145.3938304 | CM146: =CK135+CJ105 -> 11.69222973 | CN146: =CL135 -> 136.7061297 | CO146: شیفت وسط 16f | CY146: (s''2m→s'2m) | CZ146: =IF('متغیرها '!C188*(0.5*H132+0.06*I105)>CZ145,'متغیرها '!C188*(0.5*H132+0.06*I105)-CZ145,0) -> 2.877795359 | DO146: =DK103 -> 37.54298265 | DP146: =DL103 -> 131.9001722 | DQ146: شیفت 12p | DT146: α34 | DU146: =ATAN((DU131-DU130)/(DT130-DT131)) -> 0.2492515795 | DY146: α30b | DZ146: =ATAN((DY150-DY132)/(DZ150-DZ132)) -> 0.06980899279 | ED146: =BS176 -> 11.64929278 | EE146: =BT176 -> 135.6814851 | EF146: 5' | EH146: =BW113 -> 6.13548 | EI146: =BX113 -> 143.9817816 | EJ146: e7 | EL146: =BD150 -> 0 | EM146: =BE150 -> 74.575 | EN146: 1 | ER146: کمر | EV146: انحنا ساسون کمر | EX146: =DC124 -> 21.37213204 | EY146: =DD124 -> 108.0140998 | EZ146: 41m | FB146: =DP179 -> 5.747574177 | FC146: =DQ179 -> 157.916028 | FD146: a4 | FJ146: =BO170 -> 43.0711745 | FK146: =BP170 -> 118.7421722 | FL146: 10شیفت | FR146: =BK159 -> 29.18125 | FS146: =BL159 -> 106.1 | FT146: 34 | FX146: =-(DU239)+2*GC101 -> -9.54408 | FY146: =DV239 -> 132.725 | FZ146: p25 | GB146: =-(AL283)+2*GC101 -> -5.032987204 | GC146: =AM283 -> 138.1059388 | GD146: sq2 | GH146: کمر | GL146: رگلان بدون درز | GR146: =-ET102-GK101 -> 0 | GS146: =EU102 -> 104 | GT146: 38 | GV146: =-CR198-GK101 -> 0 | GW146: =CS198 -> 138.1059388 | GX146: 26 | GZ146: =-AW292-GK101 -> 0 | HA146: 74.575 | HB146: 1 | HD146: =-U428-GK101 -> -17.55586271 | HE146: =V428 -> 101.7914676 | HF146: 37 | HJ146: 67' | HL146: =HL148 -> -16.61617009 | HM146: =DQ476 -> 101.4494475 | HN146: β9
E147: نصف پهنای ساسون روی خط مرکزی پشت بالاتنه | F147: x''11 | G147: =('متغیرها '!C82*1/2)*(H121-H119) -> 1.9 | H147: =('متغیرها '!C82*1/2)*('متغیرها '!U73-'متغیرها '!U71) -> 1.9 | J147: (2 → 29) | K147: =0.8*K143 -> 5.45376 | L147: =0.8*L143 -> 5.45376 | N147: (6 →16'') | O147: =O142*COS(O144-O143+O145) -> 6.251928999 | P147: =P142*COS(P144-P143+P145) -> 6.719802306 | Q147: =AN120 -> 10.34221716 | R147: =AO120 -> 16.3 | S147: 6 | U147: =AN151 -> -1.503 | V147: =AO151 -> 0 | W147: 37 | Y147: =H166 -> 2.010282607 | Z147: (2 → 28) | AA147: =G166+'متغیرها '!C73*0.5*G167-('متغیرها '!C71)*0.5*G167*SIN(AD139) -> 2.010282607 | AC147: β'6 | AD147: =ATAN((AF144-AF113)/(AG144-AG113)) -> 0.2277028718 | AE147: =ATAN((AC162-AC160)/(AD162-AD160)) -> 0.2277091929 | AF147: =AR156 -> 12.01871396 | AG147: =AS156 -> 32.17990261 | AH147: 38 | AN147: =K115-K132+K138-K153 -> 18.61802355 | AO147: =K127+K133+K139+AP111 -> 36.91465646 | AP147: 33 | AR147: =AA146+AA153 -> 12.46026339 | AS147: =AA114+AT111 -> 40.5 | AT147: 33 | AW147: (1 → 1') | AX147: =-'متغیرها '!C66*(2*H129+H130) -> -1.503 | AZ147: =AX132+AX99 -> 5.45376 | BA147: =AX103+AX98 -> 146.5 | BB147: 29 | BC147: 3' | BD147: =BD152 -> 10.26576004 | BE147: =BE152 -> 74.575 | BF147: خطوط برش | BH147: متغیرهای خروجی ساسون کمر در پیراهن راسته پشت | BO147: =BK138 -> 20 | BP147: =BL138 -> 144.5897174 | BQ147: 24 | BS147: نقطه دوم از خط اول | BT147: b6 | BU147: =BW163 -> 16.59108511 | BV147: =BX163 -> 132.3111244 | BW147: =BW140 -> 24.38530055 | BX147: =BX140 -> 122.3269397 | BY147: b2 | CA147: نقطه دوم از خط اول | CB147: b6 | CC147: =CE118 -> 37.54256347 | CD147: =CF118 -> 131.9008799 | CM147: =CI119-0.05*(CI119-CI103)+CJ105 -> 16.03421886 | CN147: =CJ119-0.15*(CJ119-CJ120) -> 131.5899423 | CO147: شیفت 16f | CY147: (41m→45m) | CZ147: =SQRT(POWER((DG122-DG123),2)+POWER((DH122-DH123),2)) -> 21.09313632 | DT147: نقاط خروجی | DY147: α32b | DZ147: =ATAN((DZ131-DZ130)/(DY130-DY131)) -> 0.4847539825 | EH147: =BS116 -> -1.503 | EI147: =BT116 -> 116.75 | EJ147: e1 | EP147: =AZ165 -> 0 | EQ147: =BA165 -> 104 | ER147: 38 | ET147: =BD174+'متغیرها '!C55 -> 11.42721716 | EU147: =BE174 -> 104 | EV147: 40شیفت | EX147: =DC115 -> 14.68292548 | EY147: =DD115 -> 104.695889 | EZ147: 40s | FF147: =CE106 -> 25.1129 | FG147: =CF106 -> 145.3938304 | FH147: 28 | FJ147: =BK126 -> 43.99256935 | FK147: =BL126 -> 85.25614076 | FL147: 6شیفت | FN147: =DY179 -> 20.85625 | FO147: =DZ179 -> 70.575 | FP147: a'6 | FT147: باسن | GB147: =-(AL282)+2*GC101 -> 0 | GC147: =AM282 -> 138.1059388 | GD147: =AN282 -> 26 | GF147: =-EX146-GK101 -> -21.37213204 | GG147: =EY146 -> 108.0140998 | GH147: 41m | GJ147: =-ED145-GK101 -> -5.45376 | GK147: =EE145 -> 142.3029694 | GL147: 30 | GN147: =-EL143-GK101 -> 1.503 | GO147: =EM143 -> 74.575 | GP147: 1' | GR147: =-ET103-GK101 -> -9.25721716 | GS147: =EU103 -> 104 | GT147: 39 | HD147: =-U429-GK101 -> -22.79082303 | HE147: =V429 -> 87.40853237 | HF147: 37' | HH147: =-CX270-GK101 -> 0 | HI147: =CY270 -> 138.1059388 | HJ147: 26 چرخیده
E148: نسبت فاصله دو ساسون پشت به نوار سینه از پشت (بین دو خط پهلو) | F148: z'2 | G148: ='متغیرها '!C86*0.5 -> 0.25 | H148: =0.5*0.5 -> 0.25 | J148: (29 → 30) | K148: =0.5*K144 -> 4.197030622 | L148: =0.5*L144 -> 4.197030622 | N148: (22 → 35') | O148: =0.5*G179-0.5*G167*'متغیرها '!C76*COS(O140)+0.5*G167*'متغیرها '!C78*COS(O140) -> 8.4434 | P148: =COS(H160)*(0.5*H169+0.5*H167*(1)) -> 8.4434 | U148: =AN152 -> -1.503 | V148: =AO152 -> 34.10593876 | W148: 38 | Y148: =0.4*Y146 -> 2.72688 | Z148: (2 → 29) | AA148: =0.4*AA146 -> 2.72688 | AC148: (24 → 37') | AD148: =COS(G158)*(0.5*G170+0.5*G167*(1-'متغیرها '!C76+'متغیرها '!C78)) -> 6.2094 | AE148: =COS(H158)*(0.5*H170+0.5*H167) -> 6.2094 | AF148: =AR121 -> 10.7 | AG148: =AS121 -> 24.16403147 | AH148: 7 | AN148: =K115-K132+K138-K153 -> 18.61802355 | AO148: =K127+K133+K139+K154+AP111 -> 39.722094 | AP148: 34 | AR148: =AA146+AA153 -> 12.46026339 | AS148: =AA114-AA154+AT111 -> 39.11989221 | AT148: 34 | AW148: (26 → 26') | AX148: =AX147 -> -1.503 | AZ148: =AX132+AX99 -> 5.45376 | BA148: =AX103-AX133+AX98 -> 142.3029694 | BB148: 30 | BD148: =AZ102 -> 0 | BE148: =BA102 -> 138.1059388 | BF148: 26 | BG148: ='متغیرها '!U58-'متغیرها '!U59 -> 60.1 | BH148: (1 → 33) | BI148: =H106-H114 -> 31.525 | BK148: =0+BI98 -> 20 | BL148: =0+'متغیرها '!C54 -> 0 | BM148: زمین | BO148: =BK168 -> 20 | BP148: =BL168 -> 74.575 | BQ148: 1 | BS148: نقطه اول از خط دوم | BT148: 5 بالاتنه | BU148: =BS104 -> 10.34221716 | BV148: =BT104 -> 120.3 | BW148: =BW142 -> 11.75222402 | BX148: =BX142 -> 120.3222601 | BY148: b | CA148: نقطه اول از خط دوم | CB148: 22 | CC148: =BK101 -> 32.01871396 | CD148: =BL101 -> 138.2799026 | CM148: =CM105 -> 17.76876522 | CN148: =CN105 -> 127.5032437 | CO148: شیفت 20f | CY148: (41m→s2m) | CZ148: =CZ147-CZ144 -> 21.09313632 | DA148: (36m→s'2m) | DT148: مولفه افقی | DU148: مولفه عمودی | DV148: اسم نقطه | DY148: نقاط خروجی | ED148: =BW176+BT130 -> 11.6453725 | EE148: =BX176 -> 135.6818178 | EF148: 5''شیفت | EL148: =BW108 -> 0 | EM148: =BX108 -> 138.1059388 | EN148: 26 چرخیده | EP148: =AZ166 -> 9.25721716 | EQ148: =BA166 -> 104 | ER148: 39 | ET148: =IF(AX152>0,ET150+0.95*(ET147-ET150),ET150) -> 11.37296716 | EU148: =IF(AX152>0,EU150-0.4*(EU150-EU147),EU147) -> 111.824 | EV148: 40a | FB148: =EH112 -> 10.65515157 | FC148: 152.6900097 | FD148: a2 | FF148: =CC157 -> 31.7811626 | FG148: =CD157 -> 136.4006467 | FH148: b'10 | FN148: =DY161 -> 20.85625 | FO148: =DZ161 -> 74.575 | FP148: 47 | FR148: =BK170 -> 20.85625 | FS148: =BP178-(H106-H108) -> 84.1 | FT148: b48 | FX148: =-(DU244)+2*GC101 -> -15.1182858 | FY148: =DV244 -> 130.9518173 | FZ148: p16 | GF148: =-EX147-GK101 -> -14.68292548 | GG148: =EY147 -> 104.695889 | GH148: 40s | GJ148: =-ED146-GK101 -> -11.64929278 | GK148: =EE146 -> 135.6814851 | GL148: 5' | GN148: =-EL146-GK101 -> 0 | GO148: =EM146 -> 74.575 | GP148: 1 | GV148: =-CR198-GK101 -> 0 | GW148: =CS198 -> 138.1059388 | GX148: 26 | HB148: 60' | HH148: =-CX271-GK101 -> 1.503 | HI148: =CY271 -> 138.1059388 | HJ148: چرخیده 26' | HL148: =-DP478-GK101 -> -16.61617009 | HM148: =DQ478 -> 101.4494475 | HN148: β9
E149: نصف پهنای ساسون میانی پشت کمر دامن | F149: x | G149: ='متغیرها '!C95*0.25*(H103-H101) -> 2.0875 | H149: ='متغیرها '!C95*0.25*('متغیرها '!U55-'متغیرها '!U53) -> 2.0875 | J149: (25→30→28→26) | K149: هلال وصل | N149: (35' → 35) | O149: =0.5*G180-0.5*G167*'متغیرها '!C76*SIN(O140)+0.5*G167*'متغیرها '!C78*SIN(O140) -> 2.792671768 | P149: =SIN(H160)*(0.5*H169+0.5*H167*(1)) -> 2.792671768 | Q149: =AN146 -> 12.44673904 | R149: =AO146 -> 41.06572244 | S149: 32 | U149: =AN140 -> 0 | V149: =AO140 -> 34.10593876 | W149: 26 | Y149: =0.9*Y147 -> 1.809254346 | Z149: (29→30) | AA149: =0.9*AA147 -> 1.809254346 | AC149: (37 ' → 37) | AD149: =SIN(G158)*(0.5*G170+0.5*G167*(1-'متغیرها '!C76+'متغیرها '!C78)) -> 2.193609887 | AE149: =SIN(H158)*(0.5*H170+0.5*H167) -> 2.19374636 | AN149: =K115-K132+K138-O148 -> 15.2606 | AO149: =K127+K133+K139+O149+AP111 -> 39.70732823 | AP149: 35 | AR149: =AR156+0.8*(AR148-AR156) -> 12.37195351 | AS149: =AS156+0.7*(AS148-AS156) -> 37.03789533 | AT149: 34- | AW149: محاسبه ات ساسون کمر در پیراهن جلو | BD149: =AZ102 -> 0 | BE149: =BA102 -> 138.1059388 | BF149: 26 | BG149: =BG155-0.5*BG150 -> 9.18125 | BH149: (33 → 34) | BI149: =BI155-0.5*BI150 -> 9.18125 | BS149: نقطه دوم از خط دوم | BT149: 32 | BU149: =BW109 -> 12.44673904 | BV149: =BX109 -> 145.0657224 | BW149: =BS104 -> 10.34221716 | BX149: =BT104 -> 120.3 | BY149: 5 بالاتنه | CA149: نقطه دوم از خط دوم | CB149: 40 | CC149: =CA104 -> 30.7 | CD149: =CB104 -> 127.8476283 | DT149: =DT134+DU140*COS(DU144-RADIANS(DU137)) -> 12.51408824 | DU149: =DU134-DU140*SIN(DU144-RADIANS(DU137)) -> 145.3623154 | DV149: 32b | DY149: مولفه افقی | DZ149: مولفه عمودی | EA149: اسم نقطه | ED149: =BW134+BT130 -> 18.72138136 | EE149: =BX134 -> 128.1231807 | EF149: شیفتb10 | EJ149: یقه گرد چرخیده | EL149: =BW110 -> -1.503 | EM149: =BX110 -> 138.1059388 | EN149: چرخیده 26' | ET149: =IF(AX152>0,ET150+0.2*(ET147-ET150),ET150) -> 10.55921716 | EU149: =IF(AX152>0,EU150-0.15*(EU150-EU147),EU147) -> 115.084 | EV149: 40aa | EZ149: لبه برگرد پایین کت در پهلو جدا | FB149: 8.352380629 | FC149: 149.5950048 | FD149: a13 | FJ149: =BK126 -> 43.99256935 | FK149: =BL126 -> 85.25614076 | FL149: 6شیفت | FR149: =BO187 -> 31.8375 | FS149: =FS148 -> 84.1 | FT149: b49 | FX149: =-(DU247)+2*GC101 -> -16.5168858 | FY149: =DV247 -> 126.8235902 | FZ149: p20 | GD149: 18' | GR149: =-ET105-GK101 -> -11.42721716 | GS149: =EU105 -> 104 | GT149: شیفت 40 | GV149: =-CR201-GK101 -> -4.834553202e-08 | GW149: =CS201 -> 120.301 | GX149: 4 | GZ149: =-AU239-GK101 -> -6.8172 | HA149: =AV239 -> 146.5 | HB149: 25 | HF149: 81' | HL149: =HL151 -> -17.89788286 | HM149: =DQ479 -> 100.851775 | HN149: β13
E150: نصف پهنای ساسون جلو کمر دامن | F150: y | G150: ='متغیرها '!C97*0.5*(H102-H103-H100+H101) -> 0 | H150: ='متغیرها '!C97*0.5*('متغیرها '!U54-'متغیرها '!U55-'متغیرها '!U52+'متغیرها '!U53) -> 0 | J150: (25 → 31) | K150: =(1-'متغیرها '!C71)*0.5*G167*COS(O139) -> 5.629539043 | L150: =0.5*H167*COS(P139) -> 5.676540688 | N150: (35 → 6) | O150: وصل | Q150: =AN145 -> 12.44673904 | R150: =AO145 -> 42.5 | S150: 31 | Y150: =0.75*Y146 -> 5.1129 | Z150: (2 → 31) | AA150: =0.75*AA146 -> 5.1129 | AC150: (37 → 7) | AD150: وصل | AF150: =AR148 -> 12.46026339 | AG150: =AS148 -> 39.11989221 | AH150: 34 | AN150: =K115-K132+K138-O148-O152 -> 10.34221716 | AO150: =K127+K133+K139+O149-O151+AP111 -> 16.3 | AP150: 36 | AR150: =AR156+0.6*(AR148-AR156) -> 12.28364362 | AS150: =AS156+0.5*(AS148-AS156) -> 35.64989741 | AT150: 34-- | AV150: =IF('متغیرها '!C125=1,H150,IF(H150>0,H150,0)) -> 0 | AW150: y | AX150: =IF('متغیرها '!C125=1,G150,IF(G150>0,G150,0)) -> 0 | AZ150: =AX110+AX99 -> 25.36368065 | BA150: =0+AX98 -> 74.575 | BB150: 8 | BD150: =0+AX99 -> 0 | BE150: =0+AX98 -> 74.575 | BF150: 1 | BG150: =2*IF(BG144<0.3,0,IF(BG145>0.3,BG145,0)) -> 3.0375 | BH150: (34 → 35) | BI150: =IF('متغیرها '!C125=0,2*IF(BI144<0.3,0,IF(BI145>0.3,BI145,0)),2*BI144) -> 3.0375 | BK150: =0+BI98 -> 20 | BL150: =I127-I126+BI148+BI97 -> 120.3 | BM150: سینه | BO150: =BO192 -> 29.5625 | BP150: =BP192 -> 74.575 | BQ150: شیفت50 | BS150: نقطه تقاطع | BT150: 32' | BU150: =(BV148-BV146+BU146*((BV147-BV146)/(BU147-BU146))-BU148*((BV149-BV148)/(BU149-BU148)))/(((BV147-BV146)/(BU147-BU146))-((BV149-BV148)/(BU149-BU148))) -> 11.73323787 | BV150: =BV146+(BU150-BU146)*((BV147-BV146)/(BU147-BU146)) -> 136.6693393 | BW150: انحنا | CA150: نقطه تقاطع | CB150: b'6 | CC150: =(CD148-CD146+CC146*((CD147-CD146)/(CC147-CC146))-CC148*((CD149-CD148)/(CC149-CC148)))/(((CD147-CD146)/(CC147-CC146))-((CD149-CD148)/(CC149-CC148))) -> 31.9761819 | CD150: =CD146+(CC150-CC146)*((CD147-CD146)/(CC147-CC146)) -> 137.9434338 | DT150: =DT132+DU142*SIN(DU145+DU143) -> 12.5077006 | DU150: =DU132+DU142*COS(DU145+DU143) -> 145.3628681 | DV150: 34b | DY150: =DY134+DZ141*COS(DZ145-RADIANS(DZ137)) -> 32.52475903 | DZ150: =DZ134-DZ141*SIN(DZ145-RADIANS(DZ137)) -> 145.5171187 | EA150: 30b | EH150: =BW105 -> 6.8172 | EI150: 146.5 | EJ150: =BY105 -> 25 | ER150: انحنا لبه روی خط مرکزی جلو بالاتنه | ET150: =BD175+'متغیرها '!C55 -> 10.34221716 | EU150: =BE175 -> 117.04 | EV150: 43شیفت | EX150: =DP170 -> 8.307426234 | EY150: =DQ170 -> 74.575 | EZ150: آستر a5 | FB150: 6.8172 | FC150: 146.5 | FD150: چرخیده 25 | FH150: ساسون کمر بدون شیفت | FJ150: =BK129 -> 44.25465732 | FK150: =BL129 -> 75.73114076 | FL150: 4شیفت | FN150: =DY163 -> 25.5625 | FO150: =DZ163 -> 74.575 | FP150: پهلوe216 | FX150: =-(DU249)+2*GC101 -> -19.7802858 | FY150: =DV249 -> 123.9338312 | FZ150: p18 | GB150: =-EP132-GK101 -> -8.17221716 | GC150: =EQ132 -> 86.09 | GD150: 47' | GH150: 31' | GJ150: =-ED148-GK101 -> -11.6453725 | GK150: =EE148 -> 135.6818178 | GL150: 5''شیفت | GN150: =-EL148-GK101 -> 0 | GO150: =EM148 -> 138.1059388 | GP150: چرخیده26 | GR150: =-ET106-GK101 -> -20.57 | GS150: =EU106 -> 106.1813315 | GT150: شیفت 41 | GZ150: =-AU240-GK101 -> -8.352380629 | HA150: =AV240 -> 149.5950048 | HB150: a13 | HD150: =-AG277-GK101 -> -18.06911245 | HE150: =AH277 -> 143.6194423 | HF150: c22 | HH150: =-CX271-GK101 -> 1.503 | HI150: =CY271 -> 138.1059388 | HJ150: چرخیده 26'
E151: نصف پهنای ساسون میانی پشت کمر بالاتنه | F151: x'' | G151: =('متغیرها '!C84*1/4)*(H121-H119) -> 0.95 | H151: =('متغیرها '!C84*1/4)*('متغیرها '!U73-'متغیرها '!U71) -> 0.95 | J151: (31 → 32) | K151: =(1-'متغیرها '!C71)*0.5*G167*SIN(O139) -> 1.434277564 | L151: =0.5*H167*SIN(P139) -> 1.235211636 | N151: (35 → 36') | O151: =COS(G161)*K159 -> 23.40732823 | P151: =COS(H161)*L159 -> 20.14732823 | Q151: =AN139 -> 6.8172 | R151: =AO139 -> 42.5 | S151: 25 | Y151: =0.6*Y147 -> 1.206169564 | Z151: (31 → 32) | AA151: =0.6*AA147 -> 1.206169564 | AC151: (37 → 38') | AD151: =IF((4*G170)<G172,COS(G159)*(4*G170),COS(G159)*G172) -> 6.126487503 | AE151: =IF((4*H170)<H172,COS(H159)*(4*H170),COS(H159)*H172) -> 6.126844802 | AF151: =AR147 -> 12.46026339 | AG151: =AS147 -> 40.5 | AH151: 33 | AN151: =K162 -> -1.503 | AO151: =0+AP111 -> 0 | AP151: 37 | AR151: =AA115-AA135+AA141-AA156 -> 14.0962035 | AS151: =AA130+AA136+AA142+AT111 -> 36.11278023 | AT151: 35 | AV151: =IF('متغیرها '!C125=1,H152,IF(H152>0,H152,0)) -> 2.17 | AW151: y'' | AX151: =IF('متغیرها '!C125=1,G152,IF(G152>0,G152,0)) -> 2.17 | AZ151: =AX110+AX99 -> 25.36368065 | BA151: =AX111+AX98 -> 85.23133154 | BB151: 9 | BD151: =AZ106 -> 0 | BE151: =BA106 -> 74.575 | BF151: 1 | BG151: =0.5*'متغیرها '!U71-BG149+BG163 -> 10.31875 | BH151: (35 → 36) | BI151: =0.5*H119-BI149+BI163+'متغیرها '!C61*H120 -> 10.31875 | BK151: =0.5*(BK154-BK153)+BI98 -> 25.35 | BL151: =BL150 -> 120.3 | BO151: =BK129 -> 44.25465732 | BP151: =BL129 -> 75.73114076 | BQ151: 4شیفت | BW151: =BW144 -> 18.06911245 | BX151: =BX144 -> 143.6194423 | BY151: b16 | CB151: b''6 | CC151: =CC147-0.05*(CC147-CC150) -> 37.26424439 | CD151: =CD147-0.2*(CD147-CD154) -> 130.7993143 | CL151: شبیه ساز حلقه آستین بدون ساسون سرشانه | CN151: بالاتنه کمر جناقی در جلو و پشت | CZ151: جلو بالاتنه عصایی با اپل و کنترل گودی حلقه آستین | DH151: پشت بالاتنه عصایی با اپل و کنترل گودی حلقه آستین | DT151: =DT150+DU141*COS(DU146-RADIANS(DU137)) -> 18.20483682 | DU151: =DU150-DU141*SIN(DU146-RADIANS(DU137)) -> 144.2264259 | DV151: 22b | DY151: =DY132+DZ143*SIN(DZ146+DZ144) -> 34.36083179 | DZ151: =DZ132+DZ143*COS(DZ146+DZ144) -> 145.1463327 | EA151: 32b | EF151: ساسون زیر بغل متغیر | EH151: 5.45376 | EI151: 142.3029694 | EJ151: =BY106 -> 30 | EL151: =BW110 -> -1.503 | EM151: =BX110 -> 138.1059388 | EN151: چرخیده 26' | EP151: =BS116 -> -1.503 | EQ151: =BT116 -> 116.75 | ER151: e1 | EX151: =DT162 -> 8.307426234 | EY151: =DU162 -> 70.575 | EZ151: a'5 | FF151: =BK154 -> 30.7 | FG151: =BL154 -> 127.8476283 | FH151: 40 | FN151: =DY181 -> 25.5625 | FO151: =DZ181 -> 70.575 | FP151: a'26 | FR151: =BO191 -> 29.5625 | FS151: =FS148+'متغیرها '!C57 -> 84.1 | FT151: b50 | FX151: =-(AZ99-'متغیرها '!C55)+2*GC101 -> -24.4422858 | FY151: =BA99 -> 122.695363 | FZ151: 12 | GB151: =-EP133-GK101 -> -9.25721716 | GC151: =EQ133 -> 104 | GD151: 39 | GF151: =-ET147-GK101 -> -11.42721716 | GG151: =EU147 -> 104 | GH151: 40شیفت | GJ151: =-ED149-GK101 -> -18.72138136 | GK151: =EE149 -> 128.1231807 | GL151: شیفتb10 | GN151: =-EL149-GK101 -> 1.503 | GO151: =EM149 -> 138.1059388 | GP151: چرخیده26' | GT151: باسن | GV151: =-CR203-GK101 -> 0 | GW151: =CS203 -> 120.3 | GX151: 4 | GZ151: =-AU241-GK101 -> -10.65515157 | HA151: =AV241 -> 152.6900097 | HB151: a2 | HD151: =-AG278-GK101 -> -27.50874494 | HE151: =AH278 -> 137.1654357 | HF151: c4 | HH151: =-CX274-GK101 -> 1.502999958 | HI151: =CY274 -> 120.301 | HJ151: چرخیده 4' | HL151: =-DP481-GK101 -> -17.89788286 | HM151: =DQ481 -> 100.851775 | HN151: β13
E152: نصف پهنای ساسون جلو کمر | F152: y'' | G152: =0.5*'متغیرها '!C87*(H120-H121-H118+H119) -> 2.17 | H152: =0.5*'متغیرها '!C87*('متغیرها '!U72-'متغیرها '!U73-'متغیرها '!U70+'متغیرها '!U71) -> 2.17 | J152: (25 → 32) | K152: وصل | N152: (36' → 36) | O152: =SIN(G161)*K159 -> 4.91838284 | P152: =SIN(H161)*L159 -> 4.88684 | Q152: =AN116 -> 0 | R152: =AO116 -> 42.5 | S152: 2 | W152: دکلته ساسون سرشانه | Z152: (27→32→30→28) | AA152: هلال وصل | AC152: (38' → 38) | AD152: =IF((4*G170)<G172,SIN(G159)*(4*G170),SIN(G159)*G172) -> 1.007886038 | AE152: =IF((4*H170)<H172,SIN(H159)*(4*H170),SIN(H159)*H172) -> 1.007954545 | AF152: =AR141 -> 6.8172 | AG152: =AS141 -> 40.5 | AH152: 27 | AN152: =K162 -> -1.503 | AO152: =K114-K144+AP111 -> 34.10593876 | AP152: 38 | AR152: =AA115-AA135+AA141-AA156 -> 14.0962035 | AS152: =AA130+AA136+AA142+AA157+AT111 -> 38.82042752 | AT152: 36 | AV152: =MIN(AV150,AV151)+0.5*ABS((AV150-AV151)) -> 1.085 | AW152: * | AX152: =MIN(AX150,AX151)+0.5*ABS((AX150-AX151)) -> 1.085 | BD152: =0.42*AX104+AX99 -> 10.26576004 | BE152: =0+AX98 -> 74.575 | BF152: 3' | BG152: =BG148-1*('متغیرها '!U58-'متغیرها '!U60) -> 38.1 | BH152: (1 → 37) | BI152: =BI148-'متغیرها '!C96*(H106-H108) -> 11.725 | BK152: ساسون کمر | BO152: =BK126 -> 43.99256935 | BP152: =BL126 -> 85.25614076 | BQ152: 6شیفت | BT152: به دست آوردن نقطه تقاطع دو خط (رگلان بدون درز) | BU152: مولفه افقی | BV152: مولفه عمودی | BW152: =BW136 -> 16.50103137 | BX152: =BX136 -> 137.7490578 | BY152: b12 | CB152: به دست آوردن نقطه تقاطع دو خط (رگلان بدون درز) | CC152: مولفه افقی | CD152: مولفه عمودی | CI152: نقاط ورودی | CN152: بعضی نقاط ورودی جلو | CT152: جلو بالاتنه کمر جناقی | CX152: پشت بالاتنه کمر جناقی | CZ152: نقاط ورودی | DF152: حلقه آستین عصایی | DH152: نقاط ورودی | DN152: حلقه آستین عصایی | DY152: =DY151+DZ142*COS(DZ147-RADIANS(DZ137)) -> 39.6355435 | DZ152: =DZ151-DZ142*SIN(DZ147-RADIANS(DZ137)) -> 142.7119379 | EA152: 18b | ED152: =BW140+BT130 -> 24.38530055 | EE152: =BX140 -> 122.3269397 | EF152: شیفت b2 | EH152: 2.72688 | EI152: 138.9453449 | EJ152: =BY107 -> 28 | EL152: =BW112 -> -1.502999958 | EM152: =BX112 -> 120.301 | EN152: چرخیده 4' | EP152: =CE184 -> -1.503 | EQ152: =CF184 -> 116.4574224 | ER152: 8n | ET152: =BD175 -> 10.34221716 | EU152: =BE175 -> 117.04 | EV152: 43 | FB152: =EH116 -> 10.65515157 | FC152: =EI116 -> 152.6900097 | FD152: a2 | FF152: =BK159 -> 29.18125 | FG152: =BL159 -> 106.1 | FH152: 34 | FJ152: =BK129 -> 44.25465732 | FK152: =BL129 -> 75.73114076 | FL152: 4شیفت | FR152: =BK165 -> 46.80625 | FS152: =BL162-(H105-H108) -> 85.20614076 | FT152: b42 | FZ152: خطوط برش پیش سینه | GF152: =-ET148-GK101 -> -11.37296716 | GG152: =EU148 -> 111.824 | GH152: 40a | GR152: =-ET108-GK101 -> 0 | GS152: =EU108 -> 84.1 | GT152: g46 | GV152: =-CR204-GK101 -> 0 | GW152: =CS204 -> 98.745 | GX152: d4 | HD152: =-AG279-GK101 -> -35.23208061 | HE152: =AH279 -> 126.1761812 | HF152: c12 | HL152: =-DP482-GK101 -> -18.49555533 | HM152: =DQ482 -> 102.1334878 | HN152: β11
E153: ضریب بالا آمدن کف حلقه آستین از خط سینه | F153: z1 | G153: =(H127-H126+H122-O128*H130-O127-(0.5-G148)*H119*((G151)/(I127-I126+0.05*H130)))/(H127-H126) -> 1.270706441 | H153: =(I127-I126+I122-O128*'متغیرها '!U82-P127-(0.5-G148)*'متغیرها '!U71*((H151)/(I127-I126+0.05*'متغیرها '!U82)))/(I127-I126) -> 1.270706441 | J153: (22 → 33) | K153: =(1-'متغیرها '!C76+'متغیرها '!C78)*0.5*G167*COS(O140) -> 5.085976452 | L153: =0.5*H167*COS(P140) -> 5.073851702 | N153: (36 → 32) | O153: وصل | Q153: =AN140 -> 0 | R153: =AO140 -> 34.10593876 | S153: 26 | U153: =AN148 -> 18.61802355 | V153: =AO148 -> 39.722094 | W153: 34 | Y153: =0.5*H167*COS(AE139) -> 5.643031075 | Z153: (27 → 33) | AA153: =(1-'متغیرها '!C71)*0.5*G167*COS(AD139) -> 5.643063394 | AC153: (38 → 36) | AD153: وصل | AF153: =AR116 -> 0 | AG153: =AS116 -> 40.5 | AH153: 2 | AR153: =AR156+0.6*(AR152-AR156) -> 13.26520768 | AS153: =AS156+0.65*(AS152-AS156) -> 36.4962438 | AT153: 36- | AZ153: =AZ131 -> 20.17334287 | BA153: =BA131 -> 94.6 | BB153: 35 | BD153: =AZ108+'متغیرها '!C55 -> 25.62576862 | BE153: =BA108 -> 75.70633154 | BF153: 7شیفت | BG153: =BG155 -> 10.7 | BH153: (37 → 38) | BI153: =BI155 -> 10.7 | BK153: =0+BI98 -> 20 | BL153: =BI154+BI97 -> 127.8476283 | BM153: 39 | BO153: =BO170 -> 43.0711745 | BP153: =BP170 -> 118.7421722 | BQ153: 10شیفت | BS153: نقطه اول از خط اول | BT153: 30 | BU153: =BW106 -> 5.45376 | BV153: =BX106 -> 142.3029694 | BW153: =BW135 -> 16.59108511 | BX153: =BX135 -> 132.3111244 | BY153: b6 | CA153: نقطه اول از خط اول | CB153: 28 | CC153: =CE106 -> 25.1129 | CD153: =CF106 -> 145.3938304 | CI153: مولفه افقی | CJ153: مولفه عمودی | CK153: اسم نقطه | CN153: مولفه افقی | CO153: مولفه عمودی | CP153: اسم نقطه | CR153: مولفه افقی | CS153: مولفه عمودی | CT153: اسم نقطه | CV153: مولفه افقی | CW153: مولفه عمودی | CX153: اسم نقطه | CZ153: مولفه افقی | DA153: مولفه عمودی | DB153: اسم نقطه | DD153: =CZ157 -> 18.20483682 | DE153: =DA157 -> 144.2264259 | DF153: =DB157 -> 39 | DH153: مولفه افقی | DI153: مولفه عمودی | DJ153: اسم نقطه | DL153: =DH158+DI161 -> 37.54298265 | DM153: =DI158+DI162 -> 131.9001722 | DN153: شیفت12p یا 12 | ED153: =BW142+BT130 -> 11.75222402 | EE153: =BX142 -> 120.3222601 | EF153: شیفت b | EH153: 0 | EI153: 138.1059388 | EJ153: =BY108 -> 26 | EP153: =CE183 -> 0.09613334763 | EQ153: =CF183 -> 105.6528448 | ER153: 7n | ET153: =ET152-(ET149-ET150) -> 10.12521716 | EU153: =EU149 -> 115.084 | EV153: 39aa | EX153: =DT162 -> 8.307426234 | EY153: =DU162 -> 70.575 | EZ153: a'5 | FB153: =EH117 -> 5.747574177 | FC153: =EI117 -> 157.916028 | FD153: a4 | FJ153: =BK174 -> 40.77484375 | FK153: 75.21087742 | FL153: 41''' | FN153: =DY181 -> 25.5625 | FO153: =DZ181 -> 70.575 | FP153: a'26 | FX153: =-(DU239)+2*GC101 -> -9.54408 | FY153: =DV239 -> 132.725 | FZ153: p25 | GB153: =-EP135-GK101 -> -9.25721716 | GC153: =EQ135 -> 104 | GD153: 39 | GF153: =-ET149-GK101 -> -10.55921716 | GG153: =EU149 -> 115.084 | GH153: 40aa | GL153: 4' | GN153: =-EL149-GK101 -> 1.503 | GO153: =EM149 -> 138.1059388 | GP153: چرخیده26' | GR153: =-ET109-GK101 -> -8.17221716 | GS153: =EU109 -> 84.1 | GT153: g47' | GZ153: =-AU243-GK101 -> -10.65515157 | HA153: =AV243 -> 152.6900097 | HB153: a2 | HD153: =-AG280-GK101 -> -52.6622249 | HE153: =AH280 -> 82.03622476 | HF153: c2 | HH153: =-CX274-GK101 -> 1.502999958 | HI153: =CY274 -> 120.301 | HJ153: چرخیده 4'
E154: نسبت فاصله دو سینه به نوار سینه از جلو (بین دو خط پهلو) | F154: z2 | G154: =((2*G163+0.4*(K115-G163))/(H120-H121))*2*'متغیرها '!C89 -> 0.4204153317 | H154: =((2*H163+0.4*(L115-H163))/('متغیرها '!U72-'متغیرها '!U73))*2*0.5 -> 0.421697561 | J154: (33 → 34) | K154: =(1-'متغیرها '!C76+'متغیرها '!C78)*0.5*G167*SIN(O140) -> 2.807437533 | L154: =0.5*H167*SIN(P140) -> 2.829291584 | N154: (36 → 34) | O154: وصل | Q154: =AN118 -> 0 | R154: =AO118 -> 16.3 | S154: 4 | U154: =AN120 -> 10.34221716 | V154: =AO120 -> 16.3 | W154: 6 | Y154: =0.5*H167*SIN(AE139) -> 1.380239925 | Z154: (33 → 34) | AA154: =(1-'متغیرها '!C71)*0.5*G167*SIN(AD139) -> 1.380107786 | AC154: (38 → 34) | AD154: وصل | AF154: =AR142 -> 0 | AG154: =AS142 -> 38.48971739 | AH154: 28 | AR154: =AR156+0.3*(AR152-AR156) -> 12.64196082 | AS154: =AS156+0.35*(AS152-AS156) -> 34.50408633 | AT154: 36-- | AW154: ساسون کمر در پیراهن راسته جلو | AZ154: =AX112-AX144+AX99+'متغیرها '!C55 -> 17.55586271 | BA154: =AX143+AX98 -> 94.6 | BB154: 36شیفت | BD154: =AZ151+'متغیرها '!C55 -> 25.36368065 | BE154: =BA151 -> 85.23133154 | BF154: شیفت9 | BG154: =BG148+Y116+Y120 -> 81.84762832 | BH154: (1 → 39) | BI154: =BI148+AA116+AA120 -> 53.27262832 | BK154: =BI155+BI98 -> 30.7 | BL154: =BI154+BI97 -> 127.8476283 | BM154: 40 | BO154: =BK114 -> 44.6011745 | BP154: =BL114 -> 122.7201722 | BQ154: شیفت9 | BS154: نقطه دوم از خط اول | BT154: b10 | BU154: =BW162 -> 18.72138136 | BV154: =BX162 -> 128.1231807 | BW154: =BW134 -> 18.72138136 | BX154: =BX134 -> 128.1231807 | BY154: b10 | CA154: نقطه دوم از خط اول | CB154: b10 | CC154: =CE117 -> 39.20159069 | CD154: =CF117 -> 126.3930515 | CI154: =BW169 -> 16.59108511 | CJ154: =BX169 -> 132.3111244 | CK154: b6 | CL154: با چرخش کامل | CN154: =AZ166 -> 9.25721716 | CO154: =BA166 -> 104 | CP154: 39 | CR154: =AZ161 -> 10.34221716 | CS154: =BA161 -> 117.04 | CT154: 43 | CV154: =BK154 -> 30.7 | CW154: =BL154 -> 127.8476283 | CX154: 40 | CZ154: =AZ161 -> 10.34221716 | DA154: =BA161 -> 117.04 | DB154: 43 | DC154: راس ساسون کمر | DD154: =CZ156 -> 16.50103137 | DE154: =DA156 -> 137.7490578 | DF154: =DB156 -> 37 | DH154: =CA104 -> 30.7 | DI154: =CB104 -> 127.8476283 | DJ154: 40 | DK154: راس ساسون کمر | DL154: =DH175+DI161 -> 35.14793872 | DM154: =DI175+DI162 -> 131.0896634 | DN154: شیفت25 | EL154: =BW112 -> -1.502999958 | EM154: =BX112 -> 120.301 | EN154: چرخیده 4' | EP154: =CE182 -> 2.761355594 | EQ154: =CF182 -> 101.0476149 | ER154: 6n | ET154: =ET152-(ET148-ET150) -> 9.31146716 | EU154: =EU148 -> 111.824 | EV154: 39a | EX154: =DT163 -> 20.0388571 | EY154: =DU163 -> 71.14066577 | EZ154: a''5 | FF154: =BK159 -> 29.18125 | FG154: =BL159 -> 106.1 | FH154: 34 | FJ154: 37.4240625 | FK154: 74.80622815 | FL154: 41'' | FN154: =DY182 -> 49.32473048 | FO154: =DZ182 -> 70.575 | FP154: a''8 | FR154: =FR148 -> 20.85625 | FS154: =FS148 -> 84.1 | FT154: b48 | FX154: =-(DU244)+2*GC101 -> -15.1182858 | FY154: =DV244 -> 130.9518173 | FZ154: p16 | GB154: =-EP136-GK101 -> -10.34221716 | GC154: =EQ136 -> 117.04 | GD154: 43 | GF154: =-ET150-GK101 -> -10.34221716 | GG154: =EU150 -> 117.04 | GH154: 43شیفت | GJ154: =-ED152-GK101 -> -24.38530055 | GK154: =EE152 -> 122.3269397 | GL154: شیفت b2 | GN154: =-EL152-GK101 -> 1.502999958 | GO154: =EM152 -> 120.301 | GP154: 4' | GX154: 61' | GZ154: =-AU244-GK101 -> -6.84705856 | HA154: =AV244 -> 155.0511169 | HB154: d4 | HH154: =-CX277-GK101 -> 1.503 | HI154: =CY277 -> 99.025 | HJ154: s'1 | HL154: =-DP484-GK101 -> -18.49555533 | HM154: =DQ484 -> 102.1334878 | HN154: β11
E155: نصف کف حلقه پشت | F155: z3 | G155: =0.5*(H121-H129) -> 4 | H155: =0.5*('متغیرها '!U73-'متغیرها '!U81) -> 4 | J155: (22 → 34) | K155: وصل | U155: =AN146 -> 12.44673904 | V155: =AO146 -> 41.06572244 | W155: 32 | Z155: (27 → 34) | AA155: وصل | AF155: =AR119 -> 0 | AG155: =AS119 -> 30.375 | AH155: 5 | AR155: =AA115-AA135+AA141-AD148 -> 13.0266 | AS155: =AA130+AA136+AA142+AD149+AT111 -> 38.30639011 | AT155: 37 | AV155: ='متغیرها '!U56-'متغیرها '!U59 -> 58 | AW155: (1 → 38) | AX155: =H104-H114 -> 29.425 | AZ155: =AX112-AX144+AX99+'متغیرها '!C55 -> 17.55586271 | BA155: =AX143+AX145+AX98 -> 101.7914676 | BB155: 37شیفت | BD155: =AX104+AX99+'متغیرها '!C55 -> 24.4422858 | BE155: =AX113-AX115+AX98 -> 118.717363 | BF155: شیفت14 | BG155: =Y118 -> 10.7 | BH155: (39→40) | BI155: =AA118 -> 10.7 | BK155: =BI153+BI98 -> 30.7 | BL155: =BI152+BI97 -> 86.3 | BM155: 38 | BS155: نقطه اول از خط دوم | BT155: 5 بالاتنه | BU155: =BS104 -> 10.34221716 | BV155: =BT104 -> 120.3 | BW155: =BW133 -> 20.66194548 | BX155: =BX133 -> 126.6528171 | BY155: b8 | CA155: نقطه اول از خط دوم | CB155: 22 | CC155: =BK101 -> 32.01871396 | CD155: =BL101 -> 138.2799026 | CI155: =BG385 -> 6.8172 | CJ155: =BH385 -> 146.5 | CK155: 25 | CL155: نقطه اتصال سرشانه به گردن | CN155: =AZ167+CO162 -> 11.42721716 | CO155: =BA167 -> 104 | CP155: شیفت40 | CR155: =IF(CO158>CO154,CN158,CN154) -> 9.25721716 | CS155: =IF(CO158>CO154,CO158,CO154) -> 104 | CT155: 39 یا d5 | CV155: =IF(CO171>CO166,CN171,CN166) -> 29.18125 | CW155: =IF(CO171>CO166,CO171,CO166) -> 106.1 | CX155: 34 یا d2 | CZ155: =IF('متغیرها '!C119=1,DT122,BW135) -> 16.59108511 | DA155: =IF('متغیرها '!C119=1,DU122,BX135) -> 132.3111244 | DB155: 35 | DC155: b6 یا b'6g | DD155: =CZ155 -> 16.59108511 | DE155: =DA155 -> 132.3111244 | DF155: =DB155 -> 35 | DH155: =IF('متغیرها '!C119=1,DX122,CE118) -> 37.54256347 | DI155: =IF('متغیرها '!C119=1,DY122,CF118) -> 131.9008799 | DJ155: 37 | DK155: b'6p یا b6 | DL155: =DH174+DI161 -> 32.06859653 | DM155: =DI174+DI162 -> 129.4686459 | DN155: شیفت23 | DP155: آستر کت | DY155: لبه برگرد پایین کت | ED155: =BW142+BT130 -> 11.75222402 | EE155: =BX142 -> 120.3222601 | EF155: شیفت b | EJ155: پایین پیراهن بدون ترک | EL155: =BS104 -> 10.34221716 | EM155: =BT104 -> 120.3 | EN155: =BU104 -> 5 بالاتنه | EP155: =CE181 -> 6.697683834 | EQ155: =CF181 -> 98.745 | ER155: 5n | ET155: =BD172 -> 9.25721716 | EU155: =BE172 -> 104 | EV155: 39 | FB155: =EH126 -> 9.510050181 | FC155: 153.9094139 | FD155: a14 | FF155: =BK155 -> 30.7 | FG155: =BL155 -> 86.3 | FH155: 38 | FJ155: 33.403125 | FK155: 74.575 | FL155: شیفت41' | GJ155: =-ED153-GK101 -> -11.75222402 | GK155: =EE153 -> 120.3222601 | GL155: شیفت b | GR155: =-ET111-GK101 -> -12.51221716 | GS155: =EU111 -> 84.1 | GT155: g47'' | GV155: =-CV189-GK101 -> 0 | GW155: =CW189 -> 98.745 | GX155: d4 | HD155: =-AG282-GK101 -> -10.26576004 | HE155: =AH282 -> 74.575 | HF155: 3' | HL155: =-DP485-GK101 -> -16.61617009 | HM155: =DQ485 -> 101.4494475 | HN155: β9
E156: نصف کف حلقه جلو | F156: z4 | G156: =O126*H130-G155 -> 5.18 | H156: =O126*'متغیرها '!U82-H155 -> 5.18 | J156: (22 → 25) | K156: وصل | Q156: =AN141 -> 2.72688 | R156: =AO141 -> 42.5 | S156: 27 | Y156: =0.5*H167*COS(AE140) -> 5.139735146 | Z156: (24 → 35) | AA156: =(1-'متغیرها '!C76+'متغیرها '!C78)*0.5*G167*COS(AD140) -> 5.139796505 | AF156: =AR118 -> 0 | AG156: =AS118 -> 14.2 | AH156: 4 | AR156: =AA115-AA135+AA141-AD148-AD152 -> 12.01871396 | AS156: =AA130+AA136+AA142+AD149-AD151+AT111 -> 32.17990261 | AT156: 38 | AV156: =AV160-0.5*AV157 -> 9.28876 | AW156: (38 → 39) | AX156: =AX160-0.5*AX157 -> 9.25721716 | BD156: =AX104+AX114+AX99+'متغیرها '!C55 -> 25.9722858 | BE156: =AX113+AX98 -> 122.695363 | BF156: شیفت13 | BG156: =BG149+BG150+BG151+(IF('متغیرها '!U55>'متغیرها '!U53,0.5*'متغیرها '!U55,0.5*'متغیرها '!U53)-BG149-BG151+BG163)-BG142-BG150 -> 26.80625 | BH156: (1 → 41) | BI156: =BI149+BI150+BI151+'متغیرها '!C128*(IF(H103>H101,0.5*H103,0.5*H101)+'متغیرها '!C62*H120-BI149-BI151+BI163)-'متغیرها '!C128*BI142-IF('متغیرها '!C125=1,2*BI143,BI150)*IF('متغیرها '!C128<'متغیرها '!C96,'متغیرها '!C128/'متغیرها '!C96,1) -> 26.80625 | BK156: =0+BI98 -> 20 | BL156: =BI152+BI97 -> 86.3 | BM156: 37 | BO156: =BK140 -> 39.37898265 | BP156: =BL140 -> 142.2125073 | BQ156: شیفت18 | BS156: نقطه دوم از خط دوم | BT156: 32 | BU156: =BW109 -> 12.44673904 | BV156: =BX109 -> 145.0657224 | BW156: =BW132 -> 23.38139636 | BX156: =BX132 -> 126.1761812 | BY156: b4 | CA156: نقطه دوم از خط دوم | CB156: 40 | CC156: =CA104 -> 30.7 | CD156: =CB104 -> 127.8476283 | CI156: =BG395 -> 24.6 | CJ156: =BH395 -> 124.225363 | CK156: 12 | CN156: =AZ168+CO162 -> 20.57 | CO156: =BA168 -> 106.1813315 | CP156: شیفت41 | CZ156: =IF('متغیرها '!C119=1,DT121,BW136) -> 16.50103137 | DA156: =IF('متغیرها '!C119=1,DU121,BX136) -> 137.7490578 | DB156: 37 | DC156: b12 یا b'12g | DH156: =IF('متغیرها '!C119=1,DX121,CE119) -> 38.09277685 | DI156: =IF('متغیرها '!C119=1,DY121,CF119) -> 137.5727212 | DJ156: 39 | DK156: b'12p یا b12 | DL156: =DH154+DI161 -> 30.7 | DM156: =DI154+DI162 -> 127.8476283 | DN156: شیفت40 | DP156: نقاط ورودی | DT156: نقاط ورودی | DY156: نقاط ورودی | ED156: =BS140+BT130 -> 24.4422858 | EE156: =BT140 -> 118.717363 | EF156: شیفت 14 | EH156: =BD153 -> 25.62576862 | EI156: =BE153 -> 75.70633154 | EJ156: شیفت7 | EP156: =CN158 -> 8.747854792 | EQ156: =CO158 -> 95.592 | ER156: d5 | EX156: =DT163 -> 20.0388571 | EY156: =DU163 -> 71.14066577 | EZ156: a''5 | FB156: 6.975116919 | FC156: 150.2366397 | FD156: a16 | FJ156: =BO176 -> 20.85625 | FK156: =BP176 -> 74.575 | FL156: 47 | FN156: =DY182 -> 49.32473048 | FO156: =DZ182 -> 70.575 | FP156: a''8 | FR156: =FR151 -> 29.5625 | FS156: =FS151 -> 84.1 | FT156: b50 | FX156: =-(0+AX99)+2*GC101 -> 0 | FY156: =DS251+AX98 -> 74.575 | FZ156: p10 | GB156: =-EP138-GK101 -> -8.17221716 | GC156: =EQ138 -> 86.09 | GD156: 47' | GF156: =-ET152-GK101 -> -10.34221716 | GG156: =EU152 -> 117.04 | GH156: 43 | GN156: =-EL152-GK101 -> 1.502999958 | GO156: =EM152 -> 120.301 | GP156: 4' | GR156: =-ET112-GK101 -> -22.55 | GS156: =EU112 -> 85.18133154 | GT156: g45 | GV156: =-CV190-GK101 -> 1.503 | GW156: =CW190 -> 98.745 | GX156: 26'' | GZ156: =-AU246-GK101 -> -6.84705856 | HA156: =AV246 -> 155.0511169 | HB156: d4 | HD156: =-AG283-GK101 -> -31.46399247 | HE156: =AH283 -> 76.81336743 | HF156: c5 | HH156: =-CX277-GK101 -> 1.503 | HI156: =CY277 -> 99.025 | HJ156: s'1 | HN156: کیسه جیب
E157: ربع زاویه ساسون کمر پشت بالاتنه | F157: α1 | G157: =0.5*ATAN(G151/(AA116+AA120)) -> 0.02182758539 | H157: =0.5*ATAN(H151/(Y116+Y120)) -> 0.02182758539 | J157: (22 → 35) | K157: =0.5*(G169+G167*(1-'متغیرها '!C76+'متغیرها '!C78)) -> 8.893256949 | Q157: =AN142 -> 2.72688 | R157: =AO142 -> 34.94534488 | S157: 28 | Y157: =0.5*H167*SIN(AE140) -> 2.707763763 | Z157: (35 → 36) | AA157: =(1-'متغیرها '!C76+'متغیرها '!C78)*0.5*G167*SIN(AD140) -> 2.707647292 | AV157: =2*IF(AV151<0.3,0,IF(AV152>0.3,AV152,0)) -> 2.17 | AW157: (39 → 40) | AX157: =IF('متغیرها '!C125=0,2*IF(AX151<0.3,0,IF(AX152>0.3,AX152,0)),2*AX151) -> 2.17 | AZ157: =0+AX99 -> 0 | BA157: =0+'متغیرها '!C52 -> 0 | BB157: زمین | BG157: =BG148-1*(I105-'متغیرها '!U60)+Y128 -> 39.20614076 | BH157: (41 → 42) | BI157: =BI148-'متغیرها '!C128*(H105-H108)+Y128 -> 10.63114076 | BO157: =BK146 -> 34.23918614 | BP157: =BL146 -> 144.9201546 | BQ157: شیفت32 | BS157: نقطه تقاطع | BT157: 5' | BU157: =(BV155-BV153+BU153*((BV154-BV153)/(BU154-BU153))-BU155*((BV156-BV155)/(BU156-BU155)))/(((BV154-BV153)/(BU154-BU153))-((BV156-BV155)/(BU156-BU155))) -> 11.64929278 | BV157: =BV153+(BU157-BU153)*((BV154-BV153)/(BU154-BU153)) -> 135.6814851 | CA157: نقطه تقاطع | CB157: b'10 | CC157: =(CD155-CD153+CC153*((CD154-CD153)/(CC154-CC153))-CC155*((CD156-CD155)/(CC156-CC155)))/(((CD154-CD153)/(CC154-CC153))-((CD156-CD155)/(CC156-CC155))) -> 31.7811626 | CD157: =CD153+(CC157-CC153)*((CD154-CD153)/(CC154-CC153)) -> 136.4006467 | CI157: =BG395+AX114 -> 26.13 | CJ157: =BH395 -> 124.225363 | CK157: 13 | CL157: نقطه انتهایی زیر حلقه | CN157: =J338 -> 0 | CO157: =K338 -> 98.745 | CP157: d4 | CR157: =IF(CO158>CO154,CN158,CN154) -> 9.25721716 | CS157: =IF(CO158>CO154,CO158,CO154) -> 104 | CT157: 39 یا d5 | CV157: =IF(CO171>CO166,CN171,CN166) -> 29.18125 | CW157: =IF(CO171>CO166,CO171,CO166) -> 106.1 | CX157: 34 یا d2 | CZ157: =DT151 -> 18.20483682 | DA157: =DU151 -> 144.2264259 | DB157: 39 | DC157: 22b | DD157: =CZ155 -> 16.59108511 | DE157: =DA155 -> 132.3111244 | DF157: =DB155 -> 35 | DH157: =DX103 -> 39.6355435 | DI157: =DY103 -> 142.7119379 | DJ157: 41 | DK157: =DZ103 -> 18b | DP157: مولفه افقی | DQ157: مولفه عمودی | DR157: اسم نقطه | DT157: مولفه افقی | DU157: مولفه عمودی | DV157: اسم نقطه | DY157: مولفه افقی | DZ157: مولفه عمودی | EA157: اسم نقطه | EH157: =BD180 -> 22.55 | EI157: =BE180 -> 75.70633154 | EJ157: شیفت49' … | EL157: =BS104 -> 10.34221716 | EM157: =BT104 -> 120.3 | EN157: =BU106 -> 30 | ET157: =BD177 -> 24.4422858 | EU157: =IF(AX152>0,BE177,EU160) -> 118.717363 | EV157: 14 | EX157: =DG124-DH118 -> 20.0388571 | EY157: =DH124 -> 75.14066577 | EZ157: 49'm | FB157: 6.130139165 | FC157: 147.2316426 | FD157: a15 | FF157: =BK155 -> 30.7 | FG157: =BL155 -> 86.3 | FH157: 38 | FN157: =DY165 -> 49.3173929 | FO157: =DZ165 -> 75.16547499 | FP157: 43''m | FT157: زانو | FX157: =-(DS252+AX99)+2*GC101 -> 0 | FY157: =DS251+AX98 -> 74.575 | FZ157: p11 | GB157: =-EP139-GK101 -> -8.17221716 | GC157: =EQ139 -> 74.575 | GD157: 52 | GF157: =-ET153-GK101 -> -10.12521716 | GG157: =EU153 -> 115.084 | GH157: 39aa | GJ157: =-ED155-GK101 -> -11.75222402 | GK157: =EE155 -> 120.3222601 | GL157: شیفت b | GN157: =-EL155-GK101 -> -10.34221716 | GO157: =EM155 -> 120.3 | GP157: بالاتنه 5 | GT157: زانو | GZ157: =-AU247-GK101 -> -3.689200013 | HA157: =AV247 -> 149.3069665 | HB157: d5 | HD157: =-AG284-GK101 -> -52.6622249 | HE157: =AH284 -> 82.03622476 | HF157: c2 | HH157: =-CX280-GK101 -> 0 | HI157: =CY280 -> 99.025 | HJ157: s1 | HL157: =-DP487-GK101 -> -16.61617009 | HM157: =DQ487 -> 101.4494475 | HN157: β9
E158: زاویه سرشانه پشت با افق | F158: α2 | G158: =ATAN(G182/G181) -> 0.3395871533 | H158: =ATAN(H182/H181) -> 0.339606693 | J158: (35 → 6) | K158: وصل | Z158: (24 →36) | AA158: وصل | AC158: شبیه ساز بعضی نقاط | AF158: =AR143 -> 2.72688 | AG158: =AS143 -> 40.5 | AH158: 29 | AV158: =0.5*('متغیرها '!U70-'متغیرها '!U71)-AV156 -> 9.11124 | AW158: (40 → 41) | AX158: =0.5*(H118-H119)-AX156+'متغیرها '!C61*H120 -> 9.14278284 | BD158: =AZ125+'متغیرها '!C55 -> 23.704 | BE158: =BA125 -> 140.9146565 | BF158: شیفت22 | BG158: =BG156 -> 26.80625 | BH158: (1 → 43) | BI158: =BI156+0.25*'متغیرها '!C131*H103 -> 26.80625 | BK158: =0+BI98 -> 20 | BL158: =BI148+BI97 -> 106.1 | BM158: 33 | BO158: =BK101+'متغیرها '!C56 -> 32.01871396 | BP158: =BL101+'متغیرها '!C57 -> 138.2799026 | BQ158: 22شیفت | CI158: α4 | CJ158: ='متغیرها '!B245 -> 0.3079830154 | CK158: زاویه سرشانه با افق | CN158: =J340 -> 8.747854792 | CO158: =K340 -> 95.592 | CP158: d5 | CR158: =CN158 -> 8.747854792 | CS158: =CO158 -> 95.592 | CT158: d5 | CV158: =CN171 -> 30.30921717 | CW158: =CO171 -> 97.692 | CX158: d2 | CZ158: =IF('متغیرها '!C119=1,DT124,AZ115) -> 19.42 | DA158: =IF('متغیرها '!C119=1,DU124,BA115) -> 130.345363 | DB158: =DV124 -> 16g | DC158: 16 یا | DD158: =CZ175 -> 13.77909453 | DE158: =DA175 -> 128.4933433 | DF158: =DB175 -> 33 | DH158: =IF('متغیرها '!C119=1,DX124,BK112-DI161) -> 37.54298265 | DI158: =IF('متغیرها '!C119=1,DY124,BL112-DI162) -> 131.9001722 | DJ158: =DZ124 -> 12p | DK158: یا 12 | DL158: =DH155 -> 37.54256347 | DM158: =DI155 -> 131.9008799 | DN158: 37 | DP158: =BW114 -> 5.720046094 | DQ158: =BX114 -> 141.8977855 | DR158: e5 | DS158: یقه چرخیده | DU158: =DZ168 -> 4 | DV158: (a13→a23) | DW158: عرض برگرد لبه پیراهن | DY158: =DT336 -> 35.8375 | DZ158: =DU336 -> 65.05 | EA158: e215 | EB158: وسط | EF158: انحنا لبه روی خط مرکزی جلو پیراهن | EH158: =BD183 -> 20.295 | EI158: 75.59319838 | EJ158: شیفت50''' | EL158: =BS112 -> -1.503 | EM158: =BT112 -> 120.3 | EN158: =BU112 -> 4' | ER158: ساسون کمر | ET158: =ET160+0.5*(ET157-ET160) -> 22.5061429 | EU158: =IF(AX152>0,EU160+0.65*(EU157-EU160),EU160) -> 114.329752 | FB158: 6.13548 | FC158: 143.9817816 | FD158: e7 | FF158: =BO165 -> 32.21875 | FG158: =BP165 -> 106.1 | FH158: 35 | FL158: خط پشت در پیراهن | FR158: =FR148 -> 20.85625 | FS158: =BP178-(H106-H107) -> 46 | FT158: b'48 | GF158: =-ET154-GK101 -> -9.31146716 | GG158: =EU154 -> 111.824 | GH158: 39a | GJ158: =-ED156-GK101 -> -24.4422858 | GK158: =EE156 -> 118.717363 | GL158: شیفت 14 | GR158: =-ET114-GK101 -> 0 | GS158: =EU114 -> 46 | GT158: g1 | GV158: =-CV190-GK101 -> 1.503 | GW158: =CW190 -> 98.745 | GX158: 26'' | GZ158: =-AU248-GK101 -> -3.169980011 | HA158: =AV248 -> 133.0284832 | HB158: d6 | HL158: =-DP488-GK101 -> -7.332086459 | HM158: =DQ488 -> 89.0051086 | HN158: β'9
E159: زاویه خط عمود با وسط ساسون سرشانه پشت | F159: α3 | G159: =ATAN(G177/G178) -> 0.1630523617 | H159: =ATAN(H177/H178) -> 0.1630539075 | J159: (35 → 36) | K159: =IF((6*G169)<G171,6*G169,G171) -> 23.91847622 | L159: =IF((6*H169)<H171,6*H169,H171) -> 20.73152286 | Q159: =AN143 -> 5.45376 | R159: =AO143 -> 42.5 | S159: 29 | Z159: (24 → 27) | AA159: وصل | AC159: =Y115-Y135 -> 17.4 | AD159: =Y130+Y136 -> 25.80017223 | AE159: 18 | AF159: =AR144 -> 2.72688 | AG159: =AS144 -> 38.69074565 | AH159: 30 | AV159: =AV155+L116-L119 -> 74.3 | AW159: (1 → 42) | AX159: =AX155+K116-K119 -> 42.465 | AZ159: ساسون کمر | BD159: =AZ136+'متغیرها '!C55 -> 18.61802355 | BE159: =BA136 -> 143.722094 | BF159: شیفت34 | BG159: =2*BG144-0.5*BG150 -> 0.38125 | BH159: (43 → 43') | BI159: ='متغیرها '!C68*H127+Y128+0.5*(H106-H104) -> 1.156140758 | BK159: =BI149+BI98 -> 29.18125 | BL159: =BI148+BI97 -> 106.1 | BM159: 34 | BS159: =(BT172-BT171) -> 0.2551226078 | BT159: زاویه چرخش کامل به ساسون زیر بغل | BW159: حلقه آستین با چرخش کامل به ساسون زیر بغل | CA159: به دست آوردن مختصات قرینه یک نقطه نسبت به خط تقارن با داشتن دونقطه از خط تقارن | CG159: آستر کت پشت | CJ159: =H167 -> 11.61875414 | CK159: W | CN159: =J352 -> 11.93657953 | CO159: =K352 -> 95.592 | CP159: dd5 | CZ159: =IF('متغیرها '!C119=1,DT125,AZ121) -> 20.42445716 | DA159: =IF('متغیرها '!C119=1,DU125,BA121) -> 125.755363 | DB159: =DV125 -> 20g | DC159: یا 20 | DD159: =CZ173 -> 11.40452471 | DE159: =DA173 -> 123.1484497 | DF159: =DB173 -> 23 | DH159: =BK114 -> 44.6011745 | DI159: =BL114 -> 122.7201722 | DJ159: شیفت 9 | DL159: =DH177 -> 34.73711245 | DM159: =DI177 -> 130.887567 | DN159: 35 | DP159: =DC126 -> 20.87025346 | DQ159: =DD126 -> 126.6163072 | DR159: b'8s | DS159: نقطه حلقه آستین | DY159: =DT340 -> 35.8375 | DZ159: =DU340 -> 74.575 | EA159: e216 | EB159: وسط | ED159: =BS116 -> -1.503 | EE159: =BT116 -> 116.75 | EF159: e1 | EH159: 17.47625 | EI159: 75.19723234 | EJ159: شیفت50'' | EP159: =AZ161 -> 10.34221716 | EQ159: =BA161 -> 117.04 | ER159: 43 | ET159: =ET160+0.1*(ET157-ET160) -> 20.95722858 | EU159: =IF(AX152>0,EU160+0.3*(EU157-EU160),EU160) -> 109.942141 | EZ159: 105 لبه برگرد پایین ترک در پهلو جدا | FJ159: =CE108 -> 20 | FK159: =CF108 -> 144.5897174 | FL159: 24 | FN159: =DY185 -> 25.5625 | FO159: =DZ185 -> 78.575 | FP159: a''26 | FR159: =FR149 -> 31.8375 | FS159: =FS158 -> 46 | FT159: b'49 | FZ159: 58' | GB159: =-EP141-GK101 -> -20.25264673 | GC159: =EQ141 -> 87.63940841 | GD159: 47''s | GF159: =-ET155-GK101 -> -9.25721716 | GG159: =EU155 -> 104 | GH159: 39 | GN159: =-EL155-GK101 -> -10.34221716 | GO159: =EM155 -> 120.3 | GP159: بالاتنه 5 | GR159: =-ET115-GK101 -> -8.17221716 | GS159: =EU115 -> 46 | GT159: g52 | GV159: =-CV193-GK101 -> 1.503 | GW159: =CW193 -> 116.75 | GX159: e1 | GZ159: =-AU249-GK101 -> -1.768086008 | HA159: =AV249 -> 122.4474691 | HB159: d7 | HH159: =-CX280-GK101 -> 0 | HI159: =CY280 -> 99.025 | HJ159: s1 | HL159: =-DP489-GK101 -> -8.919773189 | HM159: =DQ489 -> 78.52823689 | HN159: β15
E160: زاویه سرشانه جلو با افق | F160: α4 | G160: =ATAN(G180/G179) -> 0.3194255934 | H160: =ATAN(H180/H179) -> 0.3194255934 | J160: (32 → 36) | K160: وصل | N160: شبیه ساز بعضی نقاط | Q160: =AN144 -> 5.45376 | R160: =AO144 -> 38.30296938 | S160: 30 | Z160: (24 → 37) | AA160: =0.5*(G170+G167*(1-'متغیرها '!C76+'متغیرها '!C78)) -> 6.585481964 | AC160: =Y118 -> 10.7 | AD160: =Y116+Y119 -> 24.16403147 | AE160: 7 | AV160: =L117 -> 10.37376 | AW160: (42 → 43) | AX160: =K117 -> 10.34221716 | AZ160: =0+AX99 -> 0 | BA160: =AX159+AX98 -> 117.04 | BB160: 42 | BD160: =AZ104+'متغیرها '!C55 -> 10.34221716 | BE160: =BA104 -> 120.3 | BF160: شیفت5 | BH160: (1 → 41') | BI160: =0.5*BI158 -> 13.403125 | BO160: =BK101 -> 32.01871396 | BP160: =BL101 -> 138.2799026 | BQ160: 22 | BS160: =AZ99-BT130 -> 24.4422858 | BT160: =BA99 -> 122.695363 | BU160: 12 | BV160: نقطه حلقه آستین | BW160: =BS104+SQRT(POWER(BS160-BS104,2)+POWER(BT160-BT104,2))*SIN(IF(BT160=BT104,RADIANS(90)-BS159,ATAN((BS160-BS104)/ABS(BT160-BT104))+IF(BT160>BT104,-1,1)*BS159)) -> 23.38139636 | BX160: =BT104+IF(BT160<BT104,-1,1)*SQRT(POWER(BS160-BS104,2)+POWER(BT160-BT104,2))*COS(IF(BT160=BT104,RADIANS(90)-BS159,ATAN((BS160-BS104)/ABS(BT160-BT104))+IF(BT160>BT104,-1,1)*BS159)) -> 126.1761812 | BY160: b4 | CA160: مولفه افقی | CB160: مولفه عمودی | CC160: اسم نقطه | CJ160: نقاط شبیه ساز حلقه آستین جلو بدون ساسون سرشانه | CN160: =J354 -> 20.96637714 | CO160: =K354 -> 101.9773315 | CP160: d3 | CR160: =CN158 -> 8.747854792 | CS160: =CO158 -> 95.592 | CT160: d5 | CV160: =CN171 -> 30.30921717 | CW160: =CO171 -> 97.692 | CX160: d2 | DA160: ='متغیرها '!C55 -> 0 | DB160: شیفت افقی | DD160: =CZ154 -> 10.34221716 | DE160: =DA154 -> 117.04 | DF160: =DB154 -> 43 | DH160: =BO170 -> 43.0711745 | DI160: =BP170 -> 118.7421722 | DJ160: شیفت 10 | DL160: =DH176 -> 32.00008706 | DM160: =DI176 -> 129.468929 | DN160: 33 | DP160: =DC124 -> 21.37213204 | DQ160: =DD124 -> 108.0140998 | DR160: 41m | DS160: کمر | DT160: نقاط خروجی برگرد لبه پیراهن در رویه کت | DY160: =DT324 -> 31.8375 | DZ160: =DU324 -> 74.575 | EA160: e21 | EB160: وسط | ED160: =CA184 -> -1.503 | EE160: =CB184 -> 103.1639224 | EF160: 8n | EH160: 14.6575 | EI160: 74.80126631 | EJ160: شیفت50' | EL160: =BW108 -> 0 | EM160: =BX108 -> 138.1059388 | EN160: چرخیده 26 | EP160: =AZ167 -> 11.42721716 | EQ160: =BA167 -> 104 | ER160: 40 | ET160: =BD178 -> 20.57 | EU160: =BE178 -> 106.1813315 | EV160: 41 | EX160: =DT169 -> 12.51221716 | EY160: =DU169 -> 74.575 | EZ160: =DV169 -> شیفت53 | FF160: =BO165 -> 32.21875 | FG160: =BP165 -> 106.1 | FH160: 35 | FJ160: =BK167 -> 20 | FK160: =BL167 -> 136.475 | FL160: 45 | FP160: خط ترک وسط کت | FX160: =-(AK240+AC244)+2*GC101 -> -21.45112503 | FY160: =AK239+AD244 -> 148.6874412 | FZ160: b2 | GB160: =-EP142-GK101 -> -14.68292548 | GC160: =EQ142 -> 104.695889 | GD160: 40s | GL160: 27' | GN160: =-EL158-GK101 -> 1.503 | GO160: =EM158 -> 120.3 | GP160: 4' | GZ160: =-AU250-GK101 -> 1.503 | HA160: =AV250 -> 116.75 | HB160: e1 | HF160: 92' | HH160: =-CX283-GK101 -> 0 | HI160: =CY283 -> 120.3 | HJ160: 4 | HL160: =-DP490-GK101 -> -16.19039074 | HM160: =DQ490 -> 79.31830253 | HN160: β'15
E161: زاویه خط عمود با وسط ساسون سرشانه جلو | F161: α5 | G161: =ATAN(G175/G176) -> 0.2071085563 | H161: =ATAN(H175/H176) -> 0.2379596484 | J161: (34 → 36) | K161: وصل | N161: =L115-L132 -> 19.42 | O161: =L127+L133 -> 26.345363 | P161: 16 | U161: رسم الگو واقعی جلو بالاتنه | Z161: (37 → 7) | AA161: وصل | AC161: =Y146+Y153 -> 12.46023108 | AD161: =Y114-Y154 -> 39.11976008 | AE161: 34 | AF161: =AR145 -> 5.1129 | AG161: =AS145 -> 40.5 | AH161: 31 | AJ161: رسم الگو واقعی پشت بالاتنه | AV161: =IF(('متغیرها '!U54-'متغیرها '!U55)>('متغیرها '!U52-'متغیرها '!U53),0.5*('متغیرها '!U54-'متغیرها '!U55),0.5*('متغیرها '!U52-'متغیرها '!U53)) -> 22.55 | AW161: (1 → 44) | AX161: =AX156+AX157+AX158+'متغیرها '!C128*(IF((H102-H103)>(H100-H101),0.5*(H102-H103),0.5*(H100-H101))+'متغیرها '!C62*H120-AX156-AX158)-IF('متغیرها '!C125=1,2*AX150,AX157)*IF('متغیرها '!C128<'متغیرها '!C98,'متغیرها '!C128/'متغیرها '!C98,1) -> 22.55 | AZ161: =AX160+AX99 -> 10.34221716 | BA161: =AX159+AX98 -> 117.04 | BB161: 43 | BH161: (43' → 43'') | BI161: =BI159*((BI158-BI156)/BI157) -> 0 | BK161: =BK180 -> 32.21875 | BL161: =BL180 -> 106.1 | BM161: 35 شیفت | BO161: =BK106 -> 32.46026339 | BP161: =BL106 -> 145.2198922 | BQ161: 30 | BS161: =AZ98-BT130 -> 21.9311429 | BT161: =BA98 -> 123.842863 | BU161: 18 | BV161: نقطه حلقه آستین | BW161: =BS104+SQRT(POWER(BS161-BS104,2)+POWER(BT161-BT104,2))*SIN(IF(BT161=BT104,RADIANS(90)-BS159,ATAN((BS161-BS104)/ABS(BT161-BT104))+IF(BT161>BT104,-1,1)*BS159)) -> 20.66194548 | BX161: =BT104+IF(BT161<BT104,-1,1)*SQRT(POWER(BS161-BS104,2)+POWER(BT161-BT104,2))*COS(IF(BT161=BT104,RADIANS(90)-BS159,ATAN((BS161-BS104)/ABS(BT161-BT104))+IF(BT161>BT104,-1,1)*BS159)) -> 126.6528171 | BY161: b8 | CA161: =DT328 -> 31.8375 | CB161: =DU328 -> 65.05 | CC161: e25 | CD161: نقطه اول خط تقارن | CE161: نقاط قرینه شده نسبت به خط تقارن | CJ161: مولفه افقی | CK161: مولفه عمودی | CL161: اسم نقطه | CN161: =BD97 -> -1.503 | CO161: =CO157 -> 98.745 | CP161: 26'' | CR161: =IF(CO177=1,CN163,CN157) -> 5.255 | CS161: =IF(CO177=1,CO163,CO157) -> 98.745 | CT161: _ U5 | CV161: =CN170 -> 21.65068608 | CW161: =CO170 -> 100.845 | CX161: d1 | DB161: محاسبات | DI161: ='متغیرها '!C56 -> 0 | DJ161: شیفت افقی | DL161: =DH154 -> 30.7 | DM161: =DI154 -> 127.8476283 | DN161: 40 | DP161: =EX105-'متغیرها '!C55 -> 20.0388571 | DQ161: =EY105 -> 75.14066577 | DR161: 49'm | DS161: لبه پایین پیراهن | DT161: مولفه افقی | DU161: مولفه عمودی | DV161: اسم نقطه | DY161: =BO176 -> 20.85625 | DZ161: =BP176 -> 74.575 | EA161: 47 | EB161: وسط | ED161: =CA183 -> 0.006333876939 | EE161: =CB183 -> 85.72467975 | EF161: 7n | EH161: 11.275 | EI161: 74.575 | EJ161: شیفت50 | EL161: =BW111 -> 4.834553202e-08 | EM161: =BX111 -> 120.301 | EN161: چرخیده 4 | EX161: =DT167 -> 12.51221716 | EY161: =DU167 -> 70.575 | EZ161: =DV167 -> شیفتa53 | FF161: =BK154 -> 30.7 | FG161: =BL154 -> 127.8476283 | FH161: 40 | FN161: =DK103 -> 37.54298265 | FO161: =DL103 -> 131.9001722 | FP161: =DM103 -> شیفت12p | FR161: =FR151 -> 29.5625 | FS161: =FS158+'متغیرها '!C57 -> 46 | FT161: b'50 | FX161: =-(AC240)+2*GC101 -> -17.8892561 | FY161: =AD240 -> 142.9779237 | FZ161: =AE240 -> 22f | GF161: =-ET157-GK101 -> -24.4422858 | GG161: =EU157 -> 118.717363 | GH161: 14 | GJ161: =-ED159-GK101 -> 1.503 | GK161: =EE159 -> 116.75 | GL161: e1 | GR161: =-ET117-GK101 -> -12.51221716 | GS161: =EU117 -> 46 | GT161: g53 | GV161: =-CV193-GK101 -> 1.503 | GW161: =CW193 -> 116.75 | GX161: e1 | HD161: =-EP151-GK101 -> 1.503 | HE161: =EQ151 -> 116.75 | HF161: e1 | HL161: =-DP491-GK101 -> -21.85113041 | HM161: =DQ491 -> 87.06651223 | HN161: β3
E162: ربع زاویه ساسون کمر جلو بالاتنه | F162: α6 | G162: =0.5*ATAN(G152/(K116-K119)) -> 0.08244997607 | H162: =0.5*ATAN(H152/(L116-L119)) -> 0.06617529999 | J162: (1 → 37) | K162: =-'متغیرها '!C66*(2*H129+H130) -> -1.503 | N162: =L117 -> 10.37376 | O162: =L116+L118 -> 19.56 | P162: 6 | Q162: =AN136 -> 23.704 | R162: =AO136 -> 36.91465646 | S162: 22 | Z162: (37 → 38) | AA162: =4*G170 -> 6.208839134 | AC162: =Y115-Y135+Y141-Y156 -> 14.09626485 | AD162: =Y130+Y136+Y142+Y157 -> 38.82027104 | AE162: 36 | AF162: =AR146 -> 5.1129 | AG162: =AS146 -> 39.29383044 | AH162: 32 | AV162: =AV155-1*(I105-'متغیرها '!U60)+L125 -> 39.18133154 | AW162: (44→ 45) | AX162: =AX155-'متغیرها '!C128*(H105-H108)+L125 -> 10.60633154 | AZ162: =AX164+AX99 -> 10.34221716 | BA162: =AX163+AX98 -> 86.09 | BB162: 47 | BD162: =AZ104 -> 10.34221716 | BE162: =BA104 -> 120.3 | BF162: 5 | BK162: =BI149+BI150+BI151+BI98+'متغیرها '!C56 -> 42.5375 | BL162: =BI148+BI97+Y128+'متغیرها '!C57 -> 106.2061408 | BM162: شیفت36 | BO162: =BK104 -> 26.8172 | BP162: =BL104 -> 146.6 | BQ162: 23 | BS162: =AZ97-BT130 -> 20.42445716 | BT162: =BA97 -> 125.755363 | BU162: 20 | BV162: نقطه حلقه آستین | BW162: =BS104+SQRT(POWER(BS162-BS104,2)+POWER(BT162-BT104,2))*SIN(IF(BT162=BT104,RADIANS(90)-BS159,ATAN((BS162-BS104)/ABS(BT162-BT104))+IF(BT162>BT104,-1,1)*BS159)) -> 18.72138136 | BX162: =BT104+IF(BT162<BT104,-1,1)*SQRT(POWER(BS162-BS104,2)+POWER(BT162-BT104,2))*COS(IF(BT162=BT104,RADIANS(90)-BS159,ATAN((BS162-BS104)/ABS(BT162-BT104))+IF(BT162>BT104,-1,1)*BS159)) -> 128.1231807 | BY162: b10 | CA162: =DT324 -> 31.8375 | CB162: =DU324 -> 74.575 | CC162: e21 | CD162: نقطه دوم خط تقارن | CE162: مولفه افقی | CF162: مولفه عمودی | CG162: اسم نقطه | CJ162: =CI155+CJ159*COS(CJ158) -> 17.8892561 | CK162: =CJ155-CJ159*SIN(CJ158) -> 142.9779237 | CL162: 22f | CO162: ='متغیرها '!C55 -> 0 | CP162: شیفت افقی تکه پهلو | CZ162: (1 → 6) | DA162: =DA154+0.4*(DA158-DA154) -> 122.3621452 | DC162: شیفت | DD162: =CZ154+DA160 -> 10.34221716 | DE162: =DA154 -> 117.04 | DF162: =DB154 -> 43 | DI162: ='متغیرها '!C57 -> 0 | DJ162: شیفت عمودی | DP162: =BD97 -> -1.503 | DQ162: =BE97 -> 74.575 | DR162: 1' | DT162: =DP170 -> 8.307426234 | DU162: =DQ170-DU158 -> 70.575 | DV162: a'5 | DY162: =BK170 -> 20.85625 | DZ162: =BL170 -> 84.1 | EA162: 48 | EB162: وسط | ED162: =CA182 -> 2.521890339 | EE162: =CB182 -> 78.29155992 | EF162: 6n | EH162: =AZ181 -> 12.51221716 | EI162: =BA181 -> 74.575 | EJ162: شیفت53 | EP162: =AZ167 -> 11.42721716 | EQ162: =BA167 -> 104 | ER162: 40 | FJ162: =BK167 -> 20 | FK162: =BL167 -> 136.475 | FL162: 45 | FN162: =DK112 -> 32.21875 | FO162: =DL112 -> 106.1 | FP162: =DM112 -> شیفت35 | FR162: =FR152 -> 46.80625 | FS162: =BL162-(H105-H107) -> 47.10614076 | FT162: b'42 | FZ162: انحنا | GB162: =-EP144-GK101 -> -14.68292548 | GC162: =EQ144 -> 104.695889 | GD162: 40s | GF162: =-ET158-GK101 -> -22.5061429 | GG162: =EU158 -> 114.329752 | GJ162: =-ED160-GK101 -> 1.503 | GK162: 103.1639224 | GL162: 8n | GN162: =-EL160-GK101 -> 0 | GO162: =EM160 -> 138.1059388 | GP162: چرخیده26 | GR162: =-ET118-GK101 -> -22.55 | GS162: =EU118 -> 47.08133154 | GT162: g49 | GV162: =-CV196-GK101 -> 0 | GW162: =CW196 -> 116.75 | GX162: e'1 | GZ162: =-AU252-GK101 -> -6.8172 | HA162: =AV252 -> 146.5 | HB162: 25 | HD162: =-EP152-GK101 -> 1.503 | HE162: 116.4574224 | HF162: 8n | HH162: =-CX283-GK101 -> 0 | HI162: =CY283 -> 120.3 | HJ162: 4
E163: شعاع یقه | F163: V1 | G163: =0.46*G164 -> 6.8172 | H163: =0.46*H164 -> 6.8172 | J163: (26 → 38) | K163: =K162 -> -1.503 | N163: =L143+L150 -> 12.49374069 | O163: =L114-L151 -> 41.26478836 | P163: 32 | Q163: =AN139 -> 6.8172 | R163: =AO139 -> 42.5 | S163: 25 | Z163: (36 →38) | AA163: وصل | AC163: =Y118 -> 10.7 | AD163: =Y116 -> 14.2 | AE163: 6 | AV163: =I104-I107-1*(I104-I108) -> 38.1 | AW163: (1 → 46) | AX163: =H104-H114-'متغیرها '!C98*(H104-H108) -> 11.515 | AZ163: =0+AX99 -> 0 | BA163: =AX163+AX98 -> 86.09 | BB163: 46 | BD163: =AZ138 -> 12.44673904 | BE163: =BA138 -> 145.0657224 | BF163: 32 | BG163: =BG141 -> 1.9 | BH163: (33 → 44) | BI163: =BI141 -> 1.9 | BO163: خطوط برش ساسون کمر | BS163: =AZ96-BT130 -> 19.42 | BT163: =BA96 -> 130.345363 | BU163: 16 | BV163: نقطه حلقه آستین | BW163: =BS104+SQRT(POWER(BS163-BS104,2)+POWER(BT163-BT104,2))*SIN(ATAN((BS163-BS104)/(BT163-BT104))-BS159) -> 16.59108511 | BX163: =BT104+SQRT(POWER(BS163-BS104,2)+POWER(BT163-BT104,2))*COS(ATAN((BS163-BS104)/(BT163-BT104))-BS159) -> 132.3111244 | BY163: b6 | CA163: =DT336 -> 35.8375 | CB163: =DU336 -> 65.05 | CC163: e215 | CD163: نقطه قرینه خواسته | CE163: =CA163+2*(SIN(ATAN((CA162-CA161)/(CB162-CB161)))*(CB163-CB161)+COS(ATAN((CA162-CA161)/(CB162-CB161)))*(CA161-CA163))*COS(ATAN((CA162-CA161)/(CB162-CB161))) -> 27.8375 | CF163: =CB163-2*(SIN(ATAN((CA162-CA161)/(CB162-CB161)))*(CB163-CB161)+COS(ATAN((CA162-CA161)/(CB162-CB161)))*(CA161-CA163))*SIN(ATAN((CA162-CA161)/(CB162-CB161))) -> 65.05 | CG163: e'215 | CJ163: =CJ164+IF(CJ162>CJ164,0.3,0.7)*(CJ162-CJ164) -> 16.98053641 | CK163: =CK164+0.5*(CK162-CK164) -> 137.644524 | CL163: 24f | CN163: =J341 -> 5.255 | CO163: =G338-I345 -> 98.745 | CP163: _u5 | CR163: =IF(CO177=1,CN163,CN157) -> 5.255 | CS163: =IF(CO177=1,CO163,CO157) -> 98.745 | CT163: _ U5 | CV163: =BK179 -> 30.7 | CW163: =BL179 -> 127.8476283 | CX163: شیفت 40 | CZ163: (6 → 21) | DA163: =CZ154+0.17*(CZ158-CZ154) -> 11.88544024 | DC163: شیفت | DD163: =CZ172+DA160 -> 11.88544024 | DE163: =DA172 -> 122.3621452 | DF163: =DB172 -> 21 | DJ163: محاسبات | DL163: =DH155 -> 37.54256347 | DM163: 131.9008799 | DN163: 37 | DP163: =CA181 -> 6.237173728 | DQ163: =CB181 -> 74.575 | DR163: 5n | DT163: =DP161 -> 20.0388571 | DU163: =DQ161-DU158 -> 71.14066577 | DV163: a''5 | DY163: =EE341 -> 25.5625 | DZ163: =EF341 -> 74.575 | EA163: e216 | EB163: پهلو | ED163: =CA181 -> 6.237173728 | EE163: =CB181 -> 74.575 | EF163: 5n | EH163: =BD150 -> 0 | EI163: =BE150 -> 74.575 | EJ163: 1 | EP163: =AZ162 -> 10.34221716 | EQ163: =BA162 -> 86.09 | ER163: 47 | EX163: =DT167 -> 12.51221716 | EY163: 70.575 | EZ163: شیفتa53 | FF163: =BO176 -> 20.85625 | FG163: =BP176 -> 74.575 | FH163: 47 | FJ163: =BO178 -> 21.9 | FK163: =BP178 -> 106.1 | FL163: 44 | FT163: سینه | FX163: =FX160 -> -21.45112503 | FY163: =FY160 -> 148.6874412 | FZ163: b2 | GB163: =-EP145-GK101 -> -10.34221716 | GC163: =EQ145 -> 117.04 | GD163: 43s | GF163: =-ET159-GK101 -> -20.95722858 | GG163: =EU159 -> 109.942141 | GJ163: =-ED161-GK101 -> -0.006333876939 | GK163: 85.72467975 | GL163: 7n | GN163: =-EL161-GK101 -> -4.834553202e-08 | GO163: =EM161 -> 120.301 | GP163: چرخیده4 | GT163: سینه | GZ163: =-AU253-GK101 -> -10.95824909 | HA163: =AV253 -> 136.3380906 | HB163: d9 | HD163: =-EP153-GK101 -> -0.09613334763 | HE163: 105.6528448 | HF163: 7n | HH163: =-CX286-GK101 -> 0 | HI163: =CY286 -> 138.1059388 | HJ163: 26 چرخیده
E164: نوار گردن از پشت | F164: V2 | G164: =0.38*H128 -> 14.82 | H164: =0.38*H128 -> 14.82 | N164: =L115-L132+L138-L153 -> 18.6301483 | O164: =L127+L133+L139+L154 -> 39.74394805 | P164: 34 | Z164: (34 → 38) | AA164: وصل | AC164: =Y118 -> 10.7 | AD164: =Y116-Y120 -> 6.652371678 | AE164: 8 | AF164: =AR138 -> 19.236 | AG164: =AS138 -> 36.11278023 | AH164: 24 | AV164: =AV160 -> 10.37376 | AW164: (46 → 47) | AX164: =AX160 -> 10.34221716 | BD164: =AZ140 -> 6.8172 | BE164: =BA140 -> 146.5 | BF164: 25 | BG164: =Y117 -> 30.375 | BH164: (33→45) | BI164: =AA117 -> 30.375 | BK164: =BI156+BI98+'متغیرها '!C56 -> 46.80625 | BL164: =0+BI97+'متغیرها '!C57 -> 74.575 | BM164: شیفت41 | BO164: =BK154 -> 30.7 | BP164: =BL154 -> 127.8476283 | BQ164: 40 | BS164: =AZ95-BT130 -> 20.7052 | BT164: =BA95 -> 135.6300097 | BU164: 24 | BV164: نقطه حلقه آستین | BW164: =BS104+SQRT(POWER(BS164-BS104,2)+POWER(BT164-BT104,2))*SIN(ATAN((BS164-BS104)/(BT164-BT104))-BS159) -> 16.50103137 | BX164: =BT104+SQRT(POWER(BS164-BS104,2)+POWER(BT164-BT104,2))*COS(ATAN((BS164-BS104)/(BT164-BT104))-BS159) -> 137.7490578 | BY164: b12 | CJ164: =CI154 -> 16.59108511 | CK164: =CJ154 -> 132.3111244 | CL164: 16f | CN164: بعضی نقاط ورودی پشت | CR164: =CN157 -> 0 | CS164: =CO157 -> 98.745 | CT164: d4 | CV164: =IF(CO172>CO167,CN172,CN167) -> 32.21875 | CW164: =IF(CO172>CO167,CO172,CO167) -> 106.1 | CX164: شیفت35 یا dd2 | CZ164: (1 → 22) | DA164: =DA154+0.4*(DA155-DA154) -> 123.1484497 | DC164: شیفت | DD164: =CZ174+DA160 -> 15.33499772 | DE164: =DA174 -> 127.0190223 | DF164: =DB174 -> 31 | DH164: (1 → 7) | DI164: =DI154+0.4*(DI158-DI154) -> 129.4686459 | DL164: 38.09277685 | DM164: 137.5727212 | DN164: 39 | DP164: نقاط خروجی | DY164: =EE337 -> 25.5625 | DZ164: =EF337 -> 65.05 | EA164: e215 | EB164: پهلو | ED164: =AZ177 -> 8.17221716 | EE164: =BA177 -> 74.575 | EF164: 52 | EX164: 20.0388571 | EY164: 71.14066577 | EZ164: شیفتa''5 | FF164: =BO192 -> 29.5625 | FG164: =BP192 -> 74.575 | FH164: شیفت50 | FN164: =DO121 -> 37.96229434 | FO164: =DP121 -> 131.9008799 | FP164: =DQ121 -> b'6p | FR164: =BO178-(FS164-BP178)*(BO178-BK167)/(BL167-BP178) -> 21.01176955 | FS164: =BP178+(H127-H126) -> 120.3 | FT164: b44 | FX164: =-(AK242+AC244)+2*GC101 -> -10.21657801 | FY164: =AK241+AD244 -> 147.2261268 | FZ164: b4 | GD164: کمر | GF164: =-ET160-GK101 -> -20.57 | GG164: =EU160 -> 106.1813315 | GH164: 41 | GJ164: =-ED162-GK101 -> -2.521890339 | GK164: 78.29155992 | GL164: 6n | GR164: =-ET120-GK101 -> 0 | GS164: =EU120 -> 120.3 | GT164: g4 | GV164: =-CV196-GK101 -> 0 | GW164: =CW196 -> 116.75 | GX164: e'1 | GZ164: =-AU254-GK101 -> -16.75571782 | HA164: =AV254 -> 128.6150394 | HB164: d8 | HD164: =-EP154-GK101 -> -2.761355594 | HE164: 101.0476149 | HF164: 6n
E165: شعاع گودی یقه جلو | F165: V' | G165: =SQRT(0.2*(H128-G164)*(H128-G164)-G163*G163) -> 8.394061244 | H165: =SQRT(0.2*(H128-H164)*(H128-H164)-H163*H163) -> 8.394061244 | AF165: =AR141 -> 6.8172 | AG165: =AS141 -> 40.5 | AH165: 27 | AW165: (1 → 48) | AX165: =AX161+0.25*'متغیرها '!C129*(H102-H103) -> 22.55 | AZ165: =0+AX99 -> 0 | BA165: =AX155+AX98 -> 104 | BB165: 38 | BG165: =1*BG142-BG141 -> -0.85625 | BH165: (1 → 46) | BI165: ='متغیرها '!C128*BI142-BI141 -> -0.85625 | BK165: =BI156+BI98+'متغیرها '!C56 -> 46.80625 | BL165: =BI157+BI97+'متغیرها '!C57 -> 85.20614076 | BM165: شیفت42 | BO165: =BI149+BI150+BI98 -> 32.21875 | BP165: =BI148+BI97 -> 106.1 | BQ165: 35 | BS165: =AZ94-BT130 -> 23.704 | BT165: =BA94 -> 140.9146565 | BU165: 22 | BV165: نقطه حلقه آستین | BW165: =BS104+SQRT(POWER(BS165-BS104,2)+POWER(BT165-BT104,2))*SIN(ATAN((BS165-BS104)/(BT165-BT104))-BS159) -> 18.06911245 | BX165: =BT104+SQRT(POWER(BS165-BS104,2)+POWER(BT165-BT104,2))*COS(ATAN((BS165-BS104)/(BT165-BT104))-BS159) -> 143.6194423 | BY165: b16 | CA165: به دست آوردن مختصات قرینه یک نقطه نسبت به خط تقارن با داشتن دونقطه از خط تقارن | CG165: آستر کت پشت | CJ165: =CI156-0.85*(CI156-CJ164) -> 17.79242235 | CK165: =CJ156+0.5*(CK164-CJ156) -> 128.2682437 | CL165: 20f | CN165: مولفه افقی | CO165: مولفه عمودی | CP165: اسم نقطه | CZ165: (22→23) | DA165: =CZ154+0.17*(CZ155-CZ154) -> 11.40452471 | DC165: شیفت | DD165: =CZ158+DA160 -> 19.42 | DE165: =DA158 -> 130.345363 | DF165: =DB158 -> 16g | DH165: (7→23) | DI165: =DH154+0.2*(DH158-DH154) -> 32.06859653 | DL165: 39.6355435 | DM165: 142.7119379 | DN165: 41 | DP165: مولفه افقی | DQ165: مولفه عمودی | DR165: اسم نقطه | DT165: نقاط خروجی برگرد لبه پیراهن ترک | DY165: =DO106 -> 49.3173929 | DZ165: =DP106 -> 75.16547499 | EA165: 43''m | EB165: پهلو | EP165: =AZ162 -> 10.34221716 | EQ165: =BA162 -> 86.09 | ER165: 47 | FJ165: =BO178 -> 21.9 | FK165: =BP178 -> 106.1 | FL165: 44 | FN165: =DK123 -> 29.18125 | FO165: =DL123 -> 106.1 | FP165: =DM123 -> 34 | FR165: =BK154 -> 30.7 | FS165: =FS164 -> 120.3 | FT165: b40 | FX165: =-(AK244+AC244)+2*GC101 -> -5.535516754 | FY165: =AK243+AD244 -> 141.380869 | FZ165: b6 | GB165: =-EP147-GK101 -> 0 | GC165: =EQ147 -> 104 | GD165: 38 | GJ165: =-ED163-GK101 -> -6.237173728 | GK165: 74.575 | GL165: 5n | GP165: 40' | GR165: =-ET121-GK101 -> -10.34221716 | GS165: =EU121 -> 120.3 | GT165: g5 | GV165: =-CV199-GK101 -> 0 | GW165: =CW199 -> 98.745 | GX165: d4 | GZ165: =-AU255-GK101 -> -23.38139636 | HA165: =AV255 -> 126.1761812 | HB165: b4 | HD165: =-EP155-GK101 -> -6.697683834 | HE165: 98.745 | HF165: 5n | HJ165: 69'
E166: شعاع گودی یقه پشت | F166: V'' | G166: =SQRT(0.23*G164*G164-G163*G163) -> 2.010282607 | H166: =SQRT(0.23*H164*H164-H163*H163) -> 2.010282607 | AW166: (48 → 49) | AX166: ='متغیرها '!C68*H127+L125-0.5*(H106-H104) -> 1.131331536 | AZ166: =AX156+AX99 -> 9.25721716 | BA166: =AX155+AX98 -> 104 | BB166: 39 | BD166: =BD160 -> 10.34221716 | BE166: =BE160 -> 120.3 | BF166: 5شیفت | BH166: (46 → 47) | BI166: =0.25*'متغیرها '!C132*H103 -> 0 | BO166: =BK155 -> 30.7 | BP166: =BL155 -> 86.3 | BQ166: 38 | BS166: =BD159-BT130 -> 18.61802355 | BT166: =BE159 -> 143.722094 | BU166: 34 | BV166: نقطه ساسون سرشانه | BW166: =BS104+SQRT(POWER(BS166-BS104,2)+POWER(BT166-BT104,2))*SIN(ATAN((BS166-BS104)/(BT166-BT104))-BS159) -> 12.43926074 | BX166: =BT104+SQRT(POWER(BS166-BS104,2)+POWER(BT166-BT104,2))*COS(ATAN((BS166-BS104)/(BT166-BT104))-BS159) -> 145.0524921 | BY166: 34 | CA166: مولفه افقی | CB166: مولفه عمودی | CC166: اسم نقطه | CJ166: =CI156-0.5*(CI156-CJ164) -> 20.59554256 | CK166: =CJ156+0.15*(CK164-CJ156) -> 125.4382272 | CL166: 18f | CN166: =BK159 -> 29.18125 | CO166: =BL159 -> 106.1 | CP166: 34 | CR166: =AZ161+BT130 -> 10.34221716 | CS166: =BA161 -> 117.04 | CT166: شیفت 43 | CV166: =IF(CO172>CO167,CN172,CN167) -> 32.21875 | CW166: =IF(CO172>CO167,CO172,CO167) -> 106.1 | CX166: شیفت35 یا dd2 | CZ166: (1 → 24) | DA166: =DA154+0.75*(DA158-DA154) -> 127.0190223 | DH166: (1→ 24) | DI166: =DI154+0.8*(DI158-DI154) -> 131.0896634 | DP166: =DP160-DT171+0.8*(DP159-DP160) -> 20.97062918 | DQ166: =DQ160+0.8*(DQ159-DQ160) -> 122.8958657 | DR166: a1 | DT166: مولفه افقی | DU166: مولفه عمودی | DV166: اسم نقطه | DY166: =DT328 -> 31.8375 | DZ166: =DU328 -> 65.05 | EA166: e25 | EB166: وسط | EP166: =AZ166 -> 9.25721716 | EQ166: =BA166 -> 104 | ER166: 39 | EX166: =DT168 -> 20.0388571 | EY166: =DU168 -> 71.14066577 | EZ166: =DV168 -> شیفتa''5 | FJ166: =BK170 -> 20.85625 | FK166: =BL170 -> 84.1 | FL166: 48 | FX166: =-(AC242)+2*GC101 -> -2.72688 | FY166: =AD242 -> 138.9453449 | FZ166: =AE242 -> 28 | GB166: =-EP148-GK101 -> -9.25721716 | GC166: =EQ148 -> 104 | GD166: 39 | GJ166: =-ED164-GK101 -> -8.17221716 | GK166: 74.575 | GL166: 52 | GN166: =-CD478-GK101 -> -16.92980667 | GO166: =CE478 -> 139.3791356 | GP166: g2 | HD166: =-EP156-GK101 -> -8.747854792 | HE166: 95.592 | HF166: d5 | HH166: =-CL286-GK101 -> 0 | HI166: =CM286 -> 99.025 | HJ166: s1
E167: اندازه سرشانه | F167: W | G167: =(1/COS(F137))*(0.5*G168-G163) -> 11.61875414 | H167: =(1/COS(F137))*(0.5*H168-H163) -> 11.61875414 | AW167: (1 → 50) | AX167: =0.5*AX165 -> 11.275 | AZ167: =AX156+AX157+AX99 -> 11.42721716 | BA167: =AX155+AX98 -> 104 | BB167: 40 | BD167: =AZ161+'متغیرها '!C55 -> 10.34221716 | BE167: =BA161 -> 117.04 | BF167: شیفت43 | BG167: =BG157 -> 39.20614076 | BH167: (46 → 48) | BI167: =BI148-'متغیرها '!C128*(H106-H108) -> 9.525 | BK167: =0+BI98 -> 20 | BL167: =BI148+BI164+BI97 -> 136.475 | BM167: 45 | BO167: =BK159 -> 29.18125 | BP167: =BL159 -> 106.1 | BQ167: 34 | BS167: =AZ100-BT130 -> 25.9722858 | BT167: =BA100 -> 122.695363 | BU167: 13 | BV167: نقطه حلقه آستین | BW167: =BS104+SQRT(POWER(BS167-BS104,2)+POWER(BT167-BT104,2))*SIN(IF(BT167=BT104,RADIANS(90)-BS159,ATAN((BS167-BS104)/ABS(BT167-BT104))+IF(BT167>BT104,-1,1)*BS159)) -> 24.86187387 | BX167: =BT104+IF(BT167<BT104,-1,1)*SQRT(POWER(BS167-BS104,2)+POWER(BT167-BT104,2))*COS(IF(BT167=BT104,RADIANS(90)-BS159,ATAN((BS167-BS104)/ABS(BT167-BT104))+IF(BT167>BT104,-1,1)*BS159)) -> 126.5622982 | BY167: b14 | CA167: =DT328 -> 31.8375 | CB167: =DU328 -> 65.05 | CC167: e25 | CD167: نقطه اول خط تقارن | CE167: نقاط قرینه شده نسبت به خط تقارن | CN167: =BK180 -> 32.21875 | CO167: =BL180 -> 106.1 | CP167: شیفت35 | CR167: =IF(CO159>CO155,CN159,CN155) -> 11.42721716 | CS167: =IF(CO159>CO155,CO159,CO155) -> 104 | CT167: شیفت40 یا dd5 | CV167: =CN172 -> 31.09078283 | CW167: =CO172 -> 97.692 | CX167: dd2 | CZ167: (24 → 31) | DA167: =CZ154+0.55*(CZ158-CZ154) -> 15.33499772 | DC167: شیفت | DD167: =BD156 -> 25.9722858 | DE167: =BE156 -> 122.695363 | DF167: 13 | DH167: (24 → 25) | DI167: =DH154+0.65*(DH158-DH154) -> 35.14793872 | DK167: شیفت | DL167: =DH158+DI161 -> 37.54298265 | DM167: =DI158+DI162 -> 131.9001722 | DN167: 12p یا 12 | DP167: =DP160-DT171+0.5*(DP159-DP160) -> 21.12119275 | DQ167: =DQ160+0.5*(DQ159-DQ160) -> 117.3152035 | DR167: a2 | DT167: =DT169 -> 12.51221716 | DU167: =DU162 -> 70.575 | DV167: شیفتa53 | EA167: محاسبات | EX167: =DT170 -> 20.0388571 | EY167: =DU170 -> 75.14066577 | EZ167: =DV170 -> شیفت49'm | FR167: =BK154+'متغیرها '!C56 -> 30.7 | FS167: =FS164+'متغیرها '!C57 -> 120.3 | FT167: b35 | FX167: =GB147 -> 0 | FY167: =AD243 -> 138.1059388 | FZ167: =AE243 -> 26 | GN167: =-CD479-GK101 -> -5.45376 | GO167: =CE479 -> 142.3029694 | GP167: 30 | GR167: =-ET123-GK101 -> -10.34221716 | GS167: =EU123 -> 120.3 | GT167: g'5 | HB167: 78' | HH167: =-CL287-GK101 -> 0 | HI167: =CM287 -> 127.6885633 | HJ167: p26
E168: فاصله بین دو سرشانه از پشت | F168: W1 | G168: =H129+0.6*G173 -> 35.9016 | H168: ='متغیرها '!U81+0.6*H173 -> 35.9016 | AW168: (49 → 49') | AX168: =AX166*((AX165-AX161)/AX162) -> 0 | AZ168: =AX156+AX157+AX158+AX99 -> 20.57 | BA168: =AX155+AX98+L125 -> 106.1813315 | BB168: 41 | BD168: =AZ167+'متغیرها '!C55 -> 11.42721716 | BE168: =BA167 -> 104 | BF168: شیفت40 | BH168: (1 → 49') | BI168: =BI155-BI144+BI143 -> 11.8375 | BK168: =0+BI98 -> 20 | BL168: =0+BI97 -> 74.575 | BM168: 1 | BO168: =BK154 -> 30.7 | BP168: =BL154 -> 127.8476283 | BQ168: 40 | BS168: =BD155-BT130 -> 24.4422858 | BT168: =BE155 -> 118.717363 | BU168: 14 | BV168: نقطه زیر حلقه آستین | BW168: =BS104+SQRT(POWER(BS168-BS104,2)+POWER(BT168-BT104,2))*SIN(IF(BT168=BT104,RADIANS(90)-BS159,ATAN((BS168-BS104)/ABS(BT168-BT104))+IF(BT168>BT104,-1,1)*BS159)) -> 24.38530055 | BX168: =BT104+IF(BT168<BT104,-1,1)*SQRT(POWER(BS168-BS104,2)+POWER(BT168-BT104,2))*COS(IF(BT168=BT104,RADIANS(90)-BS159,ATAN((BS168-BS104)/ABS(BT168-BT104))+IF(BT168>BT104,-1,1)*BS159)) -> 122.3269397 | BY168: b2 | CA168: =DT324 -> 31.8375 | CB168: =DU324 -> 74.575 | CC168: e21 | CD168: نقطه دوم خط تقارن | CE168: مولفه افقی | CF168: مولفه عمودی | CG168: اسم نقطه | CI168: نقاط ورودی | CN168: =BK162 -> 42.5375 | CO168: =BL162 -> 106.2061408 | CP168: شیفت36 | CZ168: (1 → 32) | DA168: =DA154+0.75*(DA155-DA154) -> 128.4933433 | DC168: شیفت | DD168: =BS132+DA160 -> 24.4422858 | DE168: =BT132 -> 122.695363 | DF168: 12 | DH168: (1 → 26) | DI168: =DI154+0.4*(DI155-DI154) -> 129.468929 | DK168: شیفت | DL168: =IF('متغیرها '!C119=1,DX125,BK117-DI161)+DI161 -> 39.2014402 | DM168: =IF('متغیرها '!C119=1,DY125,BL117-DI162)+DI162 -> 126.3921722 | DN168: 16p یا 16 | DP168: =DP158+0.4*(DP166-DP158) -> 11.82027933 | DQ168: =DQ166+0.1*(DQ158-DQ166) -> 124.7960577 | DR168: a3 | DT168: =DT163+DT171 -> 20.0388571 | DU168: =DU163 -> 71.14066577 | DV168: شیفتa''5 | DY168: (a13→a23) | DZ168: =SQRT(POWER(DY160-DY159,2)+POWER(DZ160-DZ159,2)) -> 4 | EP168: =AZ166 -> 9.25721716 | EQ168: =BA166 -> 104 | ER168: 39 | FJ168: =BK170 -> 20.85625 | FK168: =BL170 -> 84.1 | FL168: 48 | FR168: =CU104 -> 37.4 | FS168: =FS167 -> 120.3 | FT168: b36 | GD168: 34' | GL168: 11' | GR168: =-ET124-GK101 -> -17.76876522 | GS168: =EU124 -> 120.3 | GT168: g''5 | GZ168: =-DN279-GK101 -> -21.99414572 | HA168: =DO279 -> 74.575 | HB168: p8
E169: پهنای ساسون سرشانه جلو | G169: =(G179/COS(G160))-G167 -> 6.167759754 | H169: =(H179/COS(H160))-H167 -> 6.167759754 | AW169: (1 → 52') | AX169: =AX160-AX151+AX150 -> 8.17221716 | BH169: (49→49') | BI169: =0.25*'متغیرها '!C133*H103 -> 0 | BK169: =-BI165+BI98 -> 20.85625 | BL169: =0+BI97 -> 74.575 | BM169: 46 | BS169: =BG392 -> 19.42 | BT169: =BH392 -> 130.345363 | BU169: 16 | BV169: شبیه ساز | BW169: =BS104+SQRT(POWER(BS169-BS104,2)+POWER(BT169-BT104,2))*SIN(ATAN((BS169-BS104)/(BT169-BT104))-BS159) -> 16.59108511 | BX169: =BT104+SQRT(POWER(BS169-BS104,2)+POWER(BT169-BT104,2))*COS(ATAN((BS169-BS104)/(BT169-BT104))-BS159) -> 132.3111244 | BY169: b6 | CA169: =DT340 -> 35.8375 | CB169: =DU340 -> 74.575 | CC169: e216 | CD169: نقطه قرینه خواسته | CE169: =CA169+2*(SIN(ATAN((CA168-CA167)/(CB168-CB167)))*(CB169-CB167)+COS(ATAN((CA168-CA167)/(CB168-CB167)))*(CA167-CA169))*COS(ATAN((CA168-CA167)/(CB168-CB167))) -> 27.8375 | CF169: =CB169-2*(SIN(ATAN((CA168-CA167)/(CB168-CB167)))*(CB169-CB167)+COS(ATAN((CA168-CA167)/(CB168-CB167)))*(CA167-CA169))*SIN(ATAN((CA168-CA167)/(CB168-CB167))) -> 74.575 | CG169: e'216 | CI169: مولفه افقی | CJ169: مولفه عمودی | CK169: اسم نقطه | CN169: =BO178 -> 21.9 | CO169: =BP178 -> 106.1 | CP169: 44 | CR169: =IF(CO159>CO155,CN159,CN155) -> 11.42721716 | CS169: =IF(CO159>CO155,CO159,CO155) -> 104 | CT169: شیفت40 یا dd5 | CV169: =CN172 -> 31.09078283 | CW169: =CO172 -> 97.692 | CX169: dd2 | CZ169: (32 → 33) | DA169: =CZ154+0.55*(CZ155-CZ154) -> 13.77909453 | DC169: شیفت | DD169: =BS133+DA160 -> 21.9311429 | DE169: =BT133 -> 123.842863 | DF169: 18 | DH169: (26 → 33) | DI169: =DH154+0.19*(DH155-DH154) -> 32.00008706 | DK169: شیفت | DL169: =CA116+DI161 -> 41.96553613 | DM169: =CB116+DI162 -> 123.6381722 | DN169: =CC116 -> 14 | DP169: =DP158+0.1*(DP166-DP158) -> 7.245104402 | DQ169: =DQ166+0.4*(DQ158-DQ166) -> 130.4966336 | DR169: a4 | DT169: =DG108 -> 12.51221716 | DU169: =DH108 -> 74.575 | DV169: شیفت53 | DY169: (a6→a13) | DZ169: =SQRT(POWER(DY161-DY160,2)+POWER(DZ161-DZ160,2)) -> 10.98125 | EP169: =AZ161 -> 10.34221716 | EQ169: =BA161 -> 117.04 | ER169: 43 | FJ169: =BO176 -> 20.85625 | FK169: =BP176 -> 74.575 | FL169: 47 | FT169: زمین | FX169: =-(AK247)+2*GC101 -> -17.16228035 | FY169: =AK246 -> 138.711204 | FZ169: نقطه اتصال | GB169: =-EH146-GK101 -> -6.13548 | GC169: =EI146 -> 143.9817816 | GD169: e7 | GJ169: =-EP172-GK101 -> -24.4422858 | GK169: =EQ172 -> 118.717363 | GL169: شیفت14 | GP169: 41' | GZ169: =-DN280-GK101 -> -18.08583558 | HA169: =DO280 -> 0 | HB169: p'8 | HH169: =-CL287-GK101 -> 0 | HI169: =CM287 -> 127.6885633 | HJ169: p26
